Workbook

Sheet Raw Annual DMR Data_10.12 (hidden)
A1: Year | B1: First day of year | C1: Facility Name | D1: Street Address | E1: City | F1: State | G1: ZIP Code | H1: Facility Latitude | I1: Facility Longitude | J1: TRI Facility ID(s) | K1: FRS ID | L1: OES Name and Description | M1: SIC Code | N1: SIC Description | O1: Link to ECHO | P1: Indirect or Direct Discharger | Q1: Release Pattern | R1: Annual Discharge (kg/yr)
A2: 2015 | B2: 2015-01-01 | C2: AAR MOBILITY SYSTEMS | D2: 201 HAYNES STREET | E2: CADILLAC | F2: MI | G2: 49601 | H2: 44.2511 | I2: -85.408 | J2: 49601RBRKS201HA | K2: 110000412009 | L2: Unknown | M2: 3499 | N2: Fabricated Metal Products, NEC (powder metallurgy) | P2: Direct | Q2: unknown | R2: 0.03559161667
A3: 2015 | B3: 2015-01-01 | C3: AMCOL HEALTH & BEAUTY SOLUTIONS INC | D3: 301 LASER LANE | E3: LAFAYETTE | F3: LA | G3: 70507-5326 | H3: 30.27083 | I3: -92.03728 | K3: 110000846602 | L3: Laboratory Use | M3: 8731 | N3: Commercial Physical and Biological Research | P3: Direct | Q3: unknown | R3: 0.00426891225
A4: 2015 | B4: 2015-01-01 | C4: CHEMTURA NORTH AND SOUTH PLANTS | D4: 1000 MORGANTOWN INDUSTRIAL PARK | E4: MORGANTOWN | F4: WV | G4: 26501 | H4: 39.59983 | I4: -79.97148 | J4: 26505WSTMR1000D,26505WSTMRMORGA | K4: 110000572782 | L4: Processing as a Reactant | M4: 2869 | N4: Industrial Organic Chemicals, NEC (aliphatics) | P4: Direct | Q4: unknown | R4: 0.008276643991
A5: 2015 | B5: 2015-01-01 | C5: DELPHI HARRISON THERMAL SYSTEMS | D5: 3600 DRYDEN RD | E5: DAYTON | F5: OH | G5: 45439 | H5: 39.688437 | I5: -84.226002 | K5: 110000394895 | L5: Unknown | M5: 3711 | N5: Motor Vehicles and Passenger Car Bodies (automobiles) | P5: Direct | Q5: unknown | R5: 1.5925
A6: 2015 | B6: 2015-01-01 | C6: DOW CHEMICAL CO DALTON PLANT | D6: 1468 PROSSER DR SE | E6: DALTON | F6: GA | G6: 30721-5449 | H6: 34.632592 | I6: -84.927668 | J6: 3072WSTYRN1468P | K6: 110000611703 | L6: Processing as a Reactant | M6: 2822 | N6: Synthetic Rubber | P6: Direct | Q6: unknown | R6: 0.168707483
A7: 2015 | B7: 2015-01-01 | C7: ETHYL CORPORATION | D7: GOLF STATE ROAD | E7: BATON ROUGE | F7: LA | G7: 70805 | H7: 30.483523 | I7: -91.18344 | K7: 110001143584 | L7: Processing as a Reactant | M7: 2869 | N7: Industrial Organic Chemicals, NEC (aliphatics) | P7: Direct | Q7: unknown | R7: 1.24077599
A8: 2015 | B8: 2015-01-01 | C8: FEDERAL HIGHWAY ADMINISTRATION-CENTRAL FEDERAL LAND | D8: 12300 WEST DAKOTA AVENUE | E8: LAKEWOOD | F8: CO | G8: 80228-1010 | H8: 39.72464 | I8: -105.14191 | K8: 110002961929 | L8: Unknown | M8: 9999 | N8: Nonclassifiable Establishments | P8: Direct | Q8: unknown | R8: 0.0372743015
A9: 2015 | B9: 2015-01-01 | C9: HOME DEPOT STORE 4285 | D9: 387 CHARLES STREET | E9: PROVIDENCE | F9: RI | G9: 02904-2231 | H9: 41.84315 | I9: -71.417769 | K9: 110024267620 | L9: Remediation | M9: 1541 | N9: General Contractors Industrial Buildings and Warehouses ( except grain elevators; drycleaning plants; and manufacturing, public, and industrial warehouses) | P9: Direct | Q9: unknown | R9: 0.05264320292
A10: 2015 | B10: 2015-01-01 | C10: INDORAMA VENTURES OLEFINS, LLC | D10: 4300 HWY 108 SOUTH | E10: SULPHUR | F10: LA | G10: 70665 | H10: 30.190568 | I10: -93.325823 | J10: 70663CCDNTHIGHW | K10: 110000748040 | L10: Processing as a Reactant | M10: 2869 | N10: Industrial Organic Chemicals, NEC (aliphatics) | P10: Direct | Q10: unknown | R10: 0.004697185
A11: 2015 | B11: 2015-01-01 | C11: INSTITUTE PLANT | D11: ROUTE 25 | E11: INSTITUTE | F11: WV | G11: 25112 | H11: 38.386439 | I11: -81.79844 | K11: 110064632312 | L11: Processing as a Reactant | M11: 2869 | N11: Industrial Organic Chemicals, NEC (aliphatics) | P11: Direct | Q11: unknown | R11: 0.4914285714
A12: 2015 | B12: 2015-01-01 | C12: INSTITUTE PLANT | D12: ROUTE 25 | E12: INSTITUTE | F12: WV | G12: 25112 | H12: 38.386439 | I12: -81.79844 | K12: 110064632312 | L12: Processing as a Reactant | M12: 2869 | N12: Industrial Organic Chemicals, NEC (aliphatics) | P12: Direct | Q12: unknown | R12: 0.3124489796
A13: 2015 | B13: 2015-01-01 | C13: ITW SWITCHES | D13: 7300 WEST LAWRENCE AVENUE | E13: HARWOOD HEIGHTS | F13: IL | G13: 60706-3504 | H13: 41.968191 | I13: -87.809528 | K13: 110000790984 | L13: Remediation | M13: 3569 | N13: General Industrial Machinery and Equipment, NEC (textile fire hose) | P13: Direct | Q13: unknown | R13: 0.004484807256
A14: 2015 | B14: 2015-01-01 | C14: KEESHAN AND BOST CHEMICAL CO., INC. | D14: 22102 HWY 6 | E14: MANVEL | F14: TX | G14: 77578 | H14: 29.4584 | I14: -95.3304 | J14: 77578KSHNB22102 | K14: 110000599479 | L14: Processing as a Reactant | M14: 2869 | N14: Industrial Organic Chemicals, NEC (aliphatics) | P14: Direct | Q14: unknown | R14: 0.01655328798
A15: 2015 | B15: 2015-01-01 | C15: LOMPOC WASTEWATER PLANT | D15: 1801 WEST CENTRAL AVE | E15: LOMPOC | F15: CA | G15: 93436 | H15: 34.66108 | I15: -120.48135 | K15: 110009547222 | L15: POTW | M15: 4952 | N15: Sewerage Systems | P15: Direct | Q15: unknown | R15: 2.162086625
A16: 2015 | B16: 2015-01-01 | C16: NALCO COMPANY LLC- GARYVILLE FACILITY | D16: 3628 HIGHWAY 44 | E16: GARYVILLE | F16: LA | G16: 70051 | H16: 30.048591 | I16: -90.630941 | J16: 70051NLCCHRIVER | K16: 110007015871 | L16: Processing as a Reactant | M16: 2899 | N16: Chemicals and Chemical Preparations, NEC (table salt) | P16: Direct | Q16: unknown | R16: 0.1655328798
A17: 2015 | B17: 2015-01-01 | C17: NEW DOCK STREET PUMP STATION | D17: NEW DOCK ST / 151 SOUTH HENRY FORD AVE | E17: TERMINAL ISLAND | F17: CA | G17: 90731 | H17: 33.75498 | I17: -118.25428 | K17: 110009127015 | L17: POTW | M17: 9999 | N17: Nonclassifiable Establishments | P17: Direct | Q17: unknown | R17: 0.002448979592
A18: 2015 | B18: 2015-01-01 | C18: PORT OF SUNNYSIDE INDUSTRIAL WWTF | D18: 747 MIDVALE RD | E18: SUNNYSIDE | F18: WA | G18: 98944 | H18: 46.291666 | I18: -120.012234 | K18: 110015474789 | L18: POTW | P18: Direct | Q18: unknown | R18: 2.3485925
A19: 2015 | B19: 2015-01-01 | C19: SHINTECH ADDIS PLANT A | D19: 9750 LA HWY. 1 SOUTH | E19: ADDIS | F19: LA | G19: 70710 | H19: 30.325882 | I19: -91.261732 | J19: 70710SHNTC9750L | K19: 110008393354 | L19: Processing as a Reactant | M19: 2821 | N19: Plastics Materials, Synthetic and Resins, and Nonvulcanizable Elastomers | P19: Direct | Q19: unknown | R19: 4.925170068
A20: 2015 | B20: 2015-01-01 | C20: SOLVAY - HOUSTON PLANT | D20: 8615 MANCHESTER ST | E20: HOUSTON | F20: TX | G20: 77012 | H20: 29.718139 | I20: -95.26875 | J20: 77012STFFR8615M | K20: 110000460901 | L20: Processing as a Reactant | M20: 2819 | N20: Industrial Inorganic Chemicals, NEC (recovering sulfur from natural gas) | P20: Direct | Q20: unknown | R20: 4.979591837
A21: 2015 | B21: 2015-01-01 | C21: STEPAN CO MILLSDALE ROAD | D21: 22500 STEPAN DR | E21: ELWOOD | F21: IL | G21: 60421-9646 | H21: 41.441667 | I21: -88.15972 | J21: 60421STPNCRURAL | K21: 110000432504 | L21: Unknown | M21: 2843 | N21: Surface Active Agents, Finishing Agents, Sulfonated Oils, and Assistants | P21: Direct | Q21: unknown | R21: 1.171337868
A22: 2015 | B22: 2015-01-01 | C22: STYROLUTION AMERICA LLC | D22: 25846 S FRONTAGE ROAD | E22: CHANNAHON | F22: IL | G22: 60410-5222 | H22: 41.412533 | I22: -88.197281 | J22: 60410MBLCHI55AR | K22: 110008458597 | L22: Processing as a Reactant | M22: 2821 | N22: Plastics Materials, Synthetic and Resins, and Nonvulcanizable Elastomers | P22: Direct | Q22: unknown | R22: 0.1655328798
A23: 2015 | B23: 2015-01-01 | C23: THE STIRLING CLUB | D23: 2827 PARADISE ROAD | E23: LAS VEGAS | F23: NV | G23: 89109 | H23: 36.13753 | I23: -115.15479 | K23: 110020039402 | L23: Unknown | M23: 7011 | N23: Hotels and Motels (hotels, except casino hotels, and motels) | P23: Direct | Q23: unknown | R23: 0.0077497875
A24: 2016 | B24: 2016-01-01 | C24: AAR MOBILITY SYSTEMS | D24: 201 HAYNES STREET | E24: CADILLAC | F24: MI | G24: 49601 | H24: 44.2511 | I24: -85.408 | J24: 49601RBRKS201HA | K24: 110000412009 | L24: Unknown | M24: 3499 | N24: Fabricated Metal Products, NEC (powder metallurgy) | P24: Direct | Q24: unknown | R24: 0.1136897927
A25: 2016 | B25: 2016-01-01 | C25: AIRPORT BUSINESS CENTER | D25: 333 STRAWBERRY FIELD ROAD | E25: WARWICK | F25: RI | G25: 02886-2459 | H25: 41.71139 | I25: -71.42667 | K25: 110013738045 | L25: Unknown | M25: 9511 | N25: Air and Water Resource and Solid Waste Management | P25: Direct | Q25: unknown | R25: 0.04583274062
A26: 2016 | B26: 2016-01-01 | C26: ALLIANT TECHSYSTEMS OPERATIONS LLC | D26: 55 THIOKOL ROAD | E26: ELKTON | F26: MD | G26: 21921 | H26: 39.61076 | I26: -75.86472 | K26: 110019877409 | L26: Unknown | M26: 3764 | N26: Guided Missile and Space Vehicle Propulsion Units and Propulsion Unit Parts (except research and development not producing prototypes)) | P26: Direct | Q26: unknown | R26: 0.0131052597
A27: 2016 | B27: 2016-01-01 | C27: BOISE STATE UNIVERSITY | D27: 1910 UNIVERSITY DRIVE | E27: BOISE | F27: ID | G27: 83706 | H27: 43.603454 | I27: -116.202736 | K27: 110042072351 | L27: Remediation | M27: 7216 | N27: Drycleaning Plants, Except Rug Cleaning | P27: Direct | Q27: unknown | R27: 0.01553671485
A28: 2016 | B28: 2016-01-01 | C28: CAMERON TRADING POST WWTP | D28: HWY 89 AT THE LITTLE COLORADO | E28: CAMERON | F28: AZ | G28: 86020 | H28: 36.30301 | I28: -111.45966 | K28: 110010062546 | L28: Waste handling, disposal, treatment, and recycling | M28: 4952 | N28: Sewerage Systems | P28: Direct | Q28: unknown | R28: 0.09454590864
A29: 2016 | B29: 2016-01-01 | C29: CHEMTURA NORTH AND SOUTH PLANTS | D29: 1000 MORGANTOWN INDUSTRIAL PARK | E29: MORGANTOWN | F29: WV | G29: 26501 | H29: 39.59983 | I29: -79.97148 | J29: 26505WSTMR1000D,26505WSTMRMORGA | K29: 110000572782 | L29: Processing as a Reactant | M29: 2869 | N29: Industrial Organic Chemicals, NEC (aliphatics) | P29: Direct | Q29: unknown | R29: 0.008276643991
A30: 2016 | B30: 2016-01-01 | C30: DEFENSE FUEL SUPPORT POINT NORWALK DFSP | D30: 15306 NORWALK BOULEVARD | E30: NORWALK | F30: CA | G30: 90650-6639 | H30: 33.892391 | I30: -118.072909 | K30: 110000781609 | L30: Remediation | M30: 4613 | N30: Refined Petroleum Pipelines | P30: Direct | Q30: unknown | R30: 7.346938776e-05
A31: 2016 | B31: 2016-01-01 | C31: DELPHI HARRISON THERMAL SYSTEMS | D31: 3600 DRYDEN RD | E31: DAYTON | F31: OH | G31: 45439 | H31: 39.688437 | I31: -84.226002 | K31: 110000394895 | L31: Unknown | M31: 3711 | N31: Motor Vehicles and Passenger Car Bodies (automobiles) | P31: Direct | Q31: unknown | R31: 1.6333
A32: 2016 | B32: 2016-01-01 | C32: DOW CHEMICAL CO DALTON PLANT | D32: 1468 PROSSER DR SE | E32: DALTON | F32: GA | G32: 30721-5449 | H32: 34.632592 | I32: -84.927668 | J32: 3072WSTYRN1468P | K32: 110000611703 | L32: Processing as a Reactant | M32: 2822 | N32: Synthetic Rubber | P32: Direct | Q32: unknown | R32: 0.2382464097
A33: 2016 | B33: 2016-01-01 | C33: EAGLE US 2 LLC - LAKE CHARLES COMPLEX | D33: 1300 PPG DRIVE | E33: LAKE CHARLES | F33: LA | G33: 70601 | H33: 30.2235 | I33: -93.2869 | J33: 70669PPGNDCOLUM | K33: 110000494894 | L33: Manufacturing | M33: 2869 | N33: Industrial Organic Chemicals, NEC (aliphatics) | P33: Direct | Q33: unknown | R33: 121.5387875
A34: 2016 | B34: 2016-01-01 | C34: EQUISTAR CHEMICALS LP | D34: 1515 MILLER CUTOFF RD | E34: LA PORTE | F34: TX | G34: 775719810 | H34: 29.717471 | I34: -95.068008 | J34: 77571QNTMC1515M | K34: 110034641635 | L34: Processing as a Reactant | M34: 2869 | N34: Industrial Organic Chemicals, NEC (aliphatics) | P34: Direct | Q34: unknown | R34: 22.1814059
A35: 2016 | B35: 2016-01-01 | C35: EQUISTAR CHEMICALS LP | D35: 1515 MILLER CUTOFF RD | E35: LA PORTE | F35: TX | G35: 775719810 | H35: 29.717471 | I35: -95.068008 | J35: 77571QNTMC1515M | K35: 110034641635 | L35: Processing as a Reactant | M35: 2869 | N35: Industrial Organic Chemicals, NEC (aliphatics) | P35: Direct | Q35: unknown | R35: 0.6952380952
A36: 2016 | B36: 2016-01-01 | C36: EQUISTAR CHEMICALS LP | D36: 1515 MILLER CUTOFF RD | E36: LA PORTE | F36: TX | G36: 775719810 | H36: 29.717471 | I36: -95.068008 | J36: 77571QNTMC1515M | K36: 110034641635 | L36: Processing as a Reactant | M36: 2869 | N36: Industrial Organic Chemicals, NEC (aliphatics) | P36: Direct | Q36: unknown | R36: 0.4965986395
A37: 2016 | B37: 2016-01-01 | C37: ETHYL CORPORATION | D37: GOLF STATE ROAD | E37: BATON ROUGE | F37: LA | G37: 70805 | H37: 30.483523 | I37: -91.18344 | K37: 110001143584 | L37: Processing as a Reactant | M37: 2869 | N37: Industrial Organic Chemicals, NEC (aliphatics) | P37: Direct | Q37: unknown | R37: 0.3324744
A38: 2016 | B38: 2016-01-01 | C38: EVERETT WATER POLLUTION CONTROL FACILITY | D38: 4027 4TH ST SE | E38: EVERETT | F38: WA | G38: 98201 | H38: 47.997331 | I38: -122.172561 | K38: 110016662011 | L38: POTW | P38: Direct | Q38: unknown | R38: 3.47315385
A39: 2016 | B39: 2016-01-01 | C39: FEDERAL HIGHWAY ADMINISTRATION-CENTRAL FEDERAL LAND | D39: 12300 WEST DAKOTA AVENUE | E39: LAKEWOOD | F39: CO | G39: 80228-1010 | H39: 39.72464 | I39: -105.14191 | K39: 110002961929 | L39: Unknown | M39: 9999 | N39: Nonclassifiable Establishments | P39: Direct | Q39: unknown | R39: 0.046837104
A40: 2016 | B40: 2016-01-01 | C40: GE AVIATION | D40: 1000 WESTERN AVE MAIL DROP 164X9 | E40: LYNN | F40: MA | G40: 1905 | H40: 42.452603 | I40: -70.973436 | J40: 01910GNRLL1000W | K40: 110000310191 | L40: Unknown | M40: 3724 | N40: Aircraft Engines and Engine Parts (except research and development not producing prototypes) | P40: Direct | Q40: unknown | R40: 0.05902329
A41: 2016 | B41: 2016-01-01 | C41: GENERAL DYNAMICS ORDNANCE TACTICAL SYSTEMS | D41: 200 E HIGH ST | E41: RED LION | F41: PA | G41: 17356 | H41: 39.903749 | I41: -76.605096 | J41: 17356GNRLD200EH | K41: 110000333318 | L41: Unknown | M41: 3489 | N41: Ordnance and Accessories, NEC | P41: Direct | Q41: unknown | R41: 0.181352976
A42: 2016 | B42: 2016-01-01 | C42: INDORAMA VENTURES OLEFINS, LLC | D42: 4300 HWY 108 SOUTH | E42: SULPHUR | F42: LA | G42: 70665 | H42: 30.190568 | I42: -93.325823 | J42: 70663CCDNTHIGHW | K42: 110000748040 | L42: Processing as a Reactant | M42: 2869 | N42: Industrial Organic Chemicals, NEC (aliphatics) | P42: Direct | Q42: unknown | R42: 0.000360237375
A43: 2016 | B43: 2016-01-01 | C43: INSTITUTE PLANT | D43: ROUTE 25 | E43: INSTITUTE | F43: WV | G43: 25112 | H43: 38.386439 | I43: -81.79844 | K43: 110064632312 | L43: Processing as a Reactant | M43: 2869 | N43: Industrial Organic Chemicals, NEC (aliphatics) | P43: Direct | Q43: unknown | R43: 2.126507937
A44: 2016 | B44: 2016-01-01 | C44: KEESHAN AND BOST CHEMICAL CO., INC. | D44: 22102 HWY 6 | E44: MANVEL | F44: TX | G44: 77578 | H44: 29.4584 | I44: -95.3304 | J44: 77578KSHNB22102 | K44: 110000599479 | L44: Processing as a Reactant | M44: 2869 | N44: Industrial Organic Chemicals, NEC (aliphatics) | P44: Direct | Q44: unknown | R44: 0.01655328798
A45: 2016 | B45: 2016-01-01 | C45: PORT OF SUNNYSIDE INDUSTRIAL WWTF | D45: 747 MIDVALE RD | E45: SUNNYSIDE | F45: WA | G45: 98944 | H45: 46.291666 | I45: -120.012234 | K45: 110015474789 | L45: POTW | P45: Direct | Q45: unknown | R45: 0.6907625
A46: 2016 | B46: 2016-01-01 | C46: SOLVAY - HOUSTON PLANT | D46: 8615 MANCHESTER ST | E46: HOUSTON | F46: TX | G46: 77012 | H46: 29.718139 | I46: -95.26875 | J46: 77012STFFR8615M | K46: 110000460901 | L46: Processing as a Reactant | M46: 2819 | N46: Industrial Inorganic Chemicals, NEC (recovering sulfur from natural gas) | P46: Direct | Q46: unknown | R46: 8.272108844
A47: 2016 | B47: 2016-01-01 | C47: STEPAN CO MILLSDALE ROAD | D47: 22500 STEPAN DR | E47: ELWOOD | F47: IL | G47: 60421-9646 | H47: 41.441667 | I47: -88.15972 | J47: 60421STPNCRURAL | K47: 110000432504 | L47: Unknown | M47: 2843 | N47: Surface Active Agents, Finishing Agents, Sulfonated Oils, and Assistants | P47: Direct | Q47: unknown | R47: 0.5800453515
A48: 2016 | B48: 2016-01-01 | C48: STYROLUTION AMERICA LLC | D48: 25846 S FRONTAGE ROAD | E48: CHANNAHON | F48: IL | G48: 60410-5222 | H48: 41.412533 | I48: -88.197281 | J48: 60410MBLCHI55AR | K48: 110008458597 | L48: Processing as a Reactant | M48: 2821 | N48: Plastics Materials, Synthetic and Resins, and Nonvulcanizable Elastomers | P48: Direct | Q48: unknown | R48: 0.1655328798
A49: 2016 | B49: 2016-01-01 | C49: TRONOX LLC | D49: 510 SOUTH 4TH STREET | E49: HENDERSON | F49: NV | G49: 89015 | H49: 36.03544 | I49: -114.99994 | J49: 89015KRRMC8000L | K49: 110043808467 | L49: Remediation | M49: 1799 | N49: Special Trade Contractors, NEC (indoor swimming pool construction contractors) | P49: Direct | Q49: unknown | R49: 0.456460402
A50: 2016 | B50: 2016-01-01 | C50: VENETIAN HOTEL AND CASINO | D50: 3355 LAS VEGAS BOULEVARD SOUTH | E50: LAS VEGAS | F50: NV | G50: 89109 | H50: 36.1221 | I50: -115.17139 | K50: 110004306938 | L50: Unknown | M50: 7011 | N50: Hotels and Motels (hotels, except casino hotels, and motels) | P50: Direct | Q50: unknown | R50: 0.00877268375
A51: 2016 | B51: 2016-01-01 | C51: WOODWARD INC | D51: 5001 NORTH SECOND STREET | E51: ROCKFORD | F51: IL | G51: 61101 | H51: 42.304209 | I51: -89.055549 | J51: 6112WWDWRD51NRT | K51: 110005812371 | L51: Unknown | M51: 3728 | N51: Aircraft Parts and Auxiliary Equipment, NEC (fluid power aircraft subassemblies) | P51: Direct | Q51: unknown | R51: 0.9553028494
A52: 2016 | B52: 2016-01-01 | C52: WOODWARD INC | D52: 5001 NORTH SECOND STREET | E52: ROCKFORD | F52: IL | G52: 61101 | H52: 42.304209 | I52: -89.055549 | J52: 6112WWDWRD51NRT | K52: 110005812371 | L52: Unknown | M52: 3728 | N52: Aircraft Parts and Auxiliary Equipment, NEC (fluid power aircraft subassemblies) | P52: Direct | Q52: unknown | R52: 0.074765862
A53: 2017 | B53: 2017-01-01 | C53: ALLIANT TECHSYSTEMS OPERATIONS LLC | D53: 55 THIOKOL ROAD | E53: ELKTON | F53: MD | G53: 21921 | H53: 39.61076 | I53: -75.86472 | K53: 110019877409 | L53: Unknown | M53: 3764 | N53: Guided Missile and Space Vehicle Propulsion Units and Propulsion Unit Parts (except research and development not producing prototypes)) | P53: Direct | Q53: unknown | R53: 0.0355332015
A54: 2017 | B54: 2017-01-01 | C54: BRASKEM AMERICA INC LAPORTE SITE | D54: 8811 STRANG ROAD | E54: LA PORTE | F54: TX | G54: 77571 | H54: 29.704027 | I54: -95.079932 | J54: 77571RSTCH8811S | K54: 110000463631 | L54: Processing as a Reactant | M54: 2821 | N54: Plastics Materials, Synthetic and Resins, and Nonvulcanizable Elastomers | P54: Direct | Q54: unknown | R54: 0.1936734694
A55: 2017 | B55: 2017-01-01 | C55: BRAWLEY WASTEWATER TREATMENT PLANT | D55: 5015 BEST RD | E55: BRAWLEY | F55: CA | G55: 92227 | H55: 33.01736 | I55: -115.50923 | K55: 110030476465 | L55: POTW | M55: 4952 | N55: Sewerage Systems | P55: Direct | Q55: unknown | R55: 0.0338473625
A56: 2017 | B56: 2017-01-01 | C56: BT HOTEL WARWICK LLC | D56: 400 KNIGHT STREET | E56: WARWICK | F56: RI | G56: 2886 | H56: 41.72651 | I56: -71.47218 | K56: 110070145273 | L56: Remediation | M56: 7011 | N56: Hotels and Motels (hotels, except casino hotels, and motels) | P56: Direct | Q56: unknown | R56: 0.180517248
A57: 2017 | B57: 2017-01-01 | C57: CAVELAND ENVIRONMENTAL AUTH | D57: 508 S DIXIE HWY | E57: HORSE CAVE | F57: KY | G57: 42749 | H57: 37.17 | I57: -85.916111 | K57: 110006656083 | L57: POTW | M57: 4952 | N57: Sewerage Systems | P57: Direct | Q57: unknown | R57: 2.6801585
A58: 2017 | B58: 2017-01-01 | C58: CHEMTURA NORTH AND SOUTH PLANTS | D58: 1000 MORGANTOWN INDUSTRIAL PARK | E58: MORGANTOWN | F58: WV | G58: 26501 | H58: 39.59983 | I58: -79.97148 | J58: 26505WSTMR1000D,26505WSTMRMORGA | K58: 110000572782 | L58: Processing as a Reactant | M58: 2869 | N58: Industrial Organic Chemicals, NEC (aliphatics) | P58: Direct | Q58: unknown | R58: 0.008276643991
A59: 2017 | B59: 2017-01-01 | C59: DEFENSE FUEL SUPPORT POINT NORWALK DFSP | D59: 15306 NORWALK BOULEVARD | E59: NORWALK | F59: CA | G59: 90650-6639 | H59: 33.892391 | I59: -118.072909 | K59: 110000781609 | L59: Remediation | M59: 4613 | N59: Refined Petroleum Pipelines | P59: Direct | Q59: unknown | R59: 0.0008697052154
A60: 2017 | B60: 2017-01-01 | C60: DELPHI HARRISON THERMAL SYSTEMS | D60: 3600 DRYDEN RD | E60: DAYTON | F60: OH | G60: 45439 | H60: 39.688437 | I60: -84.226002 | K60: 110000394895 | L60: Unknown | M60: 3711 | N60: Motor Vehicles and Passenger Car Bodies (automobiles) | P60: Direct | Q60: unknown | R60: 1.396
A61: 2017 | B61: 2017-01-01 | C61: DOW CHEMICAL CO DALTON PLANT | D61: 1468 PROSSER DR SE | E61: DALTON | F61: GA | G61: 30721-5449 | H61: 34.632592 | I61: -84.927668 | J61: 3072WSTYRN1468P | K61: 110000611703 | L61: Processing as a Reactant | M61: 2822 | N61: Synthetic Rubber | P61: Direct | Q61: unknown | R61: 0.337414966
A62: 2017 | B62: 2017-01-01 | C62: DOW CHEMICAL CO DALTON PLANT | D62: 1468 PROSSER DR SE | E62: DALTON | F62: GA | G62: 30721-5449 | H62: 34.632592 | I62: -84.927668 | J62: 3072WSTYRN1468P | K62: 110000611703 | L62: Processing as a Reactant | M62: 2822 | N62: Synthetic Rubber | P62: Direct | Q62: unknown | R62: 0.02760667904
A63: 2017 | B63: 2017-01-01 | C63: EAGLE US 2 LLC - LAKE CHARLES COMPLEX | D63: 1300 PPG DRIVE | E63: LAKE CHARLES | F63: LA | G63: 70601 | H63: 30.2235 | I63: -93.2869 | J63: 70669PPGNDCOLUM | K63: 110000494894 | L63: Manufacturing | M63: 2869 | N63: Industrial Organic Chemicals, NEC (aliphatics) | P63: Direct | Q63: unknown | R63: 5.586562726
A64: 2017 | B64: 2017-01-01 | C64: EDDYVILLE STP | D64: 488 SEWER PLANT RD | E64: EDDYVILLE | F64: KY | G64: 42038 | H64: 37.075278 | I64: -88.09 | K64: 110009938719 | L64: POTW | M64: 4952 | N64: Sewerage Systems | P64: Direct | Q64: unknown | R64: 2.286423875
A65: 2017 | B65: 2017-01-01 | C65: EQUISTAR CHEMICALS LP | D65: 1515 MILLER CUTOFF RD | E65: LA PORTE | F65: TX | G65: 775719810 | H65: 29.717471 | I65: -95.068008 | J65: 77571QNTMC1515M | K65: 110034641635 | L65: Processing as a Reactant | M65: 2869 | N65: Industrial Organic Chemicals, NEC (aliphatics) | P65: Direct | Q65: unknown | R65: 3.50631045
A66: 2017 | B66: 2017-01-01 | C66: EQUISTAR CHEMICALS LP | D66: 1515 MILLER CUTOFF RD | E66: LA PORTE | F66: TX | G66: 775719810 | H66: 29.717471 | I66: -95.068008 | J66: 77571QNTMC1515M | K66: 110034641635 | L66: Processing as a Reactant | M66: 2869 | N66: Industrial Organic Chemicals, NEC (aliphatics) | P66: Direct | Q66: unknown | R66: 0.5628117914
A67: 2017 | B67: 2017-01-01 | C67: EQUISTAR CHEMICALS LP | D67: 1515 MILLER CUTOFF RD | E67: LA PORTE | F67: TX | G67: 775719810 | H67: 29.717471 | I67: -95.068008 | J67: 77571QNTMC1515M | K67: 110034641635 | L67: Processing as a Reactant | M67: 2869 | N67: Industrial Organic Chemicals, NEC (aliphatics) | P67: Direct | Q67: unknown | R67: 0.2648526077
A68: 2017 | B68: 2017-01-01 | C68: EQUISTAR CHEMICALS LP | D68: 1515 MILLER CUTOFF RD | E68: LA PORTE | F68: TX | G68: 775719810 | H68: 29.717471 | I68: -95.068008 | J68: 77571QNTMC1515M | K68: 110034641635 | L68: Processing as a Reactant | M68: 2869 | N68: Industrial Organic Chemicals, NEC (aliphatics) | P68: Direct | Q68: unknown | R68: 0.09931972789
A69: 2017 | B69: 2017-01-01 | C69: ETHYL CORPORATION | D69: GOLF STATE ROAD | E69: BATON ROUGE | F69: LA | G69: 70805 | H69: 30.483523 | I69: -91.18344 | K69: 110001143584 | L69: Processing as a Reactant | M69: 2869 | N69: Industrial Organic Chemicals, NEC (aliphatics) | P69: Direct | Q69: unknown | R69: 0.62246596
A70: 2017 | B70: 2017-01-01 | C70: FEDERAL HIGHWAY ADMINISTRATION-CENTRAL FEDERAL LAND | D70: 12300 WEST DAKOTA AVENUE | E70: LAKEWOOD | F70: CO | G70: 80228-1010 | H70: 39.72464 | I70: -105.14191 | K70: 110002961929 | L70: Unknown | M70: 9999 | N70: Nonclassifiable Establishments | P70: Direct | Q70: unknown | R70: 0.026606279
A71: 2017 | B71: 2017-01-01 | C71: GENERAL DYNAMICS ORDNANCE TACTICAL SYSTEMS | D71: 200 E HIGH ST | E71: RED LION | F71: PA | G71: 17356 | H71: 39.903749 | I71: -76.605096 | J71: 17356GNRLD200EH | K71: 110000333318 | L71: Unknown | M71: 3489 | N71: Ordnance and Accessories, NEC | P71: Direct | Q71: unknown | R71: 0.015009039
A72: 2017 | B72: 2017-01-01 | C72: INDORAMA VENTURES OLEFINS, LLC | D72: 4300 HWY 108 SOUTH | E72: SULPHUR | F72: LA | G72: 70665 | H72: 30.190568 | I72: -93.325823 | J72: 70663CCDNTHIGHW | K72: 110000748040 | L72: Processing as a Reactant | M72: 2869 | N72: Industrial Organic Chemicals, NEC (aliphatics) | P72: Direct | Q72: unknown | R72: 0.4303854875
A73: 2017 | B73: 2017-01-01 | C73: INSTITUTE PLANT | D73: ROUTE 25 | E73: INSTITUTE | F73: WV | G73: 25112 | H73: 38.386439 | I73: -81.79844 | K73: 110064632312 | L73: Processing as a Reactant | M73: 2869 | N73: Industrial Organic Chemicals, NEC (aliphatics) | P73: Direct | Q73: unknown | R73: 1.908662132
A74: 2017 | B74: 2017-01-01 | C74: ITW SWITCHES | D74: 7300 WEST LAWRENCE AVENUE | E74: HARWOOD HEIGHTS | F74: IL | G74: 60706-3504 | H74: 41.968191 | I74: -87.809528 | K74: 110000790984 | L74: Remediation | M74: 3569 | N74: General Industrial Machinery and Equipment, NEC (textile fire hose) | P74: Direct | Q74: unknown | R74: 0.00133316027
A75: 2017 | B75: 2017-01-01 | C75: KEESHAN AND BOST CHEMICAL CO., INC. | D75: 22102 HWY 6 | E75: MANVEL | F75: TX | G75: 77578 | H75: 29.4584 | I75: -95.3304 | J75: 77578KSHNB22102 | K75: 110000599479 | L75: Processing as a Reactant | M75: 2869 | N75: Industrial Organic Chemicals, NEC (aliphatics) | P75: Direct | Q75: unknown | R75: 0.01655328798
A76: 2017 | B76: 2017-01-01 | C76: PERKIN ELMER, INC | D76: 55 HASBROUCK LANE | E76: WOODSTOCK | F76: NY | G76: 12498 | H76: 42.02562 | I76: -74.09933 | K76: 110015744024 | L76: Unknown | M76: 9511 | N76: Air and Water Resource and Solid Waste Management | P76: Direct | Q76: unknown | R76: 0.0172928323
A77: 2017 | B77: 2017-01-01 | C77: PORT OF SUNNYSIDE INDUSTRIAL WWTF | D77: 747 MIDVALE RD | E77: SUNNYSIDE | F77: WA | G77: 98944 | H77: 46.291666 | I77: -120.012234 | K77: 110015474789 | L77: POTW | P77: Direct | Q77: unknown | R77: 0.697670125
A78: 2017 | B78: 2017-01-01 | C78: RIALTO WASTEWATER TREATMENT PLANT | D78: 501 E SANTA ANA AVE | E78: BLOOMINGTON | F78: CA | G78: 92316 | H78: 34.0559 | I78: -117.36134 | K78: 110000525842 | L78: POTW | M78: 4952 | N78: Sewerage Systems | P78: Direct | Q78: unknown | R78: 0.50631945
A79: 2017 | B79: 2017-01-01 | C79: SOLVAY - HOUSTON PLANT | D79: 8615 MANCHESTER ST | E79: HOUSTON | F79: TX | G79: 77012 | H79: 29.718139 | I79: -95.26875 | J79: 77012STFFR8615M | K79: 110000460901 | L79: Processing as a Reactant | M79: 2819 | N79: Industrial Inorganic Chemicals, NEC (recovering sulfur from natural gas) | P79: Direct | Q79: unknown | R79: 8.253968254
A80: 2017 | B80: 2017-01-01 | C80: STEPAN CO MILLSDALE ROAD | D80: 22500 STEPAN DR | E80: ELWOOD | F80: IL | G80: 60421-9646 | H80: 41.441667 | I80: -88.15972 | J80: 60421STPNCRURAL | K80: 110000432504 | L80: Unknown | M80: 2843 | N80: Surface Active Agents, Finishing Agents, Sulfonated Oils, and Assistants | P80: Direct | Q80: unknown | R80: 0.4965986395
A81: 2017 | B81: 2017-01-01 | C81: STYROLUTION AMERICA LLC | D81: 25846 S FRONTAGE ROAD | E81: CHANNAHON | F81: IL | G81: 60410-5222 | H81: 41.412533 | I81: -88.197281 | J81: 60410MBLCHI55AR | K81: 110008458597 | L81: Processing as a Reactant | M81: 2821 | N81: Plastics Materials, Synthetic and Resins, and Nonvulcanizable Elastomers | P81: Direct | Q81: unknown | R81: 0.1655328798
A82: 2017 | B82: 2017-01-01 | C82: TRONOX LLC | D82: 510 SOUTH 4TH STREET | E82: HENDERSON | F82: NV | G82: 89015 | H82: 36.03544 | I82: -114.99994 | J82: 89015KRRMC8000L | K82: 110043808467 | L82: Remediation | M82: 1799 | N82: Special Trade Contractors, NEC (indoor swimming pool construction contractors) | P82: Direct | Q82: unknown | R82: 1.176598287
A83: 2017 | B83: 2017-01-01 | C83: WOODWARD INC | D83: 5001 NORTH SECOND STREET | E83: ROCKFORD | F83: IL | G83: 61101 | H83: 42.304209 | I83: -89.055549 | J83: 6112WWDWRD51NRT | K83: 110005812371 | L83: Unknown | M83: 3728 | N83: Aircraft Parts and Auxiliary Equipment, NEC (fluid power aircraft subassemblies) | P83: Direct | Q83: unknown | R83: 0.9883793513
A84: 2017 | B84: 2017-01-01 | C84: WOODWARD INC | D84: 5001 NORTH SECOND STREET | E84: ROCKFORD | F84: IL | G84: 61101 | H84: 42.304209 | I84: -89.055549 | J84: 6112WWDWRD51NRT | K84: 110005812371 | L84: Unknown | M84: 3728 | N84: Aircraft Parts and Auxiliary Equipment, NEC (fluid power aircraft subassemblies) | P84: Direct | Q84: unknown | R84: 0.08377155792
A85: 2018 | B85: 2018-01-01 | C85: AIRPORT BUSINESS CENTER | D85: 333 STRAWBERRY FIELD ROAD | E85: WARWICK | F85: RI | G85: 02886-2459 | H85: 41.71139 | I85: -71.42667 | K85: 110013738045 | L85: Unknown | M85: 9511 | N85: Air and Water Resource and Solid Waste Management | P85: Direct | Q85: unknown | R85: 0.0175611888
A86: 2018 | B86: 2018-01-01 | C86: ALLIANT TECHSYSTEMS OPERATIONS LLC | D86: 55 THIOKOL ROAD | E86: ELKTON | F86: MD | G86: 21921 | H86: 39.61076 | I86: -75.86472 | K86: 110019877409 | L86: Unknown | M86: 3764 | N86: Guided Missile and Space Vehicle Propulsion Units and Propulsion Unit Parts (except research and development not producing prototypes)) | P86: Direct | Q86: unknown | R86: 0.00107611335
A87: 2018 | B87: 2018-01-01 | C87: BARBOURVILLE STP | D87: 614 MARSH RD | E87: BARBOURVILLE | F87: KY | G87: 40906 | H87: 36.848333 | I87: -83.905 | K87: 110006644765 | L87: POTW | M87: 4952 | N87: Sewerage Systems | P87: Direct | Q87: unknown | R87: 8.84176
A88: 2018 | B88: 2018-01-01 | C88: BELL-CARTER OLIVE CO. WWTP | D88: GARDINER FERRY ROAD | E88: CORNING | F88: CA | G88: 96021 | H88: 39.91569 | I88: -122.10365 | K88: 110054272210 | L88: Waste handling, disposal, treatment, and recycling | M88: 2033 | N88: Canned Fruits, Vegetables, Preserves, Jams, and Jellies | P88: Direct | Q88: unknown | R88: 0.02760667904
A89: 2018 | B89: 2018-01-01 | C89: BRASKEM AMERICA INC LAPORTE SITE | D89: 8811 STRANG ROAD | E89: LA PORTE | F89: TX | G89: 77571 | H89: 29.704027 | I89: -95.079932 | J89: 77571RSTCH8811S | K89: 110000463631 | L89: Processing as a Reactant | M89: 2821 | N89: Plastics Materials, Synthetic and Resins, and Nonvulcanizable Elastomers | P89: Direct | Q89: unknown | R89: 0.2615419501
A90: 2018 | B90: 2018-01-01 | C90: BRAWLEY WASTEWATER TREATMENT PLANT | D90: 5015 BEST RD | E90: BRAWLEY | F90: CA | G90: 92227 | H90: 33.01736 | I90: -115.50923 | K90: 110030476465 | L90: POTW | M90: 4952 | N90: Sewerage Systems | P90: Direct | Q90: unknown | R90: 0.03370921
A91: 2018 | B91: 2018-01-01 | C91: CAVELAND ENVIRONMENTAL AUTH | D91: 508 S DIXIE HWY | E91: HORSE CAVE | F91: KY | G91: 42749 | H91: 37.17 | I91: -85.916111 | K91: 110006656083 | L91: POTW | M91: 4952 | N91: Sewerage Systems | P91: Direct | Q91: unknown | R91: 1.89268925
A92: 2018 | B92: 2018-01-01 | C92: CHEMTURA NORTH AND SOUTH PLANTS | D92: 1000 MORGANTOWN INDUSTRIAL PARK | E92: MORGANTOWN | F92: WV | G92: 26501 | H92: 39.59983 | I92: -79.97148 | J92: 26505WSTMR1000D,26505WSTMRMORGA | K92: 110000572782 | L92: Processing as a Reactant | M92: 2869 | N92: Industrial Organic Chemicals, NEC (aliphatics) | P92: Direct | Q92: unknown | R92: 0.03310657596
A93: 2018 | B93: 2018-01-01 | C93: DEFENSE FUEL SUPPORT POINT NORWALK DFSP | D93: 15306 NORWALK BOULEVARD | E93: NORWALK | F93: CA | G93: 90650-6639 | H93: 33.892391 | I93: -118.072909 | K93: 110000781609 | L93: Remediation | M93: 4613 | N93: Refined Petroleum Pipelines | P93: Direct | Q93: unknown | R93: 0.00289600907
A94: 2018 | B94: 2018-01-01 | C94: DELPHI HARRISON THERMAL SYSTEMS | D94: 3600 DRYDEN RD | E94: DAYTON | F94: OH | G94: 45439 | H94: 39.688437 | I94: -84.226002 | K94: 110000394895 | L94: Unknown | M94: 3711 | N94: Motor Vehicles and Passenger Car Bodies (automobiles) | P94: Direct | Q94: unknown | R94: 1.4141
A95: 2018 | B95: 2018-01-01 | C95: DIXON FESSLER USA | D95: RTE 61 | E95: DEER LAKE | F95: PA | G95: 17961 | H95: 40.627648 | I95: -76.06488 | K95: 110000584305 | L95: Remediation | M95: 3951 | N95: Pens, Mechanical Pencils, and Parts | P95: Direct | Q95: unknown | R95: 0.03337868481
A96: 2018 | B96: 2018-01-01 | C96: E I DUPONT DE NEMOURS- WASHINGTON WORKS | D96: 8480 DUPONT ROAD | E96: WASHINGTON | F96: WV | G96: 26181 | H96: 39.271944 | I96: -81.661667 | J96: 26180DPNTWDUPON,2618WCHMRS848DU | K96: 110000586081 | L96: Processing as a Reactant | M96: 2821 | N96: Plastics Materials, Synthetic and Resins, and Nonvulcanizable Elastomers | P96: Direct | Q96: unknown | R96: 4.717687075
A97: 2018 | B97: 2018-01-01 | C97: E I DUPONT DE NEMOURS- WASHINGTON WORKS | D97: 8480 DUPONT ROAD | E97: WASHINGTON | F97: WV | G97: 26181 | H97: 39.271944 | I97: -81.661667 | J97: 26180DPNTWDUPON,2618WCHMRS848DU | K97: 110000586081 | L97: Processing as a Reactant | M97: 2821 | N97: Plastics Materials, Synthetic and Resins, and Nonvulcanizable Elastomers | P97: Direct | Q97: unknown | R97: 0.5793650794
A98: 2018 | B98: 2018-01-01 | C98: EAGLE US 2 LLC - LAKE CHARLES COMPLEX | D98: 1300 PPG DRIVE | E98: LAKE CHARLES | F98: LA | G98: 70601 | H98: 30.2235 | I98: -93.2869 | J98: 70669PPGNDCOLUM | K98: 110000494894 | L98: Manufacturing | M98: 2869 | N98: Industrial Organic Chemicals, NEC (aliphatics) | P98: Direct | Q98: unknown | R98: 0.00970548186
A99: 2018 | B99: 2018-01-01 | C99: EDDYVILLE STP | D99: 488 SEWER PLANT RD | E99: EDDYVILLE | F99: KY | G99: 42038 | H99: 37.075278 | I99: -88.09 | K99: 110009938719 | L99: POTW | M99: 4952 | N99: Sewerage Systems | P99: Direct | Q99: unknown | R99: 4.3932495
A100: 2018 | B100: 2018-01-01 | C100: EQUISTAR CHEMICALS LP | D100: 1515 MILLER CUTOFF RD | E100: LA PORTE | F100: TX | G100: 775719810 | H100: 29.717471 | I100: -95.068008 | J100: 77571QNTMC1515M | K100: 110034641635 | L100: Processing as a Reactant | M100: 2869 | N100: Industrial Organic Chemicals, NEC (aliphatics) | P100: Direct | Q100: unknown | R100: 11.98196633
A101: 2018 | B101: 2018-01-01 | C101: EQUISTAR CHEMICALS LP | D101: 1515 MILLER CUTOFF RD | E101: LA PORTE | F101: TX | G101: 775719810 | H101: 29.717471 | I101: -95.068008 | J101: 77571QNTMC1515M | K101: 110034641635 | L101: Processing as a Reactant | M101: 2869 | N101: Industrial Organic Chemicals, NEC (aliphatics) | P101: Direct | Q101: unknown | R101: 0.7614512472
A102: 2018 | B102: 2018-01-01 | C102: EQUISTAR CHEMICALS LP | D102: 1515 MILLER CUTOFF RD | E102: LA PORTE | F102: TX | G102: 775719810 | H102: 29.717471 | I102: -95.068008 | J102: 77571QNTMC1515M | K102: 110034641635 | L102: Processing as a Reactant | M102: 2869 | N102: Industrial Organic Chemicals, NEC (aliphatics) | P102: Direct | Q102: unknown | R102: 0.6621315193
A103: 2018 | B103: 2018-01-01 | C103: EQUISTAR CHEMICALS LP | D103: 1515 MILLER CUTOFF RD | E103: LA PORTE | F103: TX | G103: 775719810 | H103: 29.717471 | I103: -95.068008 | J103: 77571QNTMC1515M | K103: 110034641635 | L103: Processing as a Reactant | M103: 2869 | N103: Industrial Organic Chemicals, NEC (aliphatics) | P103: Direct | Q103: unknown | R103: 0.6604761905
A104: 2018 | B104: 2018-01-01 | C104: FEDERAL HIGHWAY ADMINISTRATION-CENTRAL FEDERAL LAND | D104: 12300 WEST DAKOTA AVENUE | E104: LAKEWOOD | F104: CO | G104: 80228-1010 | H104: 39.72464 | I104: -105.14191 | K104: 110002961929 | L104: Unknown | M104: 9999 | N104: Nonclassifiable Establishments | P104: Direct | Q104: unknown | R104: 0.056943054
A105: 2018 | B105: 2018-01-01 | C105: GENERAL DYNAMICS ORDNANCE TACTICAL SYSTEMS | D105: 200 E HIGH ST | E105: RED LION | F105: PA | G105: 17356 | H105: 39.903749 | I105: -76.605096 | J105: 17356GNRLD200EH | K105: 110000333318 | L105: Unknown | M105: 3489 | N105: Ordnance and Accessories, NEC | P105: Direct | Q105: unknown | R105: 0.060365451
A106: 2018 | B106: 2018-01-01 | C106: HOME DEPOT STORE 4285 | D106: 387 CHARLES STREET | E106: PROVIDENCE | F106: RI | G106: 02904-2231 | H106: 41.84315 | I106: -71.417769 | K106: 110024267620 | L106: Remediation | M106: 1541 | N106: General Contractors Industrial Buildings and Warehouses ( except grain elevators; drycleaning plants; and manufacturing, public, and industrial warehouses) | P106: Direct | Q106: unknown | R106: 0.06329091686
A107: 2018 | B107: 2018-01-01 | C107: IMTT-BC | D107: 2 COMMERCE ST | E107: BAYONNE CITY | F107: NJ | G107: 7002 | H107: 40.650121 | I107: -74.095578 | K107: 110070220480 | L107: Unknown | M107: 4226 | N107: Special Warehousing and Storage, NEC (warehousing in foreign trade zones) | P107: Direct | Q107: unknown | R107: 3.0413232e-09
A108: 2018 | B108: 2018-01-01 | C108: INSTITUTE PLANT | D108: ROUTE 25 | E108: INSTITUTE | F108: WV | G108: 25112 | H108: 38.386439 | I108: -81.79844 | K108: 110064632312 | L108: Processing as a Reactant | M108: 2869 | N108: Industrial Organic Chemicals, NEC (aliphatics) | P108: Direct | Q108: unknown | R108: 0.5973015873
A109: 2018 | B109: 2018-01-01 | C109: ITW SWITCHES | D109: 7300 WEST LAWRENCE AVENUE | E109: HARWOOD HEIGHTS | F109: IL | G109: 60706-3504 | H109: 41.968191 | I109: -87.809528 | K109: 110000790984 | L109: Remediation | M109: 3569 | N109: General Industrial Machinery and Equipment, NEC (textile fire hose) | P109: Direct | Q109: unknown | R109: 0.01739957831
A110: 2018 | B110: 2018-01-01 | C110: KEESHAN AND BOST CHEMICAL CO., INC. | D110: 22102 HWY 6 | E110: MANVEL | F110: TX | G110: 77578 | H110: 29.4584 | I110: -95.3304 | J110: 77578KSHNB22102 | K110: 110000599479 | L110: Processing as a Reactant | M110: 2869 | N110: Industrial Organic Chemicals, NEC (aliphatics) | P110: Direct | Q110: unknown | R110: 0.01655328798
A111: 2018 | B111: 2018-01-01 | C111: RICHMOND SILVER CREEK STP | D111: 1147 MENELAUS RD | E111: BEREA | F111: KY | G111: 404039742 | H111: 37.640973 | I111: -84.312661 | K111: 110009933484 | L111: POTW | M111: 4952 | N111: Sewerage Systems | P111: Direct | Q111: unknown | R111: 3.198230375
A112: 2018 | B112: 2018-01-01 | C112: SOLVAY - HOUSTON PLANT | D112: 8615 MANCHESTER ST | E112: HOUSTON | F112: TX | G112: 77012 | H112: 29.718139 | I112: -95.26875 | J112: 77012STFFR8615M | K112: 110000460901 | L112: Processing as a Reactant | M112: 2819 | N112: Industrial Inorganic Chemicals, NEC (recovering sulfur from natural gas) | P112: Direct | Q112: unknown | R112: 9.931972789
A113: 2018 | B113: 2018-01-01 | C113: STEPAN CO MILLSDALE ROAD | D113: 22500 STEPAN DR | E113: ELWOOD | F113: IL | G113: 60421-9646 | H113: 41.441667 | I113: -88.15972 | J113: 60421STPNCRURAL | K113: 110000432504 | L113: Unknown | M113: 2843 | N113: Surface Active Agents, Finishing Agents, Sulfonated Oils, and Assistants | P113: Direct | Q113: unknown | R113: 0.4965986395
A114: 2018 | B114: 2018-01-01 | C114: TRONOX LLC | D114: 510 SOUTH 4TH STREET | E114: HENDERSON | F114: NV | G114: 89015 | H114: 36.03544 | I114: -114.99994 | J114: 89015KRRMC8000L | K114: 110043808467 | L114: Remediation | M114: 1799 | N114: Special Trade Contractors, NEC (indoor swimming pool construction contractors) | P114: Direct | Q114: unknown | R114: 1.15823006
A115: 2019 | B115: 2019-01-01 | C115: AAR MOBILITY SYSTEMS | D115: 201 HAYNES STREET | E115: CADILLAC | F115: MI | G115: 49601 | H115: 44.2511 | I115: -85.408 | J115: 49601RBRKS201HA | K115: 110000412009 | L115: Unknown | M115: 3499 | N115: Fabricated Metal Products, NEC (powder metallurgy) | P115: Direct | Q115: unknown | R115: 0.02927731909
A116: 2019 | B116: 2019-01-01 | C116: BRAWLEY WASTEWATER TREATMENT PLANT | D116: 5015 BEST RD | E116: BRAWLEY | F116: CA | G116: 92227 | H116: 33.01736 | I116: -115.50923 | K116: 110030476465 | L116: POTW | M116: 4952 | N116: Sewerage Systems | P116: Direct | Q116: unknown | R116: 0.0418602075
A117: 2019 | B117: 2019-01-01 | C117: CAVELAND ENVIRONMENTAL AUTH | D117: 508 S DIXIE HWY | E117: HORSE CAVE | F117: KY | G117: 42749 | H117: 37.17 | I117: -85.916111 | K117: 110006656083 | L117: POTW | M117: 4952 | N117: Sewerage Systems | P117: Direct | Q117: unknown | R117: 1.75453675
A118: 2019 | B118: 2019-01-01 | C118: CENTRAL CITY STP | D118: 802 W WHITMER ST | E118: CENTRAL CITY | F118: KY | G118: 42330 | H118: 37.326944 | I118: -87.123889 | K118: 110064265496 | L118: POTW | M118: 4952 | N118: Sewerage Systems | P118: Direct | Q118: unknown | R118: 11.34232025
A119: 2019 | B119: 2019-01-01 | C119: CHEMTURA NORTH AND SOUTH PLANTS | D119: 1000 MORGANTOWN INDUSTRIAL PARK | E119: MORGANTOWN | F119: WV | G119: 26501 | H119: 39.59983 | I119: -79.97148 | J119: 26505WSTMR1000D,26505WSTMRMORGA | K119: 110000572782 | L119: Processing as a Reactant | M119: 2869 | N119: Industrial Organic Chemicals, NEC (aliphatics) | P119: Direct | Q119: unknown | R119: 0.05793650794
A120: 2019 | B120: 2019-01-01 | C120: CLUB CAL NEVA | D120: 133 NORTH VIRGINIA STREET | E120: RENO | F120: NV | G120: 89501 | H120: 39.52626 | I120: -119.81308 | K120: 110009830273 | L120: Unknown | M120: 7011 | N120: Hotels and Motels (hotels, except casino hotels, and motels) | P120: Direct | Q120: unknown | R120: 0.3927713152
A121: 2019 | B121: 2019-01-01 | C121: COLUSA WWTP | D121: 2820 WILL S. GREEN ROAD | E121: COLUSA | F121: CA | G121: 95932 | H121: 39.191054 | I121: -122.023129 | K121: 110055984957 | L121: POTW | M121: 4952 | N121: Sewerage Systems | P121: Direct | Q121: unknown | R121: 0.1062383893
A122: 2019 | B122: 2019-01-01 | C122: DEFENSE FUEL SUPPORT POINT NORWALK DFSP | D122: 15306 NORWALK BOULEVARD | E122: NORWALK | F122: CA | G122: 90650-6639 | H122: 33.892391 | I122: -118.072909 | K122: 110000781609 | L122: Remediation | M122: 4613 | N122: Refined Petroleum Pipelines | P122: Direct | Q122: unknown | R122: 0.002329206349
A123: 2019 | B123: 2019-01-01 | C123: DELPHI HARRISON THERMAL SYSTEMS | D123: 3600 DRYDEN RD | E123: DAYTON | F123: OH | G123: 45439 | H123: 39.688437 | I123: -84.226002 | K123: 110000394895 | L123: Unknown | M123: 3711 | N123: Motor Vehicles and Passenger Car Bodies (automobiles) | P123: Direct | Q123: unknown | R123: 1.1798
A124: 2019 | B124: 2019-01-01 | C124: DIMENSIONAL PLACE | D124: 1515 S TRYON ST | E124: CHARLOTTE | F124: NC | G124: 28203 | H124: 35.21586 | I124: -80.85689 | K124: 110070048003 | L124: Waste handling, disposal, treatment, and recycling | P124: Direct | Q124: unknown | R124: 0.01130499258
A125: 2019 | B125: 2019-01-01 | C125: EAGLE US 2 LLC, LAKE CHARLES PLANT | D125: 1300 PPG DRIVE | E125: WESTLAKE | F125: LA | G125: 70669 | H125: 30.2235 | I125: -93.2869 | J125: 70669PPGNDCOLUM | K125: 110000494894 | L125: Manufacturing | M125: 2869 | N125: Industrial Organic Chemicals, NEC (aliphatics) | P125: Direct | Q125: unknown | R125: 10.88438067
A126: 2019 | B126: 2019-01-01 | C126: EDDYVILLE STP | D126: 488 SEWER PLANT RD | E126: EDDYVILLE | F126: KY | G126: 42038 | H126: 37.075278 | I126: -88.09 | K126: 110009938719 | L126: POTW | M126: 4952 | N126: Sewerage Systems | P126: Direct | Q126: unknown | R126: 3.723209875
A127: 2019 | B127: 2019-01-01 | C127: ENTERPRISE PASADENA PLANT | D127: 1500 NORTH SOUTH ST | E127: PASADENA | F127: TX | G127: 77503 | H127: 29.741954 | I127: -95.165229 | K127: 110060340162 | L127: Processing as a Reactant | M127: 2869 | N127: Industrial Organic Chemicals, NEC (aliphatics) | P127: Direct | Q127: unknown | R127: 0.828915
A128: 2019 | B128: 2019-01-01 | C128: EQUISTAR CHEMICALS LP | D128: 1515 MILLER CUTOFF RD | E128: LA PORTE | F128: TX | G128: 775719810 | H128: 29.717471 | I128: -95.068008 | J128: 77571QNTMC1515M | K128: 110034641635 | L128: Processing as a Reactant | M128: 2869 | N128: Industrial Organic Chemicals, NEC (aliphatics) | P128: Direct | Q128: unknown | R128: 4.42088
A129: 2019 | B129: 2019-01-01 | C129: EQUISTAR CHEMICALS LP | D129: 1515 MILLER CUTOFF RD | E129: LA PORTE | F129: TX | G129: 775719810 | H129: 29.717471 | I129: -95.068008 | J129: 77571QNTMC1515M | K129: 110034641635 | L129: Processing as a Reactant | M129: 2869 | N129: Industrial Organic Chemicals, NEC (aliphatics) | P129: Direct | Q129: unknown | R129: 1.158730159
A130: 2019 | B130: 2019-01-01 | C130: EQUISTAR CHEMICALS LP | D130: 1515 MILLER CUTOFF RD | E130: LA PORTE | F130: TX | G130: 775719810 | H130: 29.717471 | I130: -95.068008 | J130: 77571QNTMC1515M | K130: 110034641635 | L130: Processing as a Reactant | M130: 2869 | N130: Industrial Organic Chemicals, NEC (aliphatics) | P130: Direct | Q130: unknown | R130: 0.8276643991
A131: 2019 | B131: 2019-01-01 | C131: EQUISTAR CHEMICALS LP | D131: 1515 MILLER CUTOFF RD | E131: LA PORTE | F131: TX | G131: 775719810 | H131: 29.717471 | I131: -95.068008 | J131: 77571QNTMC1515M | K131: 110034641635 | L131: Processing as a Reactant | M131: 2869 | N131: Industrial Organic Chemicals, NEC (aliphatics) | P131: Direct | Q131: unknown | R131: 0.4965986395
A132: 2019 | B132: 2019-01-01 | C132: FEDERAL HIGHWAY ADMINISTRATION-CENTRAL FEDERAL LAND | D132: 12300 WEST DAKOTA AVENUE | E132: LAKEWOOD | F132: CO | G132: 80228-1010 | H132: 39.72464 | I132: -105.14191 | K132: 110002961929 | L132: Unknown | M132: 9999 | N132: Nonclassifiable Establishments | P132: Direct | Q132: unknown | R132: 0.037753104
A133: 2019 | B133: 2019-01-01 | C133: GE AVIATION | D133: 1000 WESTERN AVE MAIL DROP 164X9 | E133: LYNN | F133: MA | G133: 1905 | H133: 42.452603 | I133: -70.973436 | J133: 01910GNRLL1000W | K133: 110000310191 | L133: Unknown | M133: 3724 | N133: Aircraft Engines and Engine Parts (except research and development not producing prototypes) | P133: Direct | Q133: unknown | R133: 0.063619794
A134: 2019 | B134: 2019-01-01 | C134: INSTITUTE PLANT | D134: ROUTE 25 | E134: INSTITUTE | F134: WV | G134: 25112 | H134: 38.386439 | I134: -81.79844 | K134: 110064632312 | L134: Processing as a Reactant | M134: 2869 | N134: Industrial Organic Chemicals, NEC (aliphatics) | P134: Direct | Q134: unknown | R134: 0.2122902494
A135: 2019 | B135: 2019-01-01 | C135: ITW SWITCHES | D135: 7300 WEST LAWRENCE AVENUE | E135: HARWOOD HEIGHTS | F135: IL | G135: 60706-3504 | H135: 41.968191 | I135: -87.809528 | K135: 110000790984 | L135: Remediation | M135: 3569 | N135: General Industrial Machinery and Equipment, NEC (textile fire hose) | P135: Direct | Q135: unknown | R135: 0.04498220207
A136: 2019 | B136: 2019-01-01 | C136: MONARCH CHEMICALS | D136: 37 MEADOW STREET | E136: UTICA | F136: NY | G136: 13502 | H136: 43.107216 | I136: -75.225816 | K136: 110002321345 | L136: Processing as a Reactant | M136: 5169 | N136: Chemicals and Allied Products, NEC (merchant wholesalers) | P136: Direct | Q136: unknown | R136: 0.00162203904
A137: 2019 | B137: 2019-01-01 | C137: RICHMOND SILVER CREEK STP | D137: 1147 MENELAUS RD | E137: BEREA | F137: KY | G137: 404039742 | H137: 37.640973 | I137: -84.312661 | K137: 110009933484 | L137: POTW | M137: 4952 | N137: Sewerage Systems | P137: Direct | Q137: unknown | R137: 3.2327685
A138: 2019 | B138: 2019-01-01 | C138: SOLVAY - HOUSTON PLANT | D138: 8615 MANCHESTER ST | E138: HOUSTON | F138: TX | G138: 77012 | H138: 29.718139 | I138: -95.26875 | J138: 77012STFFR8615M | K138: 110000460901 | L138: Processing as a Reactant | M138: 2819 | N138: Industrial Inorganic Chemicals, NEC (recovering sulfur from natural gas) | P138: Direct | Q138: unknown | R138: 9.850340136
A139: 2019 | B139: 2019-01-01 | C139: STEPAN CO MILLSDALE ROAD | D139: 22500 STEPAN DR | E139: ELWOOD | F139: IL | G139: 60421-9646 | H139: 41.441667 | I139: -88.15972 | J139: 60421STPNCRURAL | K139: 110000432504 | L139: Unknown | M139: 2843 | N139: Surface Active Agents, Finishing Agents, Sulfonated Oils, and Assistants | P139: Direct | Q139: unknown | R139: 0.5786848073
A140: 2019 | B140: 2019-01-01 | C140: TRONOX LLC | D140: 510 SOUTH 4TH STREET | E140: HENDERSON | F140: NV | G140: 89015 | H140: 36.03544 | I140: -114.99994 | J140: 89015KRRMC8000L | K140: 110043808467 | L140: Remediation | M140: 1799 | N140: Special Trade Contractors, NEC (indoor swimming pool construction contractors) | P140: Direct | Q140: unknown | R140: 0.776361789
A141: 2020 | B141: 2020-01-01 | C141: AAR MOBILITY SYSTEMS | D141: 201 HAYNES STREET | E141: CADILLAC | F141: MI | G141: 49601 | H141: 44.2511 | I141: -85.408 | J141: 49601RBRKS201HA | K141: 110000412009 | L141: Unknown | M141: 3499 | N141: Fabricated Metal Products, NEC (powder metallurgy) | P141: Direct | R141: 0.2178513525
A142: 2020 | B142: 2020-01-01 | C142: ALLIANT TECHSYSTEMS OPERATIONS LLC | D142: 55 THIOKOL ROAD | E142: ELKTON | F142: MD | G142: 21921 | H142: 39.61076 | I142: -75.86472 | K142: 110019877409 | L142: Unknown | M142: 3764 | N142: Guided Missile and Space Vehicle Propulsion Units and Propulsion Unit Parts (except research and development not producing prototypes)) | P142: Direct | R142: 0.0478462342
A143: 2020 | B143: 2020-01-01 | C143: ALTIVIA SERVICES, LLC | D143: ROUTE 25 | E143: INSTITUTE | F143: WV | G143: 25112 | H143: 38.386439 | I143: -81.79844 | K143: 110064632312 | L143: Processing as a Reactant | M143: 2869 | N143: Industrial Organic Chemicals, NEC (aliphatics) | P143: Direct | R143: 0.09818594104
A144: 2020 | B144: 2020-01-01 | C144: AMCOL HEALTH & BEAUTY SOLUTIONS INC | D144: 301 LASER LANE | E144: LAFAYETTE | F144: LA | G144: 70507-5326 | H144: 30.27083 | I144: -92.03728 | J144: 70507MCLHL31LAS | K144: 110000846602 | L144: Laboratory Use | M144: 8731 | N144: Commercial Physical and Biological Research | P144: Direct | R144: 0.002652528
A145: 2020 | B145: 2020-01-01 | C145: BRASKEM AMERICA INC LAPORTE SITE | D145: 8811 STRANG ROAD | E145: LA PORTE | F145: TX | G145: 77571 | H145: 29.704027 | I145: -95.079932 | J145: 77571RSTCH8811S | K145: 110000463631 | L145: Processing as a Reactant | M145: 2821 | N145: Plastics Materials, Synthetic and Resins, and Nonvulcanizable Elastomers | P145: Direct | R145: 0.0943537415
A146: 2020 | B146: 2020-01-01 | C146: HUNTSMAN PETROCHEMICAL CONROE PLANT | D146: 5451 JEFFERSON CHEMICAL RD | E146: CONROE | F146: TX | G146: 77301-6837 | H146: 30.311361 | I146: -95.387083 | J146: 77301TXCCHJEFFE | K146: 110000748095 | L146: Processing as a Reactant | M146: 2869 | N146: Industrial Organic Chemicals, NEC (aliphatics) | P146: Direct | R146: 1.340816327
A147: 2020 | B147: 2020-01-01 | C147: STANLEY BLACK AND DECKER | D147: ONE BRIGGS DRIVE | E147: EAST GREENWICH | F147: RI | G147: 02818-9949 | H147: 41.63392 | I147: -71.49369 | K147: 110000581255 | L147: Unknown | M147: 3315 | N147: Steel Wiredrawing and Steel Nails and Spikes (steel wire drawing) | P147: Direct | R147: 0.691982784
A148: 2020 | B148: 2020-01-01 | C148: HUNTSMAN PETROCHEMICAL CONROE PLANT | D148: 5451 JEFFERSON CHEMICAL RD | E148: CONROE | F148: TX | G148: 77301-6837 | H148: 30.311361 | I148: -95.387083 | J148: 77301TXCCHJEFFE | K148: 110000748095 | L148: Processing as a Reactant | M148: 2869 | N148: Industrial Organic Chemicals, NEC (aliphatics) | P148: Direct | R148: 0.4138321995
A149: 2020 | B149: 2020-01-01 | C149: DEFENSE FUEL SUPPORT POINT NORWALK DFSP | D149: 15306 NORWALK BOULEVARD | E149: NORWALK | F149: CA | G149: 90650-6639 | H149: 33.892391 | I149: -118.072909 | K149: 110000781609 | L149: Remediation | M149: 4613 | N149: Refined Petroleum Pipelines | P149: Direct | R149: 0.0007823871367
A150: 2020 | B150: 2020-01-01 | C150: DELPHI HARRISON THERMAL SYSTEMS | D150: 3600 DRYDEN RD | E150: DAYTON | F150: OH | G150: 45439 | H150: 39.688437 | I150: -84.226002 | K150: 110000394895 | L150: Unknown | M150: 3711 | N150: Motor Vehicles and Passenger Car Bodies (automobiles) | P150: Direct | R150: 1.5356
A151: 2020 | B151: 2020-01-01 | C151: DIXON FESSLER USA | D151: RTE 61 | E151: DEER LAKE | F151: PA | G151: 17961 | H151: 40.62887 | I151: -76.058602 | K151: 110000584305 | L151: Remediation | M151: 3951 | N151: Pens, Mechanical Pencils, and Parts | P151: Direct | R151: 0.01646258503
A152: 2020 | B152: 2020-01-01 | C152: DOW CHEMICAL CO DALTON PLANT | D152: 1468 PROSSER DR SE | E152: DALTON | F152: GA | G152: 30721-5449 | H152: 34.632592 | I152: -84.927668 | J152: 3072WSTYRN1468P | K152: 110000611703 | L152: Processing as a Reactant | M152: 2821 | N152: Plastics Materials, Synthetic and Resins, and Nonvulcanizable Elastomers | P152: Direct | R152: 0.02811791383
A153: 2020 | B153: 2020-01-01 | C153: EAGLE US 2 LLC, LAKE CHARLES PLANT | D153: 1300 PPG DRIVE | E153: WESTLAKE | F153: LA | G153: 70669 | H153: 30.2235 | I153: -93.2869 | J153: 70669PPGNDCOLUM | K153: 110000494894 | L153: Manufacturing | M153: 2869 | N153: Industrial Organic Chemicals, NEC (aliphatics) | P153: Direct | R153: 10706.55766
A154: 2020 | B154: 2020-01-01 | C154: EQUISTAR CHEMICALS LP | D154: 8805 NORTH TABLER ROAD | E154: MORRIS | F154: IL | G154: 60450-9153 | H154: 41.412897 | I154: -88.329773 | J154: 60450QNTMC8805N | K154: 110000433013 | L154: Processing as a Reactant | M154: 2821 | N154: Plastics Materials, Synthetic and Resins, and Nonvulcanizable Elastomers | P154: Direct | R154: 0.2530612245
A155: 2020 | B155: 2020-01-01 | C155: FEDERAL HIGHWAY ADMINISTRATION-CENTRAL FEDERAL LAND | D155: 12300 WEST DAKOTA AVENUE | E155: LAKEWOOD | F155: CO | G155: 80228-1010 | H155: 39.72464 | I155: -105.14191 | K155: 110002961929 | L155: Unknown | M155: 9999 | N155: Nonclassifiable Establishments | P155: Direct | R155: 0.034476051
A156: 2020 | B156: 2020-01-01 | C156: GE AVIATION | D156: 1000 WESTERN AVE MAIL DROP 164X9 | E156: LYNN | F156: MA | G156: 1905 | H156: 42.452603 | I156: -70.973436 | J156: 01910GNRLL1000W | K156: 110000310191 | L156: Unknown | M156: 3724 | N156: Aircraft Engines and Engine Parts (except research and development not producing prototypes) | P156: Direct | R156: 0.057331395
A157: 2020 | B157: 2020-01-01 | C157: TOTAL PETROCHEMICALS & REFINING USA INC | D157: 1818 INDEPENDENCE PKWY S | E157: DEER PARK | F157: TX | G157: 77536 | H157: 29.726111 | I157: -95.08945 | J157: 77536FNLND1818B | K157: 110000619652 | L157: Processing as a Reactant | M157: 2821 | N157: Plastics Materials, Synthetic and Resins, and Nonvulcanizable Elastomers | P157: Direct | R157: 0.1655328798
A158: 2020 | B158: 2020-01-01 | C158: MONUMENT CHEMICAL HOUSTON, LLC | D158: 16717 JACINTOPORT BLVD | E158: HOUSTON | F158: TX | G158: 77015 | H158: 29.75487 | I158: -95.10327 | J158: 77015JHNNH16717 | K158: 110000460983 | L158: Processing as a Reactant | M158: 2869 | N158: Industrial Organic Chemicals, NEC (aliphatics) | P158: Direct | R158: 0.1208390023
A159: 2020 | B159: 2020-01-01 | C159: MOOG INC | D159: SENECA STREET | E159: EAST AURORA | F159: NY | G159: 14052 | H159: 42.80516 | I159: -78.64658 | J159: 14052MGNCXSENEC | K159: 110008011490 | L159: Unknown | M159: 3494 | N159: Valves and Pipe Fittings, NEC (except metal pipe hangers and supports) | P159: Direct | R159: 0.111005723
A160: 2020 | B160: 2020-01-01 | C160: D H HOLDINGS GWRS - FAYETTE TUBULAR PRODUCTS INC | D160: 203 E RAILROAD ST | E160: FAYETTE | F160: OH | G160: 43521 | H160: 41.678611 | I160: -84.325556 | K160: 110058286331 | L160: Unknown | M160: 8999 | N160: Services, NEC (record production) | P160: Direct | R160: 0.07542723852
A161: 2020 | B161: 2020-01-01 | C161: MOOG INC | D161: SENECA STREET | E161: EAST AURORA | F161: NY | G161: 14052 | H161: 42.80516 | I161: -78.64658 | J161: 14052MGNCXSENEC | K161: 110008011490 | L161: Unknown | M161: 3494 | N161: Valves and Pipe Fittings, NEC (except metal pipe hangers and supports) | P161: Direct | R161: 0.05430811868
A162: 2020 | B162: 2020-01-01 | C162: CHEVRON ORONITE CO LLC - OAK POINT PLANT | D162: 10285 HIGHWAY 23 | E162: BELLE CHASSE | F162: LA | G162: 70037 | H162: 29.80825 | I162: -90.01 | J162: 70037CHVRNHIGHW | K162: 110000575244 | L162: Processing as a Reactant | M162: 2869 | N162: Industrial Organic Chemicals, NEC (aliphatics) | P162: Direct | R162: 0.03106428039
A163: 2020 | B163: 2020-01-01 | C163: ITW SWITCHES | D163: 7300 WEST LAWRENCE AVENUE | E163: HARWOOD HEIGHTS | F163: IL | G163: 60706-3504 | H163: 41.968191 | I163: -87.809528 | K163: 110000790984 | L163: Remediation | M163: 3569 | N163: General Industrial Machinery and Equipment, NEC (textile fire hose) | P163: Direct | R163: 0.02237239692
A164: 2020 | B164: 2020-01-01 | C164: KEESHAN AND BOST CHEMICAL CO., INC. | D164: 22102 HWY 6 | E164: MANVEL | F164: TX | G164: 77578 | H164: 29.4584 | I164: -95.3304 | J164: 77578KSHNB22102 | K164: 110000599479 | L164: Processing as a Reactant | M164: 2869 | N164: Industrial Organic Chemicals, NEC (aliphatics) | P164: Direct | R164: 0.01489795918
A165: 2020 | B165: 2020-01-01 | C165: CHEMOURS-CHAMBERS WORKS | D165: RT 130 | E165: DEEPWATER | F165: NJ | G165: 8023 | H165: 39.682362 | I165: -75.491379 | J165: 08023DPNTCRT130,0802WCHMRS67CAN | K165: 110007970142 | L165: Processing as a Reactant | M165: 2869 | N165: Industrial Organic Chemicals, NEC (aliphatics) | P165: Direct | R165: 0.031
A166: 2020 | B166: 2020-01-01 | C166: GREEN LINE EXTENSION PROJECT | D166: WASHINGTON AND TUFTS STREET | E166: SOMERVILLE | F166: MA | G166: 2145 | H166: 42.38099 | I166: -71.08758 | K166: 110070741217 | L166: Unknown | P166: Direct | R166: 0.01160085278
A167: 2020 | B167: 2020-01-01 | C167: GORHAM | D167: 333 ADELAIDE AVENUE | E167: PROVIDENCE | F167: RI | G167: 02907-3366 | H167: 41.79452 | I167: -71.42943 | K167: 110009310548 | L167: Unknown | M167: 3914 | N167: Silverware, Plated Ware, and Stainless Steel Ware (cutlery and flatware, nonprecious and precious plated) | P167: Direct | R167: 0.006992034739
A168: 2020 | B168: 2020-01-01 | C168: SOLVAY - HOUSTON PLANT | D168: 8615 MANCHESTER ST | E168: HOUSTON | F168: TX | G168: 77012 | H168: 29.718139 | I168: -95.26875 | J168: 77012STFFR8615M | K168: 110000460901 | L168: Processing as a Reactant | M168: 2819 | N168: Industrial Inorganic Chemicals, NEC (recovering sulfur from natural gas) | P168: Direct | R168: 9.931972789
A169: 2020 | B169: 2020-01-01 | C169: HVEC/BELLOFRAM | D169: 3 VAN DE GRAAFF DRIVE | E169: BURLINGTON | F169: MA | G169: 1803 | H169: 42.48226 | I169: -71.1918 | K169: 110024468128 | L169: Unknown | P169: Direct | R169: 0.002603780985
A170: 2020 | B170: 2020-01-01 | C170: STEPAN CO | D170: 22500 STEPAN DR | E170: ELWOOD | F170: IL | G170: 60421-9646 | H170: 41.441667 | I170: -88.15972 | J170: 60421STPNCRURAL | K170: 110000432504 | L170: Unknown | M170: 2843 | N170: Surface Active Agents, Finishing Agents, Sulfonated Oils, and Assistants | P170: Direct | R170: 0.5786848073
A171: 2020 | B171: 2020-01-01 | C171: GREATER BATON ROUGE PORTCOMMISSION | D171: 1002 BARGE CANAL RD | E171: PORT ALLEN | F171: LA | G171: 70805 | H171: 30.558889 | I171: -91.2175 | K171: 110012254363 | L171: Unknown | M171: 4789 | N171: Transportation Services, NEC (horse-drawn cabs and carriages) | P171: Direct | R171: 2.229365e-06
A172: 2020 | B172: 2020-01-01 | C172: TRONOX LLC | D172: 510 SOUTH 4TH STREET | E172: HENDERSON | F172: NV | G172: 89015 | H172: 36.03544 | I172: -114.99994 | J172: 89015KRRMC8000L | K172: 110043808467 | L172: Remediation | M172: 1799 | N172: Special Trade Contractors, NEC (indoor swimming pool construction contractors) | P172: Direct | R172: 0.708608775
A173: 2016 | B173: 2016-01-01 | C173: FORMER REXON FACILITY AKA ENJEMS MILLWORKS | D173: 70 OLD TURNPIKE RD | E173: WAYNE TWP | F173: NJ | G173: 7470 | H173: 40.89195 | I173: -74.24937 | K173: 110070213656 | L173: Unknown | M173: 9999 | N173: Nonclassifiable Establishments | R173: 0.002009901086
A174: 2017 | B174: 2017-01-01 | C174: FORMER REXON FACILITY AKA ENJEMS MILLWORKS | D174: 70 OLD TURNPIKE RD | E174: WAYNE TWP | F174: NJ | G174: 7470 | H174: 40.89195 | I174: -74.24937 | K174: 110070213656 | L174: Unknown | M174: 9999 | N174: Nonclassifiable Establishments | R174: 0.0004471343512
A175: 2015 | B175: 2015-01-01 | C175: HONEYWELL INTERNATIONAL INC - GEISMAR COMPLEX | D175: 5525 HWY 3115 | E175: GEISMAR | F175: LA | G175: 70734-3412 | H175: 30.2219 | I175: -91.0515 | J175: 70734LLDSGHWY31 | K175: 110033659878 | L175: Processing as a Reactant | M175: 2819 | N175: Industrial Inorganic Chemicals, NEC (recovering sulfur from natural gas) | R175: 4.469387755
A176: 2016 | B176: 2016-01-01 | C176: HONEYWELL INTERNATIONAL INC - GEISMAR COMPLEX | D176: 5525 HWY 3115 | E176: GEISMAR | F176: LA | G176: 70734-3412 | H176: 30.2219 | I176: -91.0515 | J176: 70734LLDSGHWY31 | K176: 110033659878 | L176: Processing as a Reactant | M176: 2819 | N176: Industrial Inorganic Chemicals, NEC (recovering sulfur from natural gas) | R176: 4.469387755
A177: 2017 | B177: 2017-01-01 | C177: HONEYWELL INTERNATIONAL INC - GEISMAR COMPLEX | D177: 5525 HWY 3115 | E177: GEISMAR | F177: LA | G177: 70734-3412 | H177: 30.2219 | I177: -91.0515 | J177: 70734LLDSGHWY31 | K177: 110033659878 | L177: Processing as a Reactant | M177: 2819 | N177: Industrial Inorganic Chemicals, NEC (recovering sulfur from natural gas) | R177: 4.965986395
A178: 2018 | B178: 2018-01-01 | C178: HONEYWELL INTERNATIONAL INC - GEISMAR COMPLEX | D178: 5525 HWY 3115 | E178: GEISMAR | F178: LA | G178: 70734-3412 | H178: 30.2219 | I178: -91.0515 | J178: 70734LLDSGHWY31 | K178: 110033659878 | L178: Processing as a Reactant | M178: 2819 | N178: Industrial Inorganic Chemicals, NEC (recovering sulfur from natural gas) | R178: 4.469387755
A179: 2019 | B179: 2019-01-01 | C179: HONEYWELL INTERNATIONAL INC - GEISMAR COMPLEX | D179: 5525 HWY 3115 | E179: GEISMAR | F179: LA | G179: 70734-3412 | H179: 30.2219 | I179: -91.0515 | J179: 70734LLDSGHWY31 | K179: 110033659878 | L179: Processing as a Reactant | M179: 2819 | N179: Industrial Inorganic Chemicals, NEC (recovering sulfur from natural gas) | R179: 3.476190476
A180: 2020 | B180: 2020-01-01 | C180: HONEYWELL INTERNATIONAL INC - GEISMAR COMPLEX | D180: 5525 HWY 3115 | E180: GEISMAR | F180: LA | G180: 70734-3412 | H180: 30.2219 | I180: -91.0515 | J180: 70734LLDSGHWY31 | K180: 110033659878 | L180: Processing as a Reactant | M180: 2819 | N180: Industrial Inorganic Chemicals, NEC (recovering sulfur from natural gas) | R180: 3.145124717
A181: 2016 | B181: 2016-01-01 | C181: PENN COLOR INC FORMER MANVILLE, NJ FACILITY | D181: 101 WESTON RD | E181: HILLSBOROUGH TWP | F181: NJ | G181: 8844 | H181: 40.52516 | I181: -74.60104 | K181: 110070217974 | L181: Unknown | M181: 2851 | N181: Paints, Varnishes, Lacquers, Enamels and Allied Products | R181: 0.006380903643
A182: 2017 | B182: 2017-01-01 | C182: PENN COLOR INC FORMER MANVILLE, NJ FACILITY | D182: 101 WESTON RD | E182: HILLSBOROUGH TWP | F182: NJ | G182: 8844 | H182: 40.52516 | I182: -74.60104 | K182: 110070217974 | L182: Unknown | M182: 2851 | N182: Paints, Varnishes, Lacquers, Enamels and Allied Products | R182: 0.02094138154
A183: 2018 | B183: 2018-01-01 | C183: PENN COLOR INC FORMER MANVILLE, NJ FACILITY | D183: 101 WESTON RD | E183: HILLSBOROUGH TWP | F183: NJ | G183: 8844 | H183: 40.52516 | I183: -74.60104 | K183: 110070217974 | L183: Unknown | M183: 2851 | N183: Paints, Varnishes, Lacquers, Enamels and Allied Products | R183: 0.03627146613
A184: 2020 | B184: 2020-01-01 | C184: CITY OF RED BLUFF WASTEWATER RECLAMATION PLANT | D184: 700 MESSER DR | E184: RED BLUFF | F184: CA | G184: 96080-4326 | H184: 40.162275 | I184: -122.221378 | K184: 110000730745 | L184: POTW | M184: 4952 | N184: Sewerage Systems | R184: 0.0007521552
A185: 2020 | B185: 2020-01-01 | C185: CITY OF SAFFORD - GILA RESOURCES WRP | D185: 1395 W RECLAMATION WAY | E185: SAFFORD | F185: AZ | G185: 85546 | H185: 32.802 | I185: -109.711 | K185: 110012330520 | L185: POTW | R185: 0.283212625
A186: 2020 | B186: 2020-01-01 | C186: RICHMOND SILVER CREEK STP | D186: 1147 MENELAUS RD | E186: BEREA | F186: KY | G186: 404039742 | H186: 37.640973 | I186: -84.312661 | K186: 110009933484 | L186: POTW | M186: 4952 | N186: Sewerage Systems | R186: 2.542006
A187: 2015 | B187: 2015-01-01 | C187: TRUETZSCHLER REMEDIATION SITE | D187: 12300 MOORES CHAPEL RD | E187: CHARLOTTE | F187: NC | G187: 28214 | H187: 35.25973 | I187: -81.00008 | K187: 110004018731 | L187: Remediation | M187: 3552 | N187: Textile Machinery | R187: 0.00298036956
A188: 2016 | B188: 2016-01-01 | C188: AVNET INC (FORMER IMPERIAL SCHRADE) | D188: ROUTE 209 | E188: ELLENVILLE | F188: NY | G188: 12428 | H188: 41.70048 | I188: -74.40974 | K188: 110064186615 | L188: Remediation | M188: 3679 | N188: Electronic Components, NEC (antennas) | R188: 0.0005293873596
A189: 2017 | B189: 2017-01-01 | C189: AVNET INC (FORMER IMPERIAL SCHRADE) | D189: ROUTE 209 | E189: ELLENVILLE | F189: NY | G189: 12428 | H189: 41.70048 | I189: -74.40974 | K189: 110064186615 | L189: Remediation | M189: 3679 | N189: Electronic Components, NEC (antennas) | R189: 0.002893352183
A190: 2017 | B190: 2017-01-01 | C190: TRANE TECHNOLOGIES GWCU | D190: 525 NORTH 24TH STREET | E190: BATTLE CREEK | F190: MI | G190: 49015 | H190: 42.29366 | I190: -85.223644 | K190: 110009900884 | L190: Remediation | M190: 9999 | N190: Nonclassifiable Establishments | R190: 0.122306976
A191: 2018 | B191: 2018-01-01 | C191: AVNET INC (FORMER IMPERIAL SCHRADE) | D191: ROUTE 209 | E191: ELLENVILLE | F191: NY | G191: 12428 | H191: 41.70048 | I191: -74.40974 | K191: 110064186615 | L191: Remediation | M191: 3679 | N191: Electronic Components, NEC (antennas) | R191: 0.001204748846
A192: 2018 | B192: 2018-01-01 | C192: TRANE TECHNOLOGIES GWCU | D192: 525 NORTH 24TH STREET | E192: BATTLE CREEK | F192: MI | G192: 49015 | H192: 42.29366 | I192: -85.223644 | K192: 110009900884 | L192: Remediation | M192: 9999 | N192: Nonclassifiable Establishments | R192: 0.1903192474
A193: 2019 | B193: 2019-01-01 | C193: TRANE TECHNOLOGIES GWCU | D193: 525 NORTH 24TH STREET | E193: BATTLE CREEK | F193: MI | G193: 49015 | H193: 42.29366 | I193: -85.223644 | K193: 110009900884 | L193: Remediation | M193: 9999 | N193: Nonclassifiable Establishments | R193: 0.5229926861
A194: 2020 | B194: 2020-01-01 | C194: AVNET INC (FORMER IMPERIAL SCHRADE) | D194: ROUTE 209 | E194: ELLENVILLE | F194: NY | G194: 12428 | H194: 41.70048 | I194: -74.40974 | K194: 110064186615 | L194: Remediation | M194: 3679 | N194: Electronic Components, NEC (antennas) | R194: 0.002238418304
A195: 2020 | B195: 2020-01-01 | C195: TRANE TECHNOLOGIES GWCU | D195: 525 NORTH 24TH STREET | E195: BATTLE CREEK | F195: MI | G195: 49015 | H195: 42.29366 | I195: -85.223644 | K195: 110009900884 | L195: Remediation | M195: 9999 | N195: Nonclassifiable Establishments | R195: 0.02824863592

Sheet 90% (hidden)
A1: Year | B1: First day of year | C1: Facility Name | D1: Street Address | E1: City | F1: State | G1: ZIP Code | H1: Facility Latitude | I1: Facility Longitude | J1: TRI Facility ID(s) | K1: FRS ID | L1: OES Name and Description | M1: SIC Code | N1: SIC Description | O1: Link to ECHO | P1: Indirect or Direct Discharger | Q1: Release Pattern | R1: Annual Discharge (kg/yr) | S1: Reach Code
A2: 2020 | B2: 2020-01-01 | C2: EAGLE US 2 LLC, LAKE CHARLES PLANT | D2: 1300 PPG DRIVE | E2: WESTLAKE | F2: LA | G2: 70669 | H2: 30.2235 | I2: -93.2869 | J2: 70669PPGNDCOLUM | K2: 110000494894 | L2: =VLOOKUP(K2,'Facility Summary'!$J:$K, 2, FALSE) ->  | M2: 2869 | N2: Industrial Organic Chemicals, NEC (aliphatics) | R2: 10706.55766 | T2: =SUM(R$2:R2) -> 10706.55766 | U2: =T2/$T$39 -> 47162% | X2: 90% | Y2: 49
A3: 2020 | B3: 2020-01-01 | C3: SOLVAY - HOUSTON PLANT | D3: 8615 MANCHESTER ST | E3: HOUSTON | F3: TX | G3: 77012 | H3: 29.718139 | I3: -95.26875 | J3: 77012STFFR8615M | K3: 110000460901 | L3: =VLOOKUP(K3,'Facility Summary'!$J:$K, 2, FALSE) ->  | M3: 2819 | N3: Industrial Inorganic Chemicals, NEC (recovering sulfur from natural gas) | R3: 9.931972789 | T3: =SUM(R$3:R3) -> 9.931972789 | U3: =T3/$T$39 -> 44% | X3: All | Y3: 186
A4: 2020 | B4: 2020-01-01 | C4: HONEYWELL INTERNATIONAL INC - GEISMAR COMPLEX | D4: 5525 HWY 3115 | E4: GEISMAR | F4: LA | G4: 70734-3412 | H4: 30.2219 | I4: -91.0515 | J4: 70734LLDSGHWY31 | K4: 110033659878 | L4: =VLOOKUP(K4,'Facility Summary'!$J:$K, 2, FALSE) ->  | M4: 2819 | N4: Industrial Inorganic Chemicals, NEC (recovering sulfur from natural gas) | R4: 3.145124717 | T4: =SUM(R$3:R4) -> 13.07709751 | U4: 58%
A5: 2020 | B5: 2020-01-01 | C5: RICHMOND SILVER CREEK STP | D5: 1147 MENELAUS RD | E5: BEREA | F5: KY | G5: 404039742 | H5: 37.640973 | I5: -84.312661 | K5: 110009933484 | L5: =VLOOKUP(K5,'Facility Summary'!$J:$K, 2, FALSE) ->  | M5: 4952 | N5: Sewerage Systems | R5: 2.542006 | T5: =SUM(R$3:R5) -> 15.61910351 | U5: 69%
A6: 2020 | B6: 2020-01-01 | C6: DELPHI HARRISON THERMAL SYSTEMS | D6: 3600 DRYDEN RD | E6: NORWALK | F6: OH | G6: 45439 | H6: 39.688437 | I6: -84.226002 | K6: 110000394895 | L6: =VLOOKUP(K6,'Facility Summary'!$J:$K, 2, FALSE) ->  | M6: 3711 | N6: Motor Vehicles and Passenger Car Bodies (automobiles) | R6: 1.5356 | T6: =SUM(R$3:R6) -> 17.15470351 | U6: 76%
A7: 2020 | B7: 2020-01-01 | C7: HUNTSMAN PETROCHEMICAL CONROE PLANT | D7: 5451 JEFFERSON CHEMICAL RD | E7: CONROE | F7: TX | G7: 77301-6837 | H7: 30.311361 | I7: -95.387083 | J7: 77301TXCCHJEFFE | K7: 110000748095 | L7: =VLOOKUP(K7,'Facility Summary'!$J:$K, 2, FALSE) ->  | M7: 2869 | N7: Industrial Organic Chemicals, NEC (aliphatics) | R7: 1.340816327 | T7: =SUM(R$3:R7) -> 18.49551983 | U7: 81%
A8: 2020 | B8: 2020-01-01 | C8: TRONOX LLC | D8: 510 SOUTH 4TH STREET | E8: HENDERSON | F8: NV | G8: 89015 | H8: 36.03544 | I8: -114.99994 | J8: 89015KRRMC8000L | K8: 110043808467 | L8: =VLOOKUP(K8,'Facility Summary'!$J:$K, 2, FALSE) ->  | M8: 1799 | N8: Special Trade Contractors, NEC (indoor swimming pool construction contractors) | R8: 0.708608775 | T8: =SUM(R$3:R8) -> 19.20412861 | U8: 85%
A9: 2020 | B9: 2020-01-01 | C9: STANLEY BLACK AND DECKER | D9: ONE BRIGGS DRIVE | E9: EAST GREENWICH | F9: RI | G9: 02818-9949 | H9: 41.63392 | I9: -71.49369 | K9: 110000581255 | L9: =VLOOKUP(K9,'Facility Summary'!$J:$K, 2, FALSE) ->  | M9: 3315 | N9: Steel Wiredrawing and Steel Nails and Spikes (steel wire drawing) | R9: 0.691982784 | T9: =SUM(R$3:R9) -> 19.89611139 | U9: 88%
A10: 2020 | B10: 2020-01-01 | C10: STEPAN CO | D10: 22500 STEPAN DR | E10: ELWOOD | F10: IL | G10: 60421-9646 | H10: 41.441667 | I10: -88.15972 | J10: 60421STPNCRURAL | K10: 110000432504 | L10: =VLOOKUP(K10,'Facility Summary'!$J:$K, 2, FALSE) ->  | M10: 2843 | N10: Surface Active Agents, Finishing Agents, Sulfonated Oils, and Assistants | R10: 0.5786848073 | T10: =SUM(R$3:R10) -> 20.4747962 | U10: 90%
A11: 2020 | B11: 2020-01-01 | C11: HUNTSMAN PETROCHEMICAL CONROE PLANT | D11: 5451 JEFFERSON CHEMICAL RD | E11: CONROE | F11: TX | G11: 77301-6837 | H11: 30.311361 | I11: -95.387083 | J11: 77301TXCCHJEFFE | K11: 110000748095 | L11: =VLOOKUP(K11,'Facility Summary'!$J:$K, 2, FALSE) ->  | M11: 2869 | N11: Industrial Organic Chemicals, NEC (aliphatics) | R11: 0.4138321995 | T11: =SUM(R$3:R11) -> 20.8886284 | U11: 92%
A12: 2020 | B12: 2020-01-01 | C12: CITY OF SAFFORD - GILA RESOURCES WRP | D12: 1395 W RECLAMATION WAY | E12: SAFFORD | F12: AZ | G12: 85546 | H12: 32.802 | I12: -109.711 | K12: 110012330520 | L12: =VLOOKUP(K12,'Facility Summary'!$J:$K, 2, FALSE) ->  | R12: 0.283212625 | T12: =SUM(R$3:R12) -> 21.17184102 | U12: 93%
A13: 2020 | B13: 2020-01-01 | C13: EQUISTAR CHEMICALS LP | D13: 8805 NORTH TABLER ROAD | E13: MORRIS | F13: IL | G13: 60450-9153 | H13: 41.412897 | I13: -88.329773 | J13: 60450QNTMC8805N | K13: 110000433013 | L13: =VLOOKUP(K13,'Facility Summary'!$J:$K, 2, FALSE) ->  | M13: 2821 | N13: Plastics Materials, Synthetic and Resins, and Nonvulcanizable Elastomers | R13: 0.2530612245 | T13: =SUM(R$3:R13) -> 21.42490225 | U13: 94%
A14: 2020 | B14: 2020-01-01 | C14: AAR MOBILITY SYSTEMS | D14: 201 HAYNES STREET | E14: CADILLAC | F14: MI | G14: 49601 | H14: 44.2511 | I14: -85.408 | J14: 49601RBRKS201HA | K14: 110000412009 | L14: =VLOOKUP(K14,'Facility Summary'!$J:$K, 2, FALSE) ->  | M14: 3499 | N14: Fabricated Metal Products, NEC (powder metallurgy) | R14: 0.2178513525 | T14: =SUM(R$3:R14) -> 21.6427536 | U14: 95%
A15: 2020 | B15: 2020-01-01 | C15: TOTAL PETROCHEMICALS & REFINING USA INC | D15: 1818 INDEPENDENCE PKWY S | E15: DEER PARK | F15: TX | G15: 77536 | H15: 29.726111 | I15: -95.08945 | J15: 77536FNLND1818B | K15: 110000619652 | L15: =VLOOKUP(K15,'Facility Summary'!$J:$K, 2, FALSE) ->  | M15: 2821 | N15: Plastics Materials, Synthetic and Resins, and Nonvulcanizable Elastomers | R15: 0.1655328798 | T15: =SUM(R$3:R15) -> 21.80828648 | U15: 96%
A16: 2020 | B16: 2020-01-01 | C16: MONUMENT CHEMICAL HOUSTON, LLC | D16: 16717 JACINTOPORT BLVD | E16: HOUSTON | F16: TX | G16: 77015 | H16: 29.75487 | I16: -95.10327 | J16: 77015JHNNH16717 | K16: 110000460983 | L16: =VLOOKUP(K16,'Facility Summary'!$J:$K, 2, FALSE) ->  | M16: 2869 | N16: Industrial Organic Chemicals, NEC (aliphatics) | R16: 0.1208390023 | T16: =SUM(R$3:R16) -> 21.92912548 | U16: 97%
A17: 2020 | B17: 2020-01-01 | C17: MOOG INC | D17: SENECA STREET | E17: EAST AURORA | F17: NY | G17: 14052 | H17: 42.80516 | I17: -78.64658 | J17: 14052MGNCXSENEC | K17: 110008011490 | L17: =VLOOKUP(K17,'Facility Summary'!$J:$K, 2, FALSE) ->  | M17: 3494 | N17: Valves and Pipe Fittings, NEC (except metal pipe hangers and supports) | R17: 0.111005723 | T17: =SUM(R$3:R17) -> 22.04013121 | U17: 97%
A18: 2020 | B18: 2020-01-01 | C18: ALTIVIA SERVICES, LLC | D18: ROUTE 25 | E18: INSTITUTE | F18: WV | G18: 25112 | H18: 38.386439 | I18: -81.79844 | K18: 110064632312 | L18: =VLOOKUP(K18,'Facility Summary'!$J:$K, 2, FALSE) ->  | M18: 2869 | N18: Industrial Organic Chemicals, NEC (aliphatics) | R18: 0.09818594104 | T18: =SUM(R$3:R18) -> 22.13831715 | U18: 98%
A19: 2020 | B19: 2020-01-01 | C19: BRASKEM AMERICA INC LAPORTE SITE | D19: 8811 STRANG ROAD | E19: LA PORTE | F19: TX | G19: 77571 | H19: 29.704027 | I19: -95.079932 | J19: 77571RSTCH8811S | K19: 110000463631 | L19: =VLOOKUP(K19,'Facility Summary'!$J:$K, 2, FALSE) ->  | M19: 2821 | N19: Plastics Materials, Synthetic and Resins, and Nonvulcanizable Elastomers | R19: 0.0943537415 | T19: =SUM(R$3:R19) -> 22.23267089 | U19: 98%
A20: 2020 | B20: 2020-01-01 | C20: D H HOLDINGS GWRS - FAYETTE TUBULAR PRODUCTS INC | D20: 203 E RAILROAD ST | E20: FAYETTE | F20: OH | G20: 43521 | H20: 41.678611 | I20: -84.325556 | K20: 110058286331 | L20: =VLOOKUP(K20,'Facility Summary'!$J:$K, 2, FALSE) ->  | M20: 8999 | N20: Services, NEC (record production) | R20: 0.07542723852 | T20: =SUM(R$3:R20) -> 22.30809813 | U20: 98%
A21: 2020 | B21: 2020-01-01 | C21: GE AVIATION | D21: 1000 WESTERN AVE MAIL DROP 164X9 | E21: LYNN | F21: MA | G21: 1905 | H21: 42.452603 | I21: -70.973436 | J21: 01910GNRLL1000W | K21: 110000310191 | L21: =VLOOKUP(K21,'Facility Summary'!$J:$K, 2, FALSE) ->  | M21: 3724 | N21: Aircraft Engines and Engine Parts (except research and development not producing prototypes) | R21: 0.057331395 | T21: =SUM(R$3:R21) -> 22.36542952 | U21: 99%
A22: 2020 | B22: 2020-01-01 | C22: MOOG INC | D22: SENECA STREET | E22: EAST AURORA | F22: NY | G22: 14052 | H22: 42.80516 | I22: -78.64658 | J22: 14052MGNCXSENEC | K22: 110008011490 | L22: =VLOOKUP(K22,'Facility Summary'!$J:$K, 2, FALSE) ->  | M22: 3494 | N22: Valves and Pipe Fittings, NEC (except metal pipe hangers and supports) | R22: 0.05430811868 | T22: =SUM(R$3:R22) -> 22.41973764 | U22: 99%
A23: 2020 | B23: 2020-01-01 | C23: ALLIANT TECHSYSTEMS OPERATIONS LLC | D23: 55 THIOKOL ROAD | E23: ELKTON | F23: MD | G23: 21921 | H23: 39.61076 | I23: -75.86472 | K23: 110019877409 | L23: =VLOOKUP(K23,'Facility Summary'!$J:$K, 2, FALSE) ->  | M23: 3764 | N23: Guided Missile and Space Vehicle Propulsion Units and Propulsion Unit Parts (except research and development not producing prototypes)) | R23: 0.0478462342 | T23: =SUM(R$3:R23) -> 22.46758387 | U23: 99%
A24: 2020 | B24: 2020-01-01 | C24: FEDERAL HIGHWAY ADMINISTRATION-CENTRAL FEDERAL LAND | D24: 12300 WEST DAKOTA AVENUE | E24: LAKEWOOD | F24: CO | G24: 80228-1010 | H24: 39.72464 | I24: -105.14191 | K24: 110002961929 | L24: =VLOOKUP(K24,'Facility Summary'!$J:$K, 2, FALSE) ->  | M24: 9999 | N24: Nonclassifiable Establishments | R24: 0.034476051 | T24: =SUM(R$3:R24) -> 22.50205993 | U24: =T24/$T$39 -> 99%
A25: 2020 | B25: 2020-01-01 | C25: CHEVRON ORONITE CO LLC - OAK POINT PLANT | D25: 10285 HIGHWAY 23 | E25: BELLE CHASSE | F25: LA | G25: 70037 | H25: 29.80825 | I25: -90.01 | J25: 70037CHVRNHIGHW | K25: 110000575244 | L25: =VLOOKUP(K25,'Facility Summary'!$J:$K, 2, FALSE) ->  | M25: 2869 | N25: Industrial Organic Chemicals, NEC (aliphatics) | R25: 0.03106428039 | T25: =SUM(R$3:R25) -> 22.53312421 | U25: 99%
A26: 2020 | B26: 2020-01-01 | C26: CHEMOURS-CHAMBERS WORKS | D26: RT 130 | E26: DEEPWATER | F26: NJ | G26: 8023 | H26: 39.682362 | I26: -75.491379 | J26: 08023DPNTCRT130,0802WCHMRS67CAN | K26: 110007970142 | L26: =VLOOKUP(K26,'Facility Summary'!$J:$K, 2, FALSE) ->  | M26: 2869 | N26: Industrial Organic Chemicals, NEC (aliphatics) | R26: 0.031 | T26: =SUM(R$3:R26) -> 22.56412421 | U26: 99%
A27: 2020 | B27: 2020-01-01 | C27: TRANE TECHNOLOGIES GWCU | D27: 525 NORTH 24TH STREET | E27: BATTLE CREEK | F27: MI | G27: 49015 | H27: 42.29366 | I27: -85.223644 | K27: 110009900884 | L27: =VLOOKUP(K27,'Facility Summary'!$J:$K, 2, FALSE) ->  | M27: 9999 | N27: Nonclassifiable Establishments | R27: 0.02824863592 | T27: =SUM(R$3:R27) -> 22.59237284 | U27: 100%
A28: 2020 | B28: 2020-01-01 | C28: DOW CHEMICAL CO DALTON PLANT | D28: 1468 PROSSER DR SE | E28: DALTON | F28: GA | G28: 30721-5449 | H28: 34.632592 | I28: -84.927668 | J28: 3072WSTYRN1468P | K28: 110000611703 | L28: =VLOOKUP(K28,'Facility Summary'!$J:$K, 2, FALSE) ->  | M28: 2821 | N28: Plastics Materials, Synthetic and Resins, and Nonvulcanizable Elastomers | R28: 0.02811791383 | T28: =SUM(R$3:R28) -> 22.62049076 | U28: 100%
A29: 2020 | B29: 2020-01-01 | C29: ITW SWITCHES | D29: 7300 WEST LAWRENCE AVENUE | E29: HARWOOD HEIGHTS | F29: IL | G29: 60706-3504 | H29: 41.968191 | I29: -87.809528 | K29: 110000790984 | L29: =VLOOKUP(K29,'Facility Summary'!$J:$K, 2, FALSE) ->  | M29: 3569 | N29: General Industrial Machinery and Equipment, NEC (textile fire hose) | R29: 0.02237239692 | T29: =SUM(R$3:R29) -> 22.64286315 | U29: 100%
A30: 2020 | B30: 2020-01-01 | C30: DIXON FESSLER USA | D30: RTE 61 | E30: DEER LAKE | F30: PA | G30: 17961 | H30: 40.62887 | I30: -76.058602 | K30: 110000584305 | L30: =VLOOKUP(K30,'Facility Summary'!$J:$K, 2, FALSE) ->  | M30: 3951 | N30: Pens, Mechanical Pencils, and Parts | R30: 0.01646258503 | T30: =SUM(R$3:R30) -> 22.65932574 | U30: 100%
A31: 2020 | B31: 2020-01-01 | C31: KEESHAN AND BOST CHEMICAL CO., INC. | D31: 22102 HWY 6 | E31: MANVEL | F31: TX | G31: 77578 | H31: 29.4584 | I31: -95.3304 | J31: 77578KSHNB22102 | K31: 110000599479 | L31: =VLOOKUP(K31,'Facility Summary'!$J:$K, 2, FALSE) ->  | M31: 2869 | N31: Industrial Organic Chemicals, NEC (aliphatics) | R31: 0.01489795918 | T31: =SUM(R$3:R31) -> 22.6742237 | U31: 100%
A32: 2020 | B32: 2020-01-01 | C32: GREEN LINE EXTENSION PROJECT | D32: WASHINGTON AND TUFTS STREET | E32: SOMERVILLE | F32: MA | G32: 2145 | H32: 42.38099 | I32: -71.08758 | K32: 110070741217 | L32: =VLOOKUP(K32,'Facility Summary'!$J:$K, 2, FALSE) ->  | R32: 0.01160085278 | T32: =SUM(R$3:R32) -> 22.68582455 | U32: 100%
A33: 2020 | B33: 2020-01-01 | C33: GORHAM | D33: 333 ADELAIDE AVENUE | E33: PROVIDENCE | F33: RI | G33: 02907-3366 | H33: 41.79452 | I33: -71.42943 | K33: 110009310548 | L33: =VLOOKUP(K33,'Facility Summary'!$J:$K, 2, FALSE) ->  | M33: 3914 | N33: Silverware, Plated Ware, and Stainless Steel Ware (cutlery and flatware, nonprecious and precious plated) | R33: 0.006992034739 | T33: =SUM(R$3:R33) -> 22.69281658 | U33: 100%
A34: 2020 | B34: 2020-01-01 | C34: AMCOL HEALTH & BEAUTY SOLUTIONS INC | D34: 301 LASER LANE | E34: LAFAYETTE | F34: LA | G34: 70507-5326 | H34: 30.27083 | I34: -92.03728 | J34: 70507MCLHL31LAS | K34: 110000846602 | L34: =VLOOKUP(K34,'Facility Summary'!$J:$K, 2, FALSE) ->  | M34: 8731 | N34: Commercial Physical and Biological Research | R34: 0.002652528 | T34: =SUM(R$3:R34) -> 22.69546911 | U34: =T34/$T$39 -> 100%
A35: 2020 | B35: 2020-01-01 | C35: HVEC/BELLOFRAM | D35: 3 VAN DE GRAAFF DRIVE | E35: BURLINGTON | F35: MA | G35: 1803 | H35: 42.48226 | I35: -71.1918 | K35: 110024468128 | L35: =VLOOKUP(K35,'Facility Summary'!$J:$K, 2, FALSE) ->  | R35: 0.002603780985 | T35: =SUM(R$3:R35) -> 22.69807289 | U35: 100%
A36: 2020 | B36: 2020-01-01 | C36: AVNET INC (FORMER IMPERIAL SCHRADE) | D36: ROUTE 209 | E36: ELLENVILLE | F36: NY | G36: 12428 | H36: 41.70048 | I36: -74.40974 | K36: 110064186615 | L36: =VLOOKUP(K36,'Facility Summary'!$J:$K, 2, FALSE) ->  | M36: 3679 | N36: Electronic Components, NEC (antennas) | R36: 0.002238418304 | T36: =SUM(R$3:R36) -> 22.70031131 | U36: 100%
A37: 2020 | B37: 2020-01-01 | C37: DEFENSE FUEL SUPPORT POINT NORWALK DFSP | D37: 15306 NORWALK BOULEVARD | E37: NORWALK | F37: CA | G37: 90650-6639 | H37: 33.892391 | I37: -118.072909 | K37: 110000781609 | L37: =VLOOKUP(K37,'Facility Summary'!$J:$K, 2, FALSE) ->  | M37: 4613 | N37: Refined Petroleum Pipelines | R37: 0.0007823871367 | T37: =SUM(R$3:R37) -> 22.7010937 | U37: 100%
A38: 2020 | B38: 2020-01-01 | C38: CITY OF RED BLUFF WASTEWATER RECLAMATION PLANT | D38: 700 MESSER DR | E38: RED BLUFF | F38: CA | G38: 96080-4326 | H38: 40.162275 | I38: -122.221378 | K38: 110000730745 | L38: =VLOOKUP(K38,'Facility Summary'!$J:$K, 2, FALSE) ->  | M38: 4952 | N38: Sewerage Systems | R38: 0.0007521552 | T38: =SUM(R$3:R38) -> 22.70184585 | U38: 100%
A39: 2020 | B39: 2020-01-01 | C39: GREATER BATON ROUGE PORTCOMMISSION | D39: 1002 BARGE CANAL RD | E39: PORT ALLEN | F39: LA | G39: 70805 | H39: 30.558889 | I39: -91.2175 | K39: 110012254363 | L39: =VLOOKUP(K39,'Facility Summary'!$J:$K, 2, FALSE) ->  | M39: 4789 | N39: Transportation Services, NEC (horse-drawn cabs and carriages) | R39: 2.229365e-06 | T39: =SUM(R$3:R39) -> 22.70184808 | U39: 100%
A40: 2019 | B40: 2019-01-01 | C40: CENTRAL CITY STP | D40: 802 W WHITMER ST | E40: CENTRAL CITY | F40: KY | G40: 42330 | H40: 37.326944 | I40: -87.123889 | K40: 110064265496 | L40: =VLOOKUP(K40,'Facility Summary'!$J:$K, 2, FALSE) ->  | M40: 4952 | N40: Sewerage Systems | P40: Direct | R40: 11.34232025 | S40: 2020004002623 | T40: =SUM(R$40:R40) -> 11.34232025 | U40: =T40/$T$73 -> 19%
A41: 2019 | B41: 2019-01-01 | C41: EAGLE US 2 LLC, LAKE CHARLES PLANT | D41: 1300 PPG DRIVE | E41: WESTLAKE | F41: LA | G41: 70669 | H41: 30.2235 | I41: -93.2869 | J41: 70669PPGNDCOLUM | K41: 110000494894 | L41: =VLOOKUP(K41,'Facility Summary'!$J:$K, 2, FALSE) ->  | M41: 2869 | N41: Industrial Organic Chemicals, NEC (aliphatics) | P41: Direct | R41: 10.88438067 | T41: =SUM(R$40:R41) -> 22.22670092 | U41: =T41/$T$73 -> 37%
A42: 2019 | B42: 2019-01-01 | C42: SOLVAY - HOUSTON PLANT | D42: 8615 MANCHESTER ST | E42: HOUSTON | F42: TX | G42: 77012 | H42: 29.718139 | I42: -95.26875 | J42: 77012STFFR8615M | K42: 110000460901 | L42: =VLOOKUP(K42,'Facility Summary'!$J:$K, 2, FALSE) ->  | M42: 2819 | N42: Industrial Inorganic Chemicals, NEC (recovering sulfur from natural gas) | R42: 9.850340136 | T42: =SUM(R$40:R42) -> 32.07704106 | U42: 54%
A43: 2019 | B43: 2019-01-01 | C43: EQUISTAR CHEMICALS LP | D43: 1515 MILLER CUTOFF RD | E43: LA PORTE | F43: TX | G43: 775719810 | H43: 29.717471 | I43: -95.068008 | J43: 77571QNTMC1515M | K43: 110034641635 | L43: =VLOOKUP(K43,'Facility Summary'!$J:$K, 2, FALSE) ->  | M43: 2869 | N43: Industrial Organic Chemicals, NEC (aliphatics) | P43: Direct | R43: 4.42088 | T43: =SUM(R$40:R43) -> 36.49792106 | U43: 61%
A44: 2019 | B44: 2019-01-01 | C44: EDDYVILLE STP | D44: 488 SEWER PLANT RD | E44: EDDYVILLE | F44: KY | G44: 42038 | H44: 37.075278 | I44: -88.09 | K44: 110009938719 | L44: =VLOOKUP(K44,'Facility Summary'!$J:$K, 2, FALSE) ->  | M44: 4952 | N44: Sewerage Systems | P44: Direct | R44: 3.723209875 | T44: =SUM(R$40:R44) -> 40.22113093 | U44: 68%
A45: 2019 | B45: 2019-01-01 | C45: HONEYWELL INTERNATIONAL INC - GEISMAR COMPLEX | D45: 5525 HWY 3115 | E45: GEISMAR | F45: LA | G45: 70734-3412 | H45: 30.2219 | I45: -91.0515 | J45: 70734LLDSGHWY31 | K45: 110033659878 | L45: =VLOOKUP(K45,'Facility Summary'!$J:$K, 2, FALSE) ->  | M45: 2819 | N45: Industrial Inorganic Chemicals, NEC (recovering sulfur from natural gas) | P45: Direct | R45: 3.476190476 | T45: =SUM(R$40:R45) -> 43.69732141 | U45: 74%
A46: 2019 | B46: 2019-01-01 | C46: RICHMOND SILVER CREEK STP | D46: 1147 MENELAUS RD | E46: BEREA | F46: KY | G46: 404039742 | H46: 37.640973 | I46: -84.312661 | K46: 110009933484 | L46: =VLOOKUP(K46,'Facility Summary'!$J:$K, 2, FALSE) ->  | M46: 4952 | N46: Sewerage Systems | R46: 3.2327685 | T46: =SUM(R$40:R46) -> 46.93008991 | U46: 79%
A47: 2019 | B47: 2019-01-01 | C47: CTNA MANUFACTURING LIMITED PARTNERSHIP | D47: 1 GENERAL ST | E47: MAYFIELD | F47: KY | G47: 42066-9167 | H47: 36.7906 | I47: -88.6358 | K47: 110000380169 | L47: =VLOOKUP(K47,'Facility Summary'!$J:$K, 2, FALSE) ->  | M47: 3011 | N47: Tires and Inner Tubes | P47: Direct | R47: 1.865115525 | T47: =SUM(R$40:R47) -> 48.79520543 | U47: 82%
A48: 2019 | B48: 2019-01-01 | C48: CAVELAND ENVIRONMENTAL AUTH | D48: 508 S DIXIE HWY | E48: HORSE CAVE | F48: KY | G48: 42749 | H48: 37.17 | I48: -85.916111 | K48: 110006656083 | L48: =VLOOKUP(K48,'Facility Summary'!$J:$K, 2, FALSE) ->  | M48: 4952 | N48: Sewerage Systems | P48: Direct | R48: 1.75453675 | S48: 18070106000652 | T48: =SUM(R$40:R48) -> 50.54974218 | U48: 85%
A49: 2019 | B49: 2019-01-01 | C49: DELPHI HARRISON THERMAL SYSTEMS | D49: 3600 DRYDEN RD | E49: DAYTON | F49: OH | G49: 45439 | H49: 39.688437 | I49: -84.226002 | K49: 110000394895 | L49: =VLOOKUP(K49,'Facility Summary'!$J:$K, 2, FALSE) ->  | M49: 3711 | N49: Motor Vehicles and Passenger Car Bodies (automobiles) | P49: Direct | R49: 1.1798 | T49: =SUM(R$40:R49) -> 51.72954218 | U49: 87%
A50: 2019 | B50: 2019-01-01 | C50: EQUISTAR CHEMICALS LP | D50: 1515 MILLER CUTOFF RD | E50: LA PORTE | F50: TX | G50: 775719810 | H50: 29.717471 | I50: -95.068008 | J50: 77571QNTMC1515M | K50: 110034641635 | L50: =VLOOKUP(K50,'Facility Summary'!$J:$K, 2, FALSE) ->  | M50: 2869 | N50: Industrial Organic Chemicals, NEC (aliphatics) | P50: Direct | R50: 1.158730159 | T50: =SUM(R$40:R50) -> 52.88827234 | U50: 89%
A51: 2019 | B51: 2019-01-01 | C51: ENTERPRISE PASADENA PLANT | D51: 1500 NORTH SOUTH ST | E51: PASADENA | F51: TX | G51: 77503 | H51: 29.741954 | I51: -95.165229 | K51: 110060340162 | L51: =VLOOKUP(K51,'Facility Summary'!$J:$K, 2, FALSE) ->  | M51: 2869 | N51: Industrial Organic Chemicals, NEC (aliphatics) | P51: Direct | R51: 0.828915 | T51: =SUM(R$40:R51) -> 53.71718734 | U51: 90%
A52: 2019 | B52: 2019-01-01 | C52: EQUISTAR CHEMICALS LP | D52: 1515 MILLER CUTOFF RD | E52: LA PORTE | F52: TX | G52: 775719810 | H52: 29.717471 | I52: -95.068008 | J52: 77571QNTMC1515M | K52: 110034641635 | L52: =VLOOKUP(K52,'Facility Summary'!$J:$K, 2, FALSE) ->  | M52: 2869 | N52: Industrial Organic Chemicals, NEC (aliphatics) | P52: Direct | R52: 0.8276643991 | T52: =SUM(R$40:R52) -> 54.54485174
A53: 2019 | B53: 2019-01-01 | C53: TRONOX LLC | D53: 510 SOUTH 4TH STREET | E53: HENDERSON | F53: NV | G53: 89015 | H53: 36.03544 | I53: -114.99994 | J53: 89015KRRMC8000L | K53: 110043808467 | L53: =VLOOKUP(K53,'Facility Summary'!$J:$K, 2, FALSE) ->  | M53: 1799 | N53: Special Trade Contractors, NEC (indoor swimming pool construction contractors) | R53: 0.776361789 | T53: =SUM(R$40:R53) -> 55.32121353
A54: 2019 | B54: 2019-01-01 | C54: MOOG INC | D54: SENECA STREET | E54: EAST AURORA | F54: NY | G54: 14052 | H54: 42.80516 | I54: -78.64658 | J54: 14052MGNCXSENEC | K54: 110008011490 | L54: =VLOOKUP(K54,'Facility Summary'!$J:$K, 2, FALSE) ->  | M54: 3494 | N54: Valves and Pipe Fittings, NEC (except metal pipe hangers and supports) | R54: 0.7218291744 | T54: =SUM(R$40:R54) -> 56.0430427
A55: 2019 | B55: 2019-01-01 | C55: STEPAN CO MILLSDALE ROAD | D55: 22500 STEPAN DR | E55: ELWOOD | F55: IL | G55: 60421-9646 | H55: 41.441667 | I55: -88.15972 | J55: 60421STPNCRURAL | K55: 110000432504 | L55: =VLOOKUP(K55,'Facility Summary'!$J:$K, 2, FALSE) ->  | M55: 2843 | N55: Surface Active Agents, Finishing Agents, Sulfonated Oils, and Assistants | R55: 0.5786848073 | T55: =SUM(R$40:R55) -> 56.62172751
A56: 2019 | B56: 2019-01-01 | C56: TRANE TECHNOLOGIES GWCU | D56: 525 NORTH 24TH STREET | E56: BATTLE CREEK | F56: MI | G56: 49015 | H56: 42.29366 | I56: -85.223644 | K56: 110009900884 | L56: =VLOOKUP(K56,'Facility Summary'!$J:$K, 2, FALSE) ->  | M56: 9999 | N56: Nonclassifiable Establishments | R56: 0.5229926861 | T56: =SUM(R$40:R56) -> 57.1447202
A57: 2019 | B57: 2019-01-01 | C57: EQUISTAR CHEMICALS LP | D57: 1515 MILLER CUTOFF RD | E57: LA PORTE | F57: TX | G57: 775719810 | H57: 29.717471 | I57: -95.068008 | J57: 77571QNTMC1515M | K57: 110034641635 | L57: =VLOOKUP(K57,'Facility Summary'!$J:$K, 2, FALSE) ->  | M57: 2869 | N57: Industrial Organic Chemicals, NEC (aliphatics) | P57: Direct | R57: 0.4965986395 | T57: =SUM(R$40:R57) -> 57.64131884
A58: 2019 | B58: 2019-01-01 | C58: MOOG INC | D58: SENECA STREET | E58: EAST AURORA | F58: NY | G58: 14052 | H58: 42.80516 | I58: -78.64658 | J58: 14052MGNCXSENEC | K58: 110008011490 | L58: =VLOOKUP(K58,'Facility Summary'!$J:$K, 2, FALSE) ->  | M58: 3494 | N58: Valves and Pipe Fittings, NEC (except metal pipe hangers and supports) | R58: 0.4198908675 | T58: =SUM(R$40:R58) -> 58.0612097
A59: 2019 | B59: 2019-01-01 | C59: CLUB CAL NEVA | D59: 133 NORTH VIRGINIA STREET | E59: RENO | F59: NV | G59: 89501 | H59: 39.52626 | I59: -119.81308 | K59: 110009830273 | L59: =VLOOKUP(K59,'Facility Summary'!$J:$K, 2, FALSE) ->  | M59: 7011 | N59: Hotels and Motels (hotels, except casino hotels, and motels) | P59: Direct | R59: 0.3927713152 | T59: =SUM(R$40:R59) -> 58.45398102
A60: 2019 | B60: 2019-01-01 | C60: D H HOLDINGS GWRS - FAYETTE TUBULAR PRODUCTS INC | D60: 203 E RAILROAD ST | E60: FAYETTE | F60: OH | G60: 43521 | H60: 41.678611 | I60: -84.325556 | K60: 110058286331 | L60: =VLOOKUP(K60,'Facility Summary'!$J:$K, 2, FALSE) ->  | M60: 8999 | N60: Services, NEC (record production) | P60: Direct | R60: 0.2937155484 | T60: =SUM(R$40:R60) -> 58.74769657
A61: 2019 | B61: 2019-01-01 | C61: INSTITUTE PLANT | D61: ROUTE 25 | E61: INSTITUTE | F61: WV | G61: 25112 | H61: 38.386439 | I61: -81.79844 | K61: 110064632312 | L61: =VLOOKUP(K61,'Facility Summary'!$J:$K, 2, FALSE) ->  | M61: 2869 | N61: Industrial Organic Chemicals, NEC (aliphatics) | R61: 0.2122902494 | T61: =SUM(R$40:R61) -> 58.95998682
A62: 2019 | B62: 2019-01-01 | C62: COLUSA WWTP | D62: 2820 WILL S. GREEN ROAD | E62: COLUSA | F62: CA | G62: 95932 | H62: 39.191054 | I62: -122.023129 | K62: 110055984957 | L62: =VLOOKUP(K62,'Facility Summary'!$J:$K, 2, FALSE) ->  | M62: 4952 | N62: Sewerage Systems | P62: Direct | R62: 0.1062383893 | T62: =SUM(R$40:R62) -> 59.06622521
A63: 2019 | B63: 2019-01-01 | C63: GE AVIATION | D63: 1000 WESTERN AVE MAIL DROP 164X9 | E63: LYNN | F63: MA | G63: 1905 | H63: 42.452603 | I63: -70.973436 | J63: 01910GNRLL1000W | K63: 110000310191 | L63: =VLOOKUP(K63,'Facility Summary'!$J:$K, 2, FALSE) ->  | M63: 3724 | N63: Aircraft Engines and Engine Parts (except research and development not producing prototypes) | P63: Direct | R63: 0.063619794 | T63: =SUM(R$40:R63) -> 59.129845
A64: 2019 | B64: 2019-01-01 | C64: CHEMTURA NORTH AND SOUTH PLANTS | D64: 1000 MORGANTOWN INDUSTRIAL PARK | E64: MORGANTOWN | F64: WV | G64: 26501 | H64: 39.59983 | I64: -79.97148 | J64: 26505WSTMR1000D,26505WSTMRMORGA | K64: 110000572782 | L64: =VLOOKUP(K64,'Facility Summary'!$J:$K, 2, FALSE) ->  | M64: 2869 | N64: Industrial Organic Chemicals, NEC (aliphatics) | P64: Direct | R64: 0.05793650794 | T64: =SUM(R$40:R64) -> 59.18778151
A65: 2019 | B65: 2019-01-01 | C65: ITW SWITCHES | D65: 7300 WEST LAWRENCE AVENUE | E65: HARWOOD HEIGHTS | F65: IL | G65: 60706-3504 | H65: 41.968191 | I65: -87.809528 | K65: 110000790984 | L65: =VLOOKUP(K65,'Facility Summary'!$J:$K, 2, FALSE) ->  | M65: 3569 | N65: General Industrial Machinery and Equipment, NEC (textile fire hose) | R65: 0.04498220207 | T65: =SUM(R$40:R65) -> 59.23276371
A66: 2019 | B66: 2019-01-01 | C66: BRAWLEY WASTEWATER TREATMENT PLANT | D66: 5015 BEST RD | E66: BRAWLEY | F66: CA | G66: 92227 | H66: 33.01736 | I66: -115.50923 | K66: 110030476465 | L66: =VLOOKUP(K66,'Facility Summary'!$J:$K, 2, FALSE) ->  | M66: 4952 | N66: Sewerage Systems | P66: Direct | R66: 0.0418602075 | S66: 3050103000259 | T66: =SUM(R$40:R66) -> 59.27462392
A67: 2019 | B67: 2019-01-01 | C67: FEDERAL HIGHWAY ADMINISTRATION-CENTRAL FEDERAL LAND | D67: 12300 WEST DAKOTA AVENUE | E67: LAKEWOOD | F67: CO | G67: 80228-1010 | H67: 39.72464 | I67: -105.14191 | K67: 110002961929 | L67: =VLOOKUP(K67,'Facility Summary'!$J:$K, 2, FALSE) ->  | M67: 9999 | N67: Nonclassifiable Establishments | P67: Direct | R67: 0.037753104 | T67: =SUM(R$40:R67) -> 59.31237702
A68: 2019 | B68: 2019-01-01 | C68: AAR MOBILITY SYSTEMS | D68: 201 HAYNES STREET | E68: CADILLAC | F68: MI | G68: 49601 | H68: 44.2511 | I68: -85.408 | J68: 49601RBRKS201HA | K68: 110000412009 | L68: =VLOOKUP(K68,'Facility Summary'!$J:$K, 2, FALSE) ->  | M68: 3499 | N68: Fabricated Metal Products, NEC (powder metallurgy) | P68: Direct | R68: 0.02927731909 | S68: 10190002000451 | T68: =SUM(R$40:R68) -> 59.34165434
A69: 2019 | B69: 2019-01-01 | C69: DIMENSIONAL PLACE | D69: 1515 S TRYON ST | E69: CHARLOTTE | F69: NC | G69: 28203 | H69: 35.21586 | I69: -80.85689 | K69: 110070048003 | L69: =VLOOKUP(K69,'Facility Summary'!$J:$K, 2, FALSE) ->  | P69: Direct | R69: 0.01130499258 | T69: =SUM(R$40:R69) -> 59.35295933
A70: 2019 | B70: 2019-01-01 | C70: GORHAM | D70: 333 ADELAIDE AVENUE | E70: PROVIDENCE | F70: RI | G70: 02907-3366 | H70: 41.79452 | I70: -71.42943 | K70: 110009310548 | L70: =VLOOKUP(K70,'Facility Summary'!$J:$K, 2, FALSE) ->  | M70: 3914 | N70: Silverware, Plated Ware, and Stainless Steel Ware (cutlery and flatware, nonprecious and precious plated) | P70: Direct | R70: 0.004942161101 | T70: =SUM(R$40:R70) -> 59.35790149
A71: 2019 | B71: 2019-01-01 | C71: DEFENSE FUEL SUPPORT POINT NORWALK DFSP | D71: 15306 NORWALK BOULEVARD | E71: NORWALK | F71: CA | G71: 90650-6639 | H71: 33.892391 | I71: -118.072909 | K71: 110000781609 | L71: =VLOOKUP(K71,'Facility Summary'!$J:$K, 2, FALSE) ->  | M71: 4613 | N71: Refined Petroleum Pipelines | P71: Direct | R71: 0.002329206349 | T71: =SUM(R$40:R71) -> 59.3602307
A72: 2019 | B72: 2019-01-01 | C72: MONARCH CHEMICALS | D72: 37 MEADOW STREET | E72: UTICA | F72: NY | G72: 13502 | H72: 43.107216 | I72: -75.225816 | K72: 110002321345 | L72: =VLOOKUP(K72,'Facility Summary'!$J:$K, 2, FALSE) ->  | M72: 5169 | N72: Chemicals and Allied Products, NEC (merchant wholesalers) | R72: 0.00162203904 | T72: =SUM(R$40:R72) -> 59.36185274
A73: 2019 | B73: 2019-01-01 | C73: AMERICAN TRUETZSCHLER | D73: 12300 MOORES CHAPEL RD | E73: CHARLOTTE | F73: NC | G73: 28214 | H73: 35.25973 | I73: -81.00008 | K73: 110004018731 | L73: =VLOOKUP(K73,'Facility Summary'!$J:$K, 2, FALSE) ->  | M73: 3552 | N73: Textile Machinery | P73: Direct | R73: 0.000130523454 | S73: 4060102000190 | T73: =SUM(R$40:R73) -> 59.36198326
A74: 2018 | B74: 2018-01-01 | C74: BELL-CARTER OLIVE CO. WWTP | D74: GARDINER FERRY ROAD | E74: CORNING | F74: CA | G74: 96021 | H74: 39.91569 | I74: -122.10365 | K74: 110054272210 | L74: =VLOOKUP(K74,'Facility Summary'!$J:$K, 2, FALSE) ->  | M74: 2033 | N74: Canned Fruits, Vegetables, Preserves, Jams, and Jellies | P74: Direct | Q74: unknown | R74: 0.02760667904 | S74: 10190002000451 | T74: =SUM(R$74:R74) -> 0.02760667904
A75: 2018 | B75: 2018-01-01 | C75: EQUISTAR CHEMICALS LP | D75: 1515 MILLER CUTOFF RD | E75: LA PORTE | F75: TX | G75: 775719810 | H75: 29.717471 | I75: -95.068008 | J75: 77571QNTMC1515M | K75: 110034641635 | L75: =VLOOKUP(K75,'Facility Summary'!$J:$K, 2, FALSE) ->  | M75: 2869 | N75: Industrial Organic Chemicals, NEC (aliphatics) | P75: Direct | Q75: unknown | R75: 11.98196633 | S75: 8080206001241 | T75: =SUM(R$75:R75) -> 11.98196633 | U75: =T75/$T$113 -> 21%
A76: 2018 | B76: 2018-01-01 | C76: SOLVAY - HOUSTON PLANT | D76: 8615 MANCHESTER ST | E76: HOUSTON | F76: TX | G76: 77012 | H76: 29.718139 | I76: -95.26875 | J76: 77012STFFR8615M | K76: 110000460901 | L76: =VLOOKUP(K76,'Facility Summary'!$J:$K, 2, FALSE) ->  | M76: 2819 | N76: Industrial Inorganic Chemicals, NEC (recovering sulfur from natural gas) | P76: Direct | R76: 9.931972789 | S76: 1090001001195 | T76: =SUM(R$75:R76) -> 21.91393911 | U76: =T76/$T$113 -> 38%
A77: 2018 | B77: 2018-01-01 | C77: BARBOURVILLE STP | D77: 614 MARSH RD | E77: BARBOURVILLE | F77: KY | G77: 40906 | H77: 36.848333 | I77: -83.905 | K77: 110006644765 | L77: =VLOOKUP(K77,'Facility Summary'!$J:$K, 2, FALSE) ->  | M77: 4952 | N77: Sewerage Systems | P77: Direct | Q77: unknown | R77: 8.84176 | S77: 2050306000429 | T77: =SUM(R$75:R77) -> 30.75569911 | U77: 53%
A78: 2018 | B78: 2018-01-01 | C78: E I DUPONT DE NEMOURS- WASHINGTON WORKS | D78: 8480 DUPONT ROAD | E78: WASHINGTON | F78: WV | G78: 26181 | H78: 39.271944 | I78: -81.661667 | J78: 26180DPNTWDUPON,2618WCHMRS848DU | K78: 110000586081 | L78: =VLOOKUP(K78,'Facility Summary'!$J:$K, 2, FALSE) ->  | M78: 2821 | N78: Plastics Materials, Synthetic and Resins, and Nonvulcanizable Elastomers | P78: Direct | Q78: unknown | R78: 4.717687075 | S78: 18070106000652 | T78: =SUM(R$75:R78) -> 35.47338619 | U78: 62%
A79: 2018 | B79: 2018-01-01 | C79: HONEYWELL INTERNATIONAL INC - GEISMAR COMPLEX | D79: 5525 HWY 3115 | E79: GEISMAR | F79: LA | G79: 70734-3412 | H79: 30.2219 | I79: -91.0515 | J79: 70734LLDSGHWY31 | K79: 110033659878 | L79: =VLOOKUP(K79,'Facility Summary'!$J:$K, 2, FALSE) ->  | M79: 2819 | N79: Industrial Inorganic Chemicals, NEC (recovering sulfur from natural gas) | P79: Direct | Q79: unknown | R79: 4.469387755 | S79: 5080002001148 | T79: =SUM(R$75:R79) -> 39.94277394 | U79: 69%
A80: 2018 | B80: 2018-01-01 | C80: EDDYVILLE STP | D80: 488 SEWER PLANT RD | E80: EDDYVILLE | F80: KY | G80: 42038 | H80: 37.075278 | I80: -88.09 | K80: 110009938719 | L80: =VLOOKUP(K80,'Facility Summary'!$J:$K, 2, FALSE) ->  | M80: 4952 | N80: Sewerage Systems | P80: Direct | Q80: unknown | R80: 4.3932495 | S80: 2030104000585 | T80: =SUM(R$75:R80) -> 44.33602344 | U80: 77%
A81: 2018 | B81: 2018-01-01 | C81: RICHMOND SILVER CREEK STP | D81: 1147 MENELAUS RD | E81: BEREA | F81: KY | G81: 404039742 | H81: 37.640973 | I81: -84.312661 | K81: 110009933484 | L81: =VLOOKUP(K81,'Facility Summary'!$J:$K, 2, FALSE) ->  | M81: 4952 | N81: Sewerage Systems | P81: Direct | R81: 3.198230375 | S81: 18020104000844 | T81: =SUM(R$75:R81) -> 47.53425382 | U81: =T81/$T$113 -> 83%
A82: 2018 | B82: 2018-01-01 | C82: CAVELAND ENVIRONMENTAL AUTH | D82: 508 S DIXIE HWY | E82: HORSE CAVE | F82: KY | G82: 42749 | H82: 37.17 | I82: -85.916111 | K82: 110006656083 | L82: =VLOOKUP(K82,'Facility Summary'!$J:$K, 2, FALSE) ->  | M82: 4952 | N82: Sewerage Systems | P82: Direct | Q82: unknown | R82: 1.89268925 | S82: 5020003000026 | T82: =SUM(R$75:R82) -> 49.42694307 | U82: 86%
A83: 2018 | B83: 2018-01-01 | C83: DELPHI HARRISON THERMAL SYSTEMS | D83: 3600 DRYDEN RD | E83: DAYTON | F83: OH | G83: 45439 | H83: 39.688437 | I83: -84.226002 | K83: 110000394895 | L83: =VLOOKUP(K83,'Facility Summary'!$J:$K, 2, FALSE) ->  | M83: 3711 | N83: Motor Vehicles and Passenger Car Bodies (automobiles) | P83: Direct | Q83: unknown | R83: 1.4141 | S83: 12040204000953 | T83: =SUM(R$75:R83) -> 50.84104307 | U83: =T83/$T$113 -> 88%
A84: 2018 | B84: 2018-01-01 | C84: TRONOX LLC | D84: 510 SOUTH 4TH STREET | E84: HENDERSON | F84: NV | G84: 89015 | H84: 36.03544 | I84: -114.99994 | J84: 89015KRRMC8000L | K84: 110043808467 | L84: =VLOOKUP(K84,'Facility Summary'!$J:$K, 2, FALSE) ->  | M84: 1799 | N84: Special Trade Contractors, NEC (indoor swimming pool construction contractors) | P84: Direct | R84: 1.15823006 | S84: 18100204010970 | T84: =SUM(R$75:R84) -> 51.99927313 | U84: 90%
A85: 2018 | B85: 2018-01-01 | C85: EQUISTAR CHEMICALS LP | D85: 1515 MILLER CUTOFF RD | E85: LA PORTE | F85: TX | G85: 775719810 | H85: 29.717471 | I85: -95.068008 | J85: 77571QNTMC1515M | K85: 110034641635 | L85: =VLOOKUP(K85,'Facility Summary'!$J:$K, 2, FALSE) ->  | M85: 2869 | N85: Industrial Organic Chemicals, NEC (aliphatics) | P85: Direct | Q85: unknown | R85: 0.7614512472 | S85: 12040104000084 | T85: =SUM(R$75:R85) -> 52.76072438
A86: 2018 | B86: 2018-01-01 | C86: EQUISTAR CHEMICALS LP | D86: 1515 MILLER CUTOFF RD | E86: LA PORTE | F86: TX | G86: 775719810 | H86: 29.717471 | I86: -95.068008 | J86: 77571QNTMC1515M | K86: 110034641635 | L86: =VLOOKUP(K86,'Facility Summary'!$J:$K, 2, FALSE) ->  | M86: 2869 | N86: Industrial Organic Chemicals, NEC (aliphatics) | P86: Direct | Q86: unknown | R86: 0.6621315193 | S86: 12040104000907 | T86: =SUM(R$75:R86) -> 53.4228559
A87: 2018 | B87: 2018-01-01 | C87: EQUISTAR CHEMICALS LP | D87: 1515 MILLER CUTOFF RD | E87: LA PORTE | F87: TX | G87: 775719810 | H87: 29.717471 | I87: -95.068008 | J87: 77571QNTMC1515M | K87: 110034641635 | L87: =VLOOKUP(K87,'Facility Summary'!$J:$K, 2, FALSE) ->  | M87: 2869 | N87: Industrial Organic Chemicals, NEC (aliphatics) | P87: Direct | Q87: unknown | R87: 0.6604761905 | S87: 5130205000794 | T87: =SUM(R$75:R87) -> 54.08333209
A88: 2018 | B88: 2018-01-01 | C88: INSTITUTE PLANT | D88: ROUTE 25 | E88: INSTITUTE | F88: WV | G88: 25112 | H88: 38.386439 | I88: -81.79844 | K88: 110064632312 | L88: =VLOOKUP(K88,'Facility Summary'!$J:$K, 2, FALSE) ->  | M88: 2869 | N88: Industrial Organic Chemicals, NEC (aliphatics) | P88: Direct | Q88: unknown | R88: 0.5973015873 | S88: 12040104000620 | T88: =SUM(R$75:R88) -> 54.68063367
A89: 2018 | B89: 2018-01-01 | C89: E I DUPONT DE NEMOURS- WASHINGTON WORKS | D89: 8480 DUPONT ROAD | E89: WASHINGTON | F89: WV | G89: 26181 | H89: 39.271944 | I89: -81.661667 | J89: 26180DPNTWDUPON,2618WCHMRS848DU | K89: 110000586081 | L89: =VLOOKUP(K89,'Facility Summary'!$J:$K, 2, FALSE) ->  | M89: 2821 | N89: Plastics Materials, Synthetic and Resins, and Nonvulcanizable Elastomers | P89: Direct | Q89: unknown | R89: 0.5793650794 | T89: =SUM(R$75:R89) -> 55.25999875
A90: 2018 | B90: 2018-01-01 | C90: D H HOLDINGS GWRS - FAYETTE TUBULAR PRODUCTS INC | D90: 203 E RAILROAD ST | E90: FAYETTE | F90: OH | G90: 43521 | H90: 41.678611 | I90: -84.325556 | K90: 110058286331 | L90: =VLOOKUP(K90,'Facility Summary'!$J:$K, 2, FALSE) ->  | M90: 8999 | N90: Services, NEC (record production) | P90: Direct | Q90: unknown | R90: 0.5237180806 | S90: 1090004000716 | T90: =SUM(R$75:R90) -> 55.78371683
A91: 2018 | B91: 2018-01-01 | C91: STEPAN CO MILLSDALE ROAD | D91: 22500 STEPAN DR | E91: ELWOOD | F91: IL | G91: 60421-9646 | H91: 41.441667 | I91: -88.15972 | J91: 60421STPNCRURAL | K91: 110000432504 | L91: =VLOOKUP(K91,'Facility Summary'!$J:$K, 2, FALSE) ->  | M91: 2843 | N91: Surface Active Agents, Finishing Agents, Sulfonated Oils, and Assistants | P91: Direct | R91: 0.4965986395 | S91: 5020003000026 | T91: =SUM(R$75:R91) -> 56.28031547
A92: 2018 | B92: 2018-01-01 | C92: BRASKEM AMERICA INC LAPORTE SITE | D92: 8811 STRANG ROAD | E92: LA PORTE | F92: TX | G92: 77571 | H92: 29.704027 | I92: -95.079932 | J92: 77571RSTCH8811S | K92: 110000463631 | L92: =VLOOKUP(K92,'Facility Summary'!$J:$K, 2, FALSE) ->  | M92: 2821 | N92: Plastics Materials, Synthetic and Resins, and Nonvulcanizable Elastomers | P92: Direct | Q92: unknown | R92: 0.2615419501 | T92: =SUM(R$75:R92) -> 56.54185742
A93: 2018 | B93: 2018-01-01 | C93: MOOG INC | D93: SENECA STREET | E93: EAST AURORA | F93: NY | G93: 14052 | H93: 42.80516 | I93: -78.64658 | J93: 14052MGNCXSENEC | K93: 110008011490 | L93: =VLOOKUP(K93,'Facility Summary'!$J:$K, 2, FALSE) ->  | M93: 3494 | N93: Valves and Pipe Fittings, NEC (except metal pipe hangers and supports) | P93: Direct | Q93: unknown | R93: 0.2184811765 | S93: 7120004000886 | T93: =SUM(R$75:R93) -> 56.7603386
A94: 2018 | B94: 2018-01-01 | C94: TRANE TECHNOLOGIES GWCU | D94: 525 NORTH 24TH STREET | E94: BATTLE CREEK | F94: MI | G94: 49015 | H94: 42.29366 | I94: -85.223644 | K94: 110009900884 | L94: =VLOOKUP(K94,'Facility Summary'!$J:$K, 2, FALSE) ->  | M94: 9999 | N94: Nonclassifiable Establishments | P94: Direct | R94: 0.1903192474 | T94: =SUM(R$75:R94) -> 56.95065785
A95: 2018 | B95: 2018-01-01 | C95: MOOG INC | D95: SENECA STREET | E95: EAST AURORA | F95: NY | G95: 14052 | H95: 42.80516 | I95: -78.64658 | J95: 14052MGNCXSENEC | K95: 110008011490 | L95: =VLOOKUP(K95,'Facility Summary'!$J:$K, 2, FALSE) ->  | M95: 3494 | N95: Valves and Pipe Fittings, NEC (except metal pipe hangers and supports) | P95: Direct | R95: 0.1013338368 | S95: 12040104000907 | T95: =SUM(R$75:R95) -> 57.05199168
A96: 2018 | B96: 2018-01-01 | C96: HOME DEPOT STORE 4285 | D96: 387 CHARLES STREET | E96: PROVIDENCE | F96: RI | G96: 02904-2231 | H96: 41.84315 | I96: -71.417769 | K96: 110024267620 | L96: =VLOOKUP(K96,'Facility Summary'!$J:$K, 2, FALSE) ->  | M96: 1541 | N96: General Contractors Industrial Buildings and Warehouses ( except grain elevators; drycleaning plants; and manufacturing, public, and industrial warehouses) | P96: Direct | Q96: unknown | R96: 0.06329091686 | S96: 5110002018560 | T96: =SUM(R$75:R96) -> 57.1152826
A97: 2018 | B97: 2018-01-01 | C97: GENERAL DYNAMICS ORDNANCE TACTICAL SYSTEMS | D97: 200 E HIGH ST | E97: RED LION | F97: PA | G97: 17356 | H97: 39.903749 | I97: -76.605096 | J97: 17356GNRLD200EH | K97: 110000333318 | L97: =VLOOKUP(K97,'Facility Summary'!$J:$K, 2, FALSE) ->  | M97: 3489 | N97: Ordnance and Accessories, NEC | P97: Direct | Q97: unknown | R97: 0.060365451 | S97: 5100205000153 | T97: =SUM(R$75:R97) -> 57.17564805
A98: 2018 | B98: 2018-01-01 | C98: CASCADE CORP (0812100207) | D98: 2501 SHERIDAN AVE | E98: SPRINGFIELD | F98: OH | G98: 45505-2519 | H98: 39.9101 | I98: -83.77117 | J98: 45505CSCDC2501S | K98: 110000395019 | L98: =VLOOKUP(K98,'Facility Summary'!$J:$K, 2, FALSE) ->  | M98: 3499 | N98: Fabricated Metal Products, NEC (powder metallurgy) | P98: Direct | Q98: unknown | R98: 0.059297 | S98: 2040203000412 | T98: =SUM(R$75:R98) -> 57.23494505
A99: 2018 | B99: 2018-01-01 | C99: FEDERAL HIGHWAY ADMINISTRATION-CENTRAL FEDERAL LAND | D99: 12300 WEST DAKOTA AVENUE | E99: LAKEWOOD | F99: CO | G99: 80228-1010 | H99: 39.72464 | I99: -105.14191 | K99: 110002961929 | L99: =VLOOKUP(K99,'Facility Summary'!$J:$K, 2, FALSE) ->  | M99: 9999 | N99: Nonclassifiable Establishments | P99: Direct | Q99: unknown | R99: 0.056943054 | T99: =SUM(R$75:R99) -> 57.29188811
A100: 2018 | B100: 2018-01-01 | C100: PENN COLOR INC FORMER MANVILLE, NJ FACILITY | D100: 101 WESTON RD | E100: HILLSBOROUGH TWP | F100: NJ | G100: 8844 | H100: 40.52516 | I100: -74.60104 | K100: 110070217974 | L100: =VLOOKUP(K100,'Facility Summary'!$J:$K, 2, FALSE) ->  | M100: 2851 | N100: Paints, Varnishes, Lacquers, Enamels and Allied Products | P100: Direct | R100: 0.03627146613 | S100: 5050008000998 | T100: =SUM(R$75:R100) -> 57.32815957
A101: 2018 | B101: 2018-01-01 | C101: BRAWLEY WASTEWATER TREATMENT PLANT | D101: 5015 BEST RD | E101: BRAWLEY | F101: CA | G101: 92227 | H101: 33.01736 | I101: -115.50923 | K101: 110030476465 | L101: =VLOOKUP(K101,'Facility Summary'!$J:$K, 2, FALSE) ->  | M101: 4952 | N101: Sewerage Systems | P101: Direct | Q101: unknown | R101: 0.03370921 | S101: 18100204010970 | T101: =SUM(R$75:R101) -> 57.36186878
A102: 2018 | B102: 2018-01-01 | C102: DIXON FESSLER USA | D102: RTE 61 | E102: DEER LAKE | F102: PA | G102: 17961 | H102: 40.627648 | I102: -76.06488 | K102: 110000584305 | L102: =VLOOKUP(K102,'Facility Summary'!$J:$K, 2, FALSE) ->  | M102: 3951 | N102: Pens, Mechanical Pencils, and Parts | P102: Direct | Q102: unknown | R102: 0.03337868481 | S102: 8080206001241 | T102: =SUM(R$75:R102) -> 57.39524747
A103: 2018 | B103: 2018-01-01 | C103: CHEMTURA NORTH AND SOUTH PLANTS | D103: 1000 MORGANTOWN INDUSTRIAL PARK | E103: MORGANTOWN | F103: WV | G103: 26501 | H103: 39.59983 | I103: -79.97148 | J103: 26505WSTMR1000D,26505WSTMRMORGA | K103: 110000572782 | L103: =VLOOKUP(K103,'Facility Summary'!$J:$K, 2, FALSE) ->  | M103: 2869 | N103: Industrial Organic Chemicals, NEC (aliphatics) | P103: Direct | Q103: unknown | R103: 0.03310657596 | S103: 18020157005902 | T103: =SUM(R$75:R103) -> 57.42835404
A104: 2018 | B104: 2018-01-01 | C104: AIRPORT BUSINESS CENTER | D104: 333 STRAWBERRY FIELD ROAD | E104: WARWICK | F104: RI | G104: 02886-2459 | H104: 41.71139 | I104: -71.42667 | K104: 110013738045 | L104: =VLOOKUP(K104,'Facility Summary'!$J:$K, 2, FALSE) ->  | M104: 9511 | N104: Air and Water Resource and Solid Waste Management | P104: Direct | Q104: unknown | R104: 0.0175611888 | S104: 7120004000886 | T104: =SUM(R$75:R104) -> 57.44591523
A105: 2018 | B105: 2018-01-01 | C105: ITW SWITCHES | D105: 7300 WEST LAWRENCE AVENUE | E105: HARWOOD HEIGHTS | F105: IL | G105: 60706-3504 | H105: 41.968191 | I105: -87.809528 | K105: 110000790984 | L105: =VLOOKUP(K105,'Facility Summary'!$J:$K, 2, FALSE) ->  | M105: 3569 | N105: General Industrial Machinery and Equipment, NEC (textile fire hose) | P105: Direct | Q105: unknown | R105: 0.01739957831 | S105: 12040104000907 | T105: =SUM(R$75:R105) -> 57.46331481
A106: 2018 | B106: 2018-01-01 | C106: KEESHAN AND BOST CHEMICAL CO., INC. | D106: 22102 HWY 6 | E106: MANVEL | F106: TX | G106: 77578 | H106: 29.4584 | I106: -95.3304 | J106: 77578KSHNB22102 | K106: 110000599479 | L106: =VLOOKUP(K106,'Facility Summary'!$J:$K, 2, FALSE) ->  | M106: 2869 | N106: Industrial Organic Chemicals, NEC (aliphatics) | P106: Direct | Q106: unknown | R106: 0.01655328798 | S106: 15010015000957 | T106: =SUM(R$75:R106) -> 57.4798681
A107: 2018 | B107: 2018-01-01 | C107: EKCO HOUSEWARES, INC. | D107: 359 STATE AVE EXT NW | E107: MASSILLON | F107: OH | G107: 44647-4269 | H107: 40.80466 | I107: -81.53209 | K107: 110005987664 | L107: =VLOOKUP(K107,'Facility Summary'!$J:$K, 2, FALSE) ->  | M107: 8999 | N107: Services, NEC (record production) | P107: Direct | Q107: unknown | R107: 0.016294425 | S107: 5110003001454 | T107: =SUM(R$75:R107) -> 57.49616252
A108: 2018 | B108: 2018-01-01 | C108: EAGLE US 2 LLC - LAKE CHARLES COMPLEX | D108: 1300 PPG DRIVE | E108: LAKE CHARLES | F108: LA | G108: 70601 | H108: 30.2235 | I108: -93.2869 | J108: 70669PPGNDCOLUM | K108: 110000494894 | L108: =VLOOKUP(K108,'Facility Summary'!$J:$K, 2, FALSE) ->  | M108: 2869 | N108: Industrial Organic Chemicals, NEC (aliphatics) | P108: Direct | Q108: unknown | R108: 0.00970548186 | S108: 2060002000199 | T108: =SUM(R$75:R108) -> 57.505868
A109: 2018 | B109: 2018-01-01 | C109: DEFENSE FUEL SUPPORT POINT NORWALK DFSP | D109: 15306 NORWALK BOULEVARD | E109: NORWALK | F109: CA | G109: 90650-6639 | H109: 33.892391 | I109: -118.072909 | K109: 110000781609 | L109: =VLOOKUP(K109,'Facility Summary'!$J:$K, 2, FALSE) ->  | M109: 4613 | N109: Refined Petroleum Pipelines | P109: Direct | Q109: unknown | R109: 0.00289600907 | T109: =SUM(R$75:R109) -> 57.50876401
A110: 2018 | B110: 2018-01-01 | C110: AVNET INC (FORMER IMPERIAL SCHRADE) | D110: ROUTE 209 | E110: ELLENVILLE | F110: NY | G110: 12428 | H110: 41.70048 | I110: -74.40974 | K110: 110064186615 | L110: =VLOOKUP(K110,'Facility Summary'!$J:$K, 2, FALSE) ->  | M110: 3679 | N110: Electronic Components, NEC (antennas) | P110: Direct | Q110: unknown | R110: 0.001204748846 | S110: 1090004000106 | T110: =SUM(R$75:R110) -> 57.50996876
A111: 2018 | B111: 2018-01-01 | C111: ALLIANT TECHSYSTEMS OPERATIONS LLC | D111: 55 THIOKOL ROAD | E111: ELKTON | F111: MD | G111: 21921 | H111: 39.61076 | I111: -75.86472 | K111: 110019877409 | L111: =VLOOKUP(K111,'Facility Summary'!$J:$K, 2, FALSE) ->  | M111: 3764 | N111: Guided Missile and Space Vehicle Propulsion Units and Propulsion Unit Parts (except research and development not producing prototypes)) | P111: Direct | Q111: unknown | R111: 0.00107611335 | S111: 12040104000870 | T111: =SUM(R$75:R111) -> 57.51104488
A112: 2018 | B112: 2018-01-01 | C112: MOOG INC | D112: SENECA STREET | E112: EAST AURORA | F112: NY | G112: 14052 | H112: 42.80516 | I112: -78.64658 | J112: 14052MGNCXSENEC | K112: 110008011490 | L112: =VLOOKUP(K112,'Facility Summary'!$J:$K, 2, FALSE) ->  | M112: 3494 | N112: Valves and Pipe Fittings, NEC (except metal pipe hangers and supports) | P112: Direct | R112: 7.0401e-06 | S112: 16050102000406 | T112: =SUM(R$75:R112) -> 57.51105192
A113: 2018 | B113: 2018-01-01 | C113: IMTT-BC | D113: 2 COMMERCE ST | E113: BAYONNE CITY | F113: NJ | G113: 7002 | H113: 40.650121 | I113: -74.095578 | K113: 110070220480 | L113: =VLOOKUP(K113,'Facility Summary'!$J:$K, 2, FALSE) ->  | M113: 4226 | N113: Special Warehousing and Storage, NEC (warehousing in foreign trade zones) | P113: Direct | Q113: unknown | R113: 3.0413232e-09 | S113: 12040104000907 | T113: =SUM(R$75:R113) -> 57.51105192
A114: 2017 | B114: 2017-01-01 | C114: SOLVAY - HOUSTON PLANT | D114: 8615 MANCHESTER ST | E114: HOUSTON | F114: TX | G114: 77012 | H114: 29.718139 | I114: -95.26875 | J114: 77012STFFR8615M | K114: 110000460901 | L114: =VLOOKUP(K114,'Facility Summary'!$J:$K, 2, FALSE) ->  | M114: 2819 | N114: Industrial Inorganic Chemicals, NEC (recovering sulfur from natural gas) | P114: Direct | Q114: unknown | R114: 8.253968254 | S114: 5080002001148 | T114: =SUM(R$114:R114) -> 8.253968254 | U114: =T114/$T$154 -> 21%
A115: 2017 | B115: 2017-01-01 | C115: EAGLE US 2 LLC - LAKE CHARLES COMPLEX | D115: 1300 PPG DRIVE | E115: LAKE CHARLES | F115: LA | G115: 70601 | H115: 30.2235 | I115: -93.2869 | J115: 70669PPGNDCOLUM | K115: 110000494894 | L115: =VLOOKUP(K115,'Facility Summary'!$J:$K, 2, FALSE) ->  | M115: 2869 | N115: Industrial Organic Chemicals, NEC (aliphatics) | P115: Direct | Q115: unknown | R115: 5.586562726 | S115: 2060002000199 | T115: =SUM(R$114:R115) -> 13.84053098 | U115: =T115/$T$154 -> 36%
A116: 2017 | B116: 2017-01-01 | C116: HONEYWELL INTERNATIONAL INC - GEISMAR COMPLEX | D116: 5525 HWY 3115 | E116: GEISMAR | F116: LA | G116: 70734-3412 | H116: 30.2219 | I116: -91.0515 | J116: 70734LLDSGHWY31 | K116: 110033659878 | L116: =VLOOKUP(K116,'Facility Summary'!$J:$K, 2, FALSE) ->  | M116: 2819 | N116: Industrial Inorganic Chemicals, NEC (recovering sulfur from natural gas) | P116: Direct | Q116: unknown | R116: 4.965986395 | T116: =SUM(R$114:R116) -> 18.80651737 | U116: 49%
A117: 2017 | B117: 2017-01-01 | C117: EQUISTAR CHEMICALS LP | D117: 1515 MILLER CUTOFF RD | E117: LA PORTE | F117: TX | G117: 775719810 | H117: 29.717471 | I117: -95.068008 | J117: 77571QNTMC1515M | K117: 110034641635 | L117: =VLOOKUP(K117,'Facility Summary'!$J:$K, 2, FALSE) ->  | M117: 2869 | N117: Industrial Organic Chemicals, NEC (aliphatics) | P117: Direct | Q117: unknown | R117: 3.50631045 | S117: 3150101000005 | T117: =SUM(R$114:R117) -> 22.31282782 | U117: 58%
A118: 2017 | B118: 2017-01-01 | C118: CAVELAND ENVIRONMENTAL AUTH | D118: 508 S DIXIE HWY | E118: HORSE CAVE | F118: KY | G118: 42749 | H118: 37.17 | I118: -85.916111 | K118: 110006656083 | L118: =VLOOKUP(K118,'Facility Summary'!$J:$K, 2, FALSE) ->  | M118: 4952 | N118: Sewerage Systems | P118: Direct | Q118: unknown | R118: 2.6801585 | S118: 3150101000005 | T118: =SUM(R$114:R118) -> 24.99298632 | U118: 65%
A119: 2017 | B119: 2017-01-01 | C119: EDDYVILLE STP | D119: 488 SEWER PLANT RD | E119: EDDYVILLE | F119: KY | G119: 42038 | H119: 37.075278 | I119: -88.09 | K119: 110009938719 | L119: =VLOOKUP(K119,'Facility Summary'!$J:$K, 2, FALSE) ->  | M119: 4952 | N119: Sewerage Systems | P119: Direct | Q119: unknown | R119: 2.286423875 | S119: 18100204010970 | T119: =SUM(R$114:R119) -> 27.2794102 | U119: 71%
A120: 2017 | B120: 2017-01-01 | C120: INSTITUTE PLANT | D120: ROUTE 25 | E120: INSTITUTE | F120: WV | G120: 25112 | H120: 38.386439 | I120: -81.79844 | K120: 110064632312 | L120: =VLOOKUP(K120,'Facility Summary'!$J:$K, 2, FALSE) ->  | M120: 2869 | N120: Industrial Organic Chemicals, NEC (aliphatics) | P120: Direct | Q120: unknown | R120: 1.908662132 | T120: =SUM(R$114:R120) -> 29.18807233 | U120: 76%
A121: 2017 | B121: 2017-01-01 | C121: DELPHI HARRISON THERMAL SYSTEMS | D121: 3600 DRYDEN RD | E121: DAYTON | F121: OH | G121: 45439 | H121: 39.688437 | I121: -84.226002 | K121: 110000394895 | L121: =VLOOKUP(K121,'Facility Summary'!$J:$K, 2, FALSE) ->  | M121: 3711 | N121: Motor Vehicles and Passenger Car Bodies (automobiles) | P121: Direct | Q121: unknown | R121: 1.396 | S121: 7120004000957 | T121: =SUM(R$114:R121) -> 30.58407233 | U121: 79%
A122: 2017 | B122: 2017-01-01 | C122: TRONOX LLC | D122: 510 SOUTH 4TH STREET | E122: HENDERSON | F122: NV | G122: 89015 | H122: 36.03544 | I122: -114.99994 | J122: 89015KRRMC8000L | K122: 110043808467 | L122: =VLOOKUP(K122,'Facility Summary'!$J:$K, 2, FALSE) ->  | M122: 1799 | N122: Special Trade Contractors, NEC (indoor swimming pool construction contractors) | P122: Direct | Q122: unknown | R122: 1.176598287 | S122: 12040104000907 | T122: =SUM(R$114:R122) -> 31.76067062 | U122: 82%
A123: 2017 | B123: 2017-01-01 | C123: WOODWARD INC | D123: 5001 NORTH SECOND STREET | E123: ROCKFORD | F123: IL | G123: 61101 | H123: 42.304209 | I123: -89.055549 | J123: 6112WWDWRD51NRT | K123: 110005812371 | L123: =VLOOKUP(K123,'Facility Summary'!$J:$K, 2, FALSE) ->  | M123: 3728 | N123: Aircraft Parts and Auxiliary Equipment, NEC (fluid power aircraft subassemblies) | P123: Direct | Q123: unknown | R123: 0.9883793513 | S123: 5050008000998 | T123: =SUM(R$114:R123) -> 32.74904997 | U123: =T123/$T$154 -> 85%
A124: 2017 | B124: 2017-01-01 | C124: PORT OF SUNNYSIDE INDUSTRIAL WWTF | D124: 747 MIDVALE RD | E124: SUNNYSIDE | F124: WA | G124: 98944 | H124: 46.291666 | I124: -120.012234 | K124: 110015474789 | L124: =VLOOKUP(K124,'Facility Summary'!$J:$K, 2, FALSE) ->  | P124: Direct | Q124: unknown | R124: 0.697670125 | S124: 5100205000153 | T124: =SUM(R$114:R124) -> 33.44672009 | U124: 87%
A125: 2017 | B125: 2017-01-01 | C125: ETHYL CORPORATION | D125: GOLF STATE ROAD | E125: BATON ROUGE | F125: LA | G125: 70805 | H125: 30.483523 | I125: -91.18344 | K125: 110001143584 | L125: =VLOOKUP(K125,'Facility Summary'!$J:$K, 2, FALSE) ->  | M125: 2869 | N125: Industrial Organic Chemicals, NEC (aliphatics) | P125: Direct | Q125: unknown | R125: 0.62246596 | S125: 12040204000953 | T125: =SUM(R$114:R125) -> 34.06918605 | U125: =T125/$T$154 -> 88%
A126: 2017 | B126: 2017-01-01 | C126: EQUISTAR CHEMICALS LP | D126: 1515 MILLER CUTOFF RD | E126: LA PORTE | F126: TX | G126: 775719810 | H126: 29.717471 | I126: -95.068008 | J126: 77571QNTMC1515M | K126: 110034641635 | L126: =VLOOKUP(K126,'Facility Summary'!$J:$K, 2, FALSE) ->  | M126: 2869 | N126: Industrial Organic Chemicals, NEC (aliphatics) | P126: Direct | Q126: unknown | R126: 0.5628117914 | S126: 10190002000451 | T126: =SUM(R$114:R126) -> 34.63199785 | U126: =T126/$T$154 -> 90%
A127: 2017 | B127: 2017-01-01 | C127: RIALTO WASTEWATER TREATMENT PLANT | D127: 501 E SANTA ANA AVE | E127: BLOOMINGTON | F127: CA | G127: 92316 | H127: 34.0559 | I127: -117.36134 | K127: 110000525842 | L127: =VLOOKUP(K127,'Facility Summary'!$J:$K, 2, FALSE) ->  | M127: 4952 | N127: Sewerage Systems | P127: Direct | Q127: unknown | R127: 0.50631945 | S127: 5110002018560 | T127: =SUM(R$114:R127) -> 35.1383173 | U127: =T127/$T$153 -> 91%
A128: 2017 | B128: 2017-01-01 | C128: STEPAN CO MILLSDALE ROAD | D128: 22500 STEPAN DR | E128: ELWOOD | F128: IL | G128: 60421-9646 | H128: 41.441667 | I128: -88.15972 | J128: 60421STPNCRURAL | K128: 110000432504 | L128: =VLOOKUP(K128,'Facility Summary'!$J:$K, 2, FALSE) ->  | M128: 2843 | N128: Surface Active Agents, Finishing Agents, Sulfonated Oils, and Assistants | P128: Direct | Q128: unknown | R128: 0.4965986395 | S128: 15010015000957 | T128: =SUM(R$114:R128) -> 35.63491593 | U128: =T128/$T$153 -> 92%
A129: 2017 | B129: 2017-01-01 | C129: D H HOLDINGS GWRS - FAYETTE TUBULAR PRODUCTS INC | D129: 203 E RAILROAD ST | E129: FAYETTE | F129: OH | G129: 43521 | H129: 41.678611 | I129: -84.325556 | K129: 110058286331 | L129: =VLOOKUP(K129,'Facility Summary'!$J:$K, 2, FALSE) ->  | M129: 8999 | N129: Services, NEC (record production) | P129: Direct | Q129: unknown | R129: 0.4811121562 | S129: 12040104000870 | T129: =SUM(R$114:R129) -> 36.11602809 | U129: 94%
A130: 2017 | B130: 2017-01-01 | C130: INDORAMA VENTURES OLEFINS, LLC | D130: 4300 HWY 108 SOUTH | E130: SULPHUR | F130: LA | G130: 70665 | H130: 30.190568 | I130: -93.325823 | J130: 70663CCDNTHIGHW | K130: 110000748040 | L130: =VLOOKUP(K130,'Facility Summary'!$J:$K, 2, FALSE) ->  | M130: 2869 | N130: Industrial Organic Chemicals, NEC (aliphatics) | P130: Direct | Q130: unknown | R130: 0.4303854875 | S130: 18070106000652 | T130: =SUM(R$114:R130) -> 36.54641358 | U130: 95%
A131: 2017 | B131: 2017-01-01 | C131: DOW CHEMICAL CO DALTON PLANT | D131: 1468 PROSSER DR SE | E131: DALTON | F131: GA | G131: 30721-5449 | H131: 34.632592 | I131: -84.927668 | J131: 3072WSTYRN1468P | K131: 110000611703 | L131: =VLOOKUP(K131,'Facility Summary'!$J:$K, 2, FALSE) ->  | M131: 2822 | N131: Synthetic Rubber | P131: Direct | Q131: unknown | R131: 0.337414966 | S131: 12040104000907 | T131: =SUM(R$114:R131) -> 36.88382854 | U131: 96%
A132: 2017 | B132: 2017-01-01 | C132: EQUISTAR CHEMICALS LP | D132: 1515 MILLER CUTOFF RD | E132: LA PORTE | F132: TX | G132: 775719810 | H132: 29.717471 | I132: -95.068008 | J132: 77571QNTMC1515M | K132: 110034641635 | L132: =VLOOKUP(K132,'Facility Summary'!$J:$K, 2, FALSE) ->  | M132: 2869 | N132: Industrial Organic Chemicals, NEC (aliphatics) | P132: Direct | Q132: unknown | R132: 0.2648526077 | T132: =SUM(R$114:R132) -> 37.14868115 | U132: =T132/$T$153 -> 96%
A133: 2017 | B133: 2017-01-01 | C133: MOOG INC | D133: SENECA STREET | E133: EAST AURORA | F133: NY | G133: 14052 | H133: 42.80516 | I133: -78.64658 | J133: 14052MGNCXSENEC | K133: 110008011490 | L133: =VLOOKUP(K133,'Facility Summary'!$J:$K, 2, FALSE) ->  | M133: 3494 | N133: Valves and Pipe Fittings, NEC (except metal pipe hangers and supports) | P133: Direct | Q133: unknown | R133: 0.243807747 | S133: 5130101000215 | T133: =SUM(R$114:R133) -> 37.3924889 | U133: 97%
A134: 2017 | B134: 2017-01-01 | C134: BRASKEM AMERICA INC LAPORTE SITE | D134: 8811 STRANG ROAD | E134: LA PORTE | F134: TX | G134: 77571 | H134: 29.704027 | I134: -95.079932 | J134: 77571RSTCH8811S | K134: 110000463631 | L134: =VLOOKUP(K134,'Facility Summary'!$J:$K, 2, FALSE) ->  | M134: 2821 | N134: Plastics Materials, Synthetic and Resins, and Nonvulcanizable Elastomers | P134: Direct | Q134: unknown | R134: 0.1936734694 | S134: 12040104000907 | T134: =SUM(R$114:R134) -> 37.58616237 | U134: 98%
A135: 2017 | B135: 2017-01-01 | C135: BT HOTEL WARWICK LLC | D135: 400 KNIGHT STREET | E135: WARWICK | F135: RI | G135: 2886 | H135: 41.72651 | I135: -71.47218 | K135: 110070145273 | L135: =VLOOKUP(K135,'Facility Summary'!$J:$K, 2, FALSE) ->  | M135: 7011 | N135: Hotels and Motels (hotels, except casino hotels, and motels) | P135: Direct | Q135: unknown | R135: 0.180517248 | S135: 7120004000886 | T135: =SUM(R$114:R135) -> 37.76667962 | U135: =T135/$T$153 -> 98%
A136: 2017 | B136: 2017-01-01 | C136: STYROLUTION AMERICA LLC | D136: 25846 S FRONTAGE ROAD | E136: CHANNAHON | F136: IL | G136: 60410-5222 | H136: 41.412533 | I136: -88.197281 | J136: 60410MBLCHI55AR | K136: 110008458597 | L136: =VLOOKUP(K136,'Facility Summary'!$J:$K, 2, FALSE) ->  | M136: 2821 | N136: Plastics Materials, Synthetic and Resins, and Nonvulcanizable Elastomers | P136: Direct | Q136: unknown | R136: 0.1655328798 | S136: 12040104000907 | T136: =SUM(R$114:R136) -> 37.9322125
A137: 2017 | B137: 2017-01-01 | C137: TRANE TECHNOLOGIES GWCU | D137: 525 NORTH 24TH STREET | E137: BATTLE CREEK | F137: MI | G137: 49015 | H137: 42.29366 | I137: -85.223644 | K137: 110009900884 | L137: =VLOOKUP(K137,'Facility Summary'!$J:$K, 2, FALSE) ->  | M137: 9999 | N137: Nonclassifiable Establishments | P137: Direct | Q137: unknown | R137: 0.122306976 | S137: 12040104000907 | T137: =SUM(R$114:R137) -> 38.05451947
A138: 2017 | B138: 2017-01-01 | C138: EQUISTAR CHEMICALS LP | D138: 1515 MILLER CUTOFF RD | E138: LA PORTE | F138: TX | G138: 775719810 | H138: 29.717471 | I138: -95.068008 | J138: 77571QNTMC1515M | K138: 110034641635 | L138: =VLOOKUP(K138,'Facility Summary'!$J:$K, 2, FALSE) ->  | M138: 2869 | N138: Industrial Organic Chemicals, NEC (aliphatics) | P138: Direct | Q138: unknown | R138: 0.09931972789 | S138: 2020006000320 | T138: =SUM(R$114:R138) -> 38.1538392
A139: 2017 | B139: 2017-01-01 | C139: WOODWARD INC | D139: 5001 NORTH SECOND STREET | E139: ROCKFORD | F139: IL | G139: 61101 | H139: 42.304209 | I139: -89.055549 | J139: 6112WWDWRD51NRT | K139: 110005812371 | L139: =VLOOKUP(K139,'Facility Summary'!$J:$K, 2, FALSE) ->  | M139: 3728 | N139: Aircraft Parts and Auxiliary Equipment, NEC (fluid power aircraft subassemblies) | P139: Direct | Q139: unknown | R139: 0.08377155792 | S139: 5030203000005 | T139: =SUM(R$114:R139) -> 38.23761076
A140: 2017 | B140: 2017-01-01 | C140: CASCADE CORP (0812100207) | D140: 2501 SHERIDAN AVE | E140: SPRINGFIELD | F140: OH | G140: 45505-2519 | H140: 39.9101 | I140: -83.77117 | J140: 45505CSCDC2501S | K140: 110000395019 | L140: =VLOOKUP(K140,'Facility Summary'!$J:$K, 2, FALSE) ->  | M140: 3499 | N140: Fabricated Metal Products, NEC (powder metallurgy) | P140: Direct | Q140: unknown | R140: 0.0666989 | S140: 8080206000067 | T140: =SUM(R$114:R140) -> 38.30430966
A141: 2017 | B141: 2017-01-01 | C141: ALLIANT TECHSYSTEMS OPERATIONS LLC | D141: 55 THIOKOL ROAD | E141: ELKTON | F141: MD | G141: 21921 | H141: 39.61076 | I141: -75.86472 | K141: 110019877409 | L141: =VLOOKUP(K141,'Facility Summary'!$J:$K, 2, FALSE) ->  | M141: 3764 | N141: Guided Missile and Space Vehicle Propulsion Units and Propulsion Unit Parts (except research and development not producing prototypes)) | P141: Direct | Q141: unknown | R141: 0.0355332015 | S141: 17030003003243 | T141: =SUM(R$114:R141) -> 38.33984286
A142: 2017 | B142: 2017-01-01 | C142: BRAWLEY WASTEWATER TREATMENT PLANT | D142: 5015 BEST RD | E142: BRAWLEY | F142: CA | G142: 92227 | H142: 33.01736 | I142: -115.50923 | K142: 110030476465 | L142: =VLOOKUP(K142,'Facility Summary'!$J:$K, 2, FALSE) ->  | M142: 4952 | N142: Sewerage Systems | P142: Direct | Q142: unknown | R142: 0.0338473625 | S142: 18070203002243 | T142: =SUM(R$114:R142) -> 38.37369022
A143: 2017 | B143: 2017-01-01 | C143: MOOG INC | D143: SENECA STREET | E143: EAST AURORA | F143: NY | G143: 14052 | H143: 42.80516 | I143: -78.64658 | J143: 14052MGNCXSENEC | K143: 110008011490 | L143: =VLOOKUP(K143,'Facility Summary'!$J:$K, 2, FALSE) ->  | M143: 3494 | N143: Valves and Pipe Fittings, NEC (except metal pipe hangers and supports) | P143: Direct | Q143: unknown | R143: 0.02829002868 | S143: 5030203000005 | T143: =SUM(R$114:R143) -> 38.40198025
A144: 2017 | B144: 2017-01-01 | C144: DOW CHEMICAL CO DALTON PLANT | D144: 1468 PROSSER DR SE | E144: DALTON | F144: GA | G144: 30721-5449 | H144: 34.632592 | I144: -84.927668 | J144: 3072WSTYRN1468P | K144: 110000611703 | L144: =VLOOKUP(K144,'Facility Summary'!$J:$K, 2, FALSE) ->  | M144: 2822 | N144: Synthetic Rubber | P144: Direct | Q144: unknown | R144: 0.02760667904 | S144: 7090005001910 | T144: =SUM(R$114:R144) -> 38.42958693
A145: 2017 | B145: 2017-01-01 | C145: FEDERAL HIGHWAY ADMINISTRATION-CENTRAL FEDERAL LAND | D145: 12300 WEST DAKOTA AVENUE | E145: LAKEWOOD | F145: CO | G145: 80228-1010 | H145: 39.72464 | I145: -105.14191 | K145: 110002961929 | L145: =VLOOKUP(K145,'Facility Summary'!$J:$K, 2, FALSE) ->  | M145: 9999 | N145: Nonclassifiable Establishments | P145: Direct | Q145: unknown | R145: 0.026606279 | S145: 2050306000429 | T145: =SUM(R$114:R145) -> 38.45619321
A146: 2017 | B146: 2017-01-01 | C146: PENN COLOR INC FORMER MANVILLE, NJ FACILITY | D146: 101 WESTON RD | E146: HILLSBOROUGH TWP | F146: NJ | G146: 8844 | H146: 40.52516 | I146: -74.60104 | K146: 110070217974 | L146: =VLOOKUP(K146,'Facility Summary'!$J:$K, 2, FALSE) ->  | M146: 2851 | N146: Paints, Varnishes, Lacquers, Enamels and Allied Products | P146: Direct | Q146: unknown | R146: 0.02094138154 | T146: =SUM(R$114:R146) -> 38.47713459
A147: 2017 | B147: 2017-01-01 | C147: PERKIN ELMER, INC | D147: 55 HASBROUCK LANE | E147: WOODSTOCK | F147: NY | G147: 12498 | H147: 42.02562 | I147: -74.09933 | K147: 110015744024 | L147: =VLOOKUP(K147,'Facility Summary'!$J:$K, 2, FALSE) ->  | M147: 9511 | N147: Air and Water Resource and Solid Waste Management | P147: Direct | Q147: unknown | R147: 0.0172928323 | S147: 5130205000794 | T147: =SUM(R$114:R147) -> 38.49442742
A148: 2017 | B148: 2017-01-01 | C148: KEESHAN AND BOST CHEMICAL CO., INC. | D148: 22102 HWY 6 | E148: MANVEL | F148: TX | G148: 77578 | H148: 29.4584 | I148: -95.3304 | J148: 77578KSHNB22102 | K148: 110000599479 | L148: =VLOOKUP(K148,'Facility Summary'!$J:$K, 2, FALSE) ->  | M148: 2869 | N148: Industrial Organic Chemicals, NEC (aliphatics) | P148: Direct | Q148: unknown | R148: 0.01655328798 | S148: 12040104000084 | T148: =SUM(R$114:R148) -> 38.51098071
A149: 2017 | B149: 2017-01-01 | C149: GENERAL DYNAMICS ORDNANCE TACTICAL SYSTEMS | D149: 200 E HIGH ST | E149: RED LION | F149: PA | G149: 17356 | H149: 39.903749 | I149: -76.605096 | J149: 17356GNRLD200EH | K149: 110000333318 | L149: =VLOOKUP(K149,'Facility Summary'!$J:$K, 2, FALSE) ->  | M149: 3489 | N149: Ordnance and Accessories, NEC | P149: Direct | Q149: unknown | R149: 0.015009039 | T149: =SUM(R$114:R149) -> 38.52598975
A150: 2017 | B150: 2017-01-01 | C150: CHEMTURA NORTH AND SOUTH PLANTS | D150: 1000 MORGANTOWN INDUSTRIAL PARK | E150: MORGANTOWN | F150: WV | G150: 26501 | H150: 39.59983 | I150: -79.97148 | J150: 26505WSTMR1000D,26505WSTMRMORGA | K150: 110000572782 | L150: =VLOOKUP(K150,'Facility Summary'!$J:$K, 2, FALSE) ->  | M150: 2869 | N150: Industrial Organic Chemicals, NEC (aliphatics) | P150: Direct | Q150: unknown | R150: 0.008276643991 | S150: 12040104000907 | T150: =SUM(R$114:R150) -> 38.53426639
A151: 2017 | B151: 2017-01-01 | C151: AVNET INC (FORMER IMPERIAL SCHRADE) | D151: ROUTE 209 | E151: ELLENVILLE | F151: NY | G151: 12428 | H151: 41.70048 | I151: -74.40974 | K151: 110064186615 | L151: =VLOOKUP(K151,'Facility Summary'!$J:$K, 2, FALSE) ->  | M151: 3679 | N151: Electronic Components, NEC (antennas) | P151: Direct | Q151: unknown | R151: 0.002893352183 | S151: 8070201006480 | T151: =SUM(R$114:R151) -> 38.53715975
A152: 2017 | B152: 2017-01-01 | C152: ITW SWITCHES | D152: 7300 WEST LAWRENCE AVENUE | E152: HARWOOD HEIGHTS | F152: IL | G152: 60706-3504 | H152: 41.968191 | I152: -87.809528 | K152: 110000790984 | L152: =VLOOKUP(K152,'Facility Summary'!$J:$K, 2, FALSE) ->  | M152: 3569 | N152: General Industrial Machinery and Equipment, NEC (textile fire hose) | P152: Direct | Q152: unknown | R152: 0.00133316027 | S152: 12040104000907 | T152: =SUM(R$114:R152) -> 38.53849291
A153: 2017 | B153: 2017-01-01 | C153: DEFENSE FUEL SUPPORT POINT NORWALK DFSP | D153: 15306 NORWALK BOULEVARD | E153: NORWALK | F153: CA | G153: 90650-6639 | H153: 33.892391 | I153: -118.072909 | K153: 110000781609 | L153: =VLOOKUP(K153,'Facility Summary'!$J:$K, 2, FALSE) ->  | M153: 4613 | N153: Refined Petroleum Pipelines | P153: Direct | Q153: unknown | R153: 0.0008697052154 | S153: 1090004000127 | T153: =SUM(R$114:R153) -> 38.53936261
A154: 2017 | B154: 2017-01-01 | C154: FORMER REXON FACILITY AKA ENJEMS MILLWORKS | D154: 70 OLD TURNPIKE RD | E154: WAYNE TWP | F154: NJ | G154: 7470 | H154: 40.89195 | I154: -74.24937 | K154: 110070213656 | L154: =VLOOKUP(K154,'Facility Summary'!$J:$K, 2, FALSE) ->  | M154: 9999 | N154: Nonclassifiable Establishments | P154: Direct | Q154: unknown | R154: 0.0004471343512 | S154: 5020003000026 | T154: =SUM(R$114:R154) -> 38.53980975
A155: 2016 | B155: 2016-01-01 | C155: EAGLE US 2 LLC - LAKE CHARLES COMPLEX | D155: 1300 PPG DRIVE | E155: LAKE CHARLES | F155: LA | G155: 70601 | H155: 30.2235 | I155: -93.2869 | J155: 70669PPGNDCOLUM | K155: 110000494894 | L155: =VLOOKUP(K155,'Facility Summary'!$J:$K, 2, FALSE) ->  | M155: 2869 | N155: Industrial Organic Chemicals, NEC (aliphatics) | P155: Direct | Q155: unknown | R155: 121.5387875 | S155: 4060102000190 | T155: =SUM(R$155:R155) -> 121.5387875 | U155: =T155/$T$192 -> 72%
A156: 2016 | B156: 2016-01-01 | C156: EQUISTAR CHEMICALS LP | D156: 1515 MILLER CUTOFF RD | E156: LA PORTE | F156: TX | G156: 775719810 | H156: 29.717471 | I156: -95.068008 | J156: 77571QNTMC1515M | K156: 110034641635 | L156: =VLOOKUP(K156,'Facility Summary'!$J:$K, 2, FALSE) ->  | M156: 2869 | N156: Industrial Organic Chemicals, NEC (aliphatics) | P156: Direct | Q156: unknown | R156: 22.1814059 | S156: 15020016000585 | T156: =SUM(R$155:R156) -> 143.7201934 | U156: =T156/$T$192 -> 85%
A157: 2016 | B157: 2016-01-01 | C157: SOLVAY - HOUSTON PLANT | D157: 8615 MANCHESTER ST | E157: HOUSTON | F157: TX | G157: 77012 | H157: 29.718139 | I157: -95.26875 | J157: 77012STFFR8615M | K157: 110000460901 | L157: =VLOOKUP(K157,'Facility Summary'!$J:$K, 2, FALSE) ->  | M157: 2819 | N157: Industrial Inorganic Chemicals, NEC (recovering sulfur from natural gas) | P157: Direct | Q157: unknown | R157: 8.272108844 | S157: 12040104000907 | T157: =SUM(R$155:R157) -> 151.9923023 | U157: 89%
A158: 2016 | B158: 2016-01-01 | C158: HONEYWELL INTERNATIONAL INC - GEISMAR COMPLEX | D158: 5525 HWY 3115 | E158: GEISMAR | F158: LA | G158: 70734-3412 | H158: 30.2219 | I158: -91.0515 | J158: 70734LLDSGHWY31 | K158: 110033659878 | L158: =VLOOKUP(K158,'Facility Summary'!$J:$K, 2, FALSE) ->  | M158: 2819 | N158: Industrial Inorganic Chemicals, NEC (recovering sulfur from natural gas) | P158: Direct | Q158: unknown | R158: 4.469387755 | T158: =SUM(R$155:R158) -> 156.46169 | U158: 92%
A159: 2016 | B159: 2016-01-01 | C159: EVERETT WATER POLLUTION CONTROL FACILITY | D159: 4027 4TH ST SE | E159: EVERETT | F159: WA | G159: 98201 | H159: 47.997331 | I159: -122.172561 | K159: 110016662011 | L159: =VLOOKUP(K159,'Facility Summary'!$J:$K, 2, FALSE) ->  | P159: Direct | Q159: unknown | R159: 3.47315385 | S159: 1090004000716 | T159: =SUM(R$155:R159) -> 159.9348439 | U159: 94%
A160: 2016 | B160: 2016-01-01 | C160: INSTITUTE PLANT | D160: ROUTE 25 | E160: INSTITUTE | F160: WV | G160: 25112 | H160: 38.386439 | I160: -81.79844 | K160: 110064632312 | L160: =VLOOKUP(K160,'Facility Summary'!$J:$K, 2, FALSE) ->  | M160: 2869 | N160: Industrial Organic Chemicals, NEC (aliphatics) | P160: Direct | Q160: unknown | R160: 2.126507937 | T160: =SUM(R$155:R160) -> 162.0613518 | U160: 95%
A161: 2016 | B161: 2016-01-01 | C161: DELPHI HARRISON THERMAL SYSTEMS | D161: 3600 DRYDEN RD | E161: DAYTON | F161: OH | G161: 45439 | H161: 39.688437 | I161: -84.226002 | K161: 110000394895 | L161: =VLOOKUP(K161,'Facility Summary'!$J:$K, 2, FALSE) ->  | M161: 3711 | N161: Motor Vehicles and Passenger Car Bodies (automobiles) | P161: Direct | Q161: unknown | R161: 1.6333 | S161: 2050306000429 | T161: =SUM(R$155:R161) -> 163.6946518 | U161: 96%
A162: 2016 | B162: 2016-01-01 | C162: WOODWARD INC | D162: 5001 NORTH SECOND STREET | E162: ROCKFORD | F162: IL | G162: 61101 | H162: 42.304209 | I162: -89.055549 | J162: 6112WWDWRD51NRT | K162: 110005812371 | L162: =VLOOKUP(K162,'Facility Summary'!$J:$K, 2, FALSE) ->  | M162: 3728 | N162: Aircraft Parts and Auxiliary Equipment, NEC (fluid power aircraft subassemblies) | P162: Direct | Q162: unknown | R162: 0.9553028494 | S162: 15010015000957 | T162: =SUM(R$155:R162) -> 164.6499547 | U162: 97%
A163: 2016 | B163: 2016-01-01 | C163: EQUISTAR CHEMICALS LP | D163: 1515 MILLER CUTOFF RD | E163: LA PORTE | F163: TX | G163: 775719810 | H163: 29.717471 | I163: -95.068008 | J163: 77571QNTMC1515M | K163: 110034641635 | L163: =VLOOKUP(K163,'Facility Summary'!$J:$K, 2, FALSE) ->  | M163: 2869 | N163: Industrial Organic Chemicals, NEC (aliphatics) | P163: Direct | Q163: unknown | R163: 0.6952380952 | S163: 7090005001910 | T163: =SUM(R$155:R163) -> 165.3451928 | U163: 97%
A164: 2016 | B164: 2016-01-01 | C164: PORT OF SUNNYSIDE INDUSTRIAL WWTF | D164: 747 MIDVALE RD | E164: SUNNYSIDE | F164: WA | G164: 98944 | H164: 46.291666 | I164: -120.012234 | K164: 110015474789 | L164: =VLOOKUP(K164,'Facility Summary'!$J:$K, 2, FALSE) ->  | P164: Direct | Q164: unknown | R164: 0.6907625 | T164: =SUM(R$155:R164) -> 166.0359553 | U164: 98%
A165: 2016 | B165: 2016-01-01 | C165: STEPAN CO MILLSDALE ROAD | D165: 22500 STEPAN DR | E165: ELWOOD | F165: IL | G165: 60421-9646 | H165: 41.441667 | I165: -88.15972 | J165: 60421STPNCRURAL | K165: 110000432504 | L165: =VLOOKUP(K165,'Facility Summary'!$J:$K, 2, FALSE) ->  | M165: 2843 | N165: Surface Active Agents, Finishing Agents, Sulfonated Oils, and Assistants | P165: Direct | Q165: unknown | R165: 0.5800453515 | S165: 5110002018560 | T165: =SUM(R$155:R165) -> 166.6160006 | U165: 98%
A166: 2016 | B166: 2016-01-01 | C166: EQUISTAR CHEMICALS LP | D166: 1515 MILLER CUTOFF RD | E166: LA PORTE | F166: TX | G166: 775719810 | H166: 29.717471 | I166: -95.068008 | J166: 77571QNTMC1515M | K166: 110034641635 | L166: =VLOOKUP(K166,'Facility Summary'!$J:$K, 2, FALSE) ->  | M166: 2869 | N166: Industrial Organic Chemicals, NEC (aliphatics) | P166: Direct | Q166: unknown | R166: 0.4965986395 | S166: 1090001001195 | T166: =SUM(R$155:R166) -> 167.1125993 | U166: 98%
A167: 2016 | B167: 2016-01-01 | C167: TRONOX LLC | D167: 510 SOUTH 4TH STREET | E167: HENDERSON | F167: NV | G167: 89015 | H167: 36.03544 | I167: -114.99994 | J167: 89015KRRMC8000L | K167: 110043808467 | L167: =VLOOKUP(K167,'Facility Summary'!$J:$K, 2, FALSE) ->  | M167: 1799 | N167: Special Trade Contractors, NEC (indoor swimming pool construction contractors) | P167: Direct | Q167: unknown | R167: 0.456460402 | S167: 5050008000998 | T167: =SUM(R$155:R167) -> 167.5690597 | U167: 99%
A168: 2016 | B168: 2016-01-01 | C168: D H HOLDINGS GWRS - FAYETTE TUBULAR PRODUCTS INC | D168: 203 E RAILROAD ST | E168: FAYETTE | F168: OH | G168: 43521 | H168: 41.678611 | I168: -84.325556 | K168: 110058286331 | L168: =VLOOKUP(K168,'Facility Summary'!$J:$K, 2, FALSE) ->  | M168: 8999 | N168: Services, NEC (record production) | P168: Direct | Q168: unknown | R168: 0.363366109 | S168: 8070201006480 | T168: =SUM(R$155:R168) -> 167.9324258 | U168: 99%
A169: 2016 | B169: 2016-01-01 | C169: ETHYL CORPORATION | D169: GOLF STATE ROAD | E169: BATON ROUGE | F169: LA | G169: 70805 | H169: 30.483523 | I169: -91.18344 | K169: 110001143584 | L169: =VLOOKUP(K169,'Facility Summary'!$J:$K, 2, FALSE) ->  | M169: 2869 | N169: Industrial Organic Chemicals, NEC (aliphatics) | P169: Direct | Q169: unknown | R169: 0.3324744 | S169: 10190002000451 | T169: =SUM(R$155:R169) -> 168.2649002
A170: 2016 | B170: 2016-01-01 | C170: MOOG INC | D170: SENECA STREET | E170: EAST AURORA | F170: NY | G170: 14052 | H170: 42.80516 | I170: -78.64658 | J170: 14052MGNCXSENEC | K170: 110008011490 | L170: =VLOOKUP(K170,'Facility Summary'!$J:$K, 2, FALSE) ->  | M170: 3494 | N170: Valves and Pipe Fittings, NEC (except metal pipe hangers and supports) | P170: Direct | Q170: unknown | R170: 0.2824401065 | S170: 18070106000652 | T170: =SUM(R$155:R170) -> 168.5473403
A171: 2016 | B171: 2016-01-01 | C171: DOW CHEMICAL CO DALTON PLANT | D171: 1468 PROSSER DR SE | E171: DALTON | F171: GA | G171: 30721-5449 | H171: 34.632592 | I171: -84.927668 | J171: 3072WSTYRN1468P | K171: 110000611703 | L171: =VLOOKUP(K171,'Facility Summary'!$J:$K, 2, FALSE) ->  | M171: 2822 | N171: Synthetic Rubber | P171: Direct | Q171: unknown | R171: 0.2382464097 | S171: 7120004000957 | T171: =SUM(R$155:R171) -> 168.7855867
A172: 2016 | B172: 2016-01-01 | C172: GENERAL DYNAMICS ORDNANCE TACTICAL SYSTEMS | D172: 200 E HIGH ST | E172: RED LION | F172: PA | G172: 17356 | H172: 39.903749 | I172: -76.605096 | J172: 17356GNRLD200EH | K172: 110000333318 | L172: =VLOOKUP(K172,'Facility Summary'!$J:$K, 2, FALSE) ->  | M172: 3489 | N172: Ordnance and Accessories, NEC | P172: Direct | Q172: unknown | R172: 0.181352976 | S172: 5020003000026 | T172: =SUM(R$155:R172) -> 168.9669397
A173: 2016 | B173: 2016-01-01 | C173: STYROLUTION AMERICA LLC | D173: 25846 S FRONTAGE ROAD | E173: CHANNAHON | F173: IL | G173: 60410-5222 | H173: 41.412533 | I173: -88.197281 | J173: 60410MBLCHI55AR | K173: 110008458597 | L173: =VLOOKUP(K173,'Facility Summary'!$J:$K, 2, FALSE) ->  | M173: 2821 | N173: Plastics Materials, Synthetic and Resins, and Nonvulcanizable Elastomers | P173: Direct | Q173: unknown | R173: 0.1655328798 | S173: 5130205000794 | T173: =SUM(R$155:R173) -> 169.1324725
A174: 2016 | B174: 2016-01-01 | C174: CASCADE CORP (0812100207) | D174: 2501 SHERIDAN AVE | E174: SPRINGFIELD | F174: OH | G174: 45505-2519 | H174: 39.9101 | I174: -83.77117 | J174: 45505CSCDC2501S | K174: 110000395019 | L174: =VLOOKUP(K174,'Facility Summary'!$J:$K, 2, FALSE) ->  | M174: 3499 | N174: Fabricated Metal Products, NEC (powder metallurgy) | P174: Direct | Q174: unknown | R174: 0.14339 | S174: 12040104000907 | T174: =SUM(R$155:R174) -> 169.2758625
A175: 2016 | B175: 2016-01-01 | C175: AAR MOBILITY SYSTEMS | D175: 201 HAYNES STREET | E175: CADILLAC | F175: MI | G175: 49601 | H175: 44.2511 | I175: -85.408 | J175: 49601RBRKS201HA | K175: 110000412009 | L175: =VLOOKUP(K175,'Facility Summary'!$J:$K, 2, FALSE) ->  | M175: 3499 | N175: Fabricated Metal Products, NEC (powder metallurgy) | P175: Direct | Q175: unknown | R175: 0.1136897927 | S175: 5050008000998 | T175: =SUM(R$155:R175) -> 169.3895523
A176: 2016 | B176: 2016-01-01 | C176: GAYSTON CORP | D176: 55 JANNEY RD | E176: DAYTON | F176: OH | G176: 45404 | H176: 39.79273 | I176: -84.17113 | K176: 110001622316 | L176: =VLOOKUP(K176,'Facility Summary'!$J:$K, 2, FALSE) ->  | M176: 3489 | N176: Ordnance and Accessories, NEC | P176: Direct | Q176: unknown | R176: 0.0965175 | S176: 2060002000199 | T176: =SUM(R$155:R176) -> 169.4860698
A177: 2016 | B177: 2016-01-01 | C177: CAMERON TRADING POST WWTP | D177: HWY 89 AT THE LITTLE COLORADO | E177: CAMERON | F177: AZ | G177: 86020 | H177: 36.30301 | I177: -111.45966 | K177: 110010062546 | L177: =VLOOKUP(K177,'Facility Summary'!$J:$K, 2, FALSE) ->  | M177: 4952 | N177: Sewerage Systems | P177: Direct | Q177: unknown | R177: 0.09454590864 | S177: 7120004000886 | T177: =SUM(R$155:R177) -> 169.5806157
A178: 2016 | B178: 2016-01-01 | C178: WOODWARD INC | D178: 5001 NORTH SECOND STREET | E178: ROCKFORD | F178: IL | G178: 61101 | H178: 42.304209 | I178: -89.055549 | J178: 6112WWDWRD51NRT | K178: 110005812371 | L178: =VLOOKUP(K178,'Facility Summary'!$J:$K, 2, FALSE) ->  | M178: 3728 | N178: Aircraft Parts and Auxiliary Equipment, NEC (fluid power aircraft subassemblies) | P178: Direct | Q178: unknown | R178: 0.074765862 | S178: 7090005001910 | T178: =SUM(R$155:R178) -> 169.6553816
A179: 2016 | B179: 2016-01-01 | C179: GE AVIATION | D179: 1000 WESTERN AVE MAIL DROP 164X9 | E179: LYNN | F179: MA | G179: 1905 | H179: 42.452603 | I179: -70.973436 | J179: 01910GNRLL1000W | K179: 110000310191 | L179: =VLOOKUP(K179,'Facility Summary'!$J:$K, 2, FALSE) ->  | M179: 3724 | N179: Aircraft Engines and Engine Parts (except research and development not producing prototypes) | P179: Direct | Q179: unknown | R179: 0.05902329 | S179: 15010015000432 | T179: =SUM(R$155:R179) -> 169.7144049
A180: 2016 | B180: 2016-01-01 | C180: FEDERAL HIGHWAY ADMINISTRATION-CENTRAL FEDERAL LAND | D180: 12300 WEST DAKOTA AVENUE | E180: LAKEWOOD | F180: CO | G180: 80228-1010 | H180: 39.72464 | I180: -105.14191 | K180: 110002961929 | L180: =VLOOKUP(K180,'Facility Summary'!$J:$K, 2, FALSE) ->  | M180: 9999 | N180: Nonclassifiable Establishments | P180: Direct | Q180: unknown | R180: 0.046837104 | S180: 12040204000953 | T180: =SUM(R$155:R180) -> 169.761242
A181: 2016 | B181: 2016-01-01 | C181: AIRPORT BUSINESS CENTER | D181: 333 STRAWBERRY FIELD ROAD | E181: WARWICK | F181: RI | G181: 02886-2459 | H181: 41.71139 | I181: -71.42667 | K181: 110013738045 | L181: =VLOOKUP(K181,'Facility Summary'!$J:$K, 2, FALSE) ->  | M181: 9511 | N181: Air and Water Resource and Solid Waste Management | P181: Direct | Q181: unknown | R181: 0.04583274062 | S181: 5080002001148 | T181: =SUM(R$155:R181) -> 169.8070747
A182: 2016 | B182: 2016-01-01 | C182: MOOG INC | D182: SENECA STREET | E182: EAST AURORA | F182: NY | G182: 14052 | H182: 42.80516 | I182: -78.64658 | J182: 14052MGNCXSENEC | K182: 110008011490 | L182: =VLOOKUP(K182,'Facility Summary'!$J:$K, 2, FALSE) ->  | M182: 3494 | N182: Valves and Pipe Fittings, NEC (except metal pipe hangers and supports) | P182: Direct | Q182: unknown | R182: 0.025589628 | S182: 12040104000084 | T182: =SUM(R$155:R182) -> 169.8326644
A183: 2016 | B183: 2016-01-01 | C183: KEESHAN AND BOST CHEMICAL CO., INC. | D183: 22102 HWY 6 | E183: MANVEL | F183: TX | G183: 77578 | H183: 29.4584 | I183: -95.3304 | J183: 77578KSHNB22102 | K183: 110000599479 | L183: =VLOOKUP(K183,'Facility Summary'!$J:$K, 2, FALSE) ->  | M183: 2869 | N183: Industrial Organic Chemicals, NEC (aliphatics) | P183: Direct | Q183: unknown | R183: 0.01655328798 | S183: 8080206000067 | T183: =SUM(R$155:R183) -> 169.8492177
A184: 2016 | B184: 2016-01-01 | C184: BOISE STATE UNIVERSITY | D184: 1910 UNIVERSITY DRIVE | E184: BOISE | F184: ID | G184: 83706 | H184: 43.603454 | I184: -116.202736 | K184: 110042072351 | L184: =VLOOKUP(K184,'Facility Summary'!$J:$K, 2, FALSE) ->  | M184: 7216 | N184: Drycleaning Plants, Except Rug Cleaning | P184: Direct | Q184: unknown | R184: 0.01553671485 | S184: 17030003003243 | T184: =SUM(R$155:R184) -> 169.8647544
A185: 2016 | B185: 2016-01-01 | C185: ALLIANT TECHSYSTEMS OPERATIONS LLC | D185: 55 THIOKOL ROAD | E185: ELKTON | F185: MD | G185: 21921 | H185: 39.61076 | I185: -75.86472 | K185: 110019877409 | L185: =VLOOKUP(K185,'Facility Summary'!$J:$K, 2, FALSE) ->  | M185: 3764 | N185: Guided Missile and Space Vehicle Propulsion Units and Propulsion Unit Parts (except research and development not producing prototypes)) | P185: Direct | Q185: unknown | R185: 0.0131052597 | S185: 7090005001910 | T185: =SUM(R$155:R185) -> 169.8778596
A186: 2016 | B186: 2016-01-01 | C186: VENETIAN HOTEL AND CASINO | D186: 3355 LAS VEGAS BOULEVARD SOUTH | E186: LAS VEGAS | F186: NV | G186: 89109 | H186: 36.1221 | I186: -115.17139 | K186: 110004306938 | L186: =VLOOKUP(K186,'Facility Summary'!$J:$K, 2, FALSE) ->  | M186: 7011 | N186: Hotels and Motels (hotels, except casino hotels, and motels) | P186: Direct | Q186: unknown | R186: 0.00877268375 | S186: 5080002001148 | T186: =SUM(R$155:R186) -> 169.8866323
A187: 2016 | B187: 2016-01-01 | C187: CHEMTURA NORTH AND SOUTH PLANTS | D187: 1000 MORGANTOWN INDUSTRIAL PARK | E187: MORGANTOWN | F187: WV | G187: 26501 | H187: 39.59983 | I187: -79.97148 | J187: 26505WSTMR1000D,26505WSTMRMORGA | K187: 110000572782 | L187: =VLOOKUP(K187,'Facility Summary'!$J:$K, 2, FALSE) ->  | M187: 2869 | N187: Industrial Organic Chemicals, NEC (aliphatics) | P187: Direct | Q187: unknown | R187: 0.008276643991 | S187: 15010015000957 | T187: =SUM(R$155:R187) -> 169.894909
A188: 2016 | B188: 2016-01-01 | C188: PENN COLOR INC FORMER MANVILLE, NJ FACILITY | D188: 101 WESTON RD | E188: HILLSBOROUGH TWP | F188: NJ | G188: 8844 | H188: 40.52516 | I188: -74.60104 | K188: 110070217974 | L188: =VLOOKUP(K188,'Facility Summary'!$J:$K, 2, FALSE) ->  | M188: 2851 | N188: Paints, Varnishes, Lacquers, Enamels and Allied Products | P188: Direct | Q188: unknown | R188: 0.006380903643 | S188: 8080206001241 | T188: =SUM(R$155:R188) -> 169.9012899
A189: 2016 | B189: 2016-01-01 | C189: FORMER REXON FACILITY AKA ENJEMS MILLWORKS | D189: 70 OLD TURNPIKE RD | E189: WAYNE TWP | F189: NJ | G189: 7470 | H189: 40.89195 | I189: -74.24937 | K189: 110070213656 | L189: =VLOOKUP(K189,'Facility Summary'!$J:$K, 2, FALSE) ->  | M189: 9999 | N189: Nonclassifiable Establishments | P189: Direct | Q189: unknown | R189: 0.002009901086 | S189: 17050114000332 | T189: =SUM(R$155:R189) -> 169.9032998
A190: 2016 | B190: 2016-01-01 | C190: AVNET INC (FORMER IMPERIAL SCHRADE) | D190: ROUTE 209 | E190: ELLENVILLE | F190: NY | G190: 12428 | H190: 41.70048 | I190: -74.40974 | K190: 110064186615 | L190: =VLOOKUP(K190,'Facility Summary'!$J:$K, 2, FALSE) ->  | M190: 3679 | N190: Electronic Components, NEC (antennas) | P190: Direct | Q190: unknown | R190: 0.0005293873596 | S190: 12040104000907 | T190: =SUM(R$155:R190) -> 169.9038291
A191: 2016 | B191: 2016-01-01 | C191: INDORAMA VENTURES OLEFINS, LLC | D191: 4300 HWY 108 SOUTH | E191: SULPHUR | F191: LA | G191: 70665 | H191: 30.190568 | I191: -93.325823 | J191: 70663CCDNTHIGHW | K191: 110000748040 | L191: =VLOOKUP(K191,'Facility Summary'!$J:$K, 2, FALSE) ->  | M191: 2869 | N191: Industrial Organic Chemicals, NEC (aliphatics) | P191: Direct | Q191: unknown | R191: 0.000360237375 | T191: =SUM(R$155:R191) -> 169.9041894
A192: 2016 | B192: 2016-01-01 | C192: DEFENSE FUEL SUPPORT POINT NORWALK DFSP | D192: 15306 NORWALK BOULEVARD | E192: NORWALK | F192: CA | G192: 90650-6639 | H192: 33.892391 | I192: -118.072909 | K192: 110000781609 | L192: =VLOOKUP(K192,'Facility Summary'!$J:$K, 2, FALSE) ->  | M192: 4613 | N192: Refined Petroleum Pipelines | P192: Direct | Q192: unknown | R192: 7.346938776e-05 | S192: 3150101000005 | T192: =SUM(R$155:R192) -> 169.9042629
A193: 2015 | B193: 2015-01-01 | C193: SOLVAY - HOUSTON PLANT | D193: 8615 MANCHESTER ST | E193: HOUSTON | F193: TX | G193: 77012 | H193: 29.718139 | I193: -95.26875 | J193: 77012STFFR8615M | K193: 110000460901 | L193: =VLOOKUP(K193,'Facility Summary'!$J:$K, 2, FALSE) ->  | M193: 2819 | N193: Industrial Inorganic Chemicals, NEC (recovering sulfur from natural gas) | P193: Direct | Q193: unknown | R193: 4.979591837 | S193: 8080206001241 | T193: =SUM(R$193:R193) -> 4.979591837 | U193: =T193/$T$220 -> 20%
A194: 2015 | B194: 2015-01-01 | C194: SHINTECH ADDIS PLANT A | D194: 9750 LA HWY. 1 SOUTH | E194: ADDIS | F194: LA | G194: 70710 | H194: 30.325882 | I194: -91.261732 | J194: 70710SHNTC9750L | K194: 110008393354 | L194: =VLOOKUP(K194,'Facility Summary'!$J:$K, 2, FALSE) ->  | M194: 2821 | N194: Plastics Materials, Synthetic and Resins, and Nonvulcanizable Elastomers | P194: Direct | Q194: unknown | R194: 4.925170068 | S194: 18070106002148 | T194: =SUM(R$193:R194) -> 9.904761905 | U194: =T194/$T$220 -> 40%
A195: 2015 | B195: 2015-01-01 | C195: HONEYWELL INTERNATIONAL INC - GEISMAR COMPLEX | D195: 5525 HWY 3115 | E195: GEISMAR | F195: LA | G195: 70734-3412 | H195: 30.2219 | I195: -91.0515 | J195: 70734LLDSGHWY31 | K195: 110033659878 | L195: =VLOOKUP(K195,'Facility Summary'!$J:$K, 2, FALSE) ->  | M195: 2819 | N195: Industrial Inorganic Chemicals, NEC (recovering sulfur from natural gas) | P195: Direct | Q195: unknown | R195: 4.469387755 | S195: 3150101000005 | T195: =SUM(R$193:R195) -> 14.37414966 | U195: 58%
A196: 2015 | B196: 2015-01-01 | C196: PORT OF SUNNYSIDE INDUSTRIAL WWTF | D196: 747 MIDVALE RD | E196: SUNNYSIDE | F196: WA | G196: 98944 | H196: 46.291666 | I196: -120.012234 | K196: 110015474789 | L196: =VLOOKUP(K196,'Facility Summary'!$J:$K, 2, FALSE) ->  | P196: Direct | Q196: unknown | R196: 2.3485925 | S196: 8080103002791 | T196: =SUM(R$193:R196) -> 16.72274216 | U196: 67%
A197: 2015 | B197: 2015-01-01 | C197: LOMPOC WASTEWATER PLANT | D197: 1801 WEST CENTRAL AVE | E197: LOMPOC | F197: CA | G197: 93436 | H197: 34.66108 | I197: -120.48135 | K197: 110009547222 | L197: =VLOOKUP(K197,'Facility Summary'!$J:$K, 2, FALSE) ->  | M197: 4952 | N197: Sewerage Systems | P197: Direct | Q197: unknown | R197: 2.162086625 | S197: 12040204000953 | T197: =SUM(R$193:R197) -> 18.88482878 | U197: 76%
A198: 2015 | B198: 2015-01-01 | C198: DELPHI HARRISON THERMAL SYSTEMS | D198: 3600 DRYDEN RD | E198: DAYTON | F198: OH | G198: 45439 | H198: 39.688437 | I198: -84.226002 | K198: 110000394895 | L198: =VLOOKUP(K198,'Facility Summary'!$J:$K, 2, FALSE) ->  | M198: 3711 | N198: Motor Vehicles and Passenger Car Bodies (automobiles) | P198: Direct | Q198: unknown | R198: 1.5925 | S198: 5080002001148 | T198: =SUM(R$193:R198) -> 20.47732878 | U198: 82%
A199: 2015 | B199: 2015-01-01 | C199: ETHYL CORPORATION | D199: GOLF STATE ROAD | E199: BATON ROUGE | F199: LA | G199: 70805 | H199: 30.483523 | I199: -91.18344 | K199: 110001143584 | L199: =VLOOKUP(K199,'Facility Summary'!$J:$K, 2, FALSE) ->  | M199: 2869 | N199: Industrial Organic Chemicals, NEC (aliphatics) | P199: Direct | Q199: unknown | R199: 1.24077599 | S199: 7120004000886 | T199: =SUM(R$193:R199) -> 21.71810477 | U199: 87%
A200: 2015 | B200: 2015-01-01 | C200: STEPAN CO MILLSDALE ROAD | D200: 22500 STEPAN DR | E200: ELWOOD | F200: IL | G200: 60421-9646 | H200: 41.441667 | I200: -88.15972 | J200: 60421STPNCRURAL | K200: 110000432504 | L200: =VLOOKUP(K200,'Facility Summary'!$J:$K, 2, FALSE) ->  | M200: 2843 | N200: Surface Active Agents, Finishing Agents, Sulfonated Oils, and Assistants | P200: Direct | Q200: unknown | R200: 1.171337868 | S200: 12040104000907 | T200: =SUM(R$193:R200) -> 22.88944264 | U200: 92%
... 20 more rows

Sheet Cover Page
B2: PUBLIC RELEASE DRAFT
B3: November 2024
B5: Draft Water Releases for 1,3-Butadiene
B8: CASRN 106-99-0

Sheet ReadMe
A1: This files uses TRI data downloaded October 2022.
A2: Data for 1,3-butadiene for reporting years 2016-2021; (reporting year and year of release are the same)
A4: Summary of Worksheets
A5: Versions | B5: This tab contains a summary of versions of this file. This tab is for internal tracking purposes.
A6: Overall Release Summary | B6: This tab contains a summary of the total on- and off-site wastewater releases per year (in kg).
A7: Facility Summary | B7: Unique list of facilities reporting water discharges in TRI.
A8: Discharge Summary | B8: ANNUAL and AVERAGE DAILY Direct Discharge - Summary of median and maximum surface water discharge (kg/yr) reported in TRI. The on-site water release quantities were used from the raw data download. Average daily discharge (kg/day) based on annual discharge (kg/yr) divided by the estimated # of release days (the number of release days was assumed to be the number of operating days).
A9: Raw TRI Data | B9: Raw TRI data for 2016-2021 downloaded in October 2022.
A10: OES-Direct | B10: Lookup table of relevant OES for 1,3-butadiene, including statistics on # of TRI entries for each OES, and assumptions for the number of release days for each OES. This table includes only direct discharges.
A11: OES-Indirect POTW | B11: Lookup table of relevant OES for 1,3-butadiene, including statistics on # of TRI entries for each OES, and assumptions for the number of release days for each OES. This table includes only indirect discharges to POTW.
A12: OES-Indirect WWT | B12: Lookup table of relevant OES for 1,3-butadiene, including statistics on # of TRI entries for each OES, and assumptions for the number of release days for each OES. This table includes only indirect discharges to WWT.

Sheet All Data (hidden)
A1: Year | B1: NPDES Permit Number | C1: Facility Name | D1: FRS ID | E1: TRI Facility ID(s) | F1: CWNS ID(s) | G1: Facility Type Indicator | H1: Type | I1: Permit Type | J1: Permit Effective Date | K1: Permit Expiration Date | L1: Major/Non-Major Status | M1: SIC Code | N1: Number of Applicable NAICS Codes | O1: NAICS Code (ERG added) | P1: NAICS Code | Q1: Street Address | R1: City | S1: State | T1: ZIP Code | U1: County | V1: EPA Region | W1: Congressional District | X1: Facility Latitude | Y1: Facility Longitude | Z1: HUC 12 Code | AA1: Watershed Name | AB1: Water Body Name | AC1: Reach Code | AD1: Listed for Impairment | AE1: Impairment Class | AF1: Number of CSO Outfalls | AG1: Total Facility Design Flow (MGD) | AH1: Actual Average Facility Flow (MGD) | AI1: Total Facility Load (kg/yr) | AJ1: Annual Discharge (lb/yr) | AK1: Facility Load Over Limit (Option 1) (kg/yr) | AL1: Facility Load Over Limit (Option 2) (kg/yr) | AM1: Max Allowable Load (kg/yr) | AN1: Total Facility Flow (MGal/yr) | AO1: Facility Info Only | AP1: Has Permit Limits | AQ1: Has Loadings Data | AR1: Contains Potential Outliers?
A2: 2012 | B2: AL0000108 | C2: BP AMOCO CHEMICALS | D2: 110056961417 | E2: 35601MCCHMFINLE | G2: NON-POTW | H2: =IF(OR(_AllData[[#This Row],[Facility Type Indicator]]="POTW", _AllData[[#This Row],[Facility Type Indicator]]="FEDERAL"),"POTW",IF(AND(_AllData[[#This Row],[Facility Type Indicator]]="NON-POTW", OR(ISNUMBER(SEARCH("groundwater",_AllData[[#This Row],[Facility Name]])),ISNUMBER(SEARCH("GW treatment",_AllData[[#This Row],[Facility Name]])),ISNUMBER(SEARCH("remediation",_AllData[[#This Row],[Facility Name]])),ISNUMBER(SEARCH("superfund",_AllData[[#This Row],[Facility Name]])),ISNUMBER(SEARCH("former",_AllData[[#This Row],[Facility Name]])),ISNUMBER(SEARCH("restoration",_AllData[[#This Row],[Facility Name]])),ISNUMBER(SEARCH("well",_AllData[[#This Row],[Facility Name]])),ISNUMBER(SEARCH("GWCU",_AllData[[#This Row],[Facility Name]])),ISNUMBER(SEARCH("reclamation",_AllData[[#This Row],[Facility Name]])),ISNUMBER(SEARCH("GWTS",_AllData[[#This Row],[Facility Name]])),ISNUMBER(SEARCH("GWETS",_AllData[[#This Row],[Facility Name]])),_AllData[[#This Row],[SIC Code]]="1794",_AllData[[#This Row],[SIC Code]]="4959")),"remediation","industrial/commercial")) -> industrial/commercial | I2: NPD | J2: 06/01/2015 | K2: 05/31/2020 | L2: Major | M2: 2869 | N2: =COUNTIF('SIC to 2002 NAICS'!$A$2:$A$2166,_AllData[[#This Row],[SIC Code]]) -> 7 | O2: =IFERROR(VLOOKUP(_AllData[[#This Row],[TRI Facility ID(s)]],'TRI NAICS Crosswalk'!$E$2:$G$455,3,FALSE),IF(_AllData[[#This Row],[NAICS Code]]<>"",VALUE(_AllData[[#This Row],[NAICS Code]]),IFERROR(VLOOKUP(VLOOKUP(VLOOKUP(VLOOKUP(_AllData[[#This Row],[SIC Code]],'SIC to 2002 NAICS'!$A$1:$D$2167,3,FALSE),'2002 to 2007 NAICS'!$A$3:$D$1203,3,FALSE),'2007 to 2012 NAICS'!$A$3:$D$1187,3,FALSE),'2012 to 2017 NAICS'!$A$3:$D$1072,3,FALSE),"SIC Not Provided"))) -> 325110 | Q2: 1401 FINLEY ISLAND ROAD | R2: DECATUR | S2: AL | T2: 35601 | U2: MORGAN | V2: 04 | W2: 05 | X2: 34.6415 | Y2: -87.0589 | Z2: 060300021105 | AA2: Spring Creek-Mud Creek | AB2: TENNESSEE RIVER | AC2: 06030002003106 | AD2: Y | AJ2: =IFERROR(VALUE(CONVERT(_AllData[[#This Row],[Total Facility Load (kg/yr)]]*1000,"g","lbm")),0) -> 0 | AK2: 0 | AM2: 290.17913832199544353895 | AN2: 2346.2202 | AO2: No | AP2: No | AQ2: No
A3: 2012 | B3: AL0000205 | C3: 3M COMPANY | D3: 110000367567 | E3: 35602MCMPNSTATE | G3: NON-POTW | H3: =IF(OR(_AllData[[#This Row],[Facility Type Indicator]]="POTW", _AllData[[#This Row],[Facility Type Indicator]]="FEDERAL"),"POTW",IF(AND(_AllData[[#This Row],[Facility Type Indicator]]="NON-POTW", OR(ISNUMBER(SEARCH("groundwater",_AllData[[#This Row],[Facility Name]])),ISNUMBER(SEARCH("GW treatment",_AllData[[#This Row],[Facility Name]])),ISNUMBER(SEARCH("remediation",_AllData[[#This Row],[Facility Name]])),ISNUMBER(SEARCH("superfund",_AllData[[#This Row],[Facility Name]])),ISNUMBER(SEARCH("former",_AllData[[#This Row],[Facility Name]])),ISNUMBER(SEARCH("restoration",_AllData[[#This Row],[Facility Name]])),ISNUMBER(SEARCH("well",_AllData[[#This Row],[Facility Name]])),ISNUMBER(SEARCH("GWCU",_AllData[[#This Row],[Facility Name]])),ISNUMBER(SEARCH("reclamation",_AllData[[#This Row],[Facility Name]])),ISNUMBER(SEARCH("GWTS",_AllData[[#This Row],[Facility Name]])),ISNUMBER(SEARCH("GWETS",_AllData[[#This Row],[Facility Name]])),_AllData[[#This Row],[SIC Code]]="1794",_AllData[[#This Row],[SIC Code]]="4959")),"remediation","industrial/commercial")) -> industrial/commercial | I3: NPD | J3: 03/01/2014 | K3: 02/28/2019 | L3: Major | M3: 2821 | N3: =COUNTIF('SIC to 2002 NAICS'!$A$2:$A$2166,_AllData[[#This Row],[SIC Code]]) -> 1 | O3: =IFERROR(VLOOKUP(_AllData[[#This Row],[TRI Facility ID(s)]],'TRI NAICS Crosswalk'!$E$2:$G$455,3,FALSE),IF(_AllData[[#This Row],[NAICS Code]]<>"",VALUE(_AllData[[#This Row],[NAICS Code]]),IFERROR(VLOOKUP(VLOOKUP(VLOOKUP(VLOOKUP(_AllData[[#This Row],[SIC Code]],'SIC to 2002 NAICS'!$A$1:$D$2167,3,FALSE),'2002 to 2007 NAICS'!$A$3:$D$1203,3,FALSE),'2007 to 2012 NAICS'!$A$3:$D$1187,3,FALSE),'2012 to 2017 NAICS'!$A$3:$D$1072,3,FALSE),"SIC Not Provided"))) -> 325211 | Q3: 1400 STATE DOCKS RD | R3: DECATUR | S3: AL | T3: 35601-8807 | U3: MORGAN | V3: 04 | W3: 05 | X3: 34.641667 | Y3: -87.038611 | Z3: 060300021102 | AA3: Bakers Creek-Tennessee River | AB3: BAKERS CREEK, TENNESSEE RIVER | AC3: 06030002018578 | AD3: Y | AJ3: =IFERROR(VALUE(CONVERT(_AllData[[#This Row],[Total Facility Load (kg/yr)]]*1000,"g","lbm")),0) -> 0 | AK3: 0 | AM3: 37.24489795918367073375 | AN3: 6034.272 | AO3: No | AP3: No | AQ3: No
A4: 2012 | B4: AL0000868 | C4: ARCLIN USA LLC | D4: 110056954880 | E4: 36476CHMBNHIGHW | G4: NON-POTW | H4: =IF(OR(_AllData[[#This Row],[Facility Type Indicator]]="POTW", _AllData[[#This Row],[Facility Type Indicator]]="FEDERAL"),"POTW",IF(AND(_AllData[[#This Row],[Facility Type Indicator]]="NON-POTW", OR(ISNUMBER(SEARCH("groundwater",_AllData[[#This Row],[Facility Name]])),ISNUMBER(SEARCH("GW treatment",_AllData[[#This Row],[Facility Name]])),ISNUMBER(SEARCH("remediation",_AllData[[#This Row],[Facility Name]])),ISNUMBER(SEARCH("superfund",_AllData[[#This Row],[Facility Name]])),ISNUMBER(SEARCH("former",_AllData[[#This Row],[Facility Name]])),ISNUMBER(SEARCH("restoration",_AllData[[#This Row],[Facility Name]])),ISNUMBER(SEARCH("well",_AllData[[#This Row],[Facility Name]])),ISNUMBER(SEARCH("GWCU",_AllData[[#This Row],[Facility Name]])),ISNUMBER(SEARCH("reclamation",_AllData[[#This Row],[Facility Name]])),ISNUMBER(SEARCH("GWTS",_AllData[[#This Row],[Facility Name]])),ISNUMBER(SEARCH("GWETS",_AllData[[#This Row],[Facility Name]])),_AllData[[#This Row],[SIC Code]]="1794",_AllData[[#This Row],[SIC Code]]="4959")),"remediation","industrial/commercial")) -> industrial/commercial | I4: NPD | J4: 02/01/2019 | K4: 01/31/2024 | L4: Major | M4: 2821 | N4: =COUNTIF('SIC to 2002 NAICS'!$A$2:$A$2166,_AllData[[#This Row],[SIC Code]]) -> 1 | O4: =IFERROR(VLOOKUP(_AllData[[#This Row],[TRI Facility ID(s)]],'TRI NAICS Crosswalk'!$E$2:$G$455,3,FALSE),IF(_AllData[[#This Row],[NAICS Code]]<>"",VALUE(_AllData[[#This Row],[NAICS Code]]),IFERROR(VLOOKUP(VLOOKUP(VLOOKUP(VLOOKUP(_AllData[[#This Row],[SIC Code]],'SIC to 2002 NAICS'!$A$1:$D$2167,3,FALSE),'2002 to 2007 NAICS'!$A$3:$D$1203,3,FALSE),'2007 to 2012 NAICS'!$A$3:$D$1187,3,FALSE),'2012 to 2017 NAICS'!$A$3:$D$1072,3,FALSE),"SIC Not Provided"))) -> 325211 | Q4: 14139 US HIGHWAY 84 | R4: ANDALUSIA | S4: AL | T4: 36420-1224 | U4: COVINGTON | V4: 04 | W4: 02 | X4: 31.341944 | Y4: -86.524167 | Z4: 031403010501 | AA4: Camp Creek-Adams Creek | AB4: CONECUH RIVER, PRESTWOOD CREEK | AC4: 03140301000391 | AI4: 0 | AJ4: =IFERROR(VALUE(CONVERT(_AllData[[#This Row],[Total Facility Load (kg/yr)]]*1000,"g","lbm")),0) -> 0 | AK4: 0 | AL4: -1.208390022675736872695 | AM4: 1.208390022675736872695 | AN4: 223.225 | AO4: No | AP4: Yes | AQ4: Yes
A5: 2012 | B5: AL0000973 | C5: HUNT REFINING CO - TUSCALOOSA REFINERY | D5: 110000367102 | E5: 35401HNTRF1855F | G5: NON-POTW | H5: =IF(OR(_AllData[[#This Row],[Facility Type Indicator]]="POTW", _AllData[[#This Row],[Facility Type Indicator]]="FEDERAL"),"POTW",IF(AND(_AllData[[#This Row],[Facility Type Indicator]]="NON-POTW", OR(ISNUMBER(SEARCH("groundwater",_AllData[[#This Row],[Facility Name]])),ISNUMBER(SEARCH("GW treatment",_AllData[[#This Row],[Facility Name]])),ISNUMBER(SEARCH("remediation",_AllData[[#This Row],[Facility Name]])),ISNUMBER(SEARCH("superfund",_AllData[[#This Row],[Facility Name]])),ISNUMBER(SEARCH("former",_AllData[[#This Row],[Facility Name]])),ISNUMBER(SEARCH("restoration",_AllData[[#This Row],[Facility Name]])),ISNUMBER(SEARCH("well",_AllData[[#This Row],[Facility Name]])),ISNUMBER(SEARCH("GWCU",_AllData[[#This Row],[Facility Name]])),ISNUMBER(SEARCH("reclamation",_AllData[[#This Row],[Facility Name]])),ISNUMBER(SEARCH("GWTS",_AllData[[#This Row],[Facility Name]])),ISNUMBER(SEARCH("GWETS",_AllData[[#This Row],[Facility Name]])),_AllData[[#This Row],[SIC Code]]="1794",_AllData[[#This Row],[SIC Code]]="4959")),"remediation","industrial/commercial")) -> industrial/commercial | I5: NPD | J5: 03/01/2015 | K5: 02/29/2020 | L5: Major | M5: 2911 | N5: =COUNTIF('SIC to 2002 NAICS'!$A$2:$A$2166,_AllData[[#This Row],[SIC Code]]) -> 1 | O5: =IFERROR(VLOOKUP(_AllData[[#This Row],[TRI Facility ID(s)]],'TRI NAICS Crosswalk'!$E$2:$G$455,3,FALSE),IF(_AllData[[#This Row],[NAICS Code]]<>"",VALUE(_AllData[[#This Row],[NAICS Code]]),IFERROR(VLOOKUP(VLOOKUP(VLOOKUP(VLOOKUP(_AllData[[#This Row],[SIC Code]],'SIC to 2002 NAICS'!$A$1:$D$2167,3,FALSE),'2002 to 2007 NAICS'!$A$3:$D$1203,3,FALSE),'2007 to 2012 NAICS'!$A$3:$D$1187,3,FALSE),'2012 to 2017 NAICS'!$A$3:$D$1072,3,FALSE),"SIC Not Provided"))) -> 324110 | Q5: 1855 FAIRLAWN ROAD | R5: TUSCALOOSA | S5: AL | T5: 35401 | U5: TUSCALOOSA COUNTY | V5: 04 | W5: 07 | X5: 33.2003 | Y5: -87.607 | Z5: 031601130202 | AA5: Jay Creek-Big Creek | AB5: BLACK WARRIOR RIVER | AC5: 03160113000327 | AI5: 0 | AJ5: =IFERROR(VALUE(CONVERT(_AllData[[#This Row],[Total Facility Load (kg/yr)]]*1000,"g","lbm")),0) -> 0 | AK5: 0 | AL5: -2.41995464852607691976 | AM5: 4.80045351473922867235 | AN5: 1701.711 | AO5: No | AP5: Yes | AQ5: Yes
A6: 2012 | B6: AL0001597 | C6: E I DUPONT DE NEMOURS - AGRICULTURAL PRODUCTS | D6: 110000741234 | E6: 36505DPNTMHIGHW | G6: NON-POTW | H6: =IF(OR(_AllData[[#This Row],[Facility Type Indicator]]="POTW", _AllData[[#This Row],[Facility Type Indicator]]="FEDERAL"),"POTW",IF(AND(_AllData[[#This Row],[Facility Type Indicator]]="NON-POTW", OR(ISNUMBER(SEARCH("groundwater",_AllData[[#This Row],[Facility Name]])),ISNUMBER(SEARCH("GW treatment",_AllData[[#This Row],[Facility Name]])),ISNUMBER(SEARCH("remediation",_AllData[[#This Row],[Facility Name]])),ISNUMBER(SEARCH("superfund",_AllData[[#This Row],[Facility Name]])),ISNUMBER(SEARCH("former",_AllData[[#This Row],[Facility Name]])),ISNUMBER(SEARCH("restoration",_AllData[[#This Row],[Facility Name]])),ISNUMBER(SEARCH("well",_AllData[[#This Row],[Facility Name]])),ISNUMBER(SEARCH("GWCU",_AllData[[#This Row],[Facility Name]])),ISNUMBER(SEARCH("reclamation",_AllData[[#This Row],[Facility Name]])),ISNUMBER(SEARCH("GWTS",_AllData[[#This Row],[Facility Name]])),ISNUMBER(SEARCH("GWETS",_AllData[[#This Row],[Facility Name]])),_AllData[[#This Row],[SIC Code]]="1794",_AllData[[#This Row],[SIC Code]]="4959")),"remediation","industrial/commercial")) -> industrial/commercial | I6: NPD | J6: 10/01/2011 | K6: 09/30/2016 | L6: Major | M6: 2869 | N6: =COUNTIF('SIC to 2002 NAICS'!$A$2:$A$2166,_AllData[[#This Row],[SIC Code]]) -> 7 | O6: =IFERROR(VLOOKUP(_AllData[[#This Row],[TRI Facility ID(s)]],'TRI NAICS Crosswalk'!$E$2:$G$455,3,FALSE),IF(_AllData[[#This Row],[NAICS Code]]<>"",VALUE(_AllData[[#This Row],[NAICS Code]]),IFERROR(VLOOKUP(VLOOKUP(VLOOKUP(VLOOKUP(_AllData[[#This Row],[SIC Code]],'SIC to 2002 NAICS'!$A$1:$D$2167,3,FALSE),'2002 to 2007 NAICS'!$A$3:$D$1203,3,FALSE),'2007 to 2012 NAICS'!$A$3:$D$1187,3,FALSE),'2012 to 2017 NAICS'!$A$3:$D$1072,3,FALSE),"SIC Not Provided"))) -> 325110 | Q6: 12650 HWY 43 S | R6: AXIS | S6: AL | T6: 36505-4360 | U6: MOBILE | V6: 04 | W6: 01 | X6: 30.954444 | Y6: -88.018889 | Z6: 031602040401 | AA6: Gunnison Creek | AB6: CARTER BRANCH, MOBILE RIVER, SEYMORE BRANCH | AC6: 03160204001505 | AD6: Y | AJ6: =IFERROR(VALUE(CONVERT(_AllData[[#This Row],[Total Facility Load (kg/yr)]]*1000,"g","lbm")),0) -> 0 | AK6: 0 | AM6: 31.7823129251700656928 | AN6: 178.2504 | AO6: No | AP6: No | AQ6: No
A7: 2012 | B7: AL0001961 | C7: AKZO NOBEL FUNCTIONAL CHEMICALS | D7: 110000741243 | E7: 36505KZCHMUSHIG | G7: NON-POTW | H7: =IF(OR(_AllData[[#This Row],[Facility Type Indicator]]="POTW", _AllData[[#This Row],[Facility Type Indicator]]="FEDERAL"),"POTW",IF(AND(_AllData[[#This Row],[Facility Type Indicator]]="NON-POTW", OR(ISNUMBER(SEARCH("groundwater",_AllData[[#This Row],[Facility Name]])),ISNUMBER(SEARCH("GW treatment",_AllData[[#This Row],[Facility Name]])),ISNUMBER(SEARCH("remediation",_AllData[[#This Row],[Facility Name]])),ISNUMBER(SEARCH("superfund",_AllData[[#This Row],[Facility Name]])),ISNUMBER(SEARCH("former",_AllData[[#This Row],[Facility Name]])),ISNUMBER(SEARCH("restoration",_AllData[[#This Row],[Facility Name]])),ISNUMBER(SEARCH("well",_AllData[[#This Row],[Facility Name]])),ISNUMBER(SEARCH("GWCU",_AllData[[#This Row],[Facility Name]])),ISNUMBER(SEARCH("reclamation",_AllData[[#This Row],[Facility Name]])),ISNUMBER(SEARCH("GWTS",_AllData[[#This Row],[Facility Name]])),ISNUMBER(SEARCH("GWETS",_AllData[[#This Row],[Facility Name]])),_AllData[[#This Row],[SIC Code]]="1794",_AllData[[#This Row],[SIC Code]]="4959")),"remediation","industrial/commercial")) -> industrial/commercial | I7: NPD | J7: 11/01/2013 | K7: 10/31/2018 | L7: Major | M7: 2819 | N7: =COUNTIF('SIC to 2002 NAICS'!$A$2:$A$2166,_AllData[[#This Row],[SIC Code]]) -> 5 | O7: =IFERROR(VLOOKUP(_AllData[[#This Row],[TRI Facility ID(s)]],'TRI NAICS Crosswalk'!$E$2:$G$455,3,FALSE),IF(_AllData[[#This Row],[NAICS Code]]<>"",VALUE(_AllData[[#This Row],[NAICS Code]]),IFERROR(VLOOKUP(VLOOKUP(VLOOKUP(VLOOKUP(_AllData[[#This Row],[SIC Code]],'SIC to 2002 NAICS'!$A$1:$D$2167,3,FALSE),'2002 to 2007 NAICS'!$A$3:$D$1203,3,FALSE),'2007 to 2012 NAICS'!$A$3:$D$1187,3,FALSE),'2012 to 2017 NAICS'!$A$3:$D$1072,3,FALSE),"SIC Not Provided"))) -> 211130 | Q7: 13440 HIGHWAY 43 NORTH | R7: AXIS | S7: AL | T7: 36505-4313 | U7: MOBILE | V7: 04 | W7: 01 | X7: 30.969439 | Y7: -88.0175 | Z7: 031602040105 | AA7: Cold Creek | AB7: COLD CREEK MOBILE RIVER, MOBILE RIVER | AC7: 03160204001505 | AD7: Y | AJ7: =IFERROR(VALUE(CONVERT(_AllData[[#This Row],[Total Facility Load (kg/yr)]]*1000,"g","lbm")),0) -> 0 | AK7: 0 | AM7: 21.1882086167800437952 | AN7: 982.8058 | AO7: No | AP7: No | AQ7: No
A8: 2012 | B8: AL0002097 | C8: HONEYWELL INTERNATIONAL INC | D8: 110043073562 | G8: NON-POTW | H8: =IF(OR(_AllData[[#This Row],[Facility Type Indicator]]="POTW", _AllData[[#This Row],[Facility Type Indicator]]="FEDERAL"),"POTW",IF(AND(_AllData[[#This Row],[Facility Type Indicator]]="NON-POTW", OR(ISNUMBER(SEARCH("groundwater",_AllData[[#This Row],[Facility Name]])),ISNUMBER(SEARCH("GW treatment",_AllData[[#This Row],[Facility Name]])),ISNUMBER(SEARCH("remediation",_AllData[[#This Row],[Facility Name]])),ISNUMBER(SEARCH("superfund",_AllData[[#This Row],[Facility Name]])),ISNUMBER(SEARCH("former",_AllData[[#This Row],[Facility Name]])),ISNUMBER(SEARCH("restoration",_AllData[[#This Row],[Facility Name]])),ISNUMBER(SEARCH("well",_AllData[[#This Row],[Facility Name]])),ISNUMBER(SEARCH("GWCU",_AllData[[#This Row],[Facility Name]])),ISNUMBER(SEARCH("reclamation",_AllData[[#This Row],[Facility Name]])),ISNUMBER(SEARCH("GWTS",_AllData[[#This Row],[Facility Name]])),ISNUMBER(SEARCH("GWETS",_AllData[[#This Row],[Facility Name]])),_AllData[[#This Row],[SIC Code]]="1794",_AllData[[#This Row],[SIC Code]]="4959")),"remediation","industrial/commercial")) -> remediation | I8: NPD | J8: 09/01/2007 | K8: 08/31/2012 | L8: Non-Major | M8: 2865 | N8: =COUNTIF('SIC to 2002 NAICS'!$A$2:$A$2166,_AllData[[#This Row],[SIC Code]]) -> 3 | O8: =IFERROR(VLOOKUP(_AllData[[#This Row],[TRI Facility ID(s)]],'TRI NAICS Crosswalk'!$E$2:$G$455,3,FALSE),IF(_AllData[[#This Row],[NAICS Code]]<>"",VALUE(_AllData[[#This Row],[NAICS Code]]),IFERROR(VLOOKUP(VLOOKUP(VLOOKUP(VLOOKUP(_AllData[[#This Row],[SIC Code]],'SIC to 2002 NAICS'!$A$1:$D$2167,3,FALSE),'2002 to 2007 NAICS'!$A$3:$D$1203,3,FALSE),'2007 to 2012 NAICS'!$A$3:$D$1187,3,FALSE),'2012 to 2017 NAICS'!$A$3:$D$1072,3,FALSE),"SIC Not Provided"))) -> 325110 | Q8: COMMERCIAL ROOFING SYSTEMS | R8: BIRMINGHAM | S8: AL | T8: 35224-2305 | U8: JEFFERSON | V8: 04 | W8: 07 | X8: 33.4988 | Y8: -86.91784 | Z8: 031601120101 | AA8: Headwaters Valley Creek | AB8: VILLAGE CREEK | AC8: 03160112000886 | AH8: .06 | AI8: 0 | AJ8: =IFERROR(VALUE(CONVERT(_AllData[[#This Row],[Total Facility Load (kg/yr)]]*1000,"g","lbm")),0) -> 0 | AK8: 0 | AM8: 11.388 | AN8: 10.4007 | AO8: No | AP8: No | AQ8: No
A9: 2012 | B9: AL0003026 | C9: ACORDIS CELLULOSIC FIBERS, INC. | D9: 110042006049 | G9: NON-POTW | H9: =IF(OR(_AllData[[#This Row],[Facility Type Indicator]]="POTW", _AllData[[#This Row],[Facility Type Indicator]]="FEDERAL"),"POTW",IF(AND(_AllData[[#This Row],[Facility Type Indicator]]="NON-POTW", OR(ISNUMBER(SEARCH("groundwater",_AllData[[#This Row],[Facility Name]])),ISNUMBER(SEARCH("GW treatment",_AllData[[#This Row],[Facility Name]])),ISNUMBER(SEARCH("remediation",_AllData[[#This Row],[Facility Name]])),ISNUMBER(SEARCH("superfund",_AllData[[#This Row],[Facility Name]])),ISNUMBER(SEARCH("former",_AllData[[#This Row],[Facility Name]])),ISNUMBER(SEARCH("restoration",_AllData[[#This Row],[Facility Name]])),ISNUMBER(SEARCH("well",_AllData[[#This Row],[Facility Name]])),ISNUMBER(SEARCH("GWCU",_AllData[[#This Row],[Facility Name]])),ISNUMBER(SEARCH("reclamation",_AllData[[#This Row],[Facility Name]])),ISNUMBER(SEARCH("GWTS",_AllData[[#This Row],[Facility Name]])),ISNUMBER(SEARCH("GWETS",_AllData[[#This Row],[Facility Name]])),_AllData[[#This Row],[SIC Code]]="1794",_AllData[[#This Row],[SIC Code]]="4959")),"remediation","industrial/commercial")) -> industrial/commercial | I9: NPD | J9: 06/01/2015 | K9: 05/31/2020 | L9: Major | M9: 2823 | N9: =COUNTIF('SIC to 2002 NAICS'!$A$2:$A$2166,_AllData[[#This Row],[SIC Code]]) -> 1 | O9: =IFERROR(VLOOKUP(_AllData[[#This Row],[TRI Facility ID(s)]],'TRI NAICS Crosswalk'!$E$2:$G$455,3,FALSE),IF(_AllData[[#This Row],[NAICS Code]]<>"",VALUE(_AllData[[#This Row],[NAICS Code]]),IFERROR(VLOOKUP(VLOOKUP(VLOOKUP(VLOOKUP(_AllData[[#This Row],[SIC Code]],'SIC to 2002 NAICS'!$A$1:$D$2167,3,FALSE),'2002 to 2007 NAICS'!$A$3:$D$1203,3,FALSE),'2007 to 2012 NAICS'!$A$3:$D$1187,3,FALSE),'2012 to 2017 NAICS'!$A$3:$D$1072,3,FALSE),"SIC Not Provided"))) -> 325220 | Q9: US HWY 43 N | R9: AXIS | S9: AL | T9: 36505 | U9: MOBILE | V9: 04 | W9: 01 | X9: 30.958889 | Y9: -88.021111 | Z9: 031602040401 | AA9: Gunnison Creek | AB9: MOBILE RIVER | AC9: 03160204001505 | AD9: Y | AI9: 0 | AJ9: =IFERROR(VALUE(CONVERT(_AllData[[#This Row],[Total Facility Load (kg/yr)]]*1000,"g","lbm")),0) -> 0 | AK9: 0 | AL9: -138.88208616780044331385 | AM9: 239.19501133786846315675 | AN9: 319.982 | AO9: No | AP9: Yes | AQ9: Yes
A10: 2012 | B10: AL0003085 | C10: U.S. AMINES | D10: 110000747817 | E10: 36512HCHSTHIGHW | G10: NON-POTW | H10: =IF(OR(_AllData[[#This Row],[Facility Type Indicator]]="POTW", _AllData[[#This Row],[Facility Type Indicator]]="FEDERAL"),"POTW",IF(AND(_AllData[[#This Row],[Facility Type Indicator]]="NON-POTW", OR(ISNUMBER(SEARCH("groundwater",_AllData[[#This Row],[Facility Name]])),ISNUMBER(SEARCH("GW treatment",_AllData[[#This Row],[Facility Name]])),ISNUMBER(SEARCH("remediation",_AllData[[#This Row],[Facility Name]])),ISNUMBER(SEARCH("superfund",_AllData[[#This Row],[Facility Name]])),ISNUMBER(SEARCH("former",_AllData[[#This Row],[Facility Name]])),ISNUMBER(SEARCH("restoration",_AllData[[#This Row],[Facility Name]])),ISNUMBER(SEARCH("well",_AllData[[#This Row],[Facility Name]])),ISNUMBER(SEARCH("GWCU",_AllData[[#This Row],[Facility Name]])),ISNUMBER(SEARCH("reclamation",_AllData[[#This Row],[Facility Name]])),ISNUMBER(SEARCH("GWTS",_AllData[[#This Row],[Facility Name]])),ISNUMBER(SEARCH("GWETS",_AllData[[#This Row],[Facility Name]])),_AllData[[#This Row],[SIC Code]]="1794",_AllData[[#This Row],[SIC Code]]="4959")),"remediation","industrial/commercial")) -> industrial/commercial | I10: NPD | J10: 02/01/2013 | K10: 01/31/2018 | L10: Major | M10: 2819 | N10: =COUNTIF('SIC to 2002 NAICS'!$A$2:$A$2166,_AllData[[#This Row],[SIC Code]]) -> 5 | O10: =IFERROR(VLOOKUP(_AllData[[#This Row],[TRI Facility ID(s)]],'TRI NAICS Crosswalk'!$E$2:$G$455,3,FALSE),IF(_AllData[[#This Row],[NAICS Code]]<>"",VALUE(_AllData[[#This Row],[NAICS Code]]),IFERROR(VLOOKUP(VLOOKUP(VLOOKUP(VLOOKUP(_AllData[[#This Row],[SIC Code]],'SIC to 2002 NAICS'!$A$1:$D$2167,3,FALSE),'2002 to 2007 NAICS'!$A$3:$D$1203,3,FALSE),'2007 to 2012 NAICS'!$A$3:$D$1187,3,FALSE),'2012 to 2017 NAICS'!$A$3:$D$1072,3,FALSE),"SIC Not Provided"))) -> 211130 | Q10: 14086 US HIGHWAY 43 NORTH | R10: BUCKS | S10: AL | T10: 365120064 | U10: MOBILE | V10: 04 | W10: 01 | X10: 30.985223 | Y10: -88.026254 | Z10: 031602040105 | AA10: Cold Creek | AB10: COLD CREEK, MOBILE RIVER | AC10: 03160204001505 | AD10: Y | AJ10: =IFERROR(VALUE(CONVERT(_AllData[[#This Row],[Total Facility Load (kg/yr)]]*1000,"g","lbm")),0) -> 0 | AK10: 0 | AM10: 9.43537414965986325255 | AN10: 1115.375 | AO10: No | AP10: No | AQ10: No
A11: 2012 | B11: AL0003093 | C11: BASF CORP | D11: 110000605051 | E11: 36653CBGGYGEIGY | G11: NON-POTW | H11: =IF(OR(_AllData[[#This Row],[Facility Type Indicator]]="POTW", _AllData[[#This Row],[Facility Type Indicator]]="FEDERAL"),"POTW",IF(AND(_AllData[[#This Row],[Facility Type Indicator]]="NON-POTW", OR(ISNUMBER(SEARCH("groundwater",_AllData[[#This Row],[Facility Name]])),ISNUMBER(SEARCH("GW treatment",_AllData[[#This Row],[Facility Name]])),ISNUMBER(SEARCH("remediation",_AllData[[#This Row],[Facility Name]])),ISNUMBER(SEARCH("superfund",_AllData[[#This Row],[Facility Name]])),ISNUMBER(SEARCH("former",_AllData[[#This Row],[Facility Name]])),ISNUMBER(SEARCH("restoration",_AllData[[#This Row],[Facility Name]])),ISNUMBER(SEARCH("well",_AllData[[#This Row],[Facility Name]])),ISNUMBER(SEARCH("GWCU",_AllData[[#This Row],[Facility Name]])),ISNUMBER(SEARCH("reclamation",_AllData[[#This Row],[Facility Name]])),ISNUMBER(SEARCH("GWTS",_AllData[[#This Row],[Facility Name]])),ISNUMBER(SEARCH("GWETS",_AllData[[#This Row],[Facility Name]])),_AllData[[#This Row],[SIC Code]]="1794",_AllData[[#This Row],[SIC Code]]="4959")),"remediation","industrial/commercial")) -> industrial/commercial | I11: NPD | J11: 09/01/2017 | K11: 08/31/2022 | L11: Major | M11: 2869 | N11: =COUNTIF('SIC to 2002 NAICS'!$A$2:$A$2166,_AllData[[#This Row],[SIC Code]]) -> 7 | O11: =IFERROR(VLOOKUP(_AllData[[#This Row],[TRI Facility ID(s)]],'TRI NAICS Crosswalk'!$E$2:$G$455,3,FALSE),IF(_AllData[[#This Row],[NAICS Code]]<>"",VALUE(_AllData[[#This Row],[NAICS Code]]),IFERROR(VLOOKUP(VLOOKUP(VLOOKUP(VLOOKUP(_AllData[[#This Row],[SIC Code]],'SIC to 2002 NAICS'!$A$1:$D$2167,3,FALSE),'2002 to 2007 NAICS'!$A$3:$D$1203,3,FALSE),'2007 to 2012 NAICS'!$A$3:$D$1187,3,FALSE),'2012 to 2017 NAICS'!$A$3:$D$1072,3,FALSE),"SIC Not Provided"))) -> 325110 | Q11: 1379 CIBA ROAD | R11: MC INTOSH | S11: AL | T11: 365530113 | U11: WASHINGTON | V11: 04 | W11: 01 | X11: 31.279 | Y11: -87.9955 | Z11: 031602030802 | AA11: Lower Lewis Creek | AB11: TOMBIGBEE RIVER | AC11: 03160203000869 | AI11: 0 | AJ11: =IFERROR(VALUE(CONVERT(_AllData[[#This Row],[Total Facility Load (kg/yr)]]*1000,"g","lbm")),0) -> 0 | AK11: 0 | AL11: -247.3061224489795736721 | AM11: 247.3061224489795736721 | AN11: 4306.335 | AO11: No | AP11: Yes | AQ11: Yes
A12: 2012 | B12: AL0023272 | C12: EVONIK DEGUSSA CORP | D12: 110017408296 | E12: 36590DGSSCDEGUS | G12: NON-POTW | H12: =IF(OR(_AllData[[#This Row],[Facility Type Indicator]]="POTW", _AllData[[#This Row],[Facility Type Indicator]]="FEDERAL"),"POTW",IF(AND(_AllData[[#This Row],[Facility Type Indicator]]="NON-POTW", OR(ISNUMBER(SEARCH("groundwater",_AllData[[#This Row],[Facility Name]])),ISNUMBER(SEARCH("GW treatment",_AllData[[#This Row],[Facility Name]])),ISNUMBER(SEARCH("remediation",_AllData[[#This Row],[Facility Name]])),ISNUMBER(SEARCH("superfund",_AllData[[#This Row],[Facility Name]])),ISNUMBER(SEARCH("former",_AllData[[#This Row],[Facility Name]])),ISNUMBER(SEARCH("restoration",_AllData[[#This Row],[Facility Name]])),ISNUMBER(SEARCH("well",_AllData[[#This Row],[Facility Name]])),ISNUMBER(SEARCH("GWCU",_AllData[[#This Row],[Facility Name]])),ISNUMBER(SEARCH("reclamation",_AllData[[#This Row],[Facility Name]])),ISNUMBER(SEARCH("GWTS",_AllData[[#This Row],[Facility Name]])),ISNUMBER(SEARCH("GWETS",_AllData[[#This Row],[Facility Name]])),_AllData[[#This Row],[SIC Code]]="1794",_AllData[[#This Row],[SIC Code]]="4959")),"remediation","industrial/commercial")) -> industrial/commercial | I12: NPD | J12: 08/01/2012 | K12: 07/31/2017 | L12: Major | M12: 2879 | N12: =COUNTIF('SIC to 2002 NAICS'!$A$2:$A$2166,_AllData[[#This Row],[SIC Code]]) -> 1 | O12: =IFERROR(VLOOKUP(_AllData[[#This Row],[TRI Facility ID(s)]],'TRI NAICS Crosswalk'!$E$2:$G$455,3,FALSE),IF(_AllData[[#This Row],[NAICS Code]]<>"",VALUE(_AllData[[#This Row],[NAICS Code]]),IFERROR(VLOOKUP(VLOOKUP(VLOOKUP(VLOOKUP(_AllData[[#This Row],[SIC Code]],'SIC to 2002 NAICS'!$A$1:$D$2167,3,FALSE),'2002 to 2007 NAICS'!$A$3:$D$1203,3,FALSE),'2007 to 2012 NAICS'!$A$3:$D$1187,3,FALSE),'2012 to 2017 NAICS'!$A$3:$D$1072,3,FALSE),"SIC Not Provided"))) -> 325320 | Q12: 4201 DEGUSSA ROAD | R12: THEODORE | S12: AL | T12: 36582 | U12: MOBILE | V12: 04 | W12: 01 | X12: 30.516944 | Y12: -88.14028 | Z12: 031602050104 | AA12: Fowl River | AB12: MIDDLE FORK DEER RIVER, THEODORE BARGE CANAL | AC12: 03160205000199 | AD12: Y | AJ12: =IFERROR(VALUE(CONVERT(_AllData[[#This Row],[Total Facility Load (kg/yr)]]*1000,"g","lbm")),0) -> 0 | AK12: 0 | AM12: 33.90158730158729909723 | AN12: 1248.825571428571428571428571428571428572 | AO12: No | AP12: No | AQ12: No
A13: 2012 | B13: AL0031721 | C13: INDUSTRIAL CHEMICALS INC | D13: 110000366675 | E13: 35208NDLCH1125R | G13: NON-POTW | H13: =IF(OR(_AllData[[#This Row],[Facility Type Indicator]]="POTW", _AllData[[#This Row],[Facility Type Indicator]]="FEDERAL"),"POTW",IF(AND(_AllData[[#This Row],[Facility Type Indicator]]="NON-POTW", OR(ISNUMBER(SEARCH("groundwater",_AllData[[#This Row],[Facility Name]])),ISNUMBER(SEARCH("GW treatment",_AllData[[#This Row],[Facility Name]])),ISNUMBER(SEARCH("remediation",_AllData[[#This Row],[Facility Name]])),ISNUMBER(SEARCH("superfund",_AllData[[#This Row],[Facility Name]])),ISNUMBER(SEARCH("former",_AllData[[#This Row],[Facility Name]])),ISNUMBER(SEARCH("restoration",_AllData[[#This Row],[Facility Name]])),ISNUMBER(SEARCH("well",_AllData[[#This Row],[Facility Name]])),ISNUMBER(SEARCH("GWCU",_AllData[[#This Row],[Facility Name]])),ISNUMBER(SEARCH("reclamation",_AllData[[#This Row],[Facility Name]])),ISNUMBER(SEARCH("GWTS",_AllData[[#This Row],[Facility Name]])),ISNUMBER(SEARCH("GWETS",_AllData[[#This Row],[Facility Name]])),_AllData[[#This Row],[SIC Code]]="1794",_AllData[[#This Row],[SIC Code]]="4959")),"remediation","industrial/commercial")) -> industrial/commercial | I13: NPD | J13: 04/01/2018 | K13: 03/31/2023 | L13: Non-Major | M13: 5169 | N13: =COUNTIF('SIC to 2002 NAICS'!$A$2:$A$2166,_AllData[[#This Row],[SIC Code]]) -> 3 | O13: =IFERROR(VLOOKUP(_AllData[[#This Row],[TRI Facility ID(s)]],'TRI NAICS Crosswalk'!$E$2:$G$455,3,FALSE),IF(_AllData[[#This Row],[NAICS Code]]<>"",VALUE(_AllData[[#This Row],[NAICS Code]]),IFERROR(VLOOKUP(VLOOKUP(VLOOKUP(VLOOKUP(_AllData[[#This Row],[SIC Code]],'SIC to 2002 NAICS'!$A$1:$D$2167,3,FALSE),'2002 to 2007 NAICS'!$A$3:$D$1203,3,FALSE),'2007 to 2012 NAICS'!$A$3:$D$1187,3,FALSE),'2012 to 2017 NAICS'!$A$3:$D$1072,3,FALSE),"SIC Not Provided"))) -> 424690 | Q13: 1125 ROBERTS INDUSTRIAL DRIVE | R13: BIRMINGHAM | S13: AL | T13: 35208 | U13: JEFFERSON | V13: 04 | W13: 07 | X13: 33.517778 | Y13: -86.87 | Z13: 031601110408 | AA13: Upper Village Creek | AB13: VILLAGE CREEK | AC13: 03160111000022 | AD13: Y | AJ13: =IFERROR(VALUE(CONVERT(_AllData[[#This Row],[Total Facility Load (kg/yr)]]*1000,"g","lbm")),0) -> 0 | AK13: 0 | AN13: 45.7 | AO13: No | AP13: No | AQ13: No
A14: 2012 | B14: AL0042447 | C14: ARKEMA, INC. | D14: 110025376448 | E14: 36505MTCHMHWY43 | G14: NON-POTW | H14: =IF(OR(_AllData[[#This Row],[Facility Type Indicator]]="POTW", _AllData[[#This Row],[Facility Type Indicator]]="FEDERAL"),"POTW",IF(AND(_AllData[[#This Row],[Facility Type Indicator]]="NON-POTW", OR(ISNUMBER(SEARCH("groundwater",_AllData[[#This Row],[Facility Name]])),ISNUMBER(SEARCH("GW treatment",_AllData[[#This Row],[Facility Name]])),ISNUMBER(SEARCH("remediation",_AllData[[#This Row],[Facility Name]])),ISNUMBER(SEARCH("superfund",_AllData[[#This Row],[Facility Name]])),ISNUMBER(SEARCH("former",_AllData[[#This Row],[Facility Name]])),ISNUMBER(SEARCH("restoration",_AllData[[#This Row],[Facility Name]])),ISNUMBER(SEARCH("well",_AllData[[#This Row],[Facility Name]])),ISNUMBER(SEARCH("GWCU",_AllData[[#This Row],[Facility Name]])),ISNUMBER(SEARCH("reclamation",_AllData[[#This Row],[Facility Name]])),ISNUMBER(SEARCH("GWTS",_AllData[[#This Row],[Facility Name]])),ISNUMBER(SEARCH("GWETS",_AllData[[#This Row],[Facility Name]])),_AllData[[#This Row],[SIC Code]]="1794",_AllData[[#This Row],[SIC Code]]="4959")),"remediation","industrial/commercial")) -> industrial/commercial | I14: NPD | J14: 02/01/2017 | K14: 01/31/2022 | L14: Major | M14: 2869 | N14: =COUNTIF('SIC to 2002 NAICS'!$A$2:$A$2166,_AllData[[#This Row],[SIC Code]]) -> 7 | O14: =IFERROR(VLOOKUP(_AllData[[#This Row],[TRI Facility ID(s)]],'TRI NAICS Crosswalk'!$E$2:$G$455,3,FALSE),IF(_AllData[[#This Row],[NAICS Code]]<>"",VALUE(_AllData[[#This Row],[NAICS Code]]),IFERROR(VLOOKUP(VLOOKUP(VLOOKUP(VLOOKUP(_AllData[[#This Row],[SIC Code]],'SIC to 2002 NAICS'!$A$1:$D$2167,3,FALSE),'2002 to 2007 NAICS'!$A$3:$D$1203,3,FALSE),'2007 to 2012 NAICS'!$A$3:$D$1187,3,FALSE),'2012 to 2017 NAICS'!$A$3:$D$1072,3,FALSE),"SIC Not Provided"))) -> 325110 | Q14: 13755 HWY 43 N | R14: AXIS | S14: AL | T14: 36505-4319 | U14: MOBILE | V14: 04 | W14: 01 | X14: 30.979167 | Y14: -88.028833 | Z14: 031602040105 | AA14: Cold Creek | AB14: COLD CREEK MOBILE RIVER | AC14: 03160204001505 | AD14: Y | AI14: 0 | AJ14: =IFERROR(VALUE(CONVERT(_AllData[[#This Row],[Total Facility Load (kg/yr)]]*1000,"g","lbm")),0) -> 0 | AK14: 0 | AL14: -24.8299319727891138225 | AM14: 24.8299319727891138225 | AN14: 1198.1561 | AO14: No | AP14: Yes | AQ14: Yes
A15: 2012 | B15: AL0054704 | C15: SABIC INNOVATIVE PLASTICS US LLC | D15: 110017438762 | E15: 36752GPLSTONEPL | G15: NON-POTW | H15: =IF(OR(_AllData[[#This Row],[Facility Type Indicator]]="POTW", _AllData[[#This Row],[Facility Type Indicator]]="FEDERAL"),"POTW",IF(AND(_AllData[[#This Row],[Facility Type Indicator]]="NON-POTW", OR(ISNUMBER(SEARCH("groundwater",_AllData[[#This Row],[Facility Name]])),ISNUMBER(SEARCH("GW treatment",_AllData[[#This Row],[Facility Name]])),ISNUMBER(SEARCH("remediation",_AllData[[#This Row],[Facility Name]])),ISNUMBER(SEARCH("superfund",_AllData[[#This Row],[Facility Name]])),ISNUMBER(SEARCH("former",_AllData[[#This Row],[Facility Name]])),ISNUMBER(SEARCH("restoration",_AllData[[#This Row],[Facility Name]])),ISNUMBER(SEARCH("well",_AllData[[#This Row],[Facility Name]])),ISNUMBER(SEARCH("GWCU",_AllData[[#This Row],[Facility Name]])),ISNUMBER(SEARCH("reclamation",_AllData[[#This Row],[Facility Name]])),ISNUMBER(SEARCH("GWTS",_AllData[[#This Row],[Facility Name]])),ISNUMBER(SEARCH("GWETS",_AllData[[#This Row],[Facility Name]])),_AllData[[#This Row],[SIC Code]]="1794",_AllData[[#This Row],[SIC Code]]="4959")),"remediation","industrial/commercial")) -> industrial/commercial | I15: NPD | J15: 04/01/2014 | K15: 03/31/2019 | L15: Major | M15: 2821 | N15: =COUNTIF('SIC to 2002 NAICS'!$A$2:$A$2166,_AllData[[#This Row],[SIC Code]]) -> 1 | O15: =IFERROR(VLOOKUP(_AllData[[#This Row],[TRI Facility ID(s)]],'TRI NAICS Crosswalk'!$E$2:$G$455,3,FALSE),IF(_AllData[[#This Row],[NAICS Code]]<>"",VALUE(_AllData[[#This Row],[NAICS Code]]),IFERROR(VLOOKUP(VLOOKUP(VLOOKUP(VLOOKUP(_AllData[[#This Row],[SIC Code]],'SIC to 2002 NAICS'!$A$1:$D$2167,3,FALSE),'2002 to 2007 NAICS'!$A$3:$D$1203,3,FALSE),'2007 to 2012 NAICS'!$A$3:$D$1187,3,FALSE),'2012 to 2017 NAICS'!$A$3:$D$1072,3,FALSE),"SIC Not Provided"))) -> 325211 | Q15: ONE PLASTIC DRIVE | R15: BURKVILLE | S15: AL | T15: 36752-4001 | U15: LOWNDES | V15: 04 | W15: 02 | X15: 32.324622 | Y15: -86.529149 | Z15: 031502010502 | AA15: Tallawessee Creek | AB15: ALABAMA RIVER | AC15: 03150201003168 | AI15: 0 | AJ15: =IFERROR(VALUE(CONVERT(_AllData[[#This Row],[Total Facility Load (kg/yr)]]*1000,"g","lbm")),0) -> 0 | AK15: 0 | AL15: -225.505442176870731735945 | AM15: 225.505442176870731735945 | AN15: 1885.037 | AO15: No | AP15: Yes | AQ15: Yes
A16: 2012 | B16: AL0064351 | C16: DAIKIN AMERICA INC | D16: 110045447469 | E16: 35601DKNMRSTATE,35601MDMNFSTATE | G16: NON-POTW | H16: =IF(OR(_AllData[[#This Row],[Facility Type Indicator]]="POTW", _AllData[[#This Row],[Facility Type Indicator]]="FEDERAL"),"POTW",IF(AND(_AllData[[#This Row],[Facility Type Indicator]]="NON-POTW", OR(ISNUMBER(SEARCH("groundwater",_AllData[[#This Row],[Facility Name]])),ISNUMBER(SEARCH("GW treatment",_AllData[[#This Row],[Facility Name]])),ISNUMBER(SEARCH("remediation",_AllData[[#This Row],[Facility Name]])),ISNUMBER(SEARCH("superfund",_AllData[[#This Row],[Facility Name]])),ISNUMBER(SEARCH("former",_AllData[[#This Row],[Facility Name]])),ISNUMBER(SEARCH("restoration",_AllData[[#This Row],[Facility Name]])),ISNUMBER(SEARCH("well",_AllData[[#This Row],[Facility Name]])),ISNUMBER(SEARCH("GWCU",_AllData[[#This Row],[Facility Name]])),ISNUMBER(SEARCH("reclamation",_AllData[[#This Row],[Facility Name]])),ISNUMBER(SEARCH("GWTS",_AllData[[#This Row],[Facility Name]])),ISNUMBER(SEARCH("GWETS",_AllData[[#This Row],[Facility Name]])),_AllData[[#This Row],[SIC Code]]="1794",_AllData[[#This Row],[SIC Code]]="4959")),"remediation","industrial/commercial")) -> industrial/commercial | I16: NPD | J16: 02/01/2014 | K16: 01/31/2019 | L16: Major | M16: 2869 | N16: =COUNTIF('SIC to 2002 NAICS'!$A$2:$A$2166,_AllData[[#This Row],[SIC Code]]) -> 7 | O16: =IFERROR(VLOOKUP(_AllData[[#This Row],[TRI Facility ID(s)]],'TRI NAICS Crosswalk'!$E$2:$G$455,3,FALSE),IF(_AllData[[#This Row],[NAICS Code]]<>"",VALUE(_AllData[[#This Row],[NAICS Code]]),IFERROR(VLOOKUP(VLOOKUP(VLOOKUP(VLOOKUP(_AllData[[#This Row],[SIC Code]],'SIC to 2002 NAICS'!$A$1:$D$2167,3,FALSE),'2002 to 2007 NAICS'!$A$3:$D$1203,3,FALSE),'2007 to 2012 NAICS'!$A$3:$D$1187,3,FALSE),'2012 to 2017 NAICS'!$A$3:$D$1072,3,FALSE),"SIC Not Provided"))) -> 325110 | Q16: 905 STATE DOCKS ROAD | R16: DECATUR | S16: AL | T16: 35609 | U16: MORGAN | V16: 04 | W16: 05 | X16: 34.63147 | Y16: -87.03843 | Z16: 060300021102 | AA16: Bakers Creek-Tennessee River | AB16: BAKERS CREEK, TENNESSEE RIVER | AC16: 06030002018565 | AD16: Y | AI16: 0 | AJ16: =IFERROR(VALUE(CONVERT(_AllData[[#This Row],[Total Facility Load (kg/yr)]]*1000,"g","lbm")),0) -> 0 | AK16: 0 | AL16: 0 | AM16: 196.9841269841269696585 | AN16: 929.986 | AO16: No | AP16: Yes | AQ16: Yes
A17: 2012 | B17: AL0068594 | C17: SAFETYKLEEN SYSTEMS, INC. | D17: 110000608646 | G17: NON-POTW | H17: =IF(OR(_AllData[[#This Row],[Facility Type Indicator]]="POTW", _AllData[[#This Row],[Facility Type Indicator]]="FEDERAL"),"POTW",IF(AND(_AllData[[#This Row],[Facility Type Indicator]]="NON-POTW", OR(ISNUMBER(SEARCH("groundwater",_AllData[[#This Row],[Facility Name]])),ISNUMBER(SEARCH("GW treatment",_AllData[[#This Row],[Facility Name]])),ISNUMBER(SEARCH("remediation",_AllData[[#This Row],[Facility Name]])),ISNUMBER(SEARCH("superfund",_AllData[[#This Row],[Facility Name]])),ISNUMBER(SEARCH("former",_AllData[[#This Row],[Facility Name]])),ISNUMBER(SEARCH("restoration",_AllData[[#This Row],[Facility Name]])),ISNUMBER(SEARCH("well",_AllData[[#This Row],[Facility Name]])),ISNUMBER(SEARCH("GWCU",_AllData[[#This Row],[Facility Name]])),ISNUMBER(SEARCH("reclamation",_AllData[[#This Row],[Facility Name]])),ISNUMBER(SEARCH("GWTS",_AllData[[#This Row],[Facility Name]])),ISNUMBER(SEARCH("GWETS",_AllData[[#This Row],[Facility Name]])),_AllData[[#This Row],[SIC Code]]="1794",_AllData[[#This Row],[SIC Code]]="4959")),"remediation","industrial/commercial")) -> industrial/commercial | I17: NPD | J17: 04/01/2009 | K17: 03/31/2014 | L17: Non-Major | M17: 7389 | N17: =COUNTIF('SIC to 2002 NAICS'!$A$2:$A$2166,_AllData[[#This Row],[SIC Code]]) -> 42 | O17: =IFERROR(VLOOKUP(_AllData[[#This Row],[TRI Facility ID(s)]],'TRI NAICS Crosswalk'!$E$2:$G$455,3,FALSE),IF(_AllData[[#This Row],[NAICS Code]]<>"",VALUE(_AllData[[#This Row],[NAICS Code]]),IFERROR(VLOOKUP(VLOOKUP(VLOOKUP(VLOOKUP(_AllData[[#This Row],[SIC Code]],'SIC to 2002 NAICS'!$A$1:$D$2167,3,FALSE),'2002 to 2007 NAICS'!$A$3:$D$1203,3,FALSE),'2007 to 2012 NAICS'!$A$3:$D$1187,3,FALSE),'2012 to 2017 NAICS'!$A$3:$D$1072,3,FALSE),"SIC Not Provided"))) -> 562112 | P17: 562112 | Q17: 1002 HOKE AVE | R17: DOLOMITE | S17: AL | T17: 35061-1166 | U17: JEFFERSON | V17: 04 | W17: 07 | X17: 33.459972 | Y17: -86.95795 | Z17: 031601120101 | AA17: Headwaters Valley Creek | AB17: LITTLE CREEK | AC17: 03160112000888 | AI17: 0 | AJ17: =IFERROR(VALUE(CONVERT(_AllData[[#This Row],[Total Facility Load (kg/yr)]]*1000,"g","lbm")),0) -> 0 | AK17: 0 | AL17: 0 | AN17: 4.251529 | AO17: No | AP17: No | AQ17: Yes
A18: 2012 | B18: AL0068951 | C18: RENTOKIL INITIAL SERV INC | D18: 110001168717 | G18: NON-POTW | H18: =IF(OR(_AllData[[#This Row],[Facility Type Indicator]]="POTW", _AllData[[#This Row],[Facility Type Indicator]]="FEDERAL"),"POTW",IF(AND(_AllData[[#This Row],[Facility Type Indicator]]="NON-POTW", OR(ISNUMBER(SEARCH("groundwater",_AllData[[#This Row],[Facility Name]])),ISNUMBER(SEARCH("GW treatment",_AllData[[#This Row],[Facility Name]])),ISNUMBER(SEARCH("remediation",_AllData[[#This Row],[Facility Name]])),ISNUMBER(SEARCH("superfund",_AllData[[#This Row],[Facility Name]])),ISNUMBER(SEARCH("former",_AllData[[#This Row],[Facility Name]])),ISNUMBER(SEARCH("restoration",_AllData[[#This Row],[Facility Name]])),ISNUMBER(SEARCH("well",_AllData[[#This Row],[Facility Name]])),ISNUMBER(SEARCH("GWCU",_AllData[[#This Row],[Facility Name]])),ISNUMBER(SEARCH("reclamation",_AllData[[#This Row],[Facility Name]])),ISNUMBER(SEARCH("GWTS",_AllData[[#This Row],[Facility Name]])),ISNUMBER(SEARCH("GWETS",_AllData[[#This Row],[Facility Name]])),_AllData[[#This Row],[SIC Code]]="1794",_AllData[[#This Row],[SIC Code]]="4959")),"remediation","industrial/commercial")) -> industrial/commercial | I18: NPD | J18: 02/01/2011 | K18: 01/31/2016 | L18: Non-Major | M18: 9999 | N18: =COUNTIF('SIC to 2002 NAICS'!$A$2:$A$2166,_AllData[[#This Row],[SIC Code]]) -> 1 | O18: =IFERROR(VLOOKUP(_AllData[[#This Row],[TRI Facility ID(s)]],'TRI NAICS Crosswalk'!$E$2:$G$455,3,FALSE),IF(_AllData[[#This Row],[NAICS Code]]<>"",VALUE(_AllData[[#This Row],[NAICS Code]]),IFERROR(VLOOKUP(VLOOKUP(VLOOKUP(VLOOKUP(_AllData[[#This Row],[SIC Code]],'SIC to 2002 NAICS'!$A$1:$D$2167,3,FALSE),'2002 to 2007 NAICS'!$A$3:$D$1203,3,FALSE),'2007 to 2012 NAICS'!$A$3:$D$1187,3,FALSE),'2012 to 2017 NAICS'!$A$3:$D$1072,3,FALSE),"SIC Not Provided"))) -> SIC Not Provided | Q18: 10565 HIGHWAY 43 | R18: CREOLA | S18: AL | T18: 36525 | U18: MOBILE | V18: 04 | W18: 1 | X18: 30.911295 | Y18: -88.038055 | Z18: 031602040401 | AA18: Gunnison Creek | AB18: TURTLE BRANCH VIA DRAINAGE | AC18: 03160204000545 | AH18: .05 | AI18: 0 | AJ18: =IFERROR(VALUE(CONVERT(_AllData[[#This Row],[Total Facility Load (kg/yr)]]*1000,"g","lbm")),0) -> 0 | AK18: 0 | AL18: 0 | AN18: 150.3648 | AO18: No | AP18: No | AQ18: Yes
A19: 2012 | B19: AL0069736 | C19: TATE & LYLE SUCRALOSE INC | D19: 110007232315 | E19: 36553MCNLSINDUS | G19: NON-POTW | H19: =IF(OR(_AllData[[#This Row],[Facility Type Indicator]]="POTW", _AllData[[#This Row],[Facility Type Indicator]]="FEDERAL"),"POTW",IF(AND(_AllData[[#This Row],[Facility Type Indicator]]="NON-POTW", OR(ISNUMBER(SEARCH("groundwater",_AllData[[#This Row],[Facility Name]])),ISNUMBER(SEARCH("GW treatment",_AllData[[#This Row],[Facility Name]])),ISNUMBER(SEARCH("remediation",_AllData[[#This Row],[Facility Name]])),ISNUMBER(SEARCH("superfund",_AllData[[#This Row],[Facility Name]])),ISNUMBER(SEARCH("former",_AllData[[#This Row],[Facility Name]])),ISNUMBER(SEARCH("restoration",_AllData[[#This Row],[Facility Name]])),ISNUMBER(SEARCH("well",_AllData[[#This Row],[Facility Name]])),ISNUMBER(SEARCH("GWCU",_AllData[[#This Row],[Facility Name]])),ISNUMBER(SEARCH("reclamation",_AllData[[#This Row],[Facility Name]])),ISNUMBER(SEARCH("GWTS",_AllData[[#This Row],[Facility Name]])),ISNUMBER(SEARCH("GWETS",_AllData[[#This Row],[Facility Name]])),_AllData[[#This Row],[SIC Code]]="1794",_AllData[[#This Row],[SIC Code]]="4959")),"remediation","industrial/commercial")) -> industrial/commercial | I19: NPD | J19: 04/01/2017 | K19: 03/31/2022 | L19: Non-Major | M19: 2869 | N19: =COUNTIF('SIC to 2002 NAICS'!$A$2:$A$2166,_AllData[[#This Row],[SIC Code]]) -> 7 | O19: =IFERROR(VLOOKUP(_AllData[[#This Row],[TRI Facility ID(s)]],'TRI NAICS Crosswalk'!$E$2:$G$455,3,FALSE),IF(_AllData[[#This Row],[NAICS Code]]<>"",VALUE(_AllData[[#This Row],[NAICS Code]]),IFERROR(VLOOKUP(VLOOKUP(VLOOKUP(VLOOKUP(_AllData[[#This Row],[SIC Code]],'SIC to 2002 NAICS'!$A$1:$D$2167,3,FALSE),'2002 to 2007 NAICS'!$A$3:$D$1203,3,FALSE),'2007 to 2012 NAICS'!$A$3:$D$1187,3,FALSE),'2012 to 2017 NAICS'!$A$3:$D$1072,3,FALSE),"SIC Not Provided"))) -> 325110 | Q19: 588 INDUSTRIAL ROAD | R19: MC INTOSH | S19: AL | T19: 36553 | U19: WASHINGTON | V19: 04 | W19: 01 | X19: 31.2507 | Y19: -88.0154 | Z19: 031602031002 | AA19: Bilbo Creek | AB19: TOMBIGBEE RIVER | AC19: 03160203000418 | AD19: Y | AI19: 0 | AJ19: =IFERROR(VALUE(CONVERT(_AllData[[#This Row],[Total Facility Load (kg/yr)]]*1000,"g","lbm")),0) -> 0 | AK19: 0 | AL19: -61.904761904761900215 | AM19: 82.766439909297046075 | AN19: 674.1016 | AO19: No | AP19: Yes | AQ19: Yes
A20: 2012 | B20: AL0081027 | C20: KOPPERS, INC., TAR PLANT | D20: 110000366283 | G20: NON-POTW | H20: =IF(OR(_AllData[[#This Row],[Facility Type Indicator]]="POTW", _AllData[[#This Row],[Facility Type Indicator]]="FEDERAL"),"POTW",IF(AND(_AllData[[#This Row],[Facility Type Indicator]]="NON-POTW", OR(ISNUMBER(SEARCH("groundwater",_AllData[[#This Row],[Facility Name]])),ISNUMBER(SEARCH("GW treatment",_AllData[[#This Row],[Facility Name]])),ISNUMBER(SEARCH("remediation",_AllData[[#This Row],[Facility Name]])),ISNUMBER(SEARCH("superfund",_AllData[[#This Row],[Facility Name]])),ISNUMBER(SEARCH("former",_AllData[[#This Row],[Facility Name]])),ISNUMBER(SEARCH("restoration",_AllData[[#This Row],[Facility Name]])),ISNUMBER(SEARCH("well",_AllData[[#This Row],[Facility Name]])),ISNUMBER(SEARCH("GWCU",_AllData[[#This Row],[Facility Name]])),ISNUMBER(SEARCH("reclamation",_AllData[[#This Row],[Facility Name]])),ISNUMBER(SEARCH("GWTS",_AllData[[#This Row],[Facility Name]])),ISNUMBER(SEARCH("GWETS",_AllData[[#This Row],[Facility Name]])),_AllData[[#This Row],[SIC Code]]="1794",_AllData[[#This Row],[SIC Code]]="4959")),"remediation","industrial/commercial")) -> industrial/commercial | I20: NPD | J20: 05/01/2011 | K20: 04/30/2016 | L20: Non-Major | N20: =COUNTIF('SIC to 2002 NAICS'!$A$2:$A$2166,_AllData[[#This Row],[SIC Code]]) -> 0 | O20: =IFERROR(VLOOKUP(_AllData[[#This Row],[TRI Facility ID(s)]],'TRI NAICS Crosswalk'!$E$2:$G$455,3,FALSE),IF(_AllData[[#This Row],[NAICS Code]]<>"",VALUE(_AllData[[#This Row],[NAICS Code]]),IFERROR(VLOOKUP(VLOOKUP(VLOOKUP(VLOOKUP(_AllData[[#This Row],[SIC Code]],'SIC to 2002 NAICS'!$A$1:$D$2167,3,FALSE),'2002 to 2007 NAICS'!$A$3:$D$1203,3,FALSE),'2007 to 2012 NAICS'!$A$3:$D$1187,3,FALSE),'2012 to 2017 NAICS'!$A$3:$D$1072,3,FALSE),"SIC Not Provided"))) -> SIC Not Provided | Q20: 1835 KOPPERS DRIVE | R20: DOLOMITE | S20: AL | T20: 35061-1123 | U20: JEFFERSON | V20: 04 | W20: 07 | X20: 33.455379 | Y20: -86.961104 | Z20: 031601120101 | AA20: Headwaters Valley Creek | AC20: 03160112000883 | AI20: 0 | AJ20: =IFERROR(VALUE(CONVERT(_AllData[[#This Row],[Total Facility Load (kg/yr)]]*1000,"g","lbm")),0) -> 0 | AK20: 0 | AM20: .8395 | AN20: 0 | AO20: No | AP20: No | AQ20: No
A21: 2012 | B21: AR0035386 | C21: FUTUREFUEL CHEMICAL CO | D21: 110017432937 | E21: 72503RKNSSSTATE | G21: NON-POTW | H21: =IF(OR(_AllData[[#This Row],[Facility Type Indicator]]="POTW", _AllData[[#This Row],[Facility Type Indicator]]="FEDERAL"),"POTW",IF(AND(_AllData[[#This Row],[Facility Type Indicator]]="NON-POTW", OR(ISNUMBER(SEARCH("groundwater",_AllData[[#This Row],[Facility Name]])),ISNUMBER(SEARCH("GW treatment",_AllData[[#This Row],[Facility Name]])),ISNUMBER(SEARCH("remediation",_AllData[[#This Row],[Facility Name]])),ISNUMBER(SEARCH("superfund",_AllData[[#This Row],[Facility Name]])),ISNUMBER(SEARCH("former",_AllData[[#This Row],[Facility Name]])),ISNUMBER(SEARCH("restoration",_AllData[[#This Row],[Facility Name]])),ISNUMBER(SEARCH("well",_AllData[[#This Row],[Facility Name]])),ISNUMBER(SEARCH("GWCU",_AllData[[#This Row],[Facility Name]])),ISNUMBER(SEARCH("reclamation",_AllData[[#This Row],[Facility Name]])),ISNUMBER(SEARCH("GWTS",_AllData[[#This Row],[Facility Name]])),ISNUMBER(SEARCH("GWETS",_AllData[[#This Row],[Facility Name]])),_AllData[[#This Row],[SIC Code]]="1794",_AllData[[#This Row],[SIC Code]]="4959")),"remediation","industrial/commercial")) -> industrial/commercial | I21: NPD | J21: 09/01/2018 | K21: 08/31/2023 | L21: Major | M21: 2865 | N21: =COUNTIF('SIC to 2002 NAICS'!$A$2:$A$2166,_AllData[[#This Row],[SIC Code]]) -> 3 | O21: =IFERROR(VLOOKUP(_AllData[[#This Row],[TRI Facility ID(s)]],'TRI NAICS Crosswalk'!$E$2:$G$455,3,FALSE),IF(_AllData[[#This Row],[NAICS Code]]<>"",VALUE(_AllData[[#This Row],[NAICS Code]]),IFERROR(VLOOKUP(VLOOKUP(VLOOKUP(VLOOKUP(_AllData[[#This Row],[SIC Code]],'SIC to 2002 NAICS'!$A$1:$D$2167,3,FALSE),'2002 to 2007 NAICS'!$A$3:$D$1203,3,FALSE),'2007 to 2012 NAICS'!$A$3:$D$1187,3,FALSE),'2012 to 2017 NAICS'!$A$3:$D$1072,3,FALSE),"SIC Not Provided"))) -> 325199 | P21: 325199 | Q21: 2800 GAP RD (HWY 394) | R21: BATESVILLE | S21: AR | T21: 72501-8377 | U21: INDEPENDENCE | V21: 06 | W21: 1 | X21: 35.722567 | Y21: -91.524977 | Z21: 110100040704 | AA21: Big Creek-White River | AB21: WHITE RIVER | AC21: 11010004002024 | AH21: 58.3 | AI21: 0 | AJ21: =IFERROR(VALUE(CONVERT(_AllData[[#This Row],[Total Facility Load (kg/yr)]]*1000,"g","lbm")),0) -> 0 | AK21: 0 | AL21: 0 | AM21: 258.231292517006783754 | AN21: 19918.8 | AO21: No | AP21: Yes | AQ21: Yes
A22: 2012 | B22: AR0037770 | C22: CIBA SPECIALTY CHEMICALS CORPORATION | D22: 110000452082 | E22: 72301CPSCHBRIDG | G22: NON-POTW | H22: =IF(OR(_AllData[[#This Row],[Facility Type Indicator]]="POTW", _AllData[[#This Row],[Facility Type Indicator]]="FEDERAL"),"POTW",IF(AND(_AllData[[#This Row],[Facility Type Indicator]]="NON-POTW", OR(ISNUMBER(SEARCH("groundwater",_AllData[[#This Row],[Facility Name]])),ISNUMBER(SEARCH("GW treatment",_AllData[[#This Row],[Facility Name]])),ISNUMBER(SEARCH("remediation",_AllData[[#This Row],[Facility Name]])),ISNUMBER(SEARCH("superfund",_AllData[[#This Row],[Facility Name]])),ISNUMBER(SEARCH("former",_AllData[[#This Row],[Facility Name]])),ISNUMBER(SEARCH("restoration",_AllData[[#This Row],[Facility Name]])),ISNUMBER(SEARCH("well",_AllData[[#This Row],[Facility Name]])),ISNUMBER(SEARCH("GWCU",_AllData[[#This Row],[Facility Name]])),ISNUMBER(SEARCH("reclamation",_AllData[[#This Row],[Facility Name]])),ISNUMBER(SEARCH("GWTS",_AllData[[#This Row],[Facility Name]])),ISNUMBER(SEARCH("GWETS",_AllData[[#This Row],[Facility Name]])),_AllData[[#This Row],[SIC Code]]="1794",_AllData[[#This Row],[SIC Code]]="4959")),"remediation","industrial/commercial")) -> industrial/commercial | I22: NPD | J22: 07/01/2015 | K22: 06/30/2020 | L22: Major | M22: 2869 | N22: =COUNTIF('SIC to 2002 NAICS'!$A$2:$A$2166,_AllData[[#This Row],[SIC Code]]) -> 7 | O22: =IFERROR(VLOOKUP(_AllData[[#This Row],[TRI Facility ID(s)]],'TRI NAICS Crosswalk'!$E$2:$G$455,3,FALSE),IF(_AllData[[#This Row],[NAICS Code]]<>"",VALUE(_AllData[[#This Row],[NAICS Code]]),IFERROR(VLOOKUP(VLOOKUP(VLOOKUP(VLOOKUP(_AllData[[#This Row],[SIC Code]],'SIC to 2002 NAICS'!$A$1:$D$2167,3,FALSE),'2002 to 2007 NAICS'!$A$3:$D$1203,3,FALSE),'2007 to 2012 NAICS'!$A$3:$D$1187,3,FALSE),'2012 to 2017 NAICS'!$A$3:$D$1072,3,FALSE),"SIC Not Provided"))) -> 325199 | P22: 325199 | Q22: 100 BRIDGEPORT RD | R22: WEST MEMPHIS | S22: AR | T22: 723016413 | U22: CRITTENDEN | V22: 06 | W22: 01 | X22: 35.136057 | Y22: -90.096893 | Z22: 080101000703 | AA22: Loosahatchie Bar-Mississippi River | AB22: MISSISSIPPI R | AC22: 08010100000818 | AD22: Y | AG22: .091 | AI22: 0 | AJ22: =IFERROR(VALUE(CONVERT(_AllData[[#This Row],[Total Facility Load (kg/yr)]]*1000,"g","lbm")),0) -> 0 | AK22: 0 | AL22: 0 | AM22: 26.485260770975054744 | AN22: 25.819 | AO22: No | AP22: Yes | AQ22: Yes
A23: 2012 | B23: AR0037800 | C23: CLEAN HARBORS EL DORADO LLC | D23: 110000521221 | E23: 71730NVRNM309AM | G23: NON-POTW | H23: =IF(OR(_AllData[[#This Row],[Facility Type Indicator]]="POTW", _AllData[[#This Row],[Facility Type Indicator]]="FEDERAL"),"POTW",IF(AND(_AllData[[#This Row],[Facility Type Indicator]]="NON-POTW", OR(ISNUMBER(SEARCH("groundwater",_AllData[[#This Row],[Facility Name]])),ISNUMBER(SEARCH("GW treatment",_AllData[[#This Row],[Facility Name]])),ISNUMBER(SEARCH("remediation",_AllData[[#This Row],[Facility Name]])),ISNUMBER(SEARCH("superfund",_AllData[[#This Row],[Facility Name]])),ISNUMBER(SEARCH("former",_AllData[[#This Row],[Facility Name]])),ISNUMBER(SEARCH("restoration",_AllData[[#This Row],[Facility Name]])),ISNUMBER(SEARCH("well",_AllData[[#This Row],[Facility Name]])),ISNUMBER(SEARCH("GWCU",_AllData[[#This Row],[Facility Name]])),ISNUMBER(SEARCH("reclamation",_AllData[[#This Row],[Facility Name]])),ISNUMBER(SEARCH("GWTS",_AllData[[#This Row],[Facility Name]])),ISNUMBER(SEARCH("GWETS",_AllData[[#This Row],[Facility Name]])),_AllData[[#This Row],[SIC Code]]="1794",_AllData[[#This Row],[SIC Code]]="4959")),"remediation","industrial/commercial")) -> industrial/commercial | I23: NPD | J23: 10/01/2016 | K23: 09/30/2021 | L23: Major | M23: 4953 | N23: =COUNTIF('SIC to 2002 NAICS'!$A$2:$A$2166,_AllData[[#This Row],[SIC Code]]) -> 5 | O23: =IFERROR(VLOOKUP(_AllData[[#This Row],[TRI Facility ID(s)]],'TRI NAICS Crosswalk'!$E$2:$G$455,3,FALSE),IF(_AllData[[#This Row],[NAICS Code]]<>"",VALUE(_AllData[[#This Row],[NAICS Code]]),IFERROR(VLOOKUP(VLOOKUP(VLOOKUP(VLOOKUP(_AllData[[#This Row],[SIC Code]],'SIC to 2002 NAICS'!$A$1:$D$2167,3,FALSE),'2002 to 2007 NAICS'!$A$3:$D$1203,3,FALSE),'2007 to 2012 NAICS'!$A$3:$D$1187,3,FALSE),'2012 to 2017 NAICS'!$A$3:$D$1072,3,FALSE),"SIC Not Provided"))) -> 562211 | P23: 562211 | Q23: 309 AMERICAN CIR | R23: EL DORADO | S23: AR | T23: 71730 | U23: UNION | V23: 06 | W23: 4 | X23: 33.2044 | Y23: -92.6308 | Z23: 080402020501 | AA23: Boggy Creek | AB23: BOGGY CR,BU DE LOUTRE,OUACHITA RB | AC23: 08040202000533 | AH23: 0 | AI23: 0 | AJ23: =IFERROR(VALUE(CONVERT(_AllData[[#This Row],[Total Facility Load (kg/yr)]]*1000,"g","lbm")),0) -> 0 | AK23: 0 | AM23: 23.790996 | AN23: 62.158 | AO23: No | AP23: No | AQ23: No
A24: 2012 | B24: AR0049131 | C24: PARKER SOLVENTS COMPANY, INC. | D24: 110000608799 | G24: NON-POTW | H24: =IF(OR(_AllData[[#This Row],[Facility Type Indicator]]="POTW", _AllData[[#This Row],[Facility Type Indicator]]="FEDERAL"),"POTW",IF(AND(_AllData[[#This Row],[Facility Type Indicator]]="NON-POTW", OR(ISNUMBER(SEARCH("groundwater",_AllData[[#This Row],[Facility Name]])),ISNUMBER(SEARCH("GW treatment",_AllData[[#This Row],[Facility Name]])),ISNUMBER(SEARCH("remediation",_AllData[[#This Row],[Facility Name]])),ISNUMBER(SEARCH("superfund",_AllData[[#This Row],[Facility Name]])),ISNUMBER(SEARCH("former",_AllData[[#This Row],[Facility Name]])),ISNUMBER(SEARCH("restoration",_AllData[[#This Row],[Facility Name]])),ISNUMBER(SEARCH("well",_AllData[[#This Row],[Facility Name]])),ISNUMBER(SEARCH("GWCU",_AllData[[#This Row],[Facility Name]])),ISNUMBER(SEARCH("reclamation",_AllData[[#This Row],[Facility Name]])),ISNUMBER(SEARCH("GWTS",_AllData[[#This Row],[Facility Name]])),ISNUMBER(SEARCH("GWETS",_AllData[[#This Row],[Facility Name]])),_AllData[[#This Row],[SIC Code]]="1794",_AllData[[#This Row],[SIC Code]]="4959")),"remediation","industrial/commercial")) -> industrial/commercial | I24: NPD | J24: 03/01/2007 | K24: 02/29/2012 | L24: Non-Major | M24: 2869 | N24: =COUNTIF('SIC to 2002 NAICS'!$A$2:$A$2166,_AllData[[#This Row],[SIC Code]]) -> 7 | O24: =IFERROR(VLOOKUP(_AllData[[#This Row],[TRI Facility ID(s)]],'TRI NAICS Crosswalk'!$E$2:$G$455,3,FALSE),IF(_AllData[[#This Row],[NAICS Code]]<>"",VALUE(_AllData[[#This Row],[NAICS Code]]),IFERROR(VLOOKUP(VLOOKUP(VLOOKUP(VLOOKUP(_AllData[[#This Row],[SIC Code]],'SIC to 2002 NAICS'!$A$1:$D$2167,3,FALSE),'2002 to 2007 NAICS'!$A$3:$D$1203,3,FALSE),'2007 to 2012 NAICS'!$A$3:$D$1187,3,FALSE),'2012 to 2017 NAICS'!$A$3:$D$1072,3,FALSE),"SIC Not Provided"))) -> 325110 | Q24: 8909 MABELVALE PIKE | R24: LITTLE ROCK | S24: AR | T24: 72209-4234 | U24: PULASKI | V24: 06 | W24: 02 | X24: 34.672722 | Y24: -92.379222 | Z24: 111102070202 | AA24: McHenry Creek-Fourche Creek | AB24: WESSON SPRING,FOURCHE CK,ARKANSAS R | AC24: 11110207000990 | AH24: .0216 | AI24: 0 | AJ24: =IFERROR(VALUE(CONVERT(_AllData[[#This Row],[Total Facility Load (kg/yr)]]*1000,"g","lbm")),0) -> 0 | AK24: 0 | AL24: 0 | AM24: .025306122448979589978 | AN24: 1.01556 | AO24: No | AP24: Yes | AQ24: Yes
A25: 2012 | B25: AZ0020001 | C25: PIMA COUNTY - INA ROAD WWTP | D25: 110039276404 | F25: 4001903001, 04001903001 | G25: POTW | H25: =IF(OR(_AllData[[#This Row],[Facility Type Indicator]]="POTW", _AllData[[#This Row],[Facility Type Indicator]]="FEDERAL"),"POTW",IF(AND(_AllData[[#This Row],[Facility Type Indicator]]="NON-POTW", OR(ISNUMBER(SEARCH("groundwater",_AllData[[#This Row],[Facility Name]])),ISNUMBER(SEARCH("GW treatment",_AllData[[#This Row],[Facility Name]])),ISNUMBER(SEARCH("remediation",_AllData[[#This Row],[Facility Name]])),ISNUMBER(SEARCH("superfund",_AllData[[#This Row],[Facility Name]])),ISNUMBER(SEARCH("former",_AllData[[#This Row],[Facility Name]])),ISNUMBER(SEARCH("restoration",_AllData[[#This Row],[Facility Name]])),ISNUMBER(SEARCH("well",_AllData[[#This Row],[Facility Name]])),ISNUMBER(SEARCH("GWCU",_AllData[[#This Row],[Facility Name]])),ISNUMBER(SEARCH("reclamation",_AllData[[#This Row],[Facility Name]])),ISNUMBER(SEARCH("GWTS",_AllData[[#This Row],[Facility Name]])),ISNUMBER(SEARCH("GWETS",_AllData[[#This Row],[Facility Name]])),_AllData[[#This Row],[SIC Code]]="1794",_AllData[[#This Row],[SIC Code]]="4959")),"remediation","industrial/commercial")) -> POTW | I25: NPD | J25: 05/03/2019 | K25: 07/09/2022 | L25: Major | N25: =COUNTIF('SIC to 2002 NAICS'!$A$2:$A$2166,_AllData[[#This Row],[SIC Code]]) -> 0 | O25: =IFERROR(VLOOKUP(_AllData[[#This Row],[TRI Facility ID(s)]],'TRI NAICS Crosswalk'!$E$2:$G$455,3,FALSE),IF(_AllData[[#This Row],[NAICS Code]]<>"",VALUE(_AllData[[#This Row],[NAICS Code]]),IFERROR(VLOOKUP(VLOOKUP(VLOOKUP(VLOOKUP(_AllData[[#This Row],[SIC Code]],'SIC to 2002 NAICS'!$A$1:$D$2167,3,FALSE),'2002 to 2007 NAICS'!$A$3:$D$1203,3,FALSE),'2007 to 2012 NAICS'!$A$3:$D$1187,3,FALSE),'2012 to 2017 NAICS'!$A$3:$D$1072,3,FALSE),"SIC Not Provided"))) -> SIC Not Provided | Q25: 7101 N CASA GRANDE HWY | R25: TUCSON | S25: AZ | T25: 85743-8618 | U25: PIMA | V25: 09 | W25: 08 | X25: 32.334965 | Y25: -111.063325 | Z25: 150503010908 | AA25: Ruelas Canyon-Santa Cruz River | AC25: 15060106000338 | AJ25: =IFERROR(VALUE(CONVERT(_AllData[[#This Row],[Total Facility Load (kg/yr)]]*1000,"g","lbm")),0) -> 0 | AK25: 0 | AN25: 7870.069090909090909090909090909090909091 | AO25: No | AP25: No | AQ25: No
A26: 2012 | B26: AZ0020044 | C26: WICKENBURG WWTP | D26: 110010062671 | F26: 04001340001 | G26: POTW | H26: =IF(OR(_AllData[[#This Row],[Facility Type Indicator]]="POTW", _AllData[[#This Row],[Facility Type Indicator]]="FEDERAL"),"POTW",IF(AND(_AllData[[#This Row],[Facility Type Indicator]]="NON-POTW", OR(ISNUMBER(SEARCH("groundwater",_AllData[[#This Row],[Facility Name]])),ISNUMBER(SEARCH("GW treatment",_AllData[[#This Row],[Facility Name]])),ISNUMBER(SEARCH("remediation",_AllData[[#This Row],[Facility Name]])),ISNUMBER(SEARCH("superfund",_AllData[[#This Row],[Facility Name]])),ISNUMBER(SEARCH("former",_AllData[[#This Row],[Facility Name]])),ISNUMBER(SEARCH("restoration",_AllData[[#This Row],[Facility Name]])),ISNUMBER(SEARCH("well",_AllData[[#This Row],[Facility Name]])),ISNUMBER(SEARCH("GWCU",_AllData[[#This Row],[Facility Name]])),ISNUMBER(SEARCH("reclamation",_AllData[[#This Row],[Facility Name]])),ISNUMBER(SEARCH("GWTS",_AllData[[#This Row],[Facility Name]])),ISNUMBER(SEARCH("GWETS",_AllData[[#This Row],[Facility Name]])),_AllData[[#This Row],[SIC Code]]="1794",_AllData[[#This Row],[SIC Code]]="4959")),"remediation","industrial/commercial")) -> POTW | I26: NPD | J26: 12/28/2011 | K26: 12/27/2016 | L26: Non-Major | M26: 4952 | N26: =COUNTIF('SIC to 2002 NAICS'!$A$2:$A$2166,_AllData[[#This Row],[SIC Code]]) -> 1 | O26: =IFERROR(VLOOKUP(_AllData[[#This Row],[TRI Facility ID(s)]],'TRI NAICS Crosswalk'!$E$2:$G$455,3,FALSE),IF(_AllData[[#This Row],[NAICS Code]]<>"",VALUE(_AllData[[#This Row],[NAICS Code]]),IFERROR(VLOOKUP(VLOOKUP(VLOOKUP(VLOOKUP(_AllData[[#This Row],[SIC Code]],'SIC to 2002 NAICS'!$A$1:$D$2167,3,FALSE),'2002 to 2007 NAICS'!$A$3:$D$1203,3,FALSE),'2007 to 2012 NAICS'!$A$3:$D$1187,3,FALSE),'2012 to 2017 NAICS'!$A$3:$D$1072,3,FALSE),"SIC Not Provided"))) -> 221320 | Q26: WASTWATER TREATMENT FACILITY | R26: WICKENBURG | S26: AZ | T26: 85358 | U26: MARICOPA | V26: 09 | W26: 02 | X26: 33.962192 | Y26: -112.772899 | Z26: 150701030204 | AA26: Lower Sols Wash | AB26: HASSAYAMPA RIVER | AC26: 15070103000043 | AG26: .8 | AI26: 0 | AJ26: =IFERROR(VALUE(CONVERT(_AllData[[#This Row],[Total Facility Load (kg/yr)]]*1000,"g","lbm")),0) -> 0 | AK26: 0 | AN26: 0 | AO26: No | AP26: No | AQ26: No
A27: 2012 | B27: AZ0020117 | C27: AMERICAN GULCH WASTEWATER TREATMENT PLANT | D27: 110000508530 | F27: 4000703001, 04000703001 | G27: POTW | H27: =IF(OR(_AllData[[#This Row],[Facility Type Indicator]]="POTW", _AllData[[#This Row],[Facility Type Indicator]]="FEDERAL"),"POTW",IF(AND(_AllData[[#This Row],[Facility Type Indicator]]="NON-POTW", OR(ISNUMBER(SEARCH("groundwater",_AllData[[#This Row],[Facility Name]])),ISNUMBER(SEARCH("GW treatment",_AllData[[#This Row],[Facility Name]])),ISNUMBER(SEARCH("remediation",_AllData[[#This Row],[Facility Name]])),ISNUMBER(SEARCH("superfund",_AllData[[#This Row],[Facility Name]])),ISNUMBER(SEARCH("former",_AllData[[#This Row],[Facility Name]])),ISNUMBER(SEARCH("restoration",_AllData[[#This Row],[Facility Name]])),ISNUMBER(SEARCH("well",_AllData[[#This Row],[Facility Name]])),ISNUMBER(SEARCH("GWCU",_AllData[[#This Row],[Facility Name]])),ISNUMBER(SEARCH("reclamation",_AllData[[#This Row],[Facility Name]])),ISNUMBER(SEARCH("GWTS",_AllData[[#This Row],[Facility Name]])),ISNUMBER(SEARCH("GWETS",_AllData[[#This Row],[Facility Name]])),_AllData[[#This Row],[SIC Code]]="1794",_AllData[[#This Row],[SIC Code]]="4959")),"remediation","industrial/commercial")) -> POTW | I27: NPD | J27: 06/06/2017 | K27: 06/05/2022 | L27: Major | N27: =COUNTIF('SIC to 2002 NAICS'!$A$2:$A$2166,_AllData[[#This Row],[SIC Code]]) -> 0 | O27: =IFERROR(VLOOKUP(_AllData[[#This Row],[TRI Facility ID(s)]],'TRI NAICS Crosswalk'!$E$2:$G$455,3,FALSE),IF(_AllData[[#This Row],[NAICS Code]]<>"",VALUE(_AllData[[#This Row],[NAICS Code]]),IFERROR(VLOOKUP(VLOOKUP(VLOOKUP(VLOOKUP(_AllData[[#This Row],[SIC Code]],'SIC to 2002 NAICS'!$A$1:$D$2167,3,FALSE),'2002 to 2007 NAICS'!$A$3:$D$1203,3,FALSE),'2007 to 2012 NAICS'!$A$3:$D$1187,3,FALSE),'2012 to 2017 NAICS'!$A$3:$D$1072,3,FALSE),"SIC Not Provided"))) -> SIC Not Provided | Q27: 2200 W DOLL BABY RD | R27: PAYSON | S27: AZ | T27: 85541-4521 | U27: GILA | V27: 09 | W27: 01 | X27: 34.286056 | Y27: -111.359778 | Z27: 150602030205 | AA27: Upper East Verde River | AC27: 15070102001272 | AJ27: =IFERROR(VALUE(CONVERT(_AllData[[#This Row],[Total Facility Load (kg/yr)]]*1000,"g","lbm")),0) -> 0 | AK27: 0 | AN27: 431.198181818181818181818181818181818182 | AO27: No | AP27: No | AQ27: No
A28: 2012 | B28: AZ0020231 | C28: TOWN OF GILA BEND - WWTP | D28: 110010677829 | G28: POTW | H28: =IF(OR(_AllData[[#This Row],[Facility Type Indicator]]="POTW", _AllData[[#This Row],[Facility Type Indicator]]="FEDERAL"),"POTW",IF(AND(_AllData[[#This Row],[Facility Type Indicator]]="NON-POTW", OR(ISNUMBER(SEARCH("groundwater",_AllData[[#This Row],[Facility Name]])),ISNUMBER(SEARCH("GW treatment",_AllData[[#This Row],[Facility Name]])),ISNUMBER(SEARCH("remediation",_AllData[[#This Row],[Facility Name]])),ISNUMBER(SEARCH("superfund",_AllData[[#This Row],[Facility Name]])),ISNUMBER(SEARCH("former",_AllData[[#This Row],[Facility Name]])),ISNUMBER(SEARCH("restoration",_AllData[[#This Row],[Facility Name]])),ISNUMBER(SEARCH("well",_AllData[[#This Row],[Facility Name]])),ISNUMBER(SEARCH("GWCU",_AllData[[#This Row],[Facility Name]])),ISNUMBER(SEARCH("reclamation",_AllData[[#This Row],[Facility Name]])),ISNUMBER(SEARCH("GWTS",_AllData[[#This Row],[Facility Name]])),ISNUMBER(SEARCH("GWETS",_AllData[[#This Row],[Facility Name]])),_AllData[[#This Row],[SIC Code]]="1794",_AllData[[#This Row],[SIC Code]]="4959")),"remediation","industrial/commercial")) -> POTW | I28: NPD | J28: 03/26/2020 | K28: 03/25/2025 | L28: Non-Major | N28: =COUNTIF('SIC to 2002 NAICS'!$A$2:$A$2166,_AllData[[#This Row],[SIC Code]]) -> 0 | O28: =IFERROR(VLOOKUP(_AllData[[#This Row],[TRI Facility ID(s)]],'TRI NAICS Crosswalk'!$E$2:$G$455,3,FALSE),IF(_AllData[[#This Row],[NAICS Code]]<>"",VALUE(_AllData[[#This Row],[NAICS Code]]),IFERROR(VLOOKUP(VLOOKUP(VLOOKUP(VLOOKUP(_AllData[[#This Row],[SIC Code]],'SIC to 2002 NAICS'!$A$1:$D$2167,3,FALSE),'2002 to 2007 NAICS'!$A$3:$D$1203,3,FALSE),'2007 to 2012 NAICS'!$A$3:$D$1187,3,FALSE),'2012 to 2017 NAICS'!$A$3:$D$1072,3,FALSE),"SIC Not Provided"))) -> SIC Not Provided | Q28: 1901 W WATERMELON ROAD | R28: GILA BEND | S28: AZ | T28: 85337 | U28: MARICOPA | V28: 09 | W28: 07 | X28: 32.970362 | Y28: -112.730184 | Z28: 150701010503 | AA28: Lower Quilotosa Wash | AC28: 15070101000221 | AI28: 0 | AJ28: =IFERROR(VALUE(CONVERT(_AllData[[#This Row],[Total Facility Load (kg/yr)]]*1000,"g","lbm")),0) -> 0 | AK28: 0 | AN28: 93.73244 | AO28: No | AP28: No | AQ28: Yes
A29: 2012 | B29: AZ0020249 | C29: PINAL CREEK WWTP | D29: 110000730326 | G29: POTW | H29: =IF(OR(_AllData[[#This Row],[Facility Type Indicator]]="POTW", _AllData[[#This Row],[Facility Type Indicator]]="FEDERAL"),"POTW",IF(AND(_AllData[[#This Row],[Facility Type Indicator]]="NON-POTW", OR(ISNUMBER(SEARCH("groundwater",_AllData[[#This Row],[Facility Name]])),ISNUMBER(SEARCH("GW treatment",_AllData[[#This Row],[Facility Name]])),ISNUMBER(SEARCH("remediation",_AllData[[#This Row],[Facility Name]])),ISNUMBER(SEARCH("superfund",_AllData[[#This Row],[Facility Name]])),ISNUMBER(SEARCH("former",_AllData[[#This Row],[Facility Name]])),ISNUMBER(SEARCH("restoration",_AllData[[#This Row],[Facility Name]])),ISNUMBER(SEARCH("well",_AllData[[#This Row],[Facility Name]])),ISNUMBER(SEARCH("GWCU",_AllData[[#This Row],[Facility Name]])),ISNUMBER(SEARCH("reclamation",_AllData[[#This Row],[Facility Name]])),ISNUMBER(SEARCH("GWTS",_AllData[[#This Row],[Facility Name]])),ISNUMBER(SEARCH("GWETS",_AllData[[#This Row],[Facility Name]])),_AllData[[#This Row],[SIC Code]]="1794",_AllData[[#This Row],[SIC Code]]="4959")),"remediation","industrial/commercial")) -> POTW | I29: NPD | J29: 03/04/2019 | K29: 01/25/2021 | L29: Major | N29: =COUNTIF('SIC to 2002 NAICS'!$A$2:$A$2166,_AllData[[#This Row],[SIC Code]]) -> 0 | O29: =IFERROR(VLOOKUP(_AllData[[#This Row],[TRI Facility ID(s)]],'TRI NAICS Crosswalk'!$E$2:$G$455,3,FALSE),IF(_AllData[[#This Row],[NAICS Code]]<>"",VALUE(_AllData[[#This Row],[NAICS Code]]),IFERROR(VLOOKUP(VLOOKUP(VLOOKUP(VLOOKUP(_AllData[[#This Row],[SIC Code]],'SIC to 2002 NAICS'!$A$1:$D$2167,3,FALSE),'2002 to 2007 NAICS'!$A$3:$D$1203,3,FALSE),'2007 to 2012 NAICS'!$A$3:$D$1187,3,FALSE),'2012 to 2017 NAICS'!$A$3:$D$1072,3,FALSE),"SIC Not Provided"))) -> SIC Not Provided | Q29: 2005 N PINAL CREEK ROAD | R29: GLOBE | S29: AZ | T29: 85501 | U29: GILA | V29: 09 | W29: 01 | X29: 33.396093 | Y29: -110.788279 | Z29: 150601030604 | AA29: Upper Pinal Creek | AC29: 15070101000139 | AI29: 0 | AJ29: =IFERROR(VALUE(CONVERT(_AllData[[#This Row],[Total Facility Load (kg/yr)]]*1000,"g","lbm")),0) -> 0 | AK29: 0 | AL29: 0 | AN29: 206.511 | AO29: No | AP29: No | AQ29: Yes
A30: 2012 | B30: AZ0020338 | C30: TOLLESON WWTP | D30: 110000730335 | F30: 04001332001, 4001332001 | G30: POTW | H30: =IF(OR(_AllData[[#This Row],[Facility Type Indicator]]="POTW", _AllData[[#This Row],[Facility Type Indicator]]="FEDERAL"),"POTW",IF(AND(_AllData[[#This Row],[Facility Type Indicator]]="NON-POTW", OR(ISNUMBER(SEARCH("groundwater",_AllData[[#This Row],[Facility Name]])),ISNUMBER(SEARCH("GW treatment",_AllData[[#This Row],[Facility Name]])),ISNUMBER(SEARCH("remediation",_AllData[[#This Row],[Facility Name]])),ISNUMBER(SEARCH("superfund",_AllData[[#This Row],[Facility Name]])),ISNUMBER(SEARCH("former",_AllData[[#This Row],[Facility Name]])),ISNUMBER(SEARCH("restoration",_AllData[[#This Row],[Facility Name]])),ISNUMBER(SEARCH("well",_AllData[[#This Row],[Facility Name]])),ISNUMBER(SEARCH("GWCU",_AllData[[#This Row],[Facility Name]])),ISNUMBER(SEARCH("reclamation",_AllData[[#This Row],[Facility Name]])),ISNUMBER(SEARCH("GWTS",_AllData[[#This Row],[Facility Name]])),ISNUMBER(SEARCH("GWETS",_AllData[[#This Row],[Facility Name]])),_AllData[[#This Row],[SIC Code]]="1794",_AllData[[#This Row],[SIC Code]]="4959")),"remediation","industrial/commercial")) -> POTW | I30: NPD | J30: 08/17/2015 | K30: 08/16/2020 | L30: Major | N30: =COUNTIF('SIC to 2002 NAICS'!$A$2:$A$2166,_AllData[[#This Row],[SIC Code]]) -> 0 | O30: =IFERROR(VLOOKUP(_AllData[[#This Row],[TRI Facility ID(s)]],'TRI NAICS Crosswalk'!$E$2:$G$455,3,FALSE),IF(_AllData[[#This Row],[NAICS Code]]<>"",VALUE(_AllData[[#This Row],[NAICS Code]]),IFERROR(VLOOKUP(VLOOKUP(VLOOKUP(VLOOKUP(_AllData[[#This Row],[SIC Code]],'SIC to 2002 NAICS'!$A$1:$D$2167,3,FALSE),'2002 to 2007 NAICS'!$A$3:$D$1203,3,FALSE),'2007 to 2012 NAICS'!$A$3:$D$1187,3,FALSE),'2012 to 2017 NAICS'!$A$3:$D$1072,3,FALSE),"SIC Not Provided"))) -> SIC Not Provided | Q30: 9501 W PIMA RD | R30: TOLLESON | S30: AZ | T30: 85353 | U30: MARICOPA | V30: 09 | W30: 07 | X30: 33.45029 | Y30: -112.265672 | Z30: 150701020909 | AA30: City of Glendale-Agua Fria River | AC30: 15060105000700 | AI30: 0 | AJ30: =IFERROR(VALUE(CONVERT(_AllData[[#This Row],[Total Facility Load (kg/yr)]]*1000,"g","lbm")),0) -> 0 | AK30: 0 | AL30: 0 | AN30: 504.96 | AO30: No | AP30: No | AQ30: Yes
A31: 2012 | B31: AZ0020427 | C31: WILDCAT HILL WWTP | D31: 110043316612 | F31: 04000501002, 4000501002 | G31: POTW | H31: =IF(OR(_AllData[[#This Row],[Facility Type Indicator]]="POTW", _AllData[[#This Row],[Facility Type Indicator]]="FEDERAL"),"POTW",IF(AND(_AllData[[#This Row],[Facility Type Indicator]]="NON-POTW", OR(ISNUMBER(SEARCH("groundwater",_AllData[[#This Row],[Facility Name]])),ISNUMBER(SEARCH("GW treatment",_AllData[[#This Row],[Facility Name]])),ISNUMBER(SEARCH("remediation",_AllData[[#This Row],[Facility Name]])),ISNUMBER(SEARCH("superfund",_AllData[[#This Row],[Facility Name]])),ISNUMBER(SEARCH("former",_AllData[[#This Row],[Facility Name]])),ISNUMBER(SEARCH("restoration",_AllData[[#This Row],[Facility Name]])),ISNUMBER(SEARCH("well",_AllData[[#This Row],[Facility Name]])),ISNUMBER(SEARCH("GWCU",_AllData[[#This Row],[Facility Name]])),ISNUMBER(SEARCH("reclamation",_AllData[[#This Row],[Facility Name]])),ISNUMBER(SEARCH("GWTS",_AllData[[#This Row],[Facility Name]])),ISNUMBER(SEARCH("GWETS",_AllData[[#This Row],[Facility Name]])),_AllData[[#This Row],[SIC Code]]="1794",_AllData[[#This Row],[SIC Code]]="4959")),"remediation","industrial/commercial")) -> POTW | I31: NPD | J31: 06/01/2020 | K31: 05/31/2025 | L31: Major | N31: =COUNTIF('SIC to 2002 NAICS'!$A$2:$A$2166,_AllData[[#This Row],[SIC Code]]) -> 0 | O31: =IFERROR(VLOOKUP(_AllData[[#This Row],[TRI Facility ID(s)]],'TRI NAICS Crosswalk'!$E$2:$G$455,3,FALSE),IF(_AllData[[#This Row],[NAICS Code]]<>"",VALUE(_AllData[[#This Row],[NAICS Code]]),IFERROR(VLOOKUP(VLOOKUP(VLOOKUP(VLOOKUP(_AllData[[#This Row],[SIC Code]],'SIC to 2002 NAICS'!$A$1:$D$2167,3,FALSE),'2002 to 2007 NAICS'!$A$3:$D$1203,3,FALSE),'2007 to 2012 NAICS'!$A$3:$D$1187,3,FALSE),'2012 to 2017 NAICS'!$A$3:$D$1072,3,FALSE),"SIC Not Provided"))) -> SIC Not Provided | Q31: 2800 N EL PASO FLAGSTAFF RD | R31: FLAGSTAFF | S31: AZ | T31: 86004-7868 | U31: COCONINO | V31: 09 | W31: 01 | X31: 35.22527 | Y31: -111.553393 | Z31: 150200150104 | AA31: Lower Rio de Flag | AC31: 15050301001323 | AJ31: =IFERROR(VALUE(CONVERT(_AllData[[#This Row],[Total Facility Load (kg/yr)]]*1000,"g","lbm")),0) -> 0 | AK31: 0 | AN31: 902.756 | AO31: No | AP31: No | AQ31: No
A32: 2012 | B32: AZ0020443 | C32: YUMA, CITY OF - FIGUEROA AVE WPCF | D32: 110000522257 | F32: 4002709001, 04002709001 | G32: POTW | H32: =IF(OR(_AllData[[#This Row],[Facility Type Indicator]]="POTW", _AllData[[#This Row],[Facility Type Indicator]]="FEDERAL"),"POTW",IF(AND(_AllData[[#This Row],[Facility Type Indicator]]="NON-POTW", OR(ISNUMBER(SEARCH("groundwater",_AllData[[#This Row],[Facility Name]])),ISNUMBER(SEARCH("GW treatment",_AllData[[#This Row],[Facility Name]])),ISNUMBER(SEARCH("remediation",_AllData[[#This Row],[Facility Name]])),ISNUMBER(SEARCH("superfund",_AllData[[#This Row],[Facility Name]])),ISNUMBER(SEARCH("former",_AllData[[#This Row],[Facility Name]])),ISNUMBER(SEARCH("restoration",_AllData[[#This Row],[Facility Name]])),ISNUMBER(SEARCH("well",_AllData[[#This Row],[Facility Name]])),ISNUMBER(SEARCH("GWCU",_AllData[[#This Row],[Facility Name]])),ISNUMBER(SEARCH("reclamation",_AllData[[#This Row],[Facility Name]])),ISNUMBER(SEARCH("GWTS",_AllData[[#This Row],[Facility Name]])),ISNUMBER(SEARCH("GWETS",_AllData[[#This Row],[Facility Name]])),_AllData[[#This Row],[SIC Code]]="1794",_AllData[[#This Row],[SIC Code]]="4959")),"remediation","industrial/commercial")) -> POTW | I32: NPD | J32: 08/05/2019 | K32: 08/04/2024 | L32: Major | N32: =COUNTIF('SIC to 2002 NAICS'!$A$2:$A$2166,_AllData[[#This Row],[SIC Code]]) -> 0 | O32: =IFERROR(VLOOKUP(_AllData[[#This Row],[TRI Facility ID(s)]],'TRI NAICS Crosswalk'!$E$2:$G$455,3,FALSE),IF(_AllData[[#This Row],[NAICS Code]]<>"",VALUE(_AllData[[#This Row],[NAICS Code]]),IFERROR(VLOOKUP(VLOOKUP(VLOOKUP(VLOOKUP(_AllData[[#This Row],[SIC Code]],'SIC to 2002 NAICS'!$A$1:$D$2167,3,FALSE),'2002 to 2007 NAICS'!$A$3:$D$1203,3,FALSE),'2007 to 2012 NAICS'!$A$3:$D$1187,3,FALSE),'2012 to 2017 NAICS'!$A$3:$D$1072,3,FALSE),"SIC Not Provided"))) -> SIC Not Provided | Q32: 289 N FIGUEROA AVE | R32: YUMA | S32: AZ | T32: 85364-1125 | U32: YUMA | V32: 09 | W32: 07 | X32: 32.730833 | Y32: -114.663333 | Z32: 150301080300 | AA32: Yuma Valley | AC32: 15050302000179 | AJ32: =IFERROR(VALUE(CONVERT(_AllData[[#This Row],[Total Facility Load (kg/yr)]]*1000,"g","lbm")),0) -> 0 | AK32: 0 | AN32: 2543.275 | AO32: No | AP32: No | AQ32: No
A33: 2012 | B33: AZ0020524 | C33: 91ST AVE WASTEWATER TREATMENT PLANT | D33: 110000510144 | G33: POTW | H33: =IF(OR(_AllData[[#This Row],[Facility Type Indicator]]="POTW", _AllData[[#This Row],[Facility Type Indicator]]="FEDERAL"),"POTW",IF(AND(_AllData[[#This Row],[Facility Type Indicator]]="NON-POTW", OR(ISNUMBER(SEARCH("groundwater",_AllData[[#This Row],[Facility Name]])),ISNUMBER(SEARCH("GW treatment",_AllData[[#This Row],[Facility Name]])),ISNUMBER(SEARCH("remediation",_AllData[[#This Row],[Facility Name]])),ISNUMBER(SEARCH("superfund",_AllData[[#This Row],[Facility Name]])),ISNUMBER(SEARCH("former",_AllData[[#This Row],[Facility Name]])),ISNUMBER(SEARCH("restoration",_AllData[[#This Row],[Facility Name]])),ISNUMBER(SEARCH("well",_AllData[[#This Row],[Facility Name]])),ISNUMBER(SEARCH("GWCU",_AllData[[#This Row],[Facility Name]])),ISNUMBER(SEARCH("reclamation",_AllData[[#This Row],[Facility Name]])),ISNUMBER(SEARCH("GWTS",_AllData[[#This Row],[Facility Name]])),ISNUMBER(SEARCH("GWETS",_AllData[[#This Row],[Facility Name]])),_AllData[[#This Row],[SIC Code]]="1794",_AllData[[#This Row],[SIC Code]]="4959")),"remediation","industrial/commercial")) -> POTW | I33: NPD | J33: 12/01/2016 | K33: 11/30/2021 | L33: Major | N33: =COUNTIF('SIC to 2002 NAICS'!$A$2:$A$2166,_AllData[[#This Row],[SIC Code]]) -> 0 | O33: =IFERROR(VLOOKUP(_AllData[[#This Row],[TRI Facility ID(s)]],'TRI NAICS Crosswalk'!$E$2:$G$455,3,FALSE),IF(_AllData[[#This Row],[NAICS Code]]<>"",VALUE(_AllData[[#This Row],[NAICS Code]]),IFERROR(VLOOKUP(VLOOKUP(VLOOKUP(VLOOKUP(_AllData[[#This Row],[SIC Code]],'SIC to 2002 NAICS'!$A$1:$D$2167,3,FALSE),'2002 to 2007 NAICS'!$A$3:$D$1203,3,FALSE),'2007 to 2012 NAICS'!$A$3:$D$1187,3,FALSE),'2012 to 2017 NAICS'!$A$3:$D$1072,3,FALSE),"SIC Not Provided"))) -> SIC Not Provided | Q33: 5615 S 91ST AVE | R33: TOLLESON | S33: AZ | T33: 85353 | U33: MARICOPA | V33: 09 | W33: 07 | X33: 33.395 | Y33: -112.254167 | Z33: 150601060306 | AA33: Town of Santa Maria-Salt River | AC33: 15070102009260 | AG33: 230 | AJ33: =IFERROR(VALUE(CONVERT(_AllData[[#This Row],[Total Facility Load (kg/yr)]]*1000,"g","lbm")),0) -> 0 | AK33: 0 | AN33: 46977.76 | AO33: No | AP33: No | AQ33: No
A34: 2012 | B34: AZ0020559 | C34: 23RD AVENUE WASTEWATER TREATMENT PLANT | D34: 110000509851 | F34: 04001316001, 4001316001 | G34: POTW | H34: =IF(OR(_AllData[[#This Row],[Facility Type Indicator]]="POTW", _AllData[[#This Row],[Facility Type Indicator]]="FEDERAL"),"POTW",IF(AND(_AllData[[#This Row],[Facility Type Indicator]]="NON-POTW", OR(ISNUMBER(SEARCH("groundwater",_AllData[[#This Row],[Facility Name]])),ISNUMBER(SEARCH("GW treatment",_AllData[[#This Row],[Facility Name]])),ISNUMBER(SEARCH("remediation",_AllData[[#This Row],[Facility Name]])),ISNUMBER(SEARCH("superfund",_AllData[[#This Row],[Facility Name]])),ISNUMBER(SEARCH("former",_AllData[[#This Row],[Facility Name]])),ISNUMBER(SEARCH("restoration",_AllData[[#This Row],[Facility Name]])),ISNUMBER(SEARCH("well",_AllData[[#This Row],[Facility Name]])),ISNUMBER(SEARCH("GWCU",_AllData[[#This Row],[Facility Name]])),ISNUMBER(SEARCH("reclamation",_AllData[[#This Row],[Facility Name]])),ISNUMBER(SEARCH("GWTS",_AllData[[#This Row],[Facility Name]])),ISNUMBER(SEARCH("GWETS",_AllData[[#This Row],[Facility Name]])),_AllData[[#This Row],[SIC Code]]="1794",_AllData[[#This Row],[SIC Code]]="4959")),"remediation","industrial/commercial")) -> POTW | I34: NPD | J34: 08/05/2019 | K34: 08/04/2024 | L34: Major | N34: =COUNTIF('SIC to 2002 NAICS'!$A$2:$A$2166,_AllData[[#This Row],[SIC Code]]) -> 0 | O34: =IFERROR(VLOOKUP(_AllData[[#This Row],[TRI Facility ID(s)]],'TRI NAICS Crosswalk'!$E$2:$G$455,3,FALSE),IF(_AllData[[#This Row],[NAICS Code]]<>"",VALUE(_AllData[[#This Row],[NAICS Code]]),IFERROR(VLOOKUP(VLOOKUP(VLOOKUP(VLOOKUP(_AllData[[#This Row],[SIC Code]],'SIC to 2002 NAICS'!$A$1:$D$2167,3,FALSE),'2002 to 2007 NAICS'!$A$3:$D$1203,3,FALSE),'2007 to 2012 NAICS'!$A$3:$D$1187,3,FALSE),'2012 to 2017 NAICS'!$A$3:$D$1072,3,FALSE),"SIC Not Provided"))) -> SIC Not Provided | Q34: 2470 S 22ND AVE | R34: PHOENIX | S34: AZ | T34: 85009 | U34: MARICOPA | V34: 09 | W34: 04 | X34: 33.426667 | Y34: -112.106389 | Z34: 150601060305 | AA34: City of Phoenix-Salt River | AC34: 15070102009185 | AJ34: =IFERROR(VALUE(CONVERT(_AllData[[#This Row],[Total Facility Load (kg/yr)]]*1000,"g","lbm")),0) -> 0 | AK34: 0 | AN34: 10735.23 | AO34: No | AP34: No | AQ34: No
A35: 2012 | B35: AZ0020923 | C35: AGUA NUEVA WRF | D35: 110002042021 | F35: 4001904001 | G35: POTW | H35: =IF(OR(_AllData[[#This Row],[Facility Type Indicator]]="POTW", _AllData[[#This Row],[Facility Type Indicator]]="FEDERAL"),"POTW",IF(AND(_AllData[[#This Row],[Facility Type Indicator]]="NON-POTW", OR(ISNUMBER(SEARCH("groundwater",_AllData[[#This Row],[Facility Name]])),ISNUMBER(SEARCH("GW treatment",_AllData[[#This Row],[Facility Name]])),ISNUMBER(SEARCH("remediation",_AllData[[#This Row],[Facility Name]])),ISNUMBER(SEARCH("superfund",_AllData[[#This Row],[Facility Name]])),ISNUMBER(SEARCH("former",_AllData[[#This Row],[Facility Name]])),ISNUMBER(SEARCH("restoration",_AllData[[#This Row],[Facility Name]])),ISNUMBER(SEARCH("well",_AllData[[#This Row],[Facility Name]])),ISNUMBER(SEARCH("GWCU",_AllData[[#This Row],[Facility Name]])),ISNUMBER(SEARCH("reclamation",_AllData[[#This Row],[Facility Name]])),ISNUMBER(SEARCH("GWTS",_AllData[[#This Row],[Facility Name]])),ISNUMBER(SEARCH("GWETS",_AllData[[#This Row],[Facility Name]])),_AllData[[#This Row],[SIC Code]]="1794",_AllData[[#This Row],[SIC Code]]="4959")),"remediation","industrial/commercial")) -> POTW | I35: NPD | J35: 08/08/2012 | K35: 08/07/2017 | L35: Major | M35: 4952 | N35: =COUNTIF('SIC to 2002 NAICS'!$A$2:$A$2166,_AllData[[#This Row],[SIC Code]]) -> 1 | O35: =IFERROR(VLOOKUP(_AllData[[#This Row],[TRI Facility ID(s)]],'TRI NAICS Crosswalk'!$E$2:$G$455,3,FALSE),IF(_AllData[[#This Row],[NAICS Code]]<>"",VALUE(_AllData[[#This Row],[NAICS Code]]),IFERROR(VLOOKUP(VLOOKUP(VLOOKUP(VLOOKUP(_AllData[[#This Row],[SIC Code]],'SIC to 2002 NAICS'!$A$1:$D$2167,3,FALSE),'2002 to 2007 NAICS'!$A$3:$D$1203,3,FALSE),'2007 to 2012 NAICS'!$A$3:$D$1187,3,FALSE),'2012 to 2017 NAICS'!$A$3:$D$1072,3,FALSE),"SIC Not Provided"))) -> 221320 | Q35: 2600 W SWEETWATER DR | R35: TUCSON | S35: AZ | T35: 85705 | U35: PIMA | V35: 09 | W35: 07 | X35: 32.27981 | Y35: -111.02198 | Z35: 150503010906 | AA35: Arroyo Chico-Santa Cruz River | AB35: SANTA CRUZ RIVER | AC35: 15050301000427 | AG35: 41 | AJ35: =IFERROR(VALUE(CONVERT(_AllData[[#This Row],[Total Facility Load (kg/yr)]]*1000,"g","lbm")),0) -> 0 | AK35: 0 | AN35: 8030.355 | AO35: No | AP35: No | AQ35: No
A36: 2012 | B36: AZ0021415 | C36: JOINT VENTURE WWTF | D36: 110006785381 | F36: 4002703001, 04002703001 | G36: POTW | H36: =IF(OR(_AllData[[#This Row],[Facility Type Indicator]]="POTW", _AllData[[#This Row],[Facility Type Indicator]]="FEDERAL"),"POTW",IF(AND(_AllData[[#This Row],[Facility Type Indicator]]="NON-POTW", OR(ISNUMBER(SEARCH("groundwater",_AllData[[#This Row],[Facility Name]])),ISNUMBER(SEARCH("GW treatment",_AllData[[#This Row],[Facility Name]])),ISNUMBER(SEARCH("remediation",_AllData[[#This Row],[Facility Name]])),ISNUMBER(SEARCH("superfund",_AllData[[#This Row],[Facility Name]])),ISNUMBER(SEARCH("former",_AllData[[#This Row],[Facility Name]])),ISNUMBER(SEARCH("restoration",_AllData[[#This Row],[Facility Name]])),ISNUMBER(SEARCH("well",_AllData[[#This Row],[Facility Name]])),ISNUMBER(SEARCH("GWCU",_AllData[[#This Row],[Facility Name]])),ISNUMBER(SEARCH("reclamation",_AllData[[#This Row],[Facility Name]])),ISNUMBER(SEARCH("GWTS",_AllData[[#This Row],[Facility Name]])),ISNUMBER(SEARCH("GWETS",_AllData[[#This Row],[Facility Name]])),_AllData[[#This Row],[SIC Code]]="1794",_AllData[[#This Row],[SIC Code]]="4959")),"remediation","industrial/commercial")) -> POTW | I36: NPD | J36: 05/01/2015 | K36: 04/30/2020 | L36: Major | M36: 4952 | N36: =COUNTIF('SIC to 2002 NAICS'!$A$2:$A$2166,_AllData[[#This Row],[SIC Code]]) -> 1 | O36: =IFERROR(VLOOKUP(_AllData[[#This Row],[TRI Facility ID(s)]],'TRI NAICS Crosswalk'!$E$2:$G$455,3,FALSE),IF(_AllData[[#This Row],[NAICS Code]]<>"",VALUE(_AllData[[#This Row],[NAICS Code]]),IFERROR(VLOOKUP(VLOOKUP(VLOOKUP(VLOOKUP(_AllData[[#This Row],[SIC Code]],'SIC to 2002 NAICS'!$A$1:$D$2167,3,FALSE),'2002 to 2007 NAICS'!$A$3:$D$1203,3,FALSE),'2007 to 2012 NAICS'!$A$3:$D$1187,3,FALSE),'2012 to 2017 NAICS'!$A$3:$D$1072,3,FALSE),"SIC Not Provided"))) -> 221320 | Q36: LAT 34.143, LON -114.308 | R36: PARKER | S36: AZ | T36: 85344 | U36: LA PAZ | V36: 09 | W36: 07 | X36: 34.1433 | Y36: -114.3086 | Z36: 150301040305 | AA36: Main Canal | AB36: COLORADO RIVER | AC36: 15030104001008 | AG36: 1.2 | AJ36: =IFERROR(VALUE(CONVERT(_AllData[[#This Row],[Total Facility Load (kg/yr)]]*1000,"g","lbm")),0) -> 0 | AK36: 0 | AN36: 256.511 | AO36: No | AP36: No | AQ36: No
A37: 2012 | B37: AZ0022357 | C37: GOODYEAR, CITY OF - 157TH AVE WWTP | D37: 110000510894 | F37: 4001341001, 04001341001 | G37: POTW | H37: =IF(OR(_AllData[[#This Row],[Facility Type Indicator]]="POTW", _AllData[[#This Row],[Facility Type Indicator]]="FEDERAL"),"POTW",IF(AND(_AllData[[#This Row],[Facility Type Indicator]]="NON-POTW", OR(ISNUMBER(SEARCH("groundwater",_AllData[[#This Row],[Facility Name]])),ISNUMBER(SEARCH("GW treatment",_AllData[[#This Row],[Facility Name]])),ISNUMBER(SEARCH("remediation",_AllData[[#This Row],[Facility Name]])),ISNUMBER(SEARCH("superfund",_AllData[[#This Row],[Facility Name]])),ISNUMBER(SEARCH("former",_AllData[[#This Row],[Facility Name]])),ISNUMBER(SEARCH("restoration",_AllData[[#This Row],[Facility Name]])),ISNUMBER(SEARCH("well",_AllData[[#This Row],[Facility Name]])),ISNUMBER(SEARCH("GWCU",_AllData[[#This Row],[Facility Name]])),ISNUMBER(SEARCH("reclamation",_AllData[[#This Row],[Facility Name]])),ISNUMBER(SEARCH("GWTS",_AllData[[#This Row],[Facility Name]])),ISNUMBER(SEARCH("GWETS",_AllData[[#This Row],[Facility Name]])),_AllData[[#This Row],[SIC Code]]="1794",_AllData[[#This Row],[SIC Code]]="4959")),"remediation","industrial/commercial")) -> POTW | I37: NPD | J37: 06/17/2019 | K37: 05/01/2021 | L37: Major | N37: =COUNTIF('SIC to 2002 NAICS'!$A$2:$A$2166,_AllData[[#This Row],[SIC Code]]) -> 0 | O37: =IFERROR(VLOOKUP(_AllData[[#This Row],[TRI Facility ID(s)]],'TRI NAICS Crosswalk'!$E$2:$G$455,3,FALSE),IF(_AllData[[#This Row],[NAICS Code]]<>"",VALUE(_AllData[[#This Row],[NAICS Code]]),IFERROR(VLOOKUP(VLOOKUP(VLOOKUP(VLOOKUP(_AllData[[#This Row],[SIC Code]],'SIC to 2002 NAICS'!$A$1:$D$2167,3,FALSE),'2002 to 2007 NAICS'!$A$3:$D$1203,3,FALSE),'2007 to 2012 NAICS'!$A$3:$D$1187,3,FALSE),'2012 to 2017 NAICS'!$A$3:$D$1072,3,FALSE),"SIC Not Provided"))) -> SIC Not Provided | Q37: 5424 S 157TH AVE | R37: GOODYEAR | S37: AZ | T37: 85338 | U37: MARICOPA | V37: 09 | W37: 02 | X37: 33.3986 | Y37: -112.3965 | Z37: 150701010202 | AA37: Town of Goodyear-Gila River | AC37: 15060106000281 | AJ37: =IFERROR(VALUE(CONVERT(_AllData[[#This Row],[Total Facility Load (kg/yr)]]*1000,"g","lbm")),0) -> 0 | AK37: 0 | AN37: 0 | AO37: No | AP37: No | AQ37: No
A38: 2012 | B38: AZ0022756 | C38: PETRO STOPPING CENTER | D38: 110010062644 | G38: NON-POTW | H38: =IF(OR(_AllData[[#This Row],[Facility Type Indicator]]="POTW", _AllData[[#This Row],[Facility Type Indicator]]="FEDERAL"),"POTW",IF(AND(_AllData[[#This Row],[Facility Type Indicator]]="NON-POTW", OR(ISNUMBER(SEARCH("groundwater",_AllData[[#This Row],[Facility Name]])),ISNUMBER(SEARCH("GW treatment",_AllData[[#This Row],[Facility Name]])),ISNUMBER(SEARCH("remediation",_AllData[[#This Row],[Facility Name]])),ISNUMBER(SEARCH("superfund",_AllData[[#This Row],[Facility Name]])),ISNUMBER(SEARCH("former",_AllData[[#This Row],[Facility Name]])),ISNUMBER(SEARCH("restoration",_AllData[[#This Row],[Facility Name]])),ISNUMBER(SEARCH("well",_AllData[[#This Row],[Facility Name]])),ISNUMBER(SEARCH("GWCU",_AllData[[#This Row],[Facility Name]])),ISNUMBER(SEARCH("reclamation",_AllData[[#This Row],[Facility Name]])),ISNUMBER(SEARCH("GWTS",_AllData[[#This Row],[Facility Name]])),ISNUMBER(SEARCH("GWETS",_AllData[[#This Row],[Facility Name]])),_AllData[[#This Row],[SIC Code]]="1794",_AllData[[#This Row],[SIC Code]]="4959")),"remediation","industrial/commercial")) -> industrial/commercial | I38: NPD | J38: 11/23/2016 | K38: 11/22/2021 | L38: Non-Major | N38: =COUNTIF('SIC to 2002 NAICS'!$A$2:$A$2166,_AllData[[#This Row],[SIC Code]]) -> 0 | O38: =IFERROR(VLOOKUP(_AllData[[#This Row],[TRI Facility ID(s)]],'TRI NAICS Crosswalk'!$E$2:$G$455,3,FALSE),IF(_AllData[[#This Row],[NAICS Code]]<>"",VALUE(_AllData[[#This Row],[NAICS Code]]),IFERROR(VLOOKUP(VLOOKUP(VLOOKUP(VLOOKUP(_AllData[[#This Row],[SIC Code]],'SIC to 2002 NAICS'!$A$1:$D$2167,3,FALSE),'2002 to 2007 NAICS'!$A$3:$D$1203,3,FALSE),'2007 to 2012 NAICS'!$A$3:$D$1187,3,FALSE),'2012 to 2017 NAICS'!$A$3:$D$1072,3,FALSE),"SIC Not Provided"))) -> SIC Not Provided | Q38: 970 S BLAKE RANCH RD | R38: KINGMAN | S38: AZ | T38: 86401 | U38: MOHAVE | V38: 09 | W38: 02 | X38: 35.177192 | Y38: -113.78643 | Z38: 150302010503 | AA38: Peacock Wash | AC38: 15060106000200 | AJ38: =IFERROR(VALUE(CONVERT(_AllData[[#This Row],[Total Facility Load (kg/yr)]]*1000,"g","lbm")),0) -> 0 | AK38: 0 | AN38: 16.60452 | AO38: No | AP38: No | AQ38: No
A39: 2012 | B39: AZ0023159 | C39: APS - WEST PHOENIX POWER PLANT | D39: 110017422145 | G39: NON-POTW | H39: =IF(OR(_AllData[[#This Row],[Facility Type Indicator]]="POTW", _AllData[[#This Row],[Facility Type Indicator]]="FEDERAL"),"POTW",IF(AND(_AllData[[#This Row],[Facility Type Indicator]]="NON-POTW", OR(ISNUMBER(SEARCH("groundwater",_AllData[[#This Row],[Facility Name]])),ISNUMBER(SEARCH("GW treatment",_AllData[[#This Row],[Facility Name]])),ISNUMBER(SEARCH("remediation",_AllData[[#This Row],[Facility Name]])),ISNUMBER(SEARCH("superfund",_AllData[[#This Row],[Facility Name]])),ISNUMBER(SEARCH("former",_AllData[[#This Row],[Facility Name]])),ISNUMBER(SEARCH("restoration",_AllData[[#This Row],[Facility Name]])),ISNUMBER(SEARCH("well",_AllData[[#This Row],[Facility Name]])),ISNUMBER(SEARCH("GWCU",_AllData[[#This Row],[Facility Name]])),ISNUMBER(SEARCH("reclamation",_AllData[[#This Row],[Facility Name]])),ISNUMBER(SEARCH("GWTS",_AllData[[#This Row],[Facility Name]])),ISNUMBER(SEARCH("GWETS",_AllData[[#This Row],[Facility Name]])),_AllData[[#This Row],[SIC Code]]="1794",_AllData[[#This Row],[SIC Code]]="4959")),"remediation","industrial/commercial")) -> industrial/commercial | I39: NPD | J39: 04/08/2020 | K39: 04/07/2025 | L39: Major | N39: =COUNTIF('SIC to 2002 NAICS'!$A$2:$A$2166,_AllData[[#This Row],[SIC Code]]) -> 0 | O39: =IFERROR(VLOOKUP(_AllData[[#This Row],[TRI Facility ID(s)]],'TRI NAICS Crosswalk'!$E$2:$G$455,3,FALSE),IF(_AllData[[#This Row],[NAICS Code]]<>"",VALUE(_AllData[[#This Row],[NAICS Code]]),IFERROR(VLOOKUP(VLOOKUP(VLOOKUP(VLOOKUP(_AllData[[#This Row],[SIC Code]],'SIC to 2002 NAICS'!$A$1:$D$2167,3,FALSE),'2002 to 2007 NAICS'!$A$3:$D$1203,3,FALSE),'2007 to 2012 NAICS'!$A$3:$D$1187,3,FALSE),'2012 to 2017 NAICS'!$A$3:$D$1072,3,FALSE),"SIC Not Provided"))) -> SIC Not Provided | Q39: 4606 W HADLEY ST | R39: PHOENIX | S39: AZ | T39: 85043-4900 | U39: MARICOPA | V39: 09 | W39: 04 | X39: 33.43956 | Y39: -112.15622 | Z39: 150601060306 | AA39: Town of Santa Maria-Salt River | AC39: 15060106000274 | AI39: 0 | AJ39: =IFERROR(VALUE(CONVERT(_AllData[[#This Row],[Total Facility Load (kg/yr)]]*1000,"g","lbm")),0) -> 0 | AK39: 0 | AN39: 57.431 | AO39: No | AP39: No | AQ39: No
A40: 2012 | B40: AZ0023248 | C40: KYRENE WRP | D40: 110024381961 | G40: POTW | H40: =IF(OR(_AllData[[#This Row],[Facility Type Indicator]]="POTW", _AllData[[#This Row],[Facility Type Indicator]]="FEDERAL"),"POTW",IF(AND(_AllData[[#This Row],[Facility Type Indicator]]="NON-POTW", OR(ISNUMBER(SEARCH("groundwater",_AllData[[#This Row],[Facility Name]])),ISNUMBER(SEARCH("GW treatment",_AllData[[#This Row],[Facility Name]])),ISNUMBER(SEARCH("remediation",_AllData[[#This Row],[Facility Name]])),ISNUMBER(SEARCH("superfund",_AllData[[#This Row],[Facility Name]])),ISNUMBER(SEARCH("former",_AllData[[#This Row],[Facility Name]])),ISNUMBER(SEARCH("restoration",_AllData[[#This Row],[Facility Name]])),ISNUMBER(SEARCH("well",_AllData[[#This Row],[Facility Name]])),ISNUMBER(SEARCH("GWCU",_AllData[[#This Row],[Facility Name]])),ISNUMBER(SEARCH("reclamation",_AllData[[#This Row],[Facility Name]])),ISNUMBER(SEARCH("GWTS",_AllData[[#This Row],[Facility Name]])),ISNUMBER(SEARCH("GWETS",_AllData[[#This Row],[Facility Name]])),_AllData[[#This Row],[SIC Code]]="1794",_AllData[[#This Row],[SIC Code]]="4959")),"remediation","industrial/commercial")) -> POTW | I40: NPD | J40: 06/19/2009 | K40: 06/18/2014 | L40: Non-Major | M40: 4952 | N40: =COUNTIF('SIC to 2002 NAICS'!$A$2:$A$2166,_AllData[[#This Row],[SIC Code]]) -> 1 | O40: =IFERROR(VLOOKUP(_AllData[[#This Row],[TRI Facility ID(s)]],'TRI NAICS Crosswalk'!$E$2:$G$455,3,FALSE),IF(_AllData[[#This Row],[NAICS Code]]<>"",VALUE(_AllData[[#This Row],[NAICS Code]]),IFERROR(VLOOKUP(VLOOKUP(VLOOKUP(VLOOKUP(_AllData[[#This Row],[SIC Code]],'SIC to 2002 NAICS'!$A$1:$D$2167,3,FALSE),'2002 to 2007 NAICS'!$A$3:$D$1203,3,FALSE),'2007 to 2012 NAICS'!$A$3:$D$1187,3,FALSE),'2012 to 2017 NAICS'!$A$3:$D$1072,3,FALSE),"SIC Not Provided"))) -> 221320 | Q40: 311 W GUADALUPE RD | R40: TEMPE | S40: AZ | T40: 85283 | U40: MARICOPA | V40: 09 | W40: 05 | X40: 33.36368 | Y40: -111.94184 | Z40: 150601060305 | AA40: City of Phoenix-Salt River | AB40: SALT RIVER | AC40: 15060106000404 | AG40: 9 | AI40: 0 | AJ40: =IFERROR(VALUE(CONVERT(_AllData[[#This Row],[Total Facility Load (kg/yr)]]*1000,"g","lbm")),0) -> 0 | AK40: 0 | AN40: 0 | AO40: No | AP40: No | AQ40: No
A41: 2012 | B41: AZ0023272 | C41: CITY OF EL MIRAGE WASTEWATER TREATMENT PLANT | D41: 110006528908 | F41: 4001344001, 04001344001 | G41: POTW | H41: =IF(OR(_AllData[[#This Row],[Facility Type Indicator]]="POTW", _AllData[[#This Row],[Facility Type Indicator]]="FEDERAL"),"POTW",IF(AND(_AllData[[#This Row],[Facility Type Indicator]]="NON-POTW", OR(ISNUMBER(SEARCH("groundwater",_AllData[[#This Row],[Facility Name]])),ISNUMBER(SEARCH("GW treatment",_AllData[[#This Row],[Facility Name]])),ISNUMBER(SEARCH("remediation",_AllData[[#This Row],[Facility Name]])),ISNUMBER(SEARCH("superfund",_AllData[[#This Row],[Facility Name]])),ISNUMBER(SEARCH("former",_AllData[[#This Row],[Facility Name]])),ISNUMBER(SEARCH("restoration",_AllData[[#This Row],[Facility Name]])),ISNUMBER(SEARCH("well",_AllData[[#This Row],[Facility Name]])),ISNUMBER(SEARCH("GWCU",_AllData[[#This Row],[Facility Name]])),ISNUMBER(SEARCH("reclamation",_AllData[[#This Row],[Facility Name]])),ISNUMBER(SEARCH("GWTS",_AllData[[#This Row],[Facility Name]])),ISNUMBER(SEARCH("GWETS",_AllData[[#This Row],[Facility Name]])),_AllData[[#This Row],[SIC Code]]="1794",_AllData[[#This Row],[SIC Code]]="4959")),"remediation","industrial/commercial")) -> POTW | I41: NPD | J41: 10/12/2017 | K41: 10/11/2022 | L41: Major | N41: =COUNTIF('SIC to 2002 NAICS'!$A$2:$A$2166,_AllData[[#This Row],[SIC Code]]) -> 0 | O41: =IFERROR(VLOOKUP(_AllData[[#This Row],[TRI Facility ID(s)]],'TRI NAICS Crosswalk'!$E$2:$G$455,3,FALSE),IF(_AllData[[#This Row],[NAICS Code]]<>"",VALUE(_AllData[[#This Row],[NAICS Code]]),IFERROR(VLOOKUP(VLOOKUP(VLOOKUP(VLOOKUP(_AllData[[#This Row],[SIC Code]],'SIC to 2002 NAICS'!$A$1:$D$2167,3,FALSE),'2002 to 2007 NAICS'!$A$3:$D$1203,3,FALSE),'2007 to 2012 NAICS'!$A$3:$D$1187,3,FALSE),'2012 to 2017 NAICS'!$A$3:$D$1072,3,FALSE),"SIC Not Provided"))) -> SIC Not Provided | Q41: 10355 N 121ST AVE | R41: EL MIRAGE | S41: AZ | T41: 85335-3702 | U41: MARICOPA | V41: 09 | W41: 02 | X41: 33.578611 | Y41: -112.319722 | Z41: 150701020906 | AA41: City of Surprise-Agua Fria River | AC41: 15030101002282 | AI41: 0 | AJ41: =IFERROR(VALUE(CONVERT(_AllData[[#This Row],[Total Facility Load (kg/yr)]]*1000,"g","lbm")),0) -> 0 | AK41: 0 | AN41: 0 | AO41: No | AP41: No | AQ41: No
A42: 2012 | B42: AZ0023281 | C42: AVONDALE WWTP | D42: 110022421789 | F42: 04001334001, 4001334001 | G42: POTW | H42: =IF(OR(_AllData[[#This Row],[Facility Type Indicator]]="POTW", _AllData[[#This Row],[Facility Type Indicator]]="FEDERAL"),"POTW",IF(AND(_AllData[[#This Row],[Facility Type Indicator]]="NON-POTW", OR(ISNUMBER(SEARCH("groundwater",_AllData[[#This Row],[Facility Name]])),ISNUMBER(SEARCH("GW treatment",_AllData[[#This Row],[Facility Name]])),ISNUMBER(SEARCH("remediation",_AllData[[#This Row],[Facility Name]])),ISNUMBER(SEARCH("superfund",_AllData[[#This Row],[Facility Name]])),ISNUMBER(SEARCH("former",_AllData[[#This Row],[Facility Name]])),ISNUMBER(SEARCH("restoration",_AllData[[#This Row],[Facility Name]])),ISNUMBER(SEARCH("well",_AllData[[#This Row],[Facility Name]])),ISNUMBER(SEARCH("GWCU",_AllData[[#This Row],[Facility Name]])),ISNUMBER(SEARCH("reclamation",_AllData[[#This Row],[Facility Name]])),ISNUMBER(SEARCH("GWTS",_AllData[[#This Row],[Facility Name]])),ISNUMBER(SEARCH("GWETS",_AllData[[#This Row],[Facility Name]])),_AllData[[#This Row],[SIC Code]]="1794",_AllData[[#This Row],[SIC Code]]="4959")),"remediation","industrial/commercial")) -> POTW | I42: NPD | J42: 12/27/2018 | K42: 12/26/2023 | L42: Major | N42: =COUNTIF('SIC to 2002 NAICS'!$A$2:$A$2166,_AllData[[#This Row],[SIC Code]]) -> 0 | O42: =IFERROR(VLOOKUP(_AllData[[#This Row],[TRI Facility ID(s)]],'TRI NAICS Crosswalk'!$E$2:$G$455,3,FALSE),IF(_AllData[[#This Row],[NAICS Code]]<>"",VALUE(_AllData[[#This Row],[NAICS Code]]),IFERROR(VLOOKUP(VLOOKUP(VLOOKUP(VLOOKUP(_AllData[[#This Row],[SIC Code]],'SIC to 2002 NAICS'!$A$1:$D$2167,3,FALSE),'2002 to 2007 NAICS'!$A$3:$D$1203,3,FALSE),'2007 to 2012 NAICS'!$A$3:$D$1187,3,FALSE),'2012 to 2017 NAICS'!$A$3:$D$1072,3,FALSE),"SIC Not Provided"))) -> SIC Not Provided | Q42: 4800 S DYSART RD | R42: AVONDALE | S42: AZ | T42: 85323-9626 | U42: MARICOPA | V42: 09 | W42: 07 | X42: 33.40251 | Y42: -112.34046 | Z42: 150701020909 | AA42: City of Glendale-Agua Fria River | AC42: 15050100000998 | AI42: 0 | AJ42: =IFERROR(VALUE(CONVERT(_AllData[[#This Row],[Total Facility Load (kg/yr)]]*1000,"g","lbm")),0) -> 0 | AK42: 0 | AN42: 1191.216 | AO42: No | AP42: No | AQ42: No
A43: 2012 | B43: AZ0023477 | C43: TUSAYAN SANITARY DISTRICT | D43: 110064180648 | G43: POTW | H43: =IF(OR(_AllData[[#This Row],[Facility Type Indicator]]="POTW", _AllData[[#This Row],[Facility Type Indicator]]="FEDERAL"),"POTW",IF(AND(_AllData[[#This Row],[Facility Type Indicator]]="NON-POTW", OR(ISNUMBER(SEARCH("groundwater",_AllData[[#This Row],[Facility Name]])),ISNUMBER(SEARCH("GW treatment",_AllData[[#This Row],[Facility Name]])),ISNUMBER(SEARCH("remediation",_AllData[[#This Row],[Facility Name]])),ISNUMBER(SEARCH("superfund",_AllData[[#This Row],[Facility Name]])),ISNUMBER(SEARCH("former",_AllData[[#This Row],[Facility Name]])),ISNUMBER(SEARCH("restoration",_AllData[[#This Row],[Facility Name]])),ISNUMBER(SEARCH("well",_AllData[[#This Row],[Facility Name]])),ISNUMBER(SEARCH("GWCU",_AllData[[#This Row],[Facility Name]])),ISNUMBER(SEARCH("reclamation",_AllData[[#This Row],[Facility Name]])),ISNUMBER(SEARCH("GWTS",_AllData[[#This Row],[Facility Name]])),ISNUMBER(SEARCH("GWETS",_AllData[[#This Row],[Facility Name]])),_AllData[[#This Row],[SIC Code]]="1794",_AllData[[#This Row],[SIC Code]]="4959")),"remediation","industrial/commercial")) -> POTW | I43: NPD | J43: 06/21/2011 | K43: 06/20/2016 | L43: Non-Major | M43: 4952 | N43: =COUNTIF('SIC to 2002 NAICS'!$A$2:$A$2166,_AllData[[#This Row],[SIC Code]]) -> 1 | O43: =IFERROR(VLOOKUP(_AllData[[#This Row],[TRI Facility ID(s)]],'TRI NAICS Crosswalk'!$E$2:$G$455,3,FALSE),IF(_AllData[[#This Row],[NAICS Code]]<>"",VALUE(_AllData[[#This Row],[NAICS Code]]),IFERROR(VLOOKUP(VLOOKUP(VLOOKUP(VLOOKUP(_AllData[[#This Row],[SIC Code]],'SIC to 2002 NAICS'!$A$1:$D$2167,3,FALSE),'2002 to 2007 NAICS'!$A$3:$D$1203,3,FALSE),'2007 to 2012 NAICS'!$A$3:$D$1187,3,FALSE),'2012 to 2017 NAICS'!$A$3:$D$1072,3,FALSE),"SIC Not Provided"))) -> 221320 | Q43: #3 RECLAIM LANE | R43: GRAND CANYON | S43: AZ | T43: 86023 | U43: COCONINO | V43: 09 | W43: 01 | X43: 35.97482 | Y43: -112.136042 | Z43: 150100040802 | AA43: Coconino Wash Headwaters | AB43: TRIB COLORADO RIV COCONINO COUNTY | AC43: 15010004001628 | AG43: .75 | AI43: 0 | AJ43: =IFERROR(VALUE(CONVERT(_AllData[[#This Row],[Total Facility Load (kg/yr)]]*1000,"g","lbm")),0) -> 0 | AK43: 0 | AN43: 46.71054545454545454545454545454545454545 | AO43: No | AP43: No | AQ43: No
A44: 2012 | B44: AZ0023582 | C44: CITY OF GOODYEAR - CORGETT WASH WRF | D44: 110006656797 | G44: NON-POTW | H44: =IF(OR(_AllData[[#This Row],[Facility Type Indicator]]="POTW", _AllData[[#This Row],[Facility Type Indicator]]="FEDERAL"),"POTW",IF(AND(_AllData[[#This Row],[Facility Type Indicator]]="NON-POTW", OR(ISNUMBER(SEARCH("groundwater",_AllData[[#This Row],[Facility Name]])),ISNUMBER(SEARCH("GW treatment",_AllData[[#This Row],[Facility Name]])),ISNUMBER(SEARCH("remediation",_AllData[[#This Row],[Facility Name]])),ISNUMBER(SEARCH("superfund",_AllData[[#This Row],[Facility Name]])),ISNUMBER(SEARCH("former",_AllData[[#This Row],[Facility Name]])),ISNUMBER(SEARCH("restoration",_AllData[[#This Row],[Facility Name]])),ISNUMBER(SEARCH("well",_AllData[[#This Row],[Facility Name]])),ISNUMBER(SEARCH("GWCU",_AllData[[#This Row],[Facility Name]])),ISNUMBER(SEARCH("reclamation",_AllData[[#This Row],[Facility Name]])),ISNUMBER(SEARCH("GWTS",_AllData[[#This Row],[Facility Name]])),ISNUMBER(SEARCH("GWETS",_AllData[[#This Row],[Facility Name]])),_AllData[[#This Row],[SIC Code]]="1794",_AllData[[#This Row],[SIC Code]]="4959")),"remediation","industrial/commercial")) -> industrial/commercial | I44: NPD | J44: 09/28/2020 | K44: 09/27/2025 | L44: Non-Major | N44: =COUNTIF('SIC to 2002 NAICS'!$A$2:$A$2166,_AllData[[#This Row],[SIC Code]]) -> 0 | O44: =IFERROR(VLOOKUP(_AllData[[#This Row],[TRI Facility ID(s)]],'TRI NAICS Crosswalk'!$E$2:$G$455,3,FALSE),IF(_AllData[[#This Row],[NAICS Code]]<>"",VALUE(_AllData[[#This Row],[NAICS Code]]),IFERROR(VLOOKUP(VLOOKUP(VLOOKUP(VLOOKUP(_AllData[[#This Row],[SIC Code]],'SIC to 2002 NAICS'!$A$1:$D$2167,3,FALSE),'2002 to 2007 NAICS'!$A$3:$D$1203,3,FALSE),'2007 to 2012 NAICS'!$A$3:$D$1187,3,FALSE),'2012 to 2017 NAICS'!$A$3:$D$1072,3,FALSE),"SIC Not Provided"))) -> SIC Not Provided | Q44: 9500 S 186TH LN | R44: GOODYEAR | S44: AZ | T44: 85338-1498 | U44: MARICOPA | V44: 09 | W44: 02 | X44: 33.447768 | Y44: -112.358279 | Z44: 150701020908 | AA44: Town of Litchfield Park | AC44: 15010004000112 | AI44: 0 | AJ44: =IFERROR(VALUE(CONVERT(_AllData[[#This Row],[Total Facility Load (kg/yr)]]*1000,"g","lbm")),0) -> 0 | AK44: 0 | AN44: 170.148 | AO44: No | AP44: No | AQ44: No
A45: 2012 | B45: AZ0023639 | C45: RIO DE FLAG WWTP | D45: 110064629442 | G45: POTW | H45: =IF(OR(_AllData[[#This Row],[Facility Type Indicator]]="POTW", _AllData[[#This Row],[Facility Type Indicator]]="FEDERAL"),"POTW",IF(AND(_AllData[[#This Row],[Facility Type Indicator]]="NON-POTW", OR(ISNUMBER(SEARCH("groundwater",_AllData[[#This Row],[Facility Name]])),ISNUMBER(SEARCH("GW treatment",_AllData[[#This Row],[Facility Name]])),ISNUMBER(SEARCH("remediation",_AllData[[#This Row],[Facility Name]])),ISNUMBER(SEARCH("superfund",_AllData[[#This Row],[Facility Name]])),ISNUMBER(SEARCH("former",_AllData[[#This Row],[Facility Name]])),ISNUMBER(SEARCH("restoration",_AllData[[#This Row],[Facility Name]])),ISNUMBER(SEARCH("well",_AllData[[#This Row],[Facility Name]])),ISNUMBER(SEARCH("GWCU",_AllData[[#This Row],[Facility Name]])),ISNUMBER(SEARCH("reclamation",_AllData[[#This Row],[Facility Name]])),ISNUMBER(SEARCH("GWTS",_AllData[[#This Row],[Facility Name]])),ISNUMBER(SEARCH("GWETS",_AllData[[#This Row],[Facility Name]])),_AllData[[#This Row],[SIC Code]]="1794",_AllData[[#This Row],[SIC Code]]="4959")),"remediation","industrial/commercial")) -> POTW | I45: NPD | J45: 01/15/2020 | K45: 01/14/2025 | L45: Major | N45: =COUNTIF('SIC to 2002 NAICS'!$A$2:$A$2166,_AllData[[#This Row],[SIC Code]]) -> 0 | O45: =IFERROR(VLOOKUP(_AllData[[#This Row],[TRI Facility ID(s)]],'TRI NAICS Crosswalk'!$E$2:$G$455,3,FALSE),IF(_AllData[[#This Row],[NAICS Code]]<>"",VALUE(_AllData[[#This Row],[NAICS Code]]),IFERROR(VLOOKUP(VLOOKUP(VLOOKUP(VLOOKUP(_AllData[[#This Row],[SIC Code]],'SIC to 2002 NAICS'!$A$1:$D$2167,3,FALSE),'2002 to 2007 NAICS'!$A$3:$D$1203,3,FALSE),'2007 to 2012 NAICS'!$A$3:$D$1187,3,FALSE),'2012 to 2017 NAICS'!$A$3:$D$1072,3,FALSE),"SIC Not Provided"))) -> SIC Not Provided | Q45: 600 S BABBITT DR | R45: FLAGSTAFF | S45: AZ | T45: 86001 | U45: COCONINO | V45: 09 | W45: 01 | X45: 35.188435 | Y45: -111.63066 | Z45: 150200150104 | AA45: Lower Rio de Flag | AC45: 15030108000333 | AJ45: =IFERROR(VALUE(CONVERT(_AllData[[#This Row],[Total Facility Load (kg/yr)]]*1000,"g","lbm")),0) -> 0 | AK45: 0 | AN45: 356.648 | AO45: No | AP45: No | AQ45: No
A46: 2012 | B46: AZ0023752 | C46: QUARTZSITE, TOWN OF - WWTP | D46: 110010062528 | F46: 04002701002, 4002701002 | G46: POTW | H46: =IF(OR(_AllData[[#This Row],[Facility Type Indicator]]="POTW", _AllData[[#This Row],[Facility Type Indicator]]="FEDERAL"),"POTW",IF(AND(_AllData[[#This Row],[Facility Type Indicator]]="NON-POTW", OR(ISNUMBER(SEARCH("groundwater",_AllData[[#This Row],[Facility Name]])),ISNUMBER(SEARCH("GW treatment",_AllData[[#This Row],[Facility Name]])),ISNUMBER(SEARCH("remediation",_AllData[[#This Row],[Facility Name]])),ISNUMBER(SEARCH("superfund",_AllData[[#This Row],[Facility Name]])),ISNUMBER(SEARCH("former",_AllData[[#This Row],[Facility Name]])),ISNUMBER(SEARCH("restoration",_AllData[[#This Row],[Facility Name]])),ISNUMBER(SEARCH("well",_AllData[[#This Row],[Facility Name]])),ISNUMBER(SEARCH("GWCU",_AllData[[#This Row],[Facility Name]])),ISNUMBER(SEARCH("reclamation",_AllData[[#This Row],[Facility Name]])),ISNUMBER(SEARCH("GWTS",_AllData[[#This Row],[Facility Name]])),ISNUMBER(SEARCH("GWETS",_AllData[[#This Row],[Facility Name]])),_AllData[[#This Row],[SIC Code]]="1794",_AllData[[#This Row],[SIC Code]]="4959")),"remediation","industrial/commercial")) -> POTW | I46: NPD | J46: 08/30/2017 | K46: 08/29/2022 | L46: Non-Major | N46: =COUNTIF('SIC to 2002 NAICS'!$A$2:$A$2166,_AllData[[#This Row],[SIC Code]]) -> 0 | O46: =IFERROR(VLOOKUP(_AllData[[#This Row],[TRI Facility ID(s)]],'TRI NAICS Crosswalk'!$E$2:$G$455,3,FALSE),IF(_AllData[[#This Row],[NAICS Code]]<>"",VALUE(_AllData[[#This Row],[NAICS Code]]),IFERROR(VLOOKUP(VLOOKUP(VLOOKUP(VLOOKUP(_AllData[[#This Row],[SIC Code]],'SIC to 2002 NAICS'!$A$1:$D$2167,3,FALSE),'2002 to 2007 NAICS'!$A$3:$D$1203,3,FALSE),'2007 to 2012 NAICS'!$A$3:$D$1187,3,FALSE),'2012 to 2017 NAICS'!$A$3:$D$1072,3,FALSE),"SIC Not Provided"))) -> SIC Not Provided | Q46: 2054 N CENTRAL BLVD | R46: QUARTZSITE | S46: AZ | T46: 85346 | U46: LA PAZ | V46: 09 | W46: 07 | X46: 33.7083 | Y46: -114.2206 | Z46: 150301060205 | AA46: Oldman Tanque-Tyson Wash | AC46: 15060106000006 | AI46: 0 | AJ46: =IFERROR(VALUE(CONVERT(_AllData[[#This Row],[Total Facility Load (kg/yr)]]*1000,"g","lbm")),0) -> 0 | AK46: 0 | AL46: 0 | AN46: 63.67332 | AO46: No | AP46: No | AQ46: Yes
A47: 2012 | B47: AZ0023833 | C47: CITY OF WINSLOW - WWTP | D47: 110000730399 | G47: POTW | H47: =IF(OR(_AllData[[#This Row],[Facility Type Indicator]]="POTW", _AllData[[#This Row],[Facility Type Indicator]]="FEDERAL"),"POTW",IF(AND(_AllData[[#This Row],[Facility Type Indicator]]="NON-POTW", OR(ISNUMBER(SEARCH("groundwater",_AllData[[#This Row],[Facility Name]])),ISNUMBER(SEARCH("GW treatment",_AllData[[#This Row],[Facility Name]])),ISNUMBER(SEARCH("remediation",_AllData[[#This Row],[Facility Name]])),ISNUMBER(SEARCH("superfund",_AllData[[#This Row],[Facility Name]])),ISNUMBER(SEARCH("former",_AllData[[#This Row],[Facility Name]])),ISNUMBER(SEARCH("restoration",_AllData[[#This Row],[Facility Name]])),ISNUMBER(SEARCH("well",_AllData[[#This Row],[Facility Name]])),ISNUMBER(SEARCH("GWCU",_AllData[[#This Row],[Facility Name]])),ISNUMBER(SEARCH("reclamation",_AllData[[#This Row],[Facility Name]])),ISNUMBER(SEARCH("GWTS",_AllData[[#This Row],[Facility Name]])),ISNUMBER(SEARCH("GWETS",_AllData[[#This Row],[Facility Name]])),_AllData[[#This Row],[SIC Code]]="1794",_AllData[[#This Row],[SIC Code]]="4959")),"remediation","industrial/commercial")) -> POTW | I47: NPD | J47: 09/25/2015 | K47: 09/24/2020 | L47: Major | N47: =COUNTIF('SIC to 2002 NAICS'!$A$2:$A$2166,_AllData[[#This Row],[SIC Code]]) -> 0 | O47: =IFERROR(VLOOKUP(_AllData[[#This Row],[TRI Facility ID(s)]],'TRI NAICS Crosswalk'!$E$2:$G$455,3,FALSE),IF(_AllData[[#This Row],[NAICS Code]]<>"",VALUE(_AllData[[#This Row],[NAICS Code]]),IFERROR(VLOOKUP(VLOOKUP(VLOOKUP(VLOOKUP(_AllData[[#This Row],[SIC Code]],'SIC to 2002 NAICS'!$A$1:$D$2167,3,FALSE),'2002 to 2007 NAICS'!$A$3:$D$1203,3,FALSE),'2007 to 2012 NAICS'!$A$3:$D$1187,3,FALSE),'2012 to 2017 NAICS'!$A$3:$D$1072,3,FALSE),"SIC Not Provided"))) -> SIC Not Provided | Q47: 600 NORTH RD | R47: WINSLOW | S47: AZ | T47: 86047-3700 | U47: NAVAJO | V47: 09 | W47: 01 | X47: 35.02203 | Y47: -110.697536 | Z47: 150200080701 | AA47: Ruby Wash | AC47: 15020008001317 | AJ47: =IFERROR(VALUE(CONVERT(_AllData[[#This Row],[Total Facility Load (kg/yr)]]*1000,"g","lbm")),0) -> 0 | AK47: 0 | AN47: 50 | AO47: No | AP47: No | AQ47: No
A48: 2012 | B48: AZ0023841 | C48: CITY OF SHOW LOW - MAIN WWTP | D48: 110006785149 | G48: POTW | H48: =IF(OR(_AllData[[#This Row],[Facility Type Indicator]]="POTW", _AllData[[#This Row],[Facility Type Indicator]]="FEDERAL"),"POTW",IF(AND(_AllData[[#This Row],[Facility Type Indicator]]="NON-POTW", OR(ISNUMBER(SEARCH("groundwater",_AllData[[#This Row],[Facility Name]])),ISNUMBER(SEARCH("GW treatment",_AllData[[#This Row],[Facility Name]])),ISNUMBER(SEARCH("remediation",_AllData[[#This Row],[Facility Name]])),ISNUMBER(SEARCH("superfund",_AllData[[#This Row],[Facility Name]])),ISNUMBER(SEARCH("former",_AllData[[#This Row],[Facility Name]])),ISNUMBER(SEARCH("restoration",_AllData[[#This Row],[Facility Name]])),ISNUMBER(SEARCH("well",_AllData[[#This Row],[Facility Name]])),ISNUMBER(SEARCH("GWCU",_AllData[[#This Row],[Facility Name]])),ISNUMBER(SEARCH("reclamation",_AllData[[#This Row],[Facility Name]])),ISNUMBER(SEARCH("GWTS",_AllData[[#This Row],[Facility Name]])),ISNUMBER(SEARCH("GWETS",_AllData[[#This Row],[Facility Name]])),_AllData[[#This Row],[SIC Code]]="1794",_AllData[[#This Row],[SIC Code]]="4959")),"remediation","industrial/commercial")) -> POTW | I48: NPD | J48: 09/21/2012 | K48: 09/20/2017 | L48: Major | M48: 4952 | N48: =COUNTIF('SIC to 2002 NAICS'!$A$2:$A$2166,_AllData[[#This Row],[SIC Code]]) -> 1 | O48: =IFERROR(VLOOKUP(_AllData[[#This Row],[TRI Facility ID(s)]],'TRI NAICS Crosswalk'!$E$2:$G$455,3,FALSE),IF(_AllData[[#This Row],[NAICS Code]]<>"",VALUE(_AllData[[#This Row],[NAICS Code]]),IFERROR(VLOOKUP(VLOOKUP(VLOOKUP(VLOOKUP(_AllData[[#This Row],[SIC Code]],'SIC to 2002 NAICS'!$A$1:$D$2167,3,FALSE),'2002 to 2007 NAICS'!$A$3:$D$1203,3,FALSE),'2007 to 2012 NAICS'!$A$3:$D$1187,3,FALSE),'2012 to 2017 NAICS'!$A$3:$D$1072,3,FALSE),"SIC Not Provided"))) -> 221320 | Q48: 1300 N 6TH ST | R48: SHOW LOW | S48: AZ | T48: 85901 | U48: NAVAJO | V48: 09 | W48: 01 | X48: 34.26126 | Y48: -110.03482 | Z48: 150200050104 | AA48: Show Low Lake-Show Low Creek | AB48: TELEPHONE LAKE | AC48: 15020005000364 | AG48: 2.46 | AI48: 0 | AJ48: =IFERROR(VALUE(CONVERT(_AllData[[#This Row],[Total Facility Load (kg/yr)]]*1000,"g","lbm")),0) -> 0 | AK48: 0 | AN48: 326.319272727272727272727272727272727273 | AO48: No | AP48: No | AQ48: No
A49: 2012 | B49: AZ0023931 | C49: APACHE JUNCTION WWTP | D49: 110010062314 | F49: 04002101001 | G49: POTW | H49: =IF(OR(_AllData[[#This Row],[Facility Type Indicator]]="POTW", _AllData[[#This Row],[Facility Type Indicator]]="FEDERAL"),"POTW",IF(AND(_AllData[[#This Row],[Facility Type Indicator]]="NON-POTW", OR(ISNUMBER(SEARCH("groundwater",_AllData[[#This Row],[Facility Name]])),ISNUMBER(SEARCH("GW treatment",_AllData[[#This Row],[Facility Name]])),ISNUMBER(SEARCH("remediation",_AllData[[#This Row],[Facility Name]])),ISNUMBER(SEARCH("superfund",_AllData[[#This Row],[Facility Name]])),ISNUMBER(SEARCH("former",_AllData[[#This Row],[Facility Name]])),ISNUMBER(SEARCH("restoration",_AllData[[#This Row],[Facility Name]])),ISNUMBER(SEARCH("well",_AllData[[#This Row],[Facility Name]])),ISNUMBER(SEARCH("GWCU",_AllData[[#This Row],[Facility Name]])),ISNUMBER(SEARCH("reclamation",_AllData[[#This Row],[Facility Name]])),ISNUMBER(SEARCH("GWTS",_AllData[[#This Row],[Facility Name]])),ISNUMBER(SEARCH("GWETS",_AllData[[#This Row],[Facility Name]])),_AllData[[#This Row],[SIC Code]]="1794",_AllData[[#This Row],[SIC Code]]="4959")),"remediation","industrial/commercial")) -> POTW | I49: NPD | J49: 10/03/2019 | K49: 10/02/2024 | L49: Major | N49: =COUNTIF('SIC to 2002 NAICS'!$A$2:$A$2166,_AllData[[#This Row],[SIC Code]]) -> 0 | O49: =IFERROR(VLOOKUP(_AllData[[#This Row],[TRI Facility ID(s)]],'TRI NAICS Crosswalk'!$E$2:$G$455,3,FALSE),IF(_AllData[[#This Row],[NAICS Code]]<>"",VALUE(_AllData[[#This Row],[NAICS Code]]),IFERROR(VLOOKUP(VLOOKUP(VLOOKUP(VLOOKUP(_AllData[[#This Row],[SIC Code]],'SIC to 2002 NAICS'!$A$1:$D$2167,3,FALSE),'2002 to 2007 NAICS'!$A$3:$D$1203,3,FALSE),'2007 to 2012 NAICS'!$A$3:$D$1187,3,FALSE),'2012 to 2017 NAICS'!$A$3:$D$1072,3,FALSE),"SIC Not Provided"))) -> SIC Not Provided | Q49: 5661 S IRONWOOD DR | R49: APACHE JUNCTION | S49: AZ | T49: 85220 | U49: PINAL | V49: 09 | W49: 06 | X49: 33.358022 | Y49: -111.554848 | Z49: 150501000803 | AA49: Siphon Draw | AC49: 15070102000561 | AI49: 0 | AJ49: =IFERROR(VALUE(CONVERT(_AllData[[#This Row],[Total Facility Load (kg/yr)]]*1000,"g","lbm")),0) -> 0 | AK49: 0 | AN49: 86.93 | AO49: No | AP49: No | AQ49: No
A50: 2012 | B50: AZ0024031 | C50: NORTHWEST WRP | D50: 110063880812 | G50: POTW | H50: =IF(OR(_AllData[[#This Row],[Facility Type Indicator]]="POTW", _AllData[[#This Row],[Facility Type Indicator]]="FEDERAL"),"POTW",IF(AND(_AllData[[#This Row],[Facility Type Indicator]]="NON-POTW", OR(ISNUMBER(SEARCH("groundwater",_AllData[[#This Row],[Facility Name]])),ISNUMBER(SEARCH("GW treatment",_AllData[[#This Row],[Facility Name]])),ISNUMBER(SEARCH("remediation",_AllData[[#This Row],[Facility Name]])),ISNUMBER(SEARCH("superfund",_AllData[[#This Row],[Facility Name]])),ISNUMBER(SEARCH("former",_AllData[[#This Row],[Facility Name]])),ISNUMBER(SEARCH("restoration",_AllData[[#This Row],[Facility Name]])),ISNUMBER(SEARCH("well",_AllData[[#This Row],[Facility Name]])),ISNUMBER(SEARCH("GWCU",_AllData[[#This Row],[Facility Name]])),ISNUMBER(SEARCH("reclamation",_AllData[[#This Row],[Facility Name]])),ISNUMBER(SEARCH("GWTS",_AllData[[#This Row],[Facility Name]])),ISNUMBER(SEARCH("GWETS",_AllData[[#This Row],[Facility Name]])),_AllData[[#This Row],[SIC Code]]="1794",_AllData[[#This Row],[SIC Code]]="4959")),"remediation","industrial/commercial")) -> POTW | I50: NPD | J50: 09/16/2019 | K50: 08/18/2024 | L50: Major | N50: =COUNTIF('SIC to 2002 NAICS'!$A$2:$A$2166,_AllData[[#This Row],[SIC Code]]) -> 0 | O50: =IFERROR(VLOOKUP(_AllData[[#This Row],[TRI Facility ID(s)]],'TRI NAICS Crosswalk'!$E$2:$G$455,3,FALSE),IF(_AllData[[#This Row],[NAICS Code]]<>"",VALUE(_AllData[[#This Row],[NAICS Code]]),IFERROR(VLOOKUP(VLOOKUP(VLOOKUP(VLOOKUP(_AllData[[#This Row],[SIC Code]],'SIC to 2002 NAICS'!$A$1:$D$2167,3,FALSE),'2002 to 2007 NAICS'!$A$3:$D$1203,3,FALSE),'2007 to 2012 NAICS'!$A$3:$D$1187,3,FALSE),'2012 to 2017 NAICS'!$A$3:$D$1072,3,FALSE),"SIC Not Provided"))) -> SIC Not Provided | Q50: 960 N RIVERVIEW | R50: MESA | S50: AZ | T50: 852013090 | U50: MARICOPA | V50: 09 | W50: 06 | X50: 33.417244 | Y50: -111.829768 | Z50: 150501001101 | AA50: City of Mesa | AC50: 15070104000290 | AD50: Y | AJ50: =IFERROR(VALUE(CONVERT(_AllData[[#This Row],[Total Facility Load (kg/yr)]]*1000,"g","lbm")),0) -> 0 | AK50: 0 | AN50: 625.57 | AO50: No | AP50: No | AQ50: No
A51: 2012 | B51: AZ0024121 | C51: PIMA COUNTY - WWMD - AVRA VALLEY WWTF | D51: 110001174489 | G51: POTW | H51: =IF(OR(_AllData[[#This Row],[Facility Type Indicator]]="POTW", _AllData[[#This Row],[Facility Type Indicator]]="FEDERAL"),"POTW",IF(AND(_AllData[[#This Row],[Facility Type Indicator]]="NON-POTW", OR(ISNUMBER(SEARCH("groundwater",_AllData[[#This Row],[Facility Name]])),ISNUMBER(SEARCH("GW treatment",_AllData[[#This Row],[Facility Name]])),ISNUMBER(SEARCH("remediation",_AllData[[#This Row],[Facility Name]])),ISNUMBER(SEARCH("superfund",_AllData[[#This Row],[Facility Name]])),ISNUMBER(SEARCH("former",_AllData[[#This Row],[Facility Name]])),ISNUMBER(SEARCH("restoration",_AllData[[#This Row],[Facility Name]])),ISNUMBER(SEARCH("well",_AllData[[#This Row],[Facility Name]])),ISNUMBER(SEARCH("GWCU",_AllData[[#This Row],[Facility Name]])),ISNUMBER(SEARCH("reclamation",_AllData[[#This Row],[Facility Name]])),ISNUMBER(SEARCH("GWTS",_AllData[[#This Row],[Facility Name]])),ISNUMBER(SEARCH("GWETS",_AllData[[#This Row],[Facility Name]])),_AllData[[#This Row],[SIC Code]]="1794",_AllData[[#This Row],[SIC Code]]="4959")),"remediation","industrial/commercial")) -> POTW | I51: NPD | J51: 07/16/2019 | K51: 07/15/2024 | L51: Major | N51: =COUNTIF('SIC to 2002 NAICS'!$A$2:$A$2166,_AllData[[#This Row],[SIC Code]]) -> 0 | O51: =IFERROR(VLOOKUP(_AllData[[#This Row],[TRI Facility ID(s)]],'TRI NAICS Crosswalk'!$E$2:$G$455,3,FALSE),IF(_AllData[[#This Row],[NAICS Code]]<>"",VALUE(_AllData[[#This Row],[NAICS Code]]),IFERROR(VLOOKUP(VLOOKUP(VLOOKUP(VLOOKUP(_AllData[[#This Row],[SIC Code]],'SIC to 2002 NAICS'!$A$1:$D$2167,3,FALSE),'2002 to 2007 NAICS'!$A$3:$D$1203,3,FALSE),'2007 to 2012 NAICS'!$A$3:$D$1187,3,FALSE),'2012 to 2017 NAICS'!$A$3:$D$1072,3,FALSE),"SIC Not Provided"))) -> SIC Not Provided | Q51: 10000 W SNYDER HILL RD | R51: TUCSON | S51: AZ | T51: 85706 | U51: PIMA | V51: 09 | W51: 07 | X51: 32.16212 | Y51: -111.17945 | Z51: 150503040503 | AA51: Golden Gate Mountain | AC51: 15020005000364 | AI51: 0 | AJ51: =IFERROR(VALUE(CONVERT(_AllData[[#This Row],[Total Facility Load (kg/yr)]]*1000,"g","lbm")),0) -> 0 | AK51: 0 | AN51: 0 | AO51: No | AP51: No | AQ51: No
A52: 2012 | B52: AZ0024201 | C52: CITY OF TUCSON - LAKESIDE PARK LAKE | D52: 110009125856 | G52: NON-POTW | H52: =IF(OR(_AllData[[#This Row],[Facility Type Indicator]]="POTW", _AllData[[#This Row],[Facility Type Indicator]]="FEDERAL"),"POTW",IF(AND(_AllData[[#This Row],[Facility Type Indicator]]="NON-POTW", OR(ISNUMBER(SEARCH("groundwater",_AllData[[#This Row],[Facility Name]])),ISNUMBER(SEARCH("GW treatment",_AllData[[#This Row],[Facility Name]])),ISNUMBER(SEARCH("remediation",_AllData[[#This Row],[Facility Name]])),ISNUMBER(SEARCH("superfund",_AllData[[#This Row],[Facility Name]])),ISNUMBER(SEARCH("former",_AllData[[#This Row],[Facility Name]])),ISNUMBER(SEARCH("restoration",_AllData[[#This Row],[Facility Name]])),ISNUMBER(SEARCH("well",_AllData[[#This Row],[Facility Name]])),ISNUMBER(SEARCH("GWCU",_AllData[[#This Row],[Facility Name]])),ISNUMBER(SEARCH("reclamation",_AllData[[#This Row],[Facility Name]])),ISNUMBER(SEARCH("GWTS",_AllData[[#This Row],[Facility Name]])),ISNUMBER(SEARCH("GWETS",_AllData[[#This Row],[Facility Name]])),_AllData[[#This Row],[SIC Code]]="1794",_AllData[[#This Row],[SIC Code]]="4959")),"remediation","industrial/commercial")) -> industrial/commercial | I52: NPD | J52: 06/18/2018 | K52: 06/17/2023 | L52: Non-Major | N52: =COUNTIF('SIC to 2002 NAICS'!$A$2:$A$2166,_AllData[[#This Row],[SIC Code]]) -> 0 | O52: =IFERROR(VLOOKUP(_AllData[[#This Row],[TRI Facility ID(s)]],'TRI NAICS Crosswalk'!$E$2:$G$455,3,FALSE),IF(_AllData[[#This Row],[NAICS Code]]<>"",VALUE(_AllData[[#This Row],[NAICS Code]]),IFERROR(VLOOKUP(VLOOKUP(VLOOKUP(VLOOKUP(_AllData[[#This Row],[SIC Code]],'SIC to 2002 NAICS'!$A$1:$D$2167,3,FALSE),'2002 to 2007 NAICS'!$A$3:$D$1203,3,FALSE),'2007 to 2012 NAICS'!$A$3:$D$1187,3,FALSE),'2012 to 2017 NAICS'!$A$3:$D$1072,3,FALSE),"SIC Not Provided"))) -> SIC Not Provided | Q52: 8201 E STELLA RD | R52: TUCSON | S52: AZ | T52: 85730 | U52: PIMA | V52: 09 | W52: 08 | X52: 32.18447 | Y52: -110.81749 | Z52: 150503020205 | AA52: Atterbury Wash | AC52: 15050301000935 | AI52: 0 | AJ52: =IFERROR(VALUE(CONVERT(_AllData[[#This Row],[Total Facility Load (kg/yr)]]*1000,"g","lbm")),0) -> 0 | AK52: 0 | AN52: 3.262314 | AO52: No | AP52: No | AQ52: No
A53: 2012 | B53: AZ0024244 | C53: ARIZONA CITY SANITARY DISTRICT - WWTP | D53: 110006785185 | F53: 04002102001, 4002102001 | G53: POTW | H53: =IF(OR(_AllData[[#This Row],[Facility Type Indicator]]="POTW", _AllData[[#This Row],[Facility Type Indicator]]="FEDERAL"),"POTW",IF(AND(_AllData[[#This Row],[Facility Type Indicator]]="NON-POTW", OR(ISNUMBER(SEARCH("groundwater",_AllData[[#This Row],[Facility Name]])),ISNUMBER(SEARCH("GW treatment",_AllData[[#This Row],[Facility Name]])),ISNUMBER(SEARCH("remediation",_AllData[[#This Row],[Facility Name]])),ISNUMBER(SEARCH("superfund",_AllData[[#This Row],[Facility Name]])),ISNUMBER(SEARCH("former",_AllData[[#This Row],[Facility Name]])),ISNUMBER(SEARCH("restoration",_AllData[[#This Row],[Facility Name]])),ISNUMBER(SEARCH("well",_AllData[[#This Row],[Facility Name]])),ISNUMBER(SEARCH("GWCU",_AllData[[#This Row],[Facility Name]])),ISNUMBER(SEARCH("reclamation",_AllData[[#This Row],[Facility Name]])),ISNUMBER(SEARCH("GWTS",_AllData[[#This Row],[Facility Name]])),ISNUMBER(SEARCH("GWETS",_AllData[[#This Row],[Facility Name]])),_AllData[[#This Row],[SIC Code]]="1794",_AllData[[#This Row],[SIC Code]]="4959")),"remediation","industrial/commercial")) -> POTW | I53: NPD | J53: 05/03/2018 | K53: 05/02/2023 | L53: Major | N53: =COUNTIF('SIC to 2002 NAICS'!$A$2:$A$2166,_AllData[[#This Row],[SIC Code]]) -> 0 | O53: =IFERROR(VLOOKUP(_AllData[[#This Row],[TRI Facility ID(s)]],'TRI NAICS Crosswalk'!$E$2:$G$455,3,FALSE),IF(_AllData[[#This Row],[NAICS Code]]<>"",VALUE(_AllData[[#This Row],[NAICS Code]]),IFERROR(VLOOKUP(VLOOKUP(VLOOKUP(VLOOKUP(_AllData[[#This Row],[SIC Code]],'SIC to 2002 NAICS'!$A$1:$D$2167,3,FALSE),'2002 to 2007 NAICS'!$A$3:$D$1203,3,FALSE),'2007 to 2012 NAICS'!$A$3:$D$1187,3,FALSE),'2012 to 2017 NAICS'!$A$3:$D$1072,3,FALSE),"SIC Not Provided"))) -> SIC Not Provided | Q53: 12922 S KASHMIR RD | R53: ARIZONA CITY | S53: AZ | T53: 85123 | U53: PINAL | V53: 09 | W53: 01 | X53: 32.7627 | Y53: -111.68557 | Z53: 150503030310 | AA53: Upper Santa Cruz Wash | AC53: 15010001000229 | AJ53: =IFERROR(VALUE(CONVERT(_AllData[[#This Row],[Total Facility Load (kg/yr)]]*1000,"g","lbm")),0) -> 0 | AK53: 0 | AN53: 32.647 | AO53: No | AP53: No | AQ53: No
A54: 2012 | B54: AZ0024465 | C54: CITY OF PHOENIX - CAVE CREEK WATER RECLAMATION PLANT | D54: 110032960712 | F54: 4001316002 | G54: POTW | H54: =IF(OR(_AllData[[#This Row],[Facility Type Indicator]]="POTW", _AllData[[#This Row],[Facility Type Indicator]]="FEDERAL"),"POTW",IF(AND(_AllData[[#This Row],[Facility Type Indicator]]="NON-POTW", OR(ISNUMBER(SEARCH("groundwater",_AllData[[#This Row],[Facility Name]])),ISNUMBER(SEARCH("GW treatment",_AllData[[#This Row],[Facility Name]])),ISNUMBER(SEARCH("remediation",_AllData[[#This Row],[Facility Name]])),ISNUMBER(SEARCH("superfund",_AllData[[#This Row],[Facility Name]])),ISNUMBER(SEARCH("former",_AllData[[#This Row],[Facility Name]])),ISNUMBER(SEARCH("restoration",_AllData[[#This Row],[Facility Name]])),ISNUMBER(SEARCH("well",_AllData[[#This Row],[Facility Name]])),ISNUMBER(SEARCH("GWCU",_AllData[[#This Row],[Facility Name]])),ISNUMBER(SEARCH("reclamation",_AllData[[#This Row],[Facility Name]])),ISNUMBER(SEARCH("GWTS",_AllData[[#This Row],[Facility Name]])),ISNUMBER(SEARCH("GWETS",_AllData[[#This Row],[Facility Name]])),_AllData[[#This Row],[SIC Code]]="1794",_AllData[[#This Row],[SIC Code]]="4959")),"remediation","industrial/commercial")) -> POTW | I54: NPD | J54: 05/07/2010 | K54: 05/06/2014 | L54: Major | M54: 4952 | N54: =COUNTIF('SIC to 2002 NAICS'!$A$2:$A$2166,_AllData[[#This Row],[SIC Code]]) -> 1 | O54: =IFERROR(VLOOKUP(_AllData[[#This Row],[TRI Facility ID(s)]],'TRI NAICS Crosswalk'!$E$2:$G$455,3,FALSE),IF(_AllData[[#This Row],[NAICS Code]]<>"",VALUE(_AllData[[#This Row],[NAICS Code]]),IFERROR(VLOOKUP(VLOOKUP(VLOOKUP(VLOOKUP(_AllData[[#This Row],[SIC Code]],'SIC to 2002 NAICS'!$A$1:$D$2167,3,FALSE),'2002 to 2007 NAICS'!$A$3:$D$1203,3,FALSE),'2007 to 2012 NAICS'!$A$3:$D$1187,3,FALSE),'2012 to 2017 NAICS'!$A$3:$D$1072,3,FALSE),"SIC Not Provided"))) -> 221320 | Q54: 22841 N CAVE CREEK RD | R54: PHOENIX | S54: AZ | T54: 850247597 | U54: MARICOPA | V54: 09 | W54: 03 | X54: 33.694031 | Y54: -112.029399 | Z54: 150701020605 | AA54: Lookout Mountain-Cave Creek | AB54: UNNAMED WASH | AC54: 15060106000167 | AG54: 8 | AJ54: =IFERROR(VALUE(CONVERT(_AllData[[#This Row],[Total Facility Load (kg/yr)]]*1000,"g","lbm")),0) -> 0 | AK54: 0 | AN54: 0 | AO54: No | AP54: No | AQ54: No
A55: 2012 | B55: AZ0024511 | C55: CANYON SAND & GRAVEL WASH PLNT | D55: 110010062252 | G55: NON-POTW | H55: =IF(OR(_AllData[[#This Row],[Facility Type Indicator]]="POTW", _AllData[[#This Row],[Facility Type Indicator]]="FEDERAL"),"POTW",IF(AND(_AllData[[#This Row],[Facility Type Indicator]]="NON-POTW", OR(ISNUMBER(SEARCH("groundwater",_AllData[[#This Row],[Facility Name]])),ISNUMBER(SEARCH("GW treatment",_AllData[[#This Row],[Facility Name]])),ISNUMBER(SEARCH("remediation",_AllData[[#This Row],[Facility Name]])),ISNUMBER(SEARCH("superfund",_AllData[[#This Row],[Facility Name]])),ISNUMBER(SEARCH("former",_AllData[[#This Row],[Facility Name]])),ISNUMBER(SEARCH("restoration",_AllData[[#This Row],[Facility Name]])),ISNUMBER(SEARCH("well",_AllData[[#This Row],[Facility Name]])),ISNUMBER(SEARCH("GWCU",_AllData[[#This Row],[Facility Name]])),ISNUMBER(SEARCH("reclamation",_AllData[[#This Row],[Facility Name]])),ISNUMBER(SEARCH("GWTS",_AllData[[#This Row],[Facility Name]])),ISNUMBER(SEARCH("GWETS",_AllData[[#This Row],[Facility Name]])),_AllData[[#This Row],[SIC Code]]="1794",_AllData[[#This Row],[SIC Code]]="4959")),"remediation","industrial/commercial")) -> industrial/commercial | I55: NPD | J55: 04/01/2018 | K55: 03/31/2023 | L55: Non-Major | M55: 1442 | N55: =COUNTIF('SIC to 2002 NAICS'!$A$2:$A$2166,_AllData[[#This Row],[SIC Code]]) -> 1 | O55: =IFERROR(VLOOKUP(_AllData[[#This Row],[TRI Facility ID(s)]],'TRI NAICS Crosswalk'!$E$2:$G$455,3,FALSE),IF(_AllData[[#This Row],[NAICS Code]]<>"",VALUE(_AllData[[#This Row],[NAICS Code]]),IFERROR(VLOOKUP(VLOOKUP(VLOOKUP(VLOOKUP(_AllData[[#This Row],[SIC Code]],'SIC to 2002 NAICS'!$A$1:$D$2167,3,FALSE),'2002 to 2007 NAICS'!$A$3:$D$1203,3,FALSE),'2007 to 2012 NAICS'!$A$3:$D$1187,3,FALSE),'2012 to 2017 NAICS'!$A$3:$D$1072,3,FALSE),"SIC Not Provided"))) -> 212321 | Q55: FARM ROAD, GILA COUNTY | R55: WHITERIVER | S55: AZ | T55: 85941 | U55: NAVAJO | V55: 09 | W55: 01 | AB55: WHITE RIVER | AH55: .013 | AI55: 0 | AJ55: =IFERROR(VALUE(CONVERT(_AllData[[#This Row],[Total Facility Load (kg/yr)]]*1000,"g","lbm")),0) -> 0 | AK55: 0 | AN55: 0 | AO55: No | AP55: No | AQ55: No
A56: 2012 | B56: AZ0024520 | C56: TOWN OF MARANA WATER RECLAMATION FACILITY | D56: 110006785087 | G56: POTW | H56: =IF(OR(_AllData[[#This Row],[Facility Type Indicator]]="POTW", _AllData[[#This Row],[Facility Type Indicator]]="FEDERAL"),"POTW",IF(AND(_AllData[[#This Row],[Facility Type Indicator]]="NON-POTW", OR(ISNUMBER(SEARCH("groundwater",_AllData[[#This Row],[Facility Name]])),ISNUMBER(SEARCH("GW treatment",_AllData[[#This Row],[Facility Name]])),ISNUMBER(SEARCH("remediation",_AllData[[#This Row],[Facility Name]])),ISNUMBER(SEARCH("superfund",_AllData[[#This Row],[Facility Name]])),ISNUMBER(SEARCH("former",_AllData[[#This Row],[Facility Name]])),ISNUMBER(SEARCH("restoration",_AllData[[#This Row],[Facility Name]])),ISNUMBER(SEARCH("well",_AllData[[#This Row],[Facility Name]])),ISNUMBER(SEARCH("GWCU",_AllData[[#This Row],[Facility Name]])),ISNUMBER(SEARCH("reclamation",_AllData[[#This Row],[Facility Name]])),ISNUMBER(SEARCH("GWTS",_AllData[[#This Row],[Facility Name]])),ISNUMBER(SEARCH("GWETS",_AllData[[#This Row],[Facility Name]])),_AllData[[#This Row],[SIC Code]]="1794",_AllData[[#This Row],[SIC Code]]="4959")),"remediation","industrial/commercial")) -> POTW | I56: NPD | J56: 03/06/2017 | K56: 03/05/2022 | L56: Major | N56: =COUNTIF('SIC to 2002 NAICS'!$A$2:$A$2166,_AllData[[#This Row],[SIC Code]]) -> 0 | O56: =IFERROR(VLOOKUP(_AllData[[#This Row],[TRI Facility ID(s)]],'TRI NAICS Crosswalk'!$E$2:$G$455,3,FALSE),IF(_AllData[[#This Row],[NAICS Code]]<>"",VALUE(_AllData[[#This Row],[NAICS Code]]),IFERROR(VLOOKUP(VLOOKUP(VLOOKUP(VLOOKUP(_AllData[[#This Row],[SIC Code]],'SIC to 2002 NAICS'!$A$1:$D$2167,3,FALSE),'2002 to 2007 NAICS'!$A$3:$D$1203,3,FALSE),'2007 to 2012 NAICS'!$A$3:$D$1187,3,FALSE),'2012 to 2017 NAICS'!$A$3:$D$1072,3,FALSE),"SIC Not Provided"))) -> SIC Not Provided | Q56: 14393 N LUCKETT RD | R56: MARANA | S56: AZ | T56: 85653 | U56: PIMA | V56: 09 | W56: 07 | X56: 32.468206 | Y56: -111.28846 | Z56: 150503030103 | AA56: City of Marana-Santa Cruz River | AC56: 15050302000011 | AI56: 0 | AJ56: =IFERROR(VALUE(CONVERT(_AllData[[#This Row],[Total Facility Load (kg/yr)]]*1000,"g","lbm")),0) -> 0 | AK56: 0 | AN56: 75.0615 | AO56: No | AP56: No | AQ56: No
A57: 2012 | B57: AZ0024554 | C57: CITY OF PHOENIX - RIO SALADO HABITAT RESTORATION | D57: 110009066278 | G57: NON-POTW | H57: =IF(OR(_AllData[[#This Row],[Facility Type Indicator]]="POTW", _AllData[[#This Row],[Facility Type Indicator]]="FEDERAL"),"POTW",IF(AND(_AllData[[#This Row],[Facility Type Indicator]]="NON-POTW", OR(ISNUMBER(SEARCH("groundwater",_AllData[[#This Row],[Facility Name]])),ISNUMBER(SEARCH("GW treatment",_AllData[[#This Row],[Facility Name]])),ISNUMBER(SEARCH("remediation",_AllData[[#This Row],[Facility Name]])),ISNUMBER(SEARCH("superfund",_AllData[[#This Row],[Facility Name]])),ISNUMBER(SEARCH("former",_AllData[[#This Row],[Facility Name]])),ISNUMBER(SEARCH("restoration",_AllData[[#This Row],[Facility Name]])),ISNUMBER(SEARCH("well",_AllData[[#This Row],[Facility Name]])),ISNUMBER(SEARCH("GWCU",_AllData[[#This Row],[Facility Name]])),ISNUMBER(SEARCH("reclamation",_AllData[[#This Row],[Facility Name]])),ISNUMBER(SEARCH("GWTS",_AllData[[#This Row],[Facility Name]])),ISNUMBER(SEARCH("GWETS",_AllData[[#This Row],[Facility Name]])),_AllData[[#This Row],[SIC Code]]="1794",_AllData[[#This Row],[SIC Code]]="4959")),"remediation","industrial/commercial")) -> remediation | I57: NPD | J57: 08/28/2018 | K57: 08/27/2023 | L57: Non-Major | N57: =COUNTIF('SIC to 2002 NAICS'!$A$2:$A$2166,_AllData[[#This Row],[SIC Code]]) -> 0 | O57: =IFERROR(VLOOKUP(_AllData[[#This Row],[TRI Facility ID(s)]],'TRI NAICS Crosswalk'!$E$2:$G$455,3,FALSE),IF(_AllData[[#This Row],[NAICS Code]]<>"",VALUE(_AllData[[#This Row],[NAICS Code]]),IFERROR(VLOOKUP(VLOOKUP(VLOOKUP(VLOOKUP(_AllData[[#This Row],[SIC Code]],'SIC to 2002 NAICS'!$A$1:$D$2167,3,FALSE),'2002 to 2007 NAICS'!$A$3:$D$1203,3,FALSE),'2007 to 2012 NAICS'!$A$3:$D$1187,3,FALSE),'2012 to 2017 NAICS'!$A$3:$D$1072,3,FALSE),"SIC Not Provided"))) -> SIC Not Provided | Q57: 19TH AVE AND I10 HIGHWAY | R57: PHOENIX | S57: AZ | T57: 85003-1611 | U57: MARICOPA | V57: 09 | W57: 04 | X57: 33.44825 | Y57: -112.07706 | Z57: 150601060305 | AA57: City of Phoenix-Salt River | AC57: 15050100002987 | AD57: Y | AJ57: =IFERROR(VALUE(CONVERT(_AllData[[#This Row],[Total Facility Load (kg/yr)]]*1000,"g","lbm")),0) -> 0 | AK57: 0 | AN57: 113.166 | AO57: No | AP57: No | AQ57: No
A58: 2012 | B58: AZ0024619 | C58: UPPER VILLAGE OF MOENKOPI WWTF | D58: 110024463962 | G58: POTW | H58: =IF(OR(_AllData[[#This Row],[Facility Type Indicator]]="POTW", _AllData[[#This Row],[Facility Type Indicator]]="FEDERAL"),"POTW",IF(AND(_AllData[[#This Row],[Facility Type Indicator]]="NON-POTW", OR(ISNUMBER(SEARCH("groundwater",_AllData[[#This Row],[Facility Name]])),ISNUMBER(SEARCH("GW treatment",_AllData[[#This Row],[Facility Name]])),ISNUMBER(SEARCH("remediation",_AllData[[#This Row],[Facility Name]])),ISNUMBER(SEARCH("superfund",_AllData[[#This Row],[Facility Name]])),ISNUMBER(SEARCH("former",_AllData[[#This Row],[Facility Name]])),ISNUMBER(SEARCH("restoration",_AllData[[#This Row],[Facility Name]])),ISNUMBER(SEARCH("well",_AllData[[#This Row],[Facility Name]])),ISNUMBER(SEARCH("GWCU",_AllData[[#This Row],[Facility Name]])),ISNUMBER(SEARCH("reclamation",_AllData[[#This Row],[Facility Name]])),ISNUMBER(SEARCH("GWTS",_AllData[[#This Row],[Facility Name]])),ISNUMBER(SEARCH("GWETS",_AllData[[#This Row],[Facility Name]])),_AllData[[#This Row],[SIC Code]]="1794",_AllData[[#This Row],[SIC Code]]="4959")),"remediation","industrial/commercial")) -> POTW | I58: NPD | J58: 01/01/2018 | K58: 12/31/2022 | L58: Non-Major | M58: 4952 | N58: =COUNTIF('SIC to 2002 NAICS'!$A$2:$A$2166,_AllData[[#This Row],[SIC Code]]) -> 1 | O58: =IFERROR(VLOOKUP(_AllData[[#This Row],[TRI Facility ID(s)]],'TRI NAICS Crosswalk'!$E$2:$G$455,3,FALSE),IF(_AllData[[#This Row],[NAICS Code]]<>"",VALUE(_AllData[[#This Row],[NAICS Code]]),IFERROR(VLOOKUP(VLOOKUP(VLOOKUP(VLOOKUP(_AllData[[#This Row],[SIC Code]],'SIC to 2002 NAICS'!$A$1:$D$2167,3,FALSE),'2002 to 2007 NAICS'!$A$3:$D$1203,3,FALSE),'2007 to 2012 NAICS'!$A$3:$D$1187,3,FALSE),'2012 to 2017 NAICS'!$A$3:$D$1072,3,FALSE),"SIC Not Provided"))) -> 221320 | Q58: MILE POST 321 HIGHWAY 160 | R58: TUBA CITY | S58: AZ | T58: 86045 | U58: COCONINO | V58: 09 | W58: 01 | X58: 36.132019 | Y58: -111.184922 | Z58: 150200180704 | AA58: Lower Pasture Canyon | AB58: MOENKOPI WASH, REUSE HOLDING TANK, REUSE MANHOLES | AC58: 15020018000016 | AG58: .185 | AI58: 0 | AJ58: =IFERROR(VALUE(CONVERT(_AllData[[#This Row],[Total Facility Load (kg/yr)]]*1000,"g","lbm")),0) -> 0 | AK58: 0 | AN58: 0 | AO58: No | AP58: No | AQ58: No
A59: 2012 | B59: AZ0024627 | C59: NORTHWEST WATER RECLAMATION PLANT | D59: 110000510000 | G59: POTW | H59: =IF(OR(_AllData[[#This Row],[Facility Type Indicator]]="POTW", _AllData[[#This Row],[Facility Type Indicator]]="FEDERAL"),"POTW",IF(AND(_AllData[[#This Row],[Facility Type Indicator]]="NON-POTW", OR(ISNUMBER(SEARCH("groundwater",_AllData[[#This Row],[Facility Name]])),ISNUMBER(SEARCH("GW treatment",_AllData[[#This Row],[Facility Name]])),ISNUMBER(SEARCH("remediation",_AllData[[#This Row],[Facility Name]])),ISNUMBER(SEARCH("superfund",_AllData[[#This Row],[Facility Name]])),ISNUMBER(SEARCH("former",_AllData[[#This Row],[Facility Name]])),ISNUMBER(SEARCH("restoration",_AllData[[#This Row],[Facility Name]])),ISNUMBER(SEARCH("well",_AllData[[#This Row],[Facility Name]])),ISNUMBER(SEARCH("GWCU",_AllData[[#This Row],[Facility Name]])),ISNUMBER(SEARCH("reclamation",_AllData[[#This Row],[Facility Name]])),ISNUMBER(SEARCH("GWTS",_AllData[[#This Row],[Facility Name]])),ISNUMBER(SEARCH("GWETS",_AllData[[#This Row],[Facility Name]])),_AllData[[#This Row],[SIC Code]]="1794",_AllData[[#This Row],[SIC Code]]="4959")),"remediation","industrial/commercial")) -> POTW | I59: NPD | J59: 07/01/2019 | K59: 06/30/2024 | L59: Major | M59: 4952 | N59: =COUNTIF('SIC to 2002 NAICS'!$A$2:$A$2166,_AllData[[#This Row],[SIC Code]]) -> 1 | O59: =IFERROR(VLOOKUP(_AllData[[#This Row],[TRI Facility ID(s)]],'TRI NAICS Crosswalk'!$E$2:$G$455,3,FALSE),IF(_AllData[[#This Row],[NAICS Code]]<>"",VALUE(_AllData[[#This Row],[NAICS Code]]),IFERROR(VLOOKUP(VLOOKUP(VLOOKUP(VLOOKUP(_AllData[[#This Row],[SIC Code]],'SIC to 2002 NAICS'!$A$1:$D$2167,3,FALSE),'2002 to 2007 NAICS'!$A$3:$D$1203,3,FALSE),'2007 to 2012 NAICS'!$A$3:$D$1187,3,FALSE),'2012 to 2017 NAICS'!$A$3:$D$1072,3,FALSE),"SIC Not Provided"))) -> 221320 | Q59: 960 NORTH RIVERVIEW | R59: MESA | S59: AZ | T59: 85201 | U59: MARICOPA | V59: 09 | W59: 05 | X59: 33.431153 | Y59: -111.877734 | Z59: 150601060304 | AA59: Salt River-Tempe Town Lake | AB59: SALT RIVER | AC59: 15060106000377 | AG59: 18 | AI59: 0 | AJ59: =IFERROR(VALUE(CONVERT(_AllData[[#This Row],[Total Facility Load (kg/yr)]]*1000,"g","lbm")),0) -> 0 | AK59: 0 | AN59: 2312.48 | AO59: No | AP59: No | AQ59: No
A60: 2012 | B60: AZ0024716 | C60: COTTONWOOD WWTF | D60: 110055979455 | F60: 4002508001 | G60: POTW | H60: =IF(OR(_AllData[[#This Row],[Facility Type Indicator]]="POTW", _AllData[[#This Row],[Facility Type Indicator]]="FEDERAL"),"POTW",IF(AND(_AllData[[#This Row],[Facility Type Indicator]]="NON-POTW", OR(ISNUMBER(SEARCH("groundwater",_AllData[[#This Row],[Facility Name]])),ISNUMBER(SEARCH("GW treatment",_AllData[[#This Row],[Facility Name]])),ISNUMBER(SEARCH("remediation",_AllData[[#This Row],[Facility Name]])),ISNUMBER(SEARCH("superfund",_AllData[[#This Row],[Facility Name]])),ISNUMBER(SEARCH("former",_AllData[[#This Row],[Facility Name]])),ISNUMBER(SEARCH("restoration",_AllData[[#This Row],[Facility Name]])),ISNUMBER(SEARCH("well",_AllData[[#This Row],[Facility Name]])),ISNUMBER(SEARCH("GWCU",_AllData[[#This Row],[Facility Name]])),ISNUMBER(SEARCH("reclamation",_AllData[[#This Row],[Facility Name]])),ISNUMBER(SEARCH("GWTS",_AllData[[#This Row],[Facility Name]])),ISNUMBER(SEARCH("GWETS",_AllData[[#This Row],[Facility Name]])),_AllData[[#This Row],[SIC Code]]="1794",_AllData[[#This Row],[SIC Code]]="4959")),"remediation","industrial/commercial")) -> POTW | I60: NPD | J60: 04/11/2017 | K60: 04/10/2022 | L60: Major | N60: =COUNTIF('SIC to 2002 NAICS'!$A$2:$A$2166,_AllData[[#This Row],[SIC Code]]) -> 0 | O60: =IFERROR(VLOOKUP(_AllData[[#This Row],[TRI Facility ID(s)]],'TRI NAICS Crosswalk'!$E$2:$G$455,3,FALSE),IF(_AllData[[#This Row],[NAICS Code]]<>"",VALUE(_AllData[[#This Row],[NAICS Code]]),IFERROR(VLOOKUP(VLOOKUP(VLOOKUP(VLOOKUP(_AllData[[#This Row],[SIC Code]],'SIC to 2002 NAICS'!$A$1:$D$2167,3,FALSE),'2002 to 2007 NAICS'!$A$3:$D$1203,3,FALSE),'2007 to 2012 NAICS'!$A$3:$D$1187,3,FALSE),'2012 to 2017 NAICS'!$A$3:$D$1072,3,FALSE),"SIC Not Provided"))) -> SIC Not Provided | Q60: 1480 W MINGUS AVE | R60: COTTONWOOD | S60: AZ | T60: 86326-8084 | U60: YAVAPAI | V60: 09 | W60: 01 | X60: 34.72971 | Y60: -112.043376 | Z60: 150602020702 | AA60: Mescal Gulch-Verde River | AC60: 15010007000406 | AJ60: =IFERROR(VALUE(CONVERT(_AllData[[#This Row],[Total Facility Load (kg/yr)]]*1000,"g","lbm")),0) -> 0 | AK60: 0 | AN60: 358.464 | AO60: No | AP60: No | AQ60: No
A61: 2012 | B61: AZ0024791 | C61: SALT RIVER PROJECT | D61: 110011651685 | G61: NON-POTW | H61: =IF(OR(_AllData[[#This Row],[Facility Type Indicator]]="POTW", _AllData[[#This Row],[Facility Type Indicator]]="FEDERAL"),"POTW",IF(AND(_AllData[[#This Row],[Facility Type Indicator]]="NON-POTW", OR(ISNUMBER(SEARCH("groundwater",_AllData[[#This Row],[Facility Name]])),ISNUMBER(SEARCH("GW treatment",_AllData[[#This Row],[Facility Name]])),ISNUMBER(SEARCH("remediation",_AllData[[#This Row],[Facility Name]])),ISNUMBER(SEARCH("superfund",_AllData[[#This Row],[Facility Name]])),ISNUMBER(SEARCH("former",_AllData[[#This Row],[Facility Name]])),ISNUMBER(SEARCH("restoration",_AllData[[#This Row],[Facility Name]])),ISNUMBER(SEARCH("well",_AllData[[#This Row],[Facility Name]])),ISNUMBER(SEARCH("GWCU",_AllData[[#This Row],[Facility Name]])),ISNUMBER(SEARCH("reclamation",_AllData[[#This Row],[Facility Name]])),ISNUMBER(SEARCH("GWTS",_AllData[[#This Row],[Facility Name]])),ISNUMBER(SEARCH("GWETS",_AllData[[#This Row],[Facility Name]])),_AllData[[#This Row],[SIC Code]]="1794",_AllData[[#This Row],[SIC Code]]="4959")),"remediation","industrial/commercial")) -> industrial/commercial | I61: NPD | J61: 09/19/2018 | K61: 09/18/2023 | L61: Major | N61: =COUNTIF('SIC to 2002 NAICS'!$A$2:$A$2166,_AllData[[#This Row],[SIC Code]]) -> 0 | O61: =IFERROR(VLOOKUP(_AllData[[#This Row],[TRI Facility ID(s)]],'TRI NAICS Crosswalk'!$E$2:$G$455,3,FALSE),IF(_AllData[[#This Row],[NAICS Code]]<>"",VALUE(_AllData[[#This Row],[NAICS Code]]),IFERROR(VLOOKUP(VLOOKUP(VLOOKUP(VLOOKUP(_AllData[[#This Row],[SIC Code]],'SIC to 2002 NAICS'!$A$1:$D$2167,3,FALSE),'2002 to 2007 NAICS'!$A$3:$D$1203,3,FALSE),'2007 to 2012 NAICS'!$A$3:$D$1187,3,FALSE),'2012 to 2017 NAICS'!$A$3:$D$1072,3,FALSE),"SIC Not Provided"))) -> SIC Not Provided | Q61: 7005 S KYRENE ROAD | R61: TEMPE | S61: AZ | T61: 85281-1206 | U61: MARICOPA | V61: 09 | W61: 05 | X61: 33.447479 | Y61: -111.952819 | Z61: 150601060305 | AA61: City of Phoenix-Salt River | AC61: 15030103000865 | AI61: 0 | AJ61: =IFERROR(VALUE(CONVERT(_AllData[[#This Row],[Total Facility Load (kg/yr)]]*1000,"g","lbm")),0) -> 0 | AK61: 0 | AN61: 406.89 | AO61: No | AP61: No | AQ61: No
A62: 2012 | B62: AZ0024848 | C62: CENTRAL & CAMELBACK WQARF SITE | D62: 110047492459 | G62: NON-POTW | H62: =IF(OR(_AllData[[#This Row],[Facility Type Indicator]]="POTW", _AllData[[#This Row],[Facility Type Indicator]]="FEDERAL"),"POTW",IF(AND(_AllData[[#This Row],[Facility Type Indicator]]="NON-POTW", OR(ISNUMBER(SEARCH("groundwater",_AllData[[#This Row],[Facility Name]])),ISNUMBER(SEARCH("GW treatment",_AllData[[#This Row],[Facility Name]])),ISNUMBER(SEARCH("remediation",_AllData[[#This Row],[Facility Name]])),ISNUMBER(SEARCH("superfund",_AllData[[#This Row],[Facility Name]])),ISNUMBER(SEARCH("former",_AllData[[#This Row],[Facility Name]])),ISNUMBER(SEARCH("restoration",_AllData[[#This Row],[Facility Name]])),ISNUMBER(SEARCH("well",_AllData[[#This Row],[Facility Name]])),ISNUMBER(SEARCH("GWCU",_AllData[[#This Row],[Facility Name]])),ISNUMBER(SEARCH("reclamation",_AllData[[#This Row],[Facility Name]])),ISNUMBER(SEARCH("GWTS",_AllData[[#This Row],[Facility Name]])),ISNUMBER(SEARCH("GWETS",_AllData[[#This Row],[Facility Name]])),_AllData[[#This Row],[SIC Code]]="1794",_AllData[[#This Row],[SIC Code]]="4959")),"remediation","industrial/commercial")) -> industrial/commercial | I62: NPD | J62: 12/11/2017 | K62: 12/10/2022 | L62: Non-Major | N62: =COUNTIF('SIC to 2002 NAICS'!$A$2:$A$2166,_AllData[[#This Row],[SIC Code]]) -> 0 | O62: =IFERROR(VLOOKUP(_AllData[[#This Row],[TRI Facility ID(s)]],'TRI NAICS Crosswalk'!$E$2:$G$455,3,FALSE),IF(_AllData[[#This Row],[NAICS Code]]<>"",VALUE(_AllData[[#This Row],[NAICS Code]]),IFERROR(VLOOKUP(VLOOKUP(VLOOKUP(VLOOKUP(_AllData[[#This Row],[SIC Code]],'SIC to 2002 NAICS'!$A$1:$D$2167,3,FALSE),'2002 to 2007 NAICS'!$A$3:$D$1203,3,FALSE),'2007 to 2012 NAICS'!$A$3:$D$1187,3,FALSE),'2012 to 2017 NAICS'!$A$3:$D$1072,3,FALSE),"SIC Not Provided"))) -> SIC Not Provided | Q62: 21 W CAMELBACK RD | R62: PHOENIX | S62: AZ | T62: 85012 | U62: MARICOPA | V62: 09 | W62: 04 | X62: 33.50928 | Y62: -112.07376 | Z62: 150601060305 | AA62: City of Phoenix-Salt River | AC62: 15050301000279 | AJ62: =IFERROR(VALUE(CONVERT(_AllData[[#This Row],[Total Facility Load (kg/yr)]]*1000,"g","lbm")),0) -> 0 | AK62: 0 | AM62: .1288 | AN62: 22.8528 | AO62: No | AP62: No | AQ62: No
A63: 2012 | B63: AZ0024911 | C63: CITY OF SAFFORD - GILA RESOURCES WRP | D63: 110012330520 | G63: POTW | H63: =IF(OR(_AllData[[#This Row],[Facility Type Indicator]]="POTW", _AllData[[#This Row],[Facility Type Indicator]]="FEDERAL"),"POTW",IF(AND(_AllData[[#This Row],[Facility Type Indicator]]="NON-POTW", OR(ISNUMBER(SEARCH("groundwater",_AllData[[#This Row],[Facility Name]])),ISNUMBER(SEARCH("GW treatment",_AllData[[#This Row],[Facility Name]])),ISNUMBER(SEARCH("remediation",_AllData[[#This Row],[Facility Name]])),ISNUMBER(SEARCH("superfund",_AllData[[#This Row],[Facility Name]])),ISNUMBER(SEARCH("former",_AllData[[#This Row],[Facility Name]])),ISNUMBER(SEARCH("restoration",_AllData[[#This Row],[Facility Name]])),ISNUMBER(SEARCH("well",_AllData[[#This Row],[Facility Name]])),ISNUMBER(SEARCH("GWCU",_AllData[[#This Row],[Facility Name]])),ISNUMBER(SEARCH("reclamation",_AllData[[#This Row],[Facility Name]])),ISNUMBER(SEARCH("GWTS",_AllData[[#This Row],[Facility Name]])),ISNUMBER(SEARCH("GWETS",_AllData[[#This Row],[Facility Name]])),_AllData[[#This Row],[SIC Code]]="1794",_AllData[[#This Row],[SIC Code]]="4959")),"remediation","industrial/commercial")) -> POTW | I63: NPD | J63: 02/04/2019 | K63: 02/03/2024 | L63: Major | N63: =COUNTIF('SIC to 2002 NAICS'!$A$2:$A$2166,_AllData[[#This Row],[SIC Code]]) -> 0 | O63: =IFERROR(VLOOKUP(_AllData[[#This Row],[TRI Facility ID(s)]],'TRI NAICS Crosswalk'!$E$2:$G$455,3,FALSE),IF(_AllData[[#This Row],[NAICS Code]]<>"",VALUE(_AllData[[#This Row],[NAICS Code]]),IFERROR(VLOOKUP(VLOOKUP(VLOOKUP(VLOOKUP(_AllData[[#This Row],[SIC Code]],'SIC to 2002 NAICS'!$A$1:$D$2167,3,FALSE),'2002 to 2007 NAICS'!$A$3:$D$1203,3,FALSE),'2007 to 2012 NAICS'!$A$3:$D$1187,3,FALSE),'2012 to 2017 NAICS'!$A$3:$D$1072,3,FALSE),"SIC Not Provided"))) -> SIC Not Provided | Q63: 1395 W RECLAMATION WAY | R63: SAFFORD | S63: AZ | T63: 85546 | U63: GRAHAM | V63: 09 | W63: 01 | X63: 32.802 | Y63: -109.711 | Z63: 150400050705 | AA63: Peterson Wash-Gila River | AC63: 15050100023719 | AD63: Y | AJ63: =IFERROR(VALUE(CONVERT(_AllData[[#This Row],[Total Facility Load (kg/yr)]]*1000,"g","lbm")),0) -> 0 | AK63: 0 | AN63: 121.17 | AO63: No | AP63: No | AQ63: No
A64: 2012 | B64: AZ0024937 | C64: PIMA COUNTY - WWMD - GREEN VALLEY BNRO - WWTP | D64: 110064596842 | G64: POTW | H64: =IF(OR(_AllData[[#This Row],[Facility Type Indicator]]="POTW", _AllData[[#This Row],[Facility Type Indicator]]="FEDERAL"),"POTW",IF(AND(_AllData[[#This Row],[Facility Type Indicator]]="NON-POTW", OR(ISNUMBER(SEARCH("groundwater",_AllData[[#This Row],[Facility Name]])),ISNUMBER(SEARCH("GW treatment",_AllData[[#This Row],[Facility Name]])),ISNUMBER(SEARCH("remediation",_AllData[[#This Row],[Facility Name]])),ISNUMBER(SEARCH("superfund",_AllData[[#This Row],[Facility Name]])),ISNUMBER(SEARCH("former",_AllData[[#This Row],[Facility Name]])),ISNUMBER(SEARCH("restoration",_AllData[[#This Row],[Facility Name]])),ISNUMBER(SEARCH("well",_AllData[[#This Row],[Facility Name]])),ISNUMBER(SEARCH("GWCU",_AllData[[#This Row],[Facility Name]])),ISNUMBER(SEARCH("reclamation",_AllData[[#This Row],[Facility Name]])),ISNUMBER(SEARCH("GWTS",_AllData[[#This Row],[Facility Name]])),ISNUMBER(SEARCH("GWETS",_AllData[[#This Row],[Facility Name]])),_AllData[[#This Row],[SIC Code]]="1794",_AllData[[#This Row],[SIC Code]]="4959")),"remediation","industrial/commercial")) -> POTW | I64: NPD | J64: 07/17/2015 | K64: 07/16/2020 | L64: Major | N64: =COUNTIF('SIC to 2002 NAICS'!$A$2:$A$2166,_AllData[[#This Row],[SIC Code]]) -> 0 | O64: =IFERROR(VLOOKUP(_AllData[[#This Row],[TRI Facility ID(s)]],'TRI NAICS Crosswalk'!$E$2:$G$455,3,FALSE),IF(_AllData[[#This Row],[NAICS Code]]<>"",VALUE(_AllData[[#This Row],[NAICS Code]]),IFERROR(VLOOKUP(VLOOKUP(VLOOKUP(VLOOKUP(_AllData[[#This Row],[SIC Code]],'SIC to 2002 NAICS'!$A$1:$D$2167,3,FALSE),'2002 to 2007 NAICS'!$A$3:$D$1203,3,FALSE),'2007 to 2012 NAICS'!$A$3:$D$1187,3,FALSE),'2012 to 2017 NAICS'!$A$3:$D$1072,3,FALSE),"SIC Not Provided"))) -> SIC Not Provided | Q64: 2201 N NOGALES HWY | R64: SAHUARITA | S64: AZ | T64: 85614 | U64: PIMA | V64: 09 | W64: 08 | X64: 33.06008 | Y64: -110.90846 | Z64: 150503010704 | AA64: Kinney Tank-Santa Cruz River | AC64: 15050100001664 | AD64: Y | AJ64: =IFERROR(VALUE(CONVERT(_AllData[[#This Row],[Total Facility Load (kg/yr)]]*1000,"g","lbm")),0) -> 0 | AK64: 0 | AN64: 0 | AO64: No | AP64: No | AQ64: No
A65: 2012 | B65: AZ0024945 | C65: CITY OF PEORIA | D65: 110015317423 | F65: 04001343001, 4001343001 | G65: POTW | H65: =IF(OR(_AllData[[#This Row],[Facility Type Indicator]]="POTW", _AllData[[#This Row],[Facility Type Indicator]]="FEDERAL"),"POTW",IF(AND(_AllData[[#This Row],[Facility Type Indicator]]="NON-POTW", OR(ISNUMBER(SEARCH("groundwater",_AllData[[#This Row],[Facility Name]])),ISNUMBER(SEARCH("GW treatment",_AllData[[#This Row],[Facility Name]])),ISNUMBER(SEARCH("remediation",_AllData[[#This Row],[Facility Name]])),ISNUMBER(SEARCH("superfund",_AllData[[#This Row],[Facility Name]])),ISNUMBER(SEARCH("former",_AllData[[#This Row],[Facility Name]])),ISNUMBER(SEARCH("restoration",_AllData[[#This Row],[Facility Name]])),ISNUMBER(SEARCH("well",_AllData[[#This Row],[Facility Name]])),ISNUMBER(SEARCH("GWCU",_AllData[[#This Row],[Facility Name]])),ISNUMBER(SEARCH("reclamation",_AllData[[#This Row],[Facility Name]])),ISNUMBER(SEARCH("GWTS",_AllData[[#This Row],[Facility Name]])),ISNUMBER(SEARCH("GWETS",_AllData[[#This Row],[Facility Name]])),_AllData[[#This Row],[SIC Code]]="1794",_AllData[[#This Row],[SIC Code]]="4959")),"remediation","industrial/commercial")) -> POTW | I65: NPD | J65: 08/04/2017 | K65: 08/03/2022 | L65: Major | N65: =COUNTIF('SIC to 2002 NAICS'!$A$2:$A$2166,_AllData[[#This Row],[SIC Code]]) -> 0 | O65: =IFERROR(VLOOKUP(_AllData[[#This Row],[TRI Facility ID(s)]],'TRI NAICS Crosswalk'!$E$2:$G$455,3,FALSE),IF(_AllData[[#This Row],[NAICS Code]]<>"",VALUE(_AllData[[#This Row],[NAICS Code]]),IFERROR(VLOOKUP(VLOOKUP(VLOOKUP(VLOOKUP(_AllData[[#This Row],[SIC Code]],'SIC to 2002 NAICS'!$A$1:$D$2167,3,FALSE),'2002 to 2007 NAICS'!$A$3:$D$1203,3,FALSE),'2007 to 2012 NAICS'!$A$3:$D$1187,3,FALSE),'2012 to 2017 NAICS'!$A$3:$D$1072,3,FALSE),"SIC Not Provided"))) -> SIC Not Provided | Q65: 12483 W JOMAX RD | R65: PEORIA | S65: AZ | T65: 85383 | U65: MARICOPA | V65: 09 | W65: 02 | X65: 33.72689 | Y65: -112.33074 | Z65: 150701020904 | AA65: White Peak | AC65: 15030104003460 | AD65: Y | AI65: 0 | AJ65: =IFERROR(VALUE(CONVERT(_AllData[[#This Row],[Total Facility Load (kg/yr)]]*1000,"g","lbm")),0) -> 0 | AK65: 0 | AL65: 0 | AN65: 52.37454545454545454545454545454545454545 | AO65: No | AP65: No | AQ65: Yes
